Workbook

Sheet Introduction
C4: Joint Monitoring Programme for Water Supply, Sanitation and Hygiene
C6: Estimates on household water, sanitation and hygiene by wealth quintile and sub-national region in
C7: =+Water!B5 -> Guinea
C9: Updated April 2021
C11: Follow the links below to find the following information:
C13: JMP Estimates
C14: WASH status and trends by wealth quintile (customized quintiles made without water and sanitation assets)
C15: Water
C16: Sanitation
C17: Hygiene
C19: Data inputs
C20: customized wealth quintiles and subnational data:
C21: =IF(INDIRECT(CONCATENATE("Water","!B105"))=0,"",INDIRECT(CONCATENATE("Water","!B105"))) -> DHS05
C22: =IF(INDIRECT(CONCATENATE("Water","!B106"))=0,"",INDIRECT(CONCATENATE("Water","!B106"))) -> QUIBB07
C23: =IF(INDIRECT(CONCATENATE("Water","!B107"))=0,"",INDIRECT(CONCATENATE("Water","!B107"))) -> DHS12
C24: =IF(INDIRECT(CONCATENATE("Water","!B108"))=0,"",INDIRECT(CONCATENATE("Water","!B108"))) -> MICS16
C25: =IF(INDIRECT(CONCATENATE("Water","!B109"))=0,"",INDIRECT(CONCATENATE("Water","!B109"))) -> DHS18
C26: =IF(INDIRECT(CONCATENATE("Water","!B110"))=0,"",INDIRECT(CONCATENATE("Water","!B110"))) -> 
C27: =IF(INDIRECT(CONCATENATE("Water","!B111"))=0,"",INDIRECT(CONCATENATE("Water","!B111"))) -> 
C28: =IF(INDIRECT(CONCATENATE("Water","!B112"))=0,"",INDIRECT(CONCATENATE("Water","!B112"))) -> 
C29: =IF(INDIRECT(CONCATENATE("Water","!B113"))=0,"",INDIRECT(CONCATENATE("Water","!B113"))) -> 
C30: =IF(INDIRECT(CONCATENATE("Water","!B114"))=0,"",INDIRECT(CONCATENATE("Water","!B114"))) -> 
C31: =IF(INDIRECT(CONCATENATE("Water","!B115"))=0,"",INDIRECT(CONCATENATE("Water","!B115"))) -> 
C32: =IF(INDIRECT(CONCATENATE("Water","!B116"))=0,"",INDIRECT(CONCATENATE("Water","!B116"))) -> 
L55: =+IF(ISNUMBER(M48), "", "Insufficient data to estimate safely managed sanitation services at national level") -> Insufficient data to estimate safely managed sanitation services at national level

Sheet Water
A1: BGD
B4: Summary of trends in use of drinking water by wealth quintile (%)
B5: =IF(ISERROR(INDIRECT(CONCATENATE($B105,"!A2"))),"",INDIRECT(CONCATENATE($B105,"!A2"))) -> Guinea
B7: =B118 -> National use of drinking water sources, 2000–2020 | J7: =B218 -> Urban use of drinking water sources, 2000–2020 | R7: =B318 -> Rural use of drinking water sources, 2000–2020
B31: =IF(ISERROR(INDIRECT(CONCATENATE($B105,"!A2"))),"",INDIRECT(CONCATENATE($B105,"!A2"))) -> Guinea | F31: Poorest | J31: Poor | N31: Middle | R31: Rich | V31: Richest
F32: Basic | G32: Limited | H32: Unimproved | I32: Surface water | J32: Basic | K32: Limited | L32: Unimproved | M32: Surface water | N32: Basic | O32: Limited | P32: Unimproved | Q32: Surface water | R32: Basic | S32: Limited | T32: Unimproved | U32: Surface water | V32: Basic | W32: Limited | X32: Unimproved | Y32: Surface water
B33: NATIONAL | D33: Estimate | E33: =C99 -> 2000 | F33: =E99 -> 44.12032843 | G33: =F99 -> 8.843874665 | H33: 19.82911321 | I33: 27.2066837 | J33: =J99 -> 39.1518329 | K33: =K99 -> 9.182361301 | L33: 19.80675216 | M33: 31.85905364 | N33: =O99 -> 49.25281196 | O33: =P99 -> 10.66535205 | P33: 18.34861916 | Q33: 21.73321683 | R33: =T99 -> 64.56114648 | S33: =U99 -> 9.93514956 | T33: 15.95221358 | U33: 9.551490385 | V33: =Y99 -> 89.01168504 | W33: =Z99 -> 4.893364554 | X33: 5.149481436 | Y33: 0.9454689734
E34: =C100 -> 2020 | F34: =E100 -> 55.2323155 | G34: 11.0712611 | H34: 22.33492843 | I34: 11.36149497 | J34: =J100 -> 62.57758098 | K34: 14.67645102 | L34: 16.42196943 | M34: 6.323998568 | N34: =O100 -> 67.90961485 | O34: 14.70535227 | P34: 12.03883194 | Q34: 5.346200942 | R34: =T100 -> 84.83877332 | S34: 13.05562165 | T34: 1.681157805 | U34: 0.4244472281 | V34: =Y100 -> 94.78902937 | W34: 5.210970629 | X34: 0 | Y34: 0
B36: URBAN | D36: Estimate | E36: =C199 -> 2000 | F36: =E199 -> 60.84116332 | G36: =F199 -> 11.53794719 | H36: 22.45309941 | I36: 5.16779009 | J36: =J199 -> 77.03140147 | K36: =K199 -> 8.396328805 | L36: 13.47794226 | M36: 1.094327461 | N36: =O199 -> 85.93202397 | O36: =P199 -> 7.888296187 | P36: 5.662842781 | Q36: 0.5168370628 | R36: =T199 -> 91.73461742 | S36: =U199 -> 4.885828187 | T36: 3.379554395 | U36: 0 | V36: =Y199 -> 93.05834065 | W36: =Z199 -> 3.414373564 | X36: 3.527285789 | Y36: 0
E37: =C200 -> 2020 | F37: =E200 -> 83.00988167 | G37: 15.74203349 | H37: 1.248084834 | I37: 0 | J37: =J200 -> 90.17142469 | K37: 9.828575309 | L37: 0 | M37: 0 | N37: =O200 -> 91.59212399 | O37: 8.407876006 | P37: 0 | Q37: 0 | R37: =T200 -> 94.34610954 | S37: 5.024917466 | T37: 0.6289729941 | U37: 0 | V37: =Y200 -> 96.34396723 | W37: 3.53492543 | X37: 0 | Y37: 0.1211073402
B39: RURAL | D39: Estimate | E39: =C299 -> 2000 | F39: =E299 -> 41.79051312 | G39: =F299 -> 7.783981712 | H39: 19.96553626 | I39: 30.45996891 | J39: =J299 -> 42.2963457 | K39: =K299 -> 9.829317845 | L39: 18.62504389 | M39: 29.24929257 | N39: =O299 -> 49.79372802 | O39: =P299 -> 12.18003077 | P39: 18.10523532 | Q39: 19.92100589 | R39: =T299 -> 48.5769015 | S39: =U299 -> 10.65496824 | T39: 18.13173596 | U39: 22.6363943 | V39: =Y299 -> 51.74576179 | W39: =Z299 -> 10.60563075 | X39: 16.21153729 | Y39: 21.43707017
E40: =C300 -> 2020 | F40: =E300 -> 55.65876667 | G40: 10.36710941 | H40: 23.44379065 | I40: 10.53033326 | J40: =J300 -> 56.43119734 | K40: 13.11413943 | L40: 20.24815584 | M40: 10.20650738 | N40: =O300 -> 57.61439183 | O40: 14.09304129 | P40: 17.06114842 | Q40: 11.23141845 | R40: =T300 -> 64.83836599 | S40: 14.22179491 | T40: 13.99771341 | U40: 6.942125693 | V40: =Y300 -> 74.41753591 | W40: 15.25235845 | X40: 6.986937728 | Y40: 3.343167908
A97: NATIONAL | D97: Poorest | I97: Poor | N97: Middle | S97: Rich | X97: Richest
D98: Improved | E98: Basic | F98: Limited | G98: Unimproved | H98: Surface water | I98: Improved | J98: Basic | K98: Limited | L98: Unimproved | M98: Surface water | N98: Improved | O98: Basic | P98: Limited | Q98: Unimproved | R98: Surface water | S98: Improved | T98: Basic | U98: Limited | V98: Unimproved | W98: Surface water | X98: Improved | Y98: Basic | Z98: Limited | AA98: Unimproved | AB98: Surface water
A99: Forecast period: | C99: 2000 | D99: =IF((D101+H101)>100,D101*100/(D101+H101),D101) -> 52.96420309 | E99: =D99*AVERAGEIF(E105:E116,">0")/100 -> 44.12032843 | F99: =D99*(100-AVERAGEIF(E105:E116,">0"))/100 -> 8.843874665 | G99: =100-(E99+F99+H99) -> 19.82911321 | H99: =IF((D101+H101)>100,H101*100/(D101+H101),H101) -> 27.2066837 | I99: =IF((I101+M101)>100,I101*100/(I101+M101),I101) -> 48.3341942 | J99: =I99*AVERAGEIF(J105:J116,">0")/100 -> 39.1518329 | K99: =I99*(100-AVERAGEIF(J105:J116,">0"))/100 -> 9.182361301 | L99: =100-(J99+K99+M99) -> 19.80675216 | M99: =IF((I101+M101)>100,M101*100/(I101+M101),M101) -> 31.85905364 | N99: =IF((N101+R101)>100,N101*100/(N101+R101),N101) -> 59.91816401 | O99: =N99*AVERAGEIF(O105:O116,">0")/100 -> 49.25281196 | P99: =N99*(100-AVERAGEIF(O105:O116,">0"))/100 -> 10.66535205 | Q99: =100-(O99+P99+R99) -> 18.34861916 | R99: =IF((N101+R101)>100,R101*100/(N101+R101),R101) -> 21.73321683 | S99: =IF((S101+W101)>100,S101*100/(S101+W101),S101) -> 74.49629604 | T99: =S99*AVERAGEIF(T105:T116,">0")/100 -> 64.56114648 | U99: =S99*(100-AVERAGEIF(T105:T116,">0"))/100 -> 9.93514956 | V99: =100-(T99+U99+W99) -> 15.95221358 | W99: =IF((S101+W101)>100,W101*100/(S101+W101),W101) -> 9.551490385 | X99: =IF((X101+AB101)>100,X101*100/(X101+AB101),X101) -> 93.90504959 | Y99: =X99*AVERAGEIF(Y105:Y116,">0")/100 -> 89.01168504 | Z99: =X99*(100-AVERAGEIF(Y105:Y116,">0"))/100 -> 4.893364554 | AA99: =100-(Y99+Z99+AB99) -> 5.149481436 | AB99: =IF((X101+AB101)>100,AB101*100/(X101+AB101),AB101) -> 0.9454689734
C100: 2020 | D100: =IF((D102+H102)>100,D102*100/(D102+H102),D102) -> 66.3035766 | E100: =D100*AVERAGEIF(E105:E116,">0")/100 -> 55.2323155 | F100: =D100*(100-AVERAGEIF(E105:E116,">0"))/100 -> 11.0712611 | G100: =100-(E100+F100+H100) -> 22.33492843 | H100: =IF((D102+H102)>100,H102*100/(D102+H102),H102) -> 11.36149497 | I100: =IF((I102+M102)>100,I102*100/(I102+M102),I102) -> 77.254032 | J100: =I100*AVERAGEIF(J105:J116,">0")/100 -> 62.57758098 | K100: =I100*(100-AVERAGEIF(J105:J116,">0"))/100 -> 14.67645102 | L100: =100-(J100+K100+M100) -> 16.42196943 | M100: =IF((I102+M102)>100,M102*100/(I102+M102),M102) -> 6.323998568 | N100: =IF((N102+R102)>100,N102*100/(N102+R102),N102) -> 82.61496712 | O100: =N100*AVERAGEIF(O105:O116,">0")/100 -> 67.90961485 | P100: =N100*(100-AVERAGEIF(O105:O116,">0"))/100 -> 14.70535227 | Q100: =100-(O100+P100+R100) -> 12.03883194 | R100: =IF((N102+R102)>100,R102*100/(N102+R102),R102) -> 5.346200942 | S100: =IF((S102+W102)>100,S102*100/(S102+W102),S102) -> 97.89439497 | T100: =S100*AVERAGEIF(T105:T116,">0")/100 -> 84.83877332 | U100: =S100*(100-AVERAGEIF(T105:T116,">0"))/100 -> 13.05562165 | V100: =100-(T100+U100+W100) -> 1.681157805 | W100: =IF((S102+W102)>100,W102*100/(S102+W102),W102) -> 0.4244472281 | X100: =IF((X102+AB102)>100,X102*100/(X102+AB102),X102) -> 100 | Y100: =X100*AVERAGEIF(Y105:Y116,">0")/100 -> 94.78902937 | Z100: =X100*(100-AVERAGEIF(Y105:Y116,">0"))/100 -> 5.210970629 | AA100: =100-(Y100+Z100+AB100) -> 0 | AB100: =IF((X102+AB102)>100,AB102*100/(X102+AB102),AB102) -> 0
A101: Regression period: | C101: =MinRegYear(C99,C105:C116) -> 2003 | D101: =IF(MAX(C105:C116)-MIN(C105:C116)<5,AVERAGEIF(C105:C116,">0",D105:D116), IF(FORECAST($C101,D$105:D$116,$C$105:$C$116)<0,0, IF(FORECAST($C101,D$105:D$116,$C$105:$C$116)>100,100, FORECAST($C101,D$105:D$116,$C$105:$C$116)))) -> 52.96420309 | H101: =IF(MAX(C105:C116)-MIN(C105:C116)<5,AVERAGEIF(C105:C116,">0",H105:H116), IF(FORECAST($C101,H$105:H$116,$C$105:$C$116)<0,0, IF(FORECAST($C101,H$105:H$116,$C$105:$C$116)>100,100, FORECAST($C101,H$105:H$116,$C$105:$C$116)))) -> 27.2066837 | I101: =IF(MAX(C105:C116)-MIN(C105:C116)<5,AVERAGEIF(C105:C116,">0",I105:I116), IF(FORECAST($C101,I$105:I$116,$C$105:$C$116)<0,0, IF(FORECAST($C101,I$105:I$116,$C$105:$C$116)>100,100, FORECAST($C101,I$105:I$116,$C$105:$C$116)))) -> 48.3341942 | M101: =IF(MAX(C105:C116)-MIN(C105:C116)<5,AVERAGEIF(C105:C116,">0",M105:M116), IF(FORECAST($C101,M$105:M$116,$C$105:$C$116)<0,0, IF(FORECAST($C101,M$105:M$116,$C$105:$C$116)>100,100, FORECAST($C101,M$105:M$116,$C$105:$C$116)))) -> 31.85905364 | N101: =IF(MAX(C105:C116)-MIN(C105:C116)<5,AVERAGEIF(C105:C116,">0",N105:N116), IF(FORECAST($C101,N$105:N$116,$C$105:$C$116)<0,0, IF(FORECAST($C101,N$105:N$116,$C$105:$C$116)>100,100, FORECAST($C101,N$105:N$116,$C$105:$C$116)))) -> 59.91816401 | R101: =IF(MAX(C105:C116)-MIN(C105:C116)<5,AVERAGEIF(C105:C116,">0",R105:R116), IF(FORECAST($C101,R$105:R$116,$C$105:$C$116)<0,0, IF(FORECAST($C101,R$105:R$116,$C$105:$C$116)>100,100, FORECAST($C101,R$105:R$116,$C$105:$C$116)))) -> 21.73321683 | S101: =IF(MAX(C105:C116)-MIN(C105:C116)<5,AVERAGEIF(C105:C116,">0",S105:S116), IF(FORECAST($C101,S$105:S$116,$C$105:$C$116)<0,0, IF(FORECAST($C101,S$105:S$116,$C$105:$C$116)>100,100, FORECAST($C101,S$105:S$116,$C$105:$C$116)))) -> 74.49629604 | W101: =IF(MAX(C105:C116)-MIN(C105:C116)<5,AVERAGEIF(C105:C116,">0",W105:W116), IF(FORECAST($C101,W$105:W$116,$C$105:$C$116)<0,0, IF(FORECAST($C101,W$105:W$116,$C$105:$C$116)>100,100, FORECAST($C101,W$105:W$116,$C$105:$C$116)))) -> 9.551490385 | X101: =IF(MAX(C105:C116)-MIN(C105:C116)<5,AVERAGEIF(C105:C116,">0",X105:X116), IF(FORECAST($C101,X$105:X$116,$C$105:$C$116)<0,0, IF(FORECAST($C101,X$105:X$116,$C$105:$C$116)>100,100, FORECAST($C101,X$105:X$116,$C$105:$C$116)))) -> 93.90504959 | AB101: =IF(MAX(C105:C116)-MIN(C105:C116)<5,AVERAGEIF(C105:C116,">0",AB105:AB116), IF(FORECAST($C101,AB$105:AB$116,$C$105:$C$116)<0,0, IF(FORECAST($C101,AB$105:AB$116,$C$105:$C$116)>100,100, FORECAST($C101,AB$105:AB$116,$C$105:$C$116)))) -> 0.9454689734
C102: =MaxRegYear(C100,C105:C116) -> 2020 | D102: =IF(MAX(C105:C116)-MIN(C105:C116)<5,AVERAGEIF(C105:C116,">0",D105:D116), IF(FORECAST($C102,D$105:D$116,$C$105:$C$116)<0,0, IF(FORECAST($C102,D$105:D$116,$C$105:$C$116)>100,100, FORECAST($C102,D$105:D$116,$C$105:$C$116)))) -> 66.3035766 | H102: =IF(MAX(C105:C116)-MIN(C105:C116)<5,AVERAGEIF(C105:C116,">0",H105:H116), IF(FORECAST($C102,H$105:H$116,$C$105:$C$116)<0,0, IF(FORECAST($C102,H$105:H$116,$C$105:$C$116)>100,100, FORECAST($C102,H$105:H$116,$C$105:$C$116)))) -> 11.36149497 | I102: =IF(MAX(C105:C116)-MIN(C105:C116)<5,AVERAGEIF(C105:C116,">0",I105:I116), IF(FORECAST($C102,I$105:I$116,$C$105:$C$116)<0,0, IF(FORECAST($C102,I$105:I$116,$C$105:$C$116)>100,100, FORECAST($C102,I$105:I$116,$C$105:$C$116)))) -> 77.254032 | M102: =IF(MAX(C105:C116)-MIN(C105:C116)<5,AVERAGEIF(C105:C116,">0",M105:M116), IF(FORECAST($C102,M$105:M$116,$C$105:$C$116)<0,0, IF(FORECAST($C102,M$105:M$116,$C$105:$C$116)>100,100, FORECAST($C102,M$105:M$116,$C$105:$C$116)))) -> 6.323998568 | N102: =IF(MAX(C105:C116)-MIN(C105:C116)<5,AVERAGEIF(C105:C116,">0",N105:N116), IF(FORECAST($C102,N$105:N$116,$C$105:$C$116)<0,0, IF(FORECAST($C102,N$105:N$116,$C$105:$C$116)>100,100, FORECAST($C102,N$105:N$116,$C$105:$C$116)))) -> 82.61496712 | R102: =IF(MAX(C105:C116)-MIN(C105:C116)<5,AVERAGEIF(C105:C116,">0",R105:R116), IF(FORECAST($C102,R$105:R$116,$C$105:$C$116)<0,0, IF(FORECAST($C102,R$105:R$116,$C$105:$C$116)>100,100, FORECAST($C102,R$105:R$116,$C$105:$C$116)))) -> 5.346200942 | S102: =IF(MAX(C105:C116)-MIN(C105:C116)<5,AVERAGEIF(C105:C116,">0",S105:S116), IF(FORECAST($C102,S$105:S$116,$C$105:$C$116)<0,0, IF(FORECAST($C102,S$105:S$116,$C$105:$C$116)>100,100, FORECAST($C102,S$105:S$116,$C$105:$C$116)))) -> 97.89439497 | W102: =IF(MAX(C105:C116)-MIN(C105:C116)<5,AVERAGEIF(C105:C116,">0",W105:W116), IF(FORECAST($C102,W$105:W$116,$C$105:$C$116)<0,0, IF(FORECAST($C102,W$105:W$116,$C$105:$C$116)>100,100, FORECAST($C102,W$105:W$116,$C$105:$C$116)))) -> 0.4244472281 | X102: =IF(MAX(C105:C116)-MIN(C105:C116)<5,AVERAGEIF(C105:C116,">0",X105:X116), IF(FORECAST($C102,X$105:X$116,$C$105:$C$116)<0,0, IF(FORECAST($C102,X$105:X$116,$C$105:$C$116)>100,100, FORECAST($C102,X$105:X$116,$C$105:$C$116)))) -> 100 | AB102: =IF(MAX(C105:C116)-MIN(C105:C116)<5,AVERAGEIF(C105:C116,">0",AB105:AB116), IF(FORECAST($C102,AB$105:AB$116,$C$105:$C$116)<0,0, IF(FORECAST($C102,AB$105:AB$116,$C$105:$C$116)>100,100, FORECAST($C102,AB$105:AB$116,$C$105:$C$116)))) -> 0
B104: Survey | C104: Year | D104: Improved | E104: % Improved < = 30min | H104: Surface water | I104: Improved | J104: % Improved < = 30min | M104: Surface water | N104: Improved | O104: % Improved < = 30min | R104: Surface water | S104: Improved | T104: % Improved < = 30min | W104: Surface water | X104: Improved | Y104: % Improved < = 30min | AB104: Surface water
B105: DHS05 | C105: 2005 | D105: =IF(ISERROR(INDIRECT(CONCATENATE($B105,"!C16"))),"",INDIRECT(CONCATENATE($B105,"!C16"))) -> 42.14424147 | E105: =IF(ISERROR(INDIRECT(CONCATENATE($B105,"!C23"))),"",INDIRECT(CONCATENATE($B105,"!C23"))) -> 94.85277726 | H105: =IF(ISERROR(INDIRECT(CONCATENATE($B105,"!C21"))),"",INDIRECT(CONCATENATE($B105,"!C21"))) -> 31.61370393 | I105: =IF(ISERROR(INDIRECT(CONCATENATE($B105,"!D16"))),"",INDIRECT(CONCATENATE($B105,"!D16"))) -> 42.60797789 | J105: =IF(ISERROR(INDIRECT(CONCATENATE($B105,"!D23"))),"",INDIRECT(CONCATENATE($B105,"!D23"))) -> 97.37167265 | M105: =IF(ISERROR(INDIRECT(CONCATENATE($B105,"!D21"))),"",INDIRECT(CONCATENATE($B105,"!D21"))) -> 30.52586891 | N105: =IF(ISERROR(INDIRECT(CONCATENATE($B105,"!E16"))),"",INDIRECT(CONCATENATE($B105,"!E16"))) -> 59.87449696 | O105: =IF(ISERROR(INDIRECT(CONCATENATE($B105,"!E23"))),"",INDIRECT(CONCATENATE($B105,"!E23"))) -> 93.63232141 | R105: =IF(ISERROR(INDIRECT(CONCATENATE($B105,"!E21"))),"",INDIRECT(CONCATENATE($B105,"!E21"))) -> 17.19101214 | S105: =IF(ISERROR(INDIRECT(CONCATENATE($B105,"!F16"))),"",INDIRECT(CONCATENATE($B105,"!F16"))) -> 75.44435505 | T105: =IF(ISERROR(INDIRECT(CONCATENATE($B105,"!F23"))),"",INDIRECT(CONCATENATE($B105,"!F23"))) -> 97.31416597 | W105: =IF(ISERROR(INDIRECT(CONCATENATE($B105,"!F21"))),"",INDIRECT(CONCATENATE($B105,"!F21"))) -> 9.763395272 | X105: =IF(ISERROR(INDIRECT(CONCATENATE($B105,"!G16"))),"",INDIRECT(CONCATENATE($B105,"!G16"))) -> 92.83192705 | Y105: =IF(ISERROR(INDIRECT(CONCATENATE($B105,"!G23"))),"",INDIRECT(CONCATENATE($B105,"!G23"))) -> 97.29262207 | AB105: =IF(ISERROR(INDIRECT(CONCATENATE($B105,"!G221"))),"",INDIRECT(CONCATENATE($B105,"!G21"))) -> 0.546170032
B106: QUIBB07 | C106: 2007 | D106: 69.89815584 | E106: 99.61187305 | H106: 16.4022944 | I106: 66.23323103 | J106: 98.33468788 | M106: 24.54037374 | N106: 69.0798816 | O106: 98.45514766 | R106: 20.48986038 | S106: 80.94169741 | T106: 98.64637576 | W106: 7.090074549 | X106: 96.82218089 | Y106: 99.03801749 | AB106: 1.171663342
B107: DHS12 | C107: 2012 | D107: 62.5 | E107: 81.6 | H107: 16.4 | I107: 61.4 | J107: 78.9 | M107: 16.4 | N107: 69.5 | O107: 79.1 | R107: 13.9 | S107: 87.6 | T107: 80.6 | W107: 3 | X107: 98.7 | Y107: 92.5 | AB107: 0
B108: MICS16 | C108: 2016 | D108: 60.4 | E108: 71.6 | H108: 20.5 | I108: 75.5 | J108: 62 | M108: 14.5 | N108: 81.2 | O108: 69.2 | R108: 9.3 | S108: 96.8 | T108: 77.8 | W108: 1.1 | X108: 99 | Y108: 92.1 | AB108: 0
B109: DHS18 | C109: 2018 | D109: 63.61938642 | E109: 68.84618013 | H109: 11.03841337 | I109: 69.07994005 | J109: 68.40538682 | M109: 8.740356835 | N109: 77.34600229 | O109: 70.61320803 | R109: 6.335700865 | S109: 90.87885442 | T109: 78.95728688 | W109: 3.717931765 | X109: 98.53907697 | Y109: 93.01450729 | AB109: 0.0664481685
D111: =IF(ISERROR(INDIRECT(CONCATENATE($B111,"!C16"))),"",INDIRECT(CONCATENATE($B111,"!C16"))) ->  | E111: =IF(ISERROR(INDIRECT(CONCATENATE($B111,"!C23"))),"",INDIRECT(CONCATENATE($B111,"!C23"))) ->  | H111: =IF(ISERROR(INDIRECT(CONCATENATE($B111,"!C21"))),"",INDIRECT(CONCATENATE($B111,"!C21"))) ->  | I111: =IF(ISERROR(INDIRECT(CONCATENATE($B111,"!D16"))),"",INDIRECT(CONCATENATE($B111,"!D16"))) ->  | J111: =IF(ISERROR(INDIRECT(CONCATENATE($B111,"!D23"))),"",INDIRECT(CONCATENATE($B111,"!D23"))) ->  | M111: =IF(ISERROR(INDIRECT(CONCATENATE($B111,"!D21"))),"",INDIRECT(CONCATENATE($B111,"!D21"))) ->  | N111: =IF(ISERROR(INDIRECT(CONCATENATE($B111,"!E16"))),"",INDIRECT(CONCATENATE($B111,"!E16"))) ->  | O111: =IF(ISERROR(INDIRECT(CONCATENATE($B111,"!E23"))),"",INDIRECT(CONCATENATE($B111,"!E23"))) ->  | R111: =IF(ISERROR(INDIRECT(CONCATENATE($B111,"!E21"))),"",INDIRECT(CONCATENATE($B111,"!E21"))) ->  | S111: =IF(ISERROR(INDIRECT(CONCATENATE($B111,"!F16"))),"",INDIRECT(CONCATENATE($B111,"!F16"))) ->  | T111: =IF(ISERROR(INDIRECT(CONCATENATE($B111,"!F23"))),"",INDIRECT(CONCATENATE($B111,"!F23"))) ->  | W111: =IF(ISERROR(INDIRECT(CONCATENATE($B111,"!F21"))),"",INDIRECT(CONCATENATE($B111,"!F21"))) ->  | X111: =IF(ISERROR(INDIRECT(CONCATENATE($B111,"!G16"))),"",INDIRECT(CONCATENATE($B111,"!G16"))) ->  | Y111: =IF(ISERROR(INDIRECT(CONCATENATE($B111,"!G23"))),"",INDIRECT(CONCATENATE($B111,"!G23"))) ->  | AB111: =IF(ISERROR(INDIRECT(CONCATENATE($B111,"!G221"))),"",INDIRECT(CONCATENATE($B111,"!G21"))) -> 
D112: =IF(ISERROR(INDIRECT(CONCATENATE($B112,"!C16"))),"",INDIRECT(CONCATENATE($B112,"!C16"))) ->  | E112: =IF(ISERROR(INDIRECT(CONCATENATE($B112,"!C23"))),"",INDIRECT(CONCATENATE($B112,"!C23"))) ->  | H112: =IF(ISERROR(INDIRECT(CONCATENATE($B112,"!C21"))),"",INDIRECT(CONCATENATE($B112,"!C21"))) ->  | I112: =IF(ISERROR(INDIRECT(CONCATENATE($B112,"!D16"))),"",INDIRECT(CONCATENATE($B112,"!D16"))) ->  | J112: =IF(ISERROR(INDIRECT(CONCATENATE($B112,"!D23"))),"",INDIRECT(CONCATENATE($B112,"!D23"))) ->  | M112: =IF(ISERROR(INDIRECT(CONCATENATE($B112,"!D21"))),"",INDIRECT(CONCATENATE($B112,"!D21"))) ->  | N112: =IF(ISERROR(INDIRECT(CONCATENATE($B112,"!E16"))),"",INDIRECT(CONCATENATE($B112,"!E16"))) ->  | O112: =IF(ISERROR(INDIRECT(CONCATENATE($B112,"!E23"))),"",INDIRECT(CONCATENATE($B112,"!E23"))) ->  | R112: =IF(ISERROR(INDIRECT(CONCATENATE($B112,"!E21"))),"",INDIRECT(CONCATENATE($B112,"!E21"))) ->  | S112: =IF(ISERROR(INDIRECT(CONCATENATE($B112,"!F16"))),"",INDIRECT(CONCATENATE($B112,"!F16"))) ->  | T112: =IF(ISERROR(INDIRECT(CONCATENATE($B112,"!F23"))),"",INDIRECT(CONCATENATE($B112,"!F23"))) ->  | W112: =IF(ISERROR(INDIRECT(CONCATENATE($B112,"!F21"))),"",INDIRECT(CONCATENATE($B112,"!F21"))) ->  | X112: =IF(ISERROR(INDIRECT(CONCATENATE($B112,"!G16"))),"",INDIRECT(CONCATENATE($B112,"!G16"))) ->  | Y112: =IF(ISERROR(INDIRECT(CONCATENATE($B112,"!G23"))),"",INDIRECT(CONCATENATE($B112,"!G23"))) ->  | AB112: =IF(ISERROR(INDIRECT(CONCATENATE($B112,"!G221"))),"",INDIRECT(CONCATENATE($B112,"!G21"))) -> 
B118: =CONCATENATE("National use of drinking water sources, ",C99,"–",C100) -> National use of drinking water sources, 2000–2020 | S118: Data points used for regression
E153: =IF(ISERROR(INDIRECT(CONCATENATE($B153,"!M18"))),"",INDIRECT(CONCATENATE($B153,"!M18"))) ->  | F153: =IF(ISERROR(INDIRECT(CONCATENATE($B153,"!M19"))),"",INDIRECT(CONCATENATE($B153,"!M19"))) ->  | G153: =IF(ISERROR(INDIRECT(CONCATENATE($B153,"!M20"))),"",INDIRECT(CONCATENATE($B153,"!M20"))) ->  | H153: =IF(ISERROR(INDIRECT(CONCATENATE($B153,"!M21"))),"",INDIRECT(CONCATENATE($B153,"!M21"))) ->  | J153: =IF(ISERROR(INDIRECT(CONCATENATE($B153,"!N18"))),"",INDIRECT(CONCATENATE($B153,"!N18"))) ->  | K153: =IF(ISERROR(INDIRECT(CONCATENATE($B153,"!N19"))),"",INDIRECT(CONCATENATE($B153,"!N19"))) ->  | L153: =IF(ISERROR(INDIRECT(CONCATENATE($B153,"!N20"))),"",INDIRECT(CONCATENATE($B153,"!N20"))) ->  | M153: =IF(ISERROR(INDIRECT(CONCATENATE($B153,"!N21"))),"",INDIRECT(CONCATENATE($B153,"!N21"))) ->  | O153: =IF(ISERROR(INDIRECT(CONCATENATE($B153,"!O18"))),"",INDIRECT(CONCATENATE($B153,"!O18"))) ->  | P153: =IF(ISERROR(INDIRECT(CONCATENATE($B153,"!O19"))),"",INDIRECT(CONCATENATE($B153,"!O19"))) ->  | Q153: =IF(ISERROR(INDIRECT(CONCATENATE($B153,"!O20"))),"",INDIRECT(CONCATENATE($B153,"!O20"))) ->  | R153: =IF(ISERROR(INDIRECT(CONCATENATE($B153,"!O21"))),"",INDIRECT(CONCATENATE($B153,"!O21"))) ->  | T153: =IF(ISERROR(INDIRECT(CONCATENATE($B153,"!P18"))),"",INDIRECT(CONCATENATE($B153,"!P18"))) ->  | U153: =IF(ISERROR(INDIRECT(CONCATENATE($B153,"!P19"))),"",INDIRECT(CONCATENATE($B153,"!P19"))) ->  | V153: =IF(ISERROR(INDIRECT(CONCATENATE($B153,"!P20"))),"",INDIRECT(CONCATENATE($B153,"!P20"))) ->  | W153: =IF(ISERROR(INDIRECT(CONCATENATE($B153,"!P21"))),"",INDIRECT(CONCATENATE($B153,"!P21"))) ->  | Y153: =IF(ISERROR(INDIRECT(CONCATENATE($B153,"!Q18"))),"",INDIRECT(CONCATENATE($B153,"!Q18"))) ->  | Z153: =IF(ISERROR(INDIRECT(CONCATENATE($B153,"!Q19"))),"",INDIRECT(CONCATENATE($B153,"!Q19"))) ->  | AA153: =IF(ISERROR(INDIRECT(CONCATENATE($B153,"!Q20"))),"",INDIRECT(CONCATENATE($B153,"!Q20"))) ->  | AB153: =IF(ISERROR(INDIRECT(CONCATENATE($B153,"!Q21"))),"",INDIRECT(CONCATENATE($B153,"!Q1"))) -> 
A197: URBAN | D197: Poorest | I197: Poor | N197: Middle | S197: Rich | X197: Richest
D198: Improved | E198: Basic | F198: Limited | G198: Unimproved | H198: Surface water | I198: Improved | J198: Basic | K198: Limited | L198: Unimproved | M198: Surface water | N198: Improved | O198: Basic | P198: Limited | Q198: Unimproved | R198: Surface water | S198: Improved | T198: Basic | U198: Limited | V198: Unimproved | W198: Surface water | X198: Improved | Y198: Basic | Z198: Limited | AA198: Unimproved | AB198: Surface water
A199: Forecast period: | C199: 2000 | D199: =IF((D201+H201)>100,D201*100/(D201+H201),D201) -> 72.3791105 | E199: =D199*AVERAGEIF(E205:E216,">0")/100 -> 60.84116332 | F199: =D199*(100-AVERAGEIF(E205:E216,">0"))/100 -> 11.53794719 | G199: =100-(E199+F199+H199) -> 22.45309941 | H199: =IF((D201+H201)>100,H201*100/(D201+H201),H201) -> 5.16779009 | I199: =IF((I201+M201)>100,I201*100/(I201+M201),I201) -> 85.42773028 | J199: =I199*AVERAGEIF(J205:J216,">0")/100 -> 77.03140147 | K199: =I199*(100-AVERAGEIF(J205:J216,">0"))/100 -> 8.396328805 | L199: =100-(J199+K199+M199) -> 13.47794226 | M199: =IF((I201+M201)>100,M201*100/(I201+M201),M201) -> 1.094327461 | N199: =IF((N201+R201)>100,N201*100/(N201+R201),N201) -> 93.82032016 | O199: =N199*AVERAGEIF(O205:O216,">0")/100 -> 85.93202397 | P199: =N199*(100-AVERAGEIF(O205:O216,">0"))/100 -> 7.888296187 | Q199: =100-(O199+P199+R199) -> 5.662842781 | R199: =IF((N201+R201)>100,R201*100/(N201+R201),R201) -> 0.5168370628 | S199: =IF((S201+W201)>100,S201*100/(S201+W201),S201) -> 96.62044561 | T199: =S199*AVERAGEIF(T205:T216,">0")/100 -> 91.73461742 | U199: =S199*(100-AVERAGEIF(T205:T216,">0"))/100 -> 4.885828187 | V199: =100-(T199+U199+W199) -> 3.379554395 | W199: =IF((S201+W201)>100,W201*100/(S201+W201),W201) -> 0 | X199: =IF((X201+AB201)>100,X201*100/(X201+AB201),X201) -> 96.47271421 | Y199: =X199*AVERAGEIF(Y205:Y216,">0")/100 -> 93.05834065 | Z199: =X199*(100-AVERAGEIF(Y205:Y216,">0"))/100 -> 3.414373564 | AA199: =100-(Y199+Z199+AB199) -> 3.527285789 | AB199: =IF((X201+AB201)>100,AB201*100/(X201+AB201),AB201) -> 0
C200: 2020 | D200: =IF((D202+H202)>100,D202*100/(D202+H202),D202) -> 98.75191517 | E200: =D200*AVERAGEIF(E205:E216,">0")/100 -> 83.00988167 | F200: =D200*(100-AVERAGEIF(E205:E216,">0"))/100 -> 15.74203349 | G200: =100-(E200+F200+H200) -> 1.248084834 | H200: =IF((D202+H202)>100,H202*100/(D202+H202),H202) -> 0 | I200: =IF((I202+M202)>100,I202*100/(I202+M202),I202) -> 100 | J200: =I200*AVERAGEIF(J205:J216,">0")/100 -> 90.17142469 | K200: =I200*(100-AVERAGEIF(J205:J216,">0"))/100 -> 9.828575309 | L200: =100-(J200+K200+M200) -> 0 | M200: =IF((I202+M202)>100,M202*100/(I202+M202),M202) -> 0 | N200: =IF((N202+R202)>100,N202*100/(N202+R202),N202) -> 100 | O200: =N200*AVERAGEIF(O205:O216,">0")/100 -> 91.59212399 | P200: =N200*(100-AVERAGEIF(O205:O216,">0"))/100 -> 8.407876006 | Q200: =100-(O200+P200+R200) -> 0 | R200: =IF((N202+R202)>100,R202*100/(N202+R202),R202) -> 0 | S200: =IF((S202+W202)>100,S202*100/(S202+W202),S202) -> 99.37102701 | T200: =S200*AVERAGEIF(T205:T216,">0")/100 -> 94.34610954 | U200: =S200*(100-AVERAGEIF(T205:T216,">0"))/100 -> 5.024917466 | V200: =100-(T200+U200+W200) -> 0.6289729941 | W200: =IF((S202+W202)>100,W202*100/(S202+W202),W202) -> 0 | X200: =IF((X202+AB202)>100,X202*100/(X202+AB202),X202) -> 99.87889266 | Y200: =X200*AVERAGEIF(Y205:Y216,">0")/100 -> 96.34396723 | Z200: =X200*(100-AVERAGEIF(Y205:Y216,">0"))/100 -> 3.53492543 | AA200: =100-(Y200+Z200+AB200) -> 0 | AB200: =IF((X202+AB202)>100,AB202*100/(X202+AB202),AB202) -> 0.1211073402
A201: Regression period: | C201: =MinRegYear(C199,C205:C216) -> 2003 | D201: =IF(MAX(C205:C216)-MIN(C205:C216)<5,AVERAGEIF(C205:C216,">0",D205:D216), IF(FORECAST($C201,D$205:D$216,$C$205:$C$216)<0,0, IF(FORECAST($C201,D$205:D$216,$C$205:$C$216)>100,100, FORECAST($C201,D$205:D$216,$C$205:$C$216)))) -> 72.3791105 | H201: =IF(MAX(C205:C216)-MIN(C205:C216)<5,AVERAGEIF(C205:C216,">0",H205:H216), IF(FORECAST($C201,H$205:H$216,$C$205:$C$216)<0,0, IF(FORECAST($C201,H$205:H$216,$C$205:$C$216)>100,100, FORECAST($C201,H$205:H$216,$C$205:$C$216)))) -> 5.16779009 | I201: =IF(MAX(C205:C216)-MIN(C205:C216)<5,AVERAGEIF(C205:C216,">0",I205:I216), IF(FORECAST($C201,I$205:I$216,$C$205:$C$216)<0,0, IF(FORECAST($C201,I$205:I$216,$C$205:$C$216)>100,100, FORECAST($C201,I$205:I$216,$C$205:$C$216)))) -> 85.42773028 | M201: =IF(MAX(C205:C216)-MIN(C205:C216)<5,AVERAGEIF(C205:C216,">0",M205:M216), IF(FORECAST($C201,M$205:M$216,$C$205:$C$216)<0,0, IF(FORECAST($C201,M$205:M$216,$C$205:$C$216)>100,100, FORECAST($C201,M$205:M$216,$C$205:$C$216)))) -> 1.094327461 | N201: =IF(MAX(C205:C216)-MIN(C205:C216)<5,AVERAGEIF(C205:C216,">0",N205:N216), IF(FORECAST($C201,N$205:N$216,$C$205:$C$216)<0,0, IF(FORECAST($C201,N$205:N$216,$C$205:$C$216)>100,100, FORECAST($C201,N$205:N$216,$C$205:$C$216)))) -> 93.82032016 | R201: =IF(MAX(C205:C216)-MIN(C205:C216)<5,AVERAGEIF(C205:C216,">0",R205:R216), IF(FORECAST($C201,R$205:R$216,$C$205:$C$216)<0,0, IF(FORECAST($C201,R$205:R$216,$C$205:$C$216)>100,100, FORECAST($C201,R$205:R$216,$C$205:$C$216)))) -> 0.5168370628 | S201: =IF(MAX(C205:C216)-MIN(C205:C216)<5,AVERAGEIF(C205:C216,">0",S205:S216), IF(FORECAST($C201,S$205:S$216,$C$205:$C$216)<0,0, IF(FORECAST($C201,S$205:S$216,$C$205:$C$216)>100,100, FORECAST($C201,S$205:S$216,$C$205:$C$216)))) -> 96.62044561 | W201: =IF(MAX(C205:C216)-MIN(C205:C216)<5,AVERAGEIF(C205:C216,">0",W205:W216), IF(FORECAST($C201,W$205:W$216,$C$205:$C$216)<0,0, IF(FORECAST($C201,W$205:W$216,$C$205:$C$216)>100,100, FORECAST($C201,W$205:W$216,$C$205:$C$216)))) -> 0 | X201: =IF(MAX(C205:C216)-MIN(C205:C216)<5,AVERAGEIF(C205:C216,">0",X205:X216), IF(FORECAST($C201,X$205:X$216,$C$205:$C$216)<0,0, IF(FORECAST($C201,X$205:X$216,$C$205:$C$216)>100,100, FORECAST($C201,X$205:X$216,$C$205:$C$216)))) -> 96.47271421 | AB201: =IF(MAX(C205:C216)-MIN(C205:C216)<5,AVERAGEIF(C205:C216,">0",AB205:AB216), IF(FORECAST($C201,AB$205:AB$216,$C$205:$C$216)<0,0, IF(FORECAST($C201,AB$205:AB$216,$C$205:$C$216)>100,100, FORECAST($C201,AB$205:AB$216,$C$205:$C$216)))) -> 0
C202: =MaxRegYear(C200,C205:C216) -> 2020 | D202: =IF(MAX(C205:C216)-MIN(C205:C216)<5,AVERAGEIF(C205:C216,">0",D205:D216), IF(FORECAST($C202,D$205:D$216,$C$205:$C$216)<0,0, IF(FORECAST($C202,D$205:D$216,$C$205:$C$216)>100,100, FORECAST($C202,D$205:D$216,$C$205:$C$216)))) -> 98.75191517 | H202: =IF(MAX(C205:C216)-MIN(C205:C216)<5,AVERAGEIF(C205:C216,">0",H205:H216), IF(FORECAST($C202,H$205:H$216,$C$205:$C$216)<0,0, IF(FORECAST($C202,H$205:H$216,$C$205:$C$216)>100,100, FORECAST($C202,H$205:H$216,$C$205:$C$216)))) -> 0 | I202: =IF(MAX(C205:C216)-MIN(C205:C216)<5,AVERAGEIF(C205:C216,">0",I205:I216), IF(FORECAST($C202,I$205:I$216,$C$205:$C$216)<0,0, IF(FORECAST($C202,I$205:I$216,$C$205:$C$216)>100,100, FORECAST($C202,I$205:I$216,$C$205:$C$216)))) -> 100 | M202: =IF(MAX(C205:C216)-MIN(C205:C216)<5,AVERAGEIF(C205:C216,">0",M205:M216), IF(FORECAST($C202,M$205:M$216,$C$205:$C$216)<0,0, IF(FORECAST($C202,M$205:M$216,$C$205:$C$216)>100,100, FORECAST($C202,M$205:M$216,$C$205:$C$216)))) -> 0 | N202: =IF(MAX(C205:C216)-MIN(C205:C216)<5,AVERAGEIF(C205:C216,">0",N205:N216), IF(FORECAST($C202,N$205:N$216,$C$205:$C$216)<0,0, IF(FORECAST($C202,N$205:N$216,$C$205:$C$216)>100,100, FORECAST($C202,N$205:N$216,$C$205:$C$216)))) -> 100 | R202: =IF(MAX(C205:C216)-MIN(C205:C216)<5,AVERAGEIF(C205:C216,">0",R205:R216), IF(FORECAST($C202,R$205:R$216,$C$205:$C$216)<0,0, IF(FORECAST($C202,R$205:R$216,$C$205:$C$216)>100,100, FORECAST($C202,R$205:R$216,$C$205:$C$216)))) -> 0 | S202: =IF(MAX(C205:C216)-MIN(C205:C216)<5,AVERAGEIF(C205:C216,">0",S205:S216), IF(FORECAST($C202,S$205:S$216,$C$205:$C$216)<0,0, IF(FORECAST($C202,S$205:S$216,$C$205:$C$216)>100,100, FORECAST($C202,S$205:S$216,$C$205:$C$216)))) -> 99.37102701 | W202: =IF(MAX(C205:C216)-MIN(C205:C216)<5,AVERAGEIF(C205:C216,">0",W205:W216), IF(FORECAST($C202,W$205:W$216,$C$205:$C$216)<0,0, IF(FORECAST($C202,W$205:W$216,$C$205:$C$216)>100,100, FORECAST($C202,W$205:W$216,$C$205:$C$216)))) -> 0 | X202: =IF(MAX(C205:C216)-MIN(C205:C216)<5,AVERAGEIF(C205:C216,">0",X205:X216), IF(FORECAST($C202,X$205:X$216,$C$205:$C$216)<0,0, IF(FORECAST($C202,X$205:X$216,$C$205:$C$216)>100,100, FORECAST($C202,X$205:X$216,$C$205:$C$216)))) -> 100 | AB202: =IF(MAX(C205:C216)-MIN(C205:C216)<5,AVERAGEIF(C205:C216,">0",AB205:AB216), IF(FORECAST($C202,AB$205:AB$216,$C$205:$C$216)<0,0, IF(FORECAST($C202,AB$205:AB$216,$C$205:$C$216)>100,100, FORECAST($C202,AB$205:AB$216,$C$205:$C$216)))) -> 0.1212541879
B204: Survey | C204: Year | D204: Improved | E204: % Improved < = 30min | H204: Surface water | I204: Improved | J204: % Improved < = 30min | M204: Surface water | N204: Improved | O204: % Improved < = 30min | R204: Surface water | S204: Improved | T204: % Improved < = 30min | W204: Surface water | X204: Improved | Y204: % Improved < = 30min | AB204: Surface water
B205: DHS05 | C205: 2005 | D205: =IF(ISERROR(INDIRECT(CONCATENATE($B205,"!H16"))),"",INDIRECT(CONCATENATE($B205,"!H16"))) -> 76.47627227 | E205: =IF(ISERROR(INDIRECT(CONCATENATE($B205,"!H23"))),"",INDIRECT(CONCATENATE($B205,"!H23"))) -> 96.38678281 | H205: =IF(ISERROR(INDIRECT(CONCATENATE($B205,"!H21"))),"",INDIRECT(CONCATENATE($B205,"!H21"))) -> 5.678379415 | I205: =IF(ISERROR(INDIRECT(CONCATENATE($B205,"!I16"))),"",INDIRECT(CONCATENATE($B205,"!I16"))) -> 83.39434553 | J205: =IF(ISERROR(INDIRECT(CONCATENATE($B205,"!I23"))),"",INDIRECT(CONCATENATE($B205,"!I23"))) -> 98.70398039 | M205: =IF(ISERROR(INDIRECT(CONCATENATE($B205,"!I21"))),"",INDIRECT(CONCATENATE($B205,"!I21"))) -> 1.710313064 | N205: =IF(ISERROR(INDIRECT(CONCATENATE($B205,"!J16"))),"",INDIRECT(CONCATENATE($B205,"!J16"))) -> 91.16730034 | O205: =IF(ISERROR(INDIRECT(CONCATENATE($B205,"!J23"))),"",INDIRECT(CONCATENATE($B205,"!J23"))) -> 97.85850708 | R205: =IF(ISERROR(INDIRECT(CONCATENATE($B205,"!J21"))),"",INDIRECT(CONCATENATE($B205,"!J21"))) -> 0.7959413235 | S205: =IF(ISERROR(INDIRECT(CONCATENATE($B205,"!K16"))),"",INDIRECT(CONCATENATE($B205,"!K16"))) -> 95.67950383 | T205: =IF(ISERROR(INDIRECT(CONCATENATE($B205,"!K23"))),"",INDIRECT(CONCATENATE($B205,"!K23"))) -> 97.5152764 | W205: =IF(ISERROR(INDIRECT(CONCATENATE($B205,"!K21"))),"",INDIRECT(CONCATENATE($B205,"!K21"))) -> 0 | X205: =IF(ISERROR(INDIRECT(CONCATENATE($B205,"!L16"))),"",INDIRECT(CONCATENATE($B205,"!L16"))) -> 95.64633103 | Y205: =IF(ISERROR(INDIRECT(CONCATENATE($B205,"!L23"))),"",INDIRECT(CONCATENATE($B205,"!L23"))) -> 95.58100616 | AB205: =IF(ISERROR(INDIRECT(CONCATENATE($B205,"!L221"))),"",INDIRECT(CONCATENATE($B205,"!L21"))) -> 0
B206: QUIBB07 | C206: 2007 | D206: 77.58556493 | E206: 98.48378806 | H206: 2.777121459 | I206: 92.70595712 | J206: 98.33605652 | M206: 0.03805859046 | N206: 99.01981236 | O206: 99.73570448 | R206: 0 | S206: 98.51732232 | T206: 97.79398607 | W206: 0 | X206: 98.51732232 | Y206: 97.79398607 | AB206: 0
B207: DHS12 | C207: 2012 | D207: 84.9 | E207: 82.5 | H207: 0.5 | I207: 94.9 | J207: 90.1 | M207: 0.1 | N207: 98 | O207: 86.3 | R207: 0.1 | S207: 98.4 | T207: 94.2 | W207: 0 | X207: 99.7 | Y207: 96.8 | AB207: 0
B208: MICS16 | C208: 2016 | D208: 95.9 | E208: 71.5 | H208: 0.3 | I208: 98 | J208: 79.4 | M208: 0 | N208: 99.2 | O208: 84.9 | R208: 0.2 | S208: 99.1 | T208: 91.3 | W208: 0 | X208: 99.9 | Y208: 95.2 | AB208: 0
B209: DHS18 | C209: 2018 | D209: 93.7413977 | E209: 71.42447623 | H209: 0.128205437 | I209: 97.01168211 | J209: 84.31708654 | M209: 0.2504131823 | N209: 98.49669875 | O209: 89.16640841 | R209: 0 | S209: 98.36275484 | T209: 93.90712309 | W209: 0 | X209: 99.48350269 | Y209: 96.9289494 | AB209: 0.192652593
B218: =CONCATENATE("Urban use of drinking water sources, ",C199,"–",C200) -> Urban use of drinking water sources, 2000–2020 | S218: Data points used for regression
E253: =IF(ISERROR(INDIRECT(CONCATENATE($B253,"!M18"))),"",INDIRECT(CONCATENATE($B253,"!M18"))) ->  | F253: =IF(ISERROR(INDIRECT(CONCATENATE($B253,"!M19"))),"",INDIRECT(CONCATENATE($B253,"!M19"))) ->  | G253: =IF(ISERROR(INDIRECT(CONCATENATE($B253,"!M20"))),"",INDIRECT(CONCATENATE($B253,"!M20"))) ->  | H253: =IF(ISERROR(INDIRECT(CONCATENATE($B253,"!M21"))),"",INDIRECT(CONCATENATE($B253,"!M21"))) ->  | J253: =IF(ISERROR(INDIRECT(CONCATENATE($B253,"!N18"))),"",INDIRECT(CONCATENATE($B253,"!N18"))) ->  | K253: =IF(ISERROR(INDIRECT(CONCATENATE($B253,"!N19"))),"",INDIRECT(CONCATENATE($B253,"!N19"))) ->  | L253: =IF(ISERROR(INDIRECT(CONCATENATE($B253,"!N20"))),"",INDIRECT(CONCATENATE($B253,"!N20"))) ->  | M253: =IF(ISERROR(INDIRECT(CONCATENATE($B253,"!N21"))),"",INDIRECT(CONCATENATE($B253,"!N21"))) ->  | O253: =IF(ISERROR(INDIRECT(CONCATENATE($B253,"!O18"))),"",INDIRECT(CONCATENATE($B253,"!O18"))) ->  | P253: =IF(ISERROR(INDIRECT(CONCATENATE($B253,"!O19"))),"",INDIRECT(CONCATENATE($B253,"!O19"))) ->  | Q253: =IF(ISERROR(INDIRECT(CONCATENATE($B253,"!O20"))),"",INDIRECT(CONCATENATE($B253,"!O20"))) ->  | R253: =IF(ISERROR(INDIRECT(CONCATENATE($B253,"!O21"))),"",INDIRECT(CONCATENATE($B253,"!O21"))) ->  | T253: =IF(ISERROR(INDIRECT(CONCATENATE($B253,"!P18"))),"",INDIRECT(CONCATENATE($B253,"!P18"))) ->  | U253: =IF(ISERROR(INDIRECT(CONCATENATE($B253,"!P19"))),"",INDIRECT(CONCATENATE($B253,"!P19"))) ->  | V253: =IF(ISERROR(INDIRECT(CONCATENATE($B253,"!P20"))),"",INDIRECT(CONCATENATE($B253,"!P20"))) ->  | W253: =IF(ISERROR(INDIRECT(CONCATENATE($B253,"!P21"))),"",INDIRECT(CONCATENATE($B253,"!P21"))) ->  | Y253: =IF(ISERROR(INDIRECT(CONCATENATE($B253,"!Q18"))),"",INDIRECT(CONCATENATE($B253,"!Q18"))) ->  | Z253: =IF(ISERROR(INDIRECT(CONCATENATE($B253,"!Q19"))),"",INDIRECT(CONCATENATE($B253,"!Q19"))) ->  | AA253: =IF(ISERROR(INDIRECT(CONCATENATE($B253,"!Q20"))),"",INDIRECT(CONCATENATE($B253,"!Q20"))) ->  | AB253: =IF(ISERROR(INDIRECT(CONCATENATE($B253,"!Q21"))),"",INDIRECT(CONCATENATE($B253,"!Q1"))) -> 
E254: =IF(ISERROR(INDIRECT(CONCATENATE($B254,"!M18"))),"",INDIRECT(CONCATENATE($B254,"!M18"))) ->  | F254: =IF(ISERROR(INDIRECT(CONCATENATE($B254,"!M19"))),"",INDIRECT(CONCATENATE($B254,"!M19"))) ->  | G254: =IF(ISERROR(INDIRECT(CONCATENATE($B254,"!M20"))),"",INDIRECT(CONCATENATE($B254,"!M20"))) ->  | H254: =IF(ISERROR(INDIRECT(CONCATENATE($B254,"!M21"))),"",INDIRECT(CONCATENATE($B254,"!M21"))) ->  | J254: =IF(ISERROR(INDIRECT(CONCATENATE($B254,"!N18"))),"",INDIRECT(CONCATENATE($B254,"!N18"))) ->  | K254: =IF(ISERROR(INDIRECT(CONCATENATE($B254,"!N19"))),"",INDIRECT(CONCATENATE($B254,"!N19"))) ->  | L254: =IF(ISERROR(INDIRECT(CONCATENATE($B254,"!N20"))),"",INDIRECT(CONCATENATE($B254,"!N20"))) ->  | M254: =IF(ISERROR(INDIRECT(CONCATENATE($B254,"!N21"))),"",INDIRECT(CONCATENATE($B254,"!N21"))) ->  | O254: =IF(ISERROR(INDIRECT(CONCATENATE($B254,"!O18"))),"",INDIRECT(CONCATENATE($B254,"!O18"))) ->  | P254: =IF(ISERROR(INDIRECT(CONCATENATE($B254,"!O19"))),"",INDIRECT(CONCATENATE($B254,"!O19"))) ->  | Q254: =IF(ISERROR(INDIRECT(CONCATENATE($B254,"!O20"))),"",INDIRECT(CONCATENATE($B254,"!O20"))) ->  | R254: =IF(ISERROR(INDIRECT(CONCATENATE($B254,"!O21"))),"",INDIRECT(CONCATENATE($B254,"!O21"))) ->  | T254: =IF(ISERROR(INDIRECT(CONCATENATE($B254,"!P18"))),"",INDIRECT(CONCATENATE($B254,"!P18"))) ->  | U254: =IF(ISERROR(INDIRECT(CONCATENATE($B254,"!P19"))),"",INDIRECT(CONCATENATE($B254,"!P19"))) ->  | V254: =IF(ISERROR(INDIRECT(CONCATENATE($B254,"!P20"))),"",INDIRECT(CONCATENATE($B254,"!P20"))) ->  | W254: =IF(ISERROR(INDIRECT(CONCATENATE($B254,"!P21"))),"",INDIRECT(CONCATENATE($B254,"!P21"))) ->  | Y254: =IF(ISERROR(INDIRECT(CONCATENATE($B254,"!Q18"))),"",INDIRECT(CONCATENATE($B254,"!Q18"))) ->  | Z254: =IF(ISERROR(INDIRECT(CONCATENATE($B254,"!Q19"))),"",INDIRECT(CONCATENATE($B254,"!Q19"))) ->  | AA254: =IF(ISERROR(INDIRECT(CONCATENATE($B254,"!Q20"))),"",INDIRECT(CONCATENATE($B254,"!Q20"))) ->  | AB254: =IF(ISERROR(INDIRECT(CONCATENATE($B254,"!Q21"))),"",INDIRECT(CONCATENATE($B254,"!Q1"))) -> 
E255: =IF(ISERROR(INDIRECT(CONCATENATE($B255,"!M18"))),"",INDIRECT(CONCATENATE($B255,"!M18"))) ->  | F255: =IF(ISERROR(INDIRECT(CONCATENATE($B255,"!M19"))),"",INDIRECT(CONCATENATE($B255,"!M19"))) ->  | G255: =IF(ISERROR(INDIRECT(CONCATENATE($B255,"!M20"))),"",INDIRECT(CONCATENATE($B255,"!M20"))) ->  | H255: =IF(ISERROR(INDIRECT(CONCATENATE($B255,"!M21"))),"",INDIRECT(CONCATENATE($B255,"!M21"))) ->  | J255: =IF(ISERROR(INDIRECT(CONCATENATE($B255,"!N18"))),"",INDIRECT(CONCATENATE($B255,"!N18"))) ->  | K255: =IF(ISERROR(INDIRECT(CONCATENATE($B255,"!N19"))),"",INDIRECT(CONCATENATE($B255,"!N19"))) ->  | L255: =IF(ISERROR(INDIRECT(CONCATENATE($B255,"!N20"))),"",INDIRECT(CONCATENATE($B255,"!N20"))) ->  | M255: =IF(ISERROR(INDIRECT(CONCATENATE($B255,"!N21"))),"",INDIRECT(CONCATENATE($B255,"!N21"))) ->  | O255: =IF(ISERROR(INDIRECT(CONCATENATE($B255,"!O18"))),"",INDIRECT(CONCATENATE($B255,"!O18"))) ->  | P255: =IF(ISERROR(INDIRECT(CONCATENATE($B255,"!O19"))),"",INDIRECT(CONCATENATE($B255,"!O19"))) ->  | Q255: =IF(ISERROR(INDIRECT(CONCATENATE($B255,"!O20"))),"",INDIRECT(CONCATENATE($B255,"!O20"))) ->  | R255: =IF(ISERROR(INDIRECT(CONCATENATE($B255,"!O21"))),"",INDIRECT(CONCATENATE($B255,"!O21"))) ->  | T255: =IF(ISERROR(INDIRECT(CONCATENATE($B255,"!P18"))),"",INDIRECT(CONCATENATE($B255,"!P18"))) ->  | U255: =IF(ISERROR(INDIRECT(CONCATENATE($B255,"!P19"))),"",INDIRECT(CONCATENATE($B255,"!P19"))) ->  | V255: =IF(ISERROR(INDIRECT(CONCATENATE($B255,"!P20"))),"",INDIRECT(CONCATENATE($B255,"!P20"))) ->  | W255: =IF(ISERROR(INDIRECT(CONCATENATE($B255,"!P21"))),"",INDIRECT(CONCATENATE($B255,"!P21"))) ->  | Y255: =IF(ISERROR(INDIRECT(CONCATENATE($B255,"!Q18"))),"",INDIRECT(CONCATENATE($B255,"!Q18"))) ->  | Z255: =IF(ISERROR(INDIRECT(CONCATENATE($B255,"!Q19"))),"",INDIRECT(CONCATENATE($B255,"!Q19"))) ->  | AA255: =IF(ISERROR(INDIRECT(CONCATENATE($B255,"!Q20"))),"",INDIRECT(CONCATENATE($B255,"!Q20"))) ->  | AB255: =IF(ISERROR(INDIRECT(CONCATENATE($B255,"!Q21"))),"",INDIRECT(CONCATENATE($B255,"!Q1"))) -> 
E256: =IF(ISERROR(INDIRECT(CONCATENATE($B256,"!M18"))),"",INDIRECT(CONCATENATE($B256,"!M18"))) ->  | F256: =IF(ISERROR(INDIRECT(CONCATENATE($B256,"!M19"))),"",INDIRECT(CONCATENATE($B256,"!M19"))) ->  | G256: =IF(ISERROR(INDIRECT(CONCATENATE($B256,"!M20"))),"",INDIRECT(CONCATENATE($B256,"!M20"))) ->  | H256: =IF(ISERROR(INDIRECT(CONCATENATE($B256,"!M21"))),"",INDIRECT(CONCATENATE($B256,"!M21"))) ->  | J256: =IF(ISERROR(INDIRECT(CONCATENATE($B256,"!N18"))),"",INDIRECT(CONCATENATE($B256,"!N18"))) ->  | K256: =IF(ISERROR(INDIRECT(CONCATENATE($B256,"!N19"))),"",INDIRECT(CONCATENATE($B256,"!N19"))) ->  | L256: =IF(ISERROR(INDIRECT(CONCATENATE($B256,"!N20"))),"",INDIRECT(CONCATENATE($B256,"!N20"))) ->  | M256: =IF(ISERROR(INDIRECT(CONCATENATE($B256,"!N21"))),"",INDIRECT(CONCATENATE($B256,"!N21"))) ->  | O256: =IF(ISERROR(INDIRECT(CONCATENATE($B256,"!O18"))),"",INDIRECT(CONCATENATE($B256,"!O18"))) ->  | P256: =IF(ISERROR(INDIRECT(CONCATENATE($B256,"!O19"))),"",INDIRECT(CONCATENATE($B256,"!O19"))) ->  | Q256: =IF(ISERROR(INDIRECT(CONCATENATE($B256,"!O20"))),"",INDIRECT(CONCATENATE($B256,"!O20"))) ->  | R256: =IF(ISERROR(INDIRECT(CONCATENATE($B256,"!O21"))),"",INDIRECT(CONCATENATE($B256,"!O21"))) ->  | T256: =IF(ISERROR(INDIRECT(CONCATENATE($B256,"!P18"))),"",INDIRECT(CONCATENATE($B256,"!P18"))) ->  | U256: =IF(ISERROR(INDIRECT(CONCATENATE($B256,"!P19"))),"",INDIRECT(CONCATENATE($B256,"!P19"))) ->  | V256: =IF(ISERROR(INDIRECT(CONCATENATE($B256,"!P20"))),"",INDIRECT(CONCATENATE($B256,"!P20"))) ->  | W256: =IF(ISERROR(INDIRECT(CONCATENATE($B256,"!P21"))),"",INDIRECT(CONCATENATE($B256,"!P21"))) ->  | Y256: =IF(ISERROR(INDIRECT(CONCATENATE($B256,"!Q18"))),"",INDIRECT(CONCATENATE($B256,"!Q18"))) ->  | Z256: =IF(ISERROR(INDIRECT(CONCATENATE($B256,"!Q19"))),"",INDIRECT(CONCATENATE($B256,"!Q19"))) ->  | AA256: =IF(ISERROR(INDIRECT(CONCATENATE($B256,"!Q20"))),"",INDIRECT(CONCATENATE($B256,"!Q20"))) ->  | AB256: =IF(ISERROR(INDIRECT(CONCATENATE($B256,"!Q21"))),"",INDIRECT(CONCATENATE($B256,"!Q1"))) -> 
E257: =IF(ISERROR(INDIRECT(CONCATENATE($B257,"!M18"))),"",INDIRECT(CONCATENATE($B257,"!M18"))) ->  | F257: =IF(ISERROR(INDIRECT(CONCATENATE($B257,"!M19"))),"",INDIRECT(CONCATENATE($B257,"!M19"))) ->  | G257: =IF(ISERROR(INDIRECT(CONCATENATE($B257,"!M20"))),"",INDIRECT(CONCATENATE($B257,"!M20"))) ->  | H257: =IF(ISERROR(INDIRECT(CONCATENATE($B257,"!M21"))),"",INDIRECT(CONCATENATE($B257,"!M21"))) ->  | J257: =IF(ISERROR(INDIRECT(CONCATENATE($B257,"!N18"))),"",INDIRECT(CONCATENATE($B257,"!N18"))) ->  | K257: =IF(ISERROR(INDIRECT(CONCATENATE($B257,"!N19"))),"",INDIRECT(CONCATENATE($B257,"!N19"))) ->  | L257: =IF(ISERROR(INDIRECT(CONCATENATE($B257,"!N20"))),"",INDIRECT(CONCATENATE($B257,"!N20"))) ->  | M257: =IF(ISERROR(INDIRECT(CONCATENATE($B257,"!N21"))),"",INDIRECT(CONCATENATE($B257,"!N21"))) ->  | O257: =IF(ISERROR(INDIRECT(CONCATENATE($B257,"!O18"))),"",INDIRECT(CONCATENATE($B257,"!O18"))) ->  | P257: =IF(ISERROR(INDIRECT(CONCATENATE($B257,"!O19"))),"",INDIRECT(CONCATENATE($B257,"!O19"))) ->  | Q257: =IF(ISERROR(INDIRECT(CONCATENATE($B257,"!O20"))),"",INDIRECT(CONCATENATE($B257,"!O20"))) ->  | R257: =IF(ISERROR(INDIRECT(CONCATENATE($B257,"!O21"))),"",INDIRECT(CONCATENATE($B257,"!O21"))) ->  | T257: =IF(ISERROR(INDIRECT(CONCATENATE($B257,"!P18"))),"",INDIRECT(CONCATENATE($B257,"!P18"))) ->  | U257: =IF(ISERROR(INDIRECT(CONCATENATE($B257,"!P19"))),"",INDIRECT(CONCATENATE($B257,"!P19"))) ->  | V257: =IF(ISERROR(INDIRECT(CONCATENATE($B257,"!P20"))),"",INDIRECT(CONCATENATE($B257,"!P20"))) ->  | W257: =IF(ISERROR(INDIRECT(CONCATENATE($B257,"!P21"))),"",INDIRECT(CONCATENATE($B257,"!P21"))) ->  | Y257: =IF(ISERROR(INDIRECT(CONCATENATE($B257,"!Q18"))),"",INDIRECT(CONCATENATE($B257,"!Q18"))) ->  | Z257: =IF(ISERROR(INDIRECT(CONCATENATE($B257,"!Q19"))),"",INDIRECT(CONCATENATE($B257,"!Q19"))) ->  | AA257: =IF(ISERROR(INDIRECT(CONCATENATE($B257,"!Q20"))),"",INDIRECT(CONCATENATE($B257,"!Q20"))) ->  | AB257: =IF(ISERROR(INDIRECT(CONCATENATE($B257,"!Q21"))),"",INDIRECT(CONCATENATE($B257,"!Q1"))) -> 
A297: RURAL | D297: Poorest | I297: Poor | N297: Middle | S297: Rich | X297: Richest
D298: Improved | E298: Basic | F298: Limited | G298: Unimproved | H298: Surface water | I298: Improved | J298: Basic | K298: Limited | L298: Unimproved | M298: Surface water | N298: Improved | O298: Basic | P298: Limited | Q298: Unimproved | R298: Surface water | S298: Improved | T298: Basic | U298: Limited | V298: Unimproved | W298: Surface water | X298: Improved | Y298: Basic | Z298: Limited | AA298: Unimproved | AB298: Surface water
A299: Forecast period: | C299: 2000 | D299: =IF((D301+H301)>100,D301*100/(D301+H301),D301) -> 49.57449483 | E299: =D299*AVERAGEIF(E305:E316,">0")/100 -> 41.79051312 | F299: =D299*(100-AVERAGEIF(E305:E316,">0"))/100 -> 7.783981712 | G299: =100-(E299+F299+H299) -> 19.96553626 | H299: =IF((D301+H301)>100,H301*100/(D301+H301),H301) -> 30.45996891 | I299: =IF((I301+M301)>100,I301*100/(I301+M301),I301) -> 52.12566354 | J299: =I299*AVERAGEIF(J305:J316,">0")/100 -> 42.2963457 | K299: =I299*(100-AVERAGEIF(J305:J316,">0"))/100 -> 9.829317845 | L299: =100-(J299+K299+M299) -> 18.62504389 | M299: =IF((I301+M301)>100,M301*100/(I301+M301),M301) -> 29.24929257 | N299: =IF((N301+R301)>100,N301*100/(N301+R301),N301) -> 61.97375879 | O299: =N299*AVERAGEIF(O305:O316,">0")/100 -> 49.79372802 | P299: =N299*(100-AVERAGEIF(O305:O316,">0"))/100 -> 12.18003077 | Q299: =100-(O299+P299+R299) -> 18.10523532 | R299: =IF((N301+R301)>100,R301*100/(N301+R301),R301) -> 19.92100589 | S299: =IF((S301+W301)>100,S301*100/(S301+W301),S301) -> 59.23186974 | T299: =S299*AVERAGEIF(T305:T316,">0")/100 -> 48.5769015 | U299: =S299*(100-AVERAGEIF(T305:T316,">0"))/100 -> 10.65496824 | V299: =100-(T299+U299+W299) -> 18.13173596 | W299: =IF((S301+W301)>100,W301*100/(S301+W301),W301) -> 22.6363943 | X299: =IF((X301+AB301)>100,X301*100/(X301+AB301),X301) -> 62.35139254 | Y299: =X299*AVERAGEIF(Y305:Y316,">0")/100 -> 51.74576179 | Z299: =X299*(100-AVERAGEIF(Y305:Y316,">0"))/100 -> 10.60563075 | AA299: =100-(Y299+Z299+AB299) -> 16.21153729 | AB299: =IF((X301+AB301)>100,AB301*100/(X301+AB301),AB301) -> 21.43707017
C300: 2020 | D300: =IF((D302+H302)>100,D302*100/(D302+H302),D302) -> 66.02587609 | E300: =D300*AVERAGEIF(E305:E316,">0")/100 -> 55.65876667 | F300: =D300*(100-AVERAGEIF(E305:E316,">0"))/100 -> 10.36710941 | G300: =100-(E300+F300+H300) -> 23.44379065 | H300: =IF((D302+H302)>100,H302*100/(D302+H302),H302) -> 10.53033326 | I300: =IF((I302+M302)>100,I302*100/(I302+M302),I302) -> 69.54533677 | J300: =I300*AVERAGEIF(J305:J316,">0")/100 -> 56.43119734 | K300: =I300*(100-AVERAGEIF(J305:J316,">0"))/100 -> 13.11413943 | L300: =100-(J300+K300+M300) -> 20.24815584 | M300: =IF((I302+M302)>100,M302*100/(I302+M302),M302) -> 10.20650738 | N300: =IF((N302+R302)>100,N302*100/(N302+R302),N302) -> 71.70743312 | O300: =N300*AVERAGEIF(O305:O316,">0")/100 -> 57.61439183 | P300: =N300*(100-AVERAGEIF(O305:O316,">0"))/100 -> 14.09304129 | Q300: =100-(O300+P300+R300) -> 17.06114842 | R300: =IF((N302+R302)>100,R302*100/(N302+R302),R302) -> 11.23141845 | S300: =IF((S302+W302)>100,S302*100/(S302+W302),S302) -> 79.0601609 | T300: =S300*AVERAGEIF(T305:T316,">0")/100 -> 64.83836599 | U300: =S300*(100-AVERAGEIF(T305:T316,">0"))/100 -> 14.22179491 | V300: =100-(T300+U300+W300) -> 13.99771341 | W300: =IF((S302+W302)>100,W302*100/(S302+W302),W302) -> 6.942125693 | X300: =IF((X302+AB302)>100,X302*100/(X302+AB302),X302) -> 89.66989436 | Y300: =X300*AVERAGEIF(Y305:Y316,">0")/100 -> 74.41753591 | Z300: =X300*(100-AVERAGEIF(Y305:Y316,">0"))/100 -> 15.25235845 | AA300: =100-(Y300+Z300+AB300) -> 6.986937728 | AB300: =IF((X302+AB302)>100,AB302*100/(X302+AB302),AB302) -> 3.343167908
A301: Regression period: | C301: =MinRegYear(C299,C305:C316) -> 2003 | D301: =IF(MAX(C305:C316)-MIN(C305:C316)<5,AVERAGEIF(C305:C316,">0",D305:D316), IF(FORECAST($C301,D$305:D$316,$C$305:$C$316)<0,0, IF(FORECAST($C301,D$305:D$316,$C$305:$C$316)>100,100, FORECAST($C301,D$305:D$316,$C$305:$C$316)))) -> 49.57449483 | H301: =IF(MAX(C305:C316)-MIN(C305:C316)<5,AVERAGEIF(C305:C316,">0",H305:H316), IF(FORECAST($C301,H$305:H$316,$C$305:$C$316)<0,0, IF(FORECAST($C301,H$305:H$316,$C$305:$C$316)>100,100, FORECAST($C301,H$305:H$316,$C$305:$C$316)))) -> 30.45996891 | I301: =IF(MAX(C305:C316)-MIN(C305:C316)<5,AVERAGEIF(C305:C316,">0",I305:I316), IF(FORECAST($C301,I$305:I$316,$C$305:$C$316)<0,0, IF(FORECAST($C301,I$305:I$316,$C$305:$C$316)>100,100, FORECAST($C301,I$305:I$316,$C$305:$C$316)))) -> 52.12566354 | M301: =IF(MAX(C305:C316)-MIN(C305:C316)<5,AVERAGEIF(C305:C316,">0",M305:M316), IF(FORECAST($C301,M$305:M$316,$C$305:$C$316)<0,0, IF(FORECAST($C301,M$305:M$316,$C$305:$C$316)>100,100, FORECAST($C301,M$305:M$316,$C$305:$C$316)))) -> 29.24929257 | N301: =IF(MAX(C305:C316)-MIN(C305:C316)<5,AVERAGEIF(C305:C316,">0",N305:N316), IF(FORECAST($C301,N$305:N$316,$C$305:$C$316)<0,0, IF(FORECAST($C301,N$305:N$316,$C$305:$C$316)>100,100, FORECAST($C301,N$305:N$316,$C$305:$C$316)))) -> 61.97375879 | R301: =IF(MAX(C305:C316)-MIN(C305:C316)<5,AVERAGEIF(C305:C316,">0",R305:R316), IF(FORECAST($C301,R$305:R$316,$C$305:$C$316)<0,0, IF(FORECAST($C301,R$305:R$316,$C$305:$C$316)>100,100, FORECAST($C301,R$305:R$316,$C$305:$C$316)))) -> 19.92100589 | S301: =IF(MAX(C305:C316)-MIN(C305:C316)<5,AVERAGEIF(C305:C316,">0",S305:S316), IF(FORECAST($C301,S$305:S$316,$C$305:$C$316)<0,0, IF(FORECAST($C301,S$305:S$316,$C$305:$C$316)>100,100, FORECAST($C301,S$305:S$316,$C$305:$C$316)))) -> 59.23186974 | W301: =IF(MAX(C305:C316)-MIN(C305:C316)<5,AVERAGEIF(C305:C316,">0",W305:W316), IF(FORECAST($C301,W$305:W$316,$C$305:$C$316)<0,0, IF(FORECAST($C301,W$305:W$316,$C$305:$C$316)>100,100, FORECAST($C301,W$305:W$316,$C$305:$C$316)))) -> 22.6363943 | X301: =IF(MAX(C305:C316)-MIN(C305:C316)<5,AVERAGEIF(C305:C316,">0",X305:X316), IF(FORECAST($C301,X$305:X$316,$C$305:$C$316)<0,0, IF(FORECAST($C301,X$305:X$316,$C$305:$C$316)>100,100, FORECAST($C301,X$305:X$316,$C$305:$C$316)))) -> 62.35139254 | AB301: =IF(MAX(C305:C316)-MIN(C305:C316)<5,AVERAGEIF(C305:C316,">0",AB305:AB316), IF(FORECAST($C301,AB$305:AB$316,$C$305:$C$316)<0,0, IF(FORECAST($C301,AB$305:AB$316,$C$305:$C$316)>100,100, FORECAST($C301,AB$305:AB$316,$C$305:$C$316)))) -> 21.43707017
C302: =MaxRegYear(C300,C305:C316) -> 2020 | D302: =IF(MAX(C305:C316)-MIN(C305:C316)<5,AVERAGEIF(C305:C316,">0",D305:D316), IF(FORECAST($C302,D$305:D$316,$C$305:$C$316)<0,0, IF(FORECAST($C302,D$305:D$316,$C$305:$C$316)>100,100, FORECAST($C302,D$305:D$316,$C$305:$C$316)))) -> 66.02587609 | H302: =IF(MAX(C305:C316)-MIN(C305:C316)<5,AVERAGEIF(C305:C316,">0",H305:H316), IF(FORECAST($C302,H$305:H$316,$C$305:$C$316)<0,0, IF(FORECAST($C302,H$305:H$316,$C$305:$C$316)>100,100, FORECAST($C302,H$305:H$316,$C$305:$C$316)))) -> 10.53033326 | I302: =IF(MAX(C305:C316)-MIN(C305:C316)<5,AVERAGEIF(C305:C316,">0",I305:I316), IF(FORECAST($C302,I$305:I$316,$C$305:$C$316)<0,0, IF(FORECAST($C302,I$305:I$316,$C$305:$C$316)>100,100, FORECAST($C302,I$305:I$316,$C$305:$C$316)))) -> 69.54533677 | M302: =IF(MAX(C305:C316)-MIN(C305:C316)<5,AVERAGEIF(C305:C316,">0",M305:M316), IF(FORECAST($C302,M$305:M$316,$C$305:$C$316)<0,0, IF(FORECAST($C302,M$305:M$316,$C$305:$C$316)>100,100, FORECAST($C302,M$305:M$316,$C$305:$C$316)))) -> 10.20650738 | N302: =IF(MAX(C305:C316)-MIN(C305:C316)<5,AVERAGEIF(C305:C316,">0",N305:N316), IF(FORECAST($C302,N$305:N$316,$C$305:$C$316)<0,0, IF(FORECAST($C302,N$305:N$316,$C$305:$C$316)>100,100, FORECAST($C302,N$305:N$316,$C$305:$C$316)))) -> 71.70743312 | R302: =IF(MAX(C305:C316)-MIN(C305:C316)<5,AVERAGEIF(C305:C316,">0",R305:R316), IF(FORECAST($C302,R$305:R$316,$C$305:$C$316)<0,0, IF(FORECAST($C302,R$305:R$316,$C$305:$C$316)>100,100, FORECAST($C302,R$305:R$316,$C$305:$C$316)))) -> 11.23141845 | S302: =IF(MAX(C305:C316)-MIN(C305:C316)<5,AVERAGEIF(C305:C316,">0",S305:S316), IF(FORECAST($C302,S$305:S$316,$C$305:$C$316)<0,0, IF(FORECAST($C302,S$305:S$316,$C$305:$C$316)>100,100, FORECAST($C302,S$305:S$316,$C$305:$C$316)))) -> 79.0601609 | W302: =IF(MAX(C305:C316)-MIN(C305:C316)<5,AVERAGEIF(C305:C316,">0",W305:W316), IF(FORECAST($C302,W$305:W$316,$C$305:$C$316)<0,0, IF(FORECAST($C302,W$305:W$316,$C$305:$C$316)>100,100, FORECAST($C302,W$305:W$316,$C$305:$C$316)))) -> 6.942125693 | X302: =IF(MAX(C305:C316)-MIN(C305:C316)<5,AVERAGEIF(C305:C316,">0",X305:X316), IF(FORECAST($C302,X$305:X$316,$C$305:$C$316)<0,0, IF(FORECAST($C302,X$305:X$316,$C$305:$C$316)>100,100, FORECAST($C302,X$305:X$316,$C$305:$C$316)))) -> 89.66989436 | AB302: =IF(MAX(C305:C316)-MIN(C305:C316)<5,AVERAGEIF(C305:C316,">0",AB305:AB316), IF(FORECAST($C302,AB$305:AB$316,$C$305:$C$316)<0,0, IF(FORECAST($C302,AB$305:AB$316,$C$305:$C$316)>100,100, FORECAST($C302,AB$305:AB$316,$C$305:$C$316)))) -> 3.343167908
B304: Survey | C304: Year | D304: Improved | E304: % Improved < = 30min | H304: Surface water | I304: Improved | J304: % Improved < = 30min | M304: Surface water | N304: Improved | O304: % Improved < = 30min | R304: Surface water | S304: Improved | T304: % Improved < = 30min | W304: Surface water | X304: Improved | Y304: % Improved < = 30min | AB304: Surface water
B305: DHS05 | C305: 2005 | D305: =IF(ISERROR(INDIRECT(CONCATENATE($B305,"!M16"))),"",INDIRECT(CONCATENATE($B305,"!M16"))) -> 37.30962706 | E305: =IF(ISERROR(INDIRECT(CONCATENATE($B305,"!M23"))),"",INDIRECT(CONCATENATE($B305,"!M23"))) -> 94.25036575 | H305: =IF(ISERROR(INDIRECT(CONCATENATE($B305,"!M21"))),"",INDIRECT(CONCATENATE($B305,"!M21"))) -> 34.71598379 | I305: =IF(ISERROR(INDIRECT(CONCATENATE($B305,"!N16"))),"",INDIRECT(CONCATENATE($B305,"!N16"))) -> 45.41966416 | J305: =IF(ISERROR(INDIRECT(CONCATENATE($B305,"!N23"))),"",INDIRECT(CONCATENATE($B305,"!N23"))) -> 97.03799302 | M305: =IF(ISERROR(INDIRECT(CONCATENATE($B305,"!N21"))),"",INDIRECT(CONCATENATE($B305,"!N21"))) -> 29.22120692 | N305: =IF(ISERROR(INDIRECT(CONCATENATE($B305,"!O16"))),"",INDIRECT(CONCATENATE($B305,"!O16"))) -> 61.49602204 | O305: =IF(ISERROR(INDIRECT(CONCATENATE($B305,"!O23"))),"",INDIRECT(CONCATENATE($B305,"!O23"))) -> 91.74492064 | R305: =IF(ISERROR(INDIRECT(CONCATENATE($B305,"!O21"))),"",INDIRECT(CONCATENATE($B305,"!O21"))) -> 13.61756147 | S305: =IF(ISERROR(INDIRECT(CONCATENATE($B305,"!P16"))),"",INDIRECT(CONCATENATE($B305,"!P16"))) -> 58.77143858 | T305: =IF(ISERROR(INDIRECT(CONCATENATE($B305,"!P23"))),"",INDIRECT(CONCATENATE($B305,"!P23"))) -> 94.33267288 | W305: =IF(ISERROR(INDIRECT(CONCATENATE($B305,"!P21"))),"",INDIRECT(CONCATENATE($B305,"!P21"))) -> 19.54697745 | X305: =IF(ISERROR(INDIRECT(CONCATENATE($B305,"!Q16"))),"",INDIRECT(CONCATENATE($B305,"!Q16"))) -> 65.30796629 | Y305: =IF(ISERROR(INDIRECT(CONCATENATE($B305,"!Q23"))),"",INDIRECT(CONCATENATE($B305,"!Q23"))) -> 97.20580231 | AB305: =IF(ISERROR(INDIRECT(CONCATENATE($B305,"!Q221"))),"",INDIRECT(CONCATENATE($B305,"!Q21"))) -> 17.65321136
B306: QUIBB07 | C306: 2007 | D306: 68.55617539 | E306: 100 | H306: 18.79649905 | I306: 65.78805439 | J306: 98.54669896 | M306: 23.40700882 | N306: 69.85430513 | O306: 99.04836269 | R306: 21.52464173 | S306: 67.32242185 | T306: 97.79094732 | W306: 20.36137002 | X306: 66.11696398 | Y306: 98.45437545 | AB306: 21.54931081
B307: DHS12 | C307: 2012 | D307: 62.6 | E307: 82.3 | H307: 16.5 | I307: 63 | J307: 80.4 | M307: 14.9 | N307: 57.8 | O307: 78.7 | R307: 20.3 | S307: 68.7 | T307: 77.8 | W307: 13.9 | X307: 81.1 | Y307: 74.6 | AB307: 7.6
B308: MICS16 | C308: 2016 | D308: 58.4 | E308: 74.9 | H308: 20.9 | I308: 64.8 | J308: 63 | M308: 20.6 | N308: 77.2 | O308: 62.7 | R308: 12.6 | S308: 76.8 | T308: 65.9 | W308: 12.2 | X308: 86.7 | Y308: 75.3 | AB308: 7.1
B309: DHS18 | C309: 2018 | D309: 62.61898901 | E309: 70.04170655 | H309: 10.97710684 | I309: 65.68212556 | J309: 66.73048576 | M309: 9.951202219 | N309: 68.13893714 | O309: 69.53907077 | R309: 9.583281555 | S309: 74.7194012 | T309: 74.23351384 | W309: 7.476356389 | X309: 81.63177233 | Y309: 69.39255772 | AB309: 7.515899422
B318: =CONCATENATE("Rural use of drinking water sources, ",C299,"–",C300) -> Rural use of drinking water sources, 2000–2020 | S318: Data points used for regression

Sheet Sanitation
B4: Summary of trends in use of sanitation facilities by wealth quintile (%)
B5: =IF(ISERROR(INDIRECT(CONCATENATE($B105,"!A2"))),"",INDIRECT(CONCATENATE($B105,"!A2"))) -> Guinea
B7: =B118 -> National use of sanitation facilities, 2000–2020 | J7: =B218 -> Urban use of sanitation facilities, 2000–2020 | R7: =B318 -> Rural use of sanitation facilities, 2000–2020
B31: =IF(ISERROR(INDIRECT(CONCATENATE($B105,"!A2"))),"",INDIRECT(CONCATENATE($B105,"!A2"))) -> Guinea | F31: Poorest | J31: Poor | N31: Middle | R31: Rich | V31: Richest
F32: Basic | G32: Limited | H32: Unimproved | I32: Open defecation | J32: Basic | K32: Limited | L32: Unimproved | M32: Open defecation | N32: Basic | O32: Limited | P32: Unimproved | Q32: Open defecation | R32: Basic | S32: Limited | T32: Unimproved | U32: Open defecation | V32: Basic | W32: Limited | X32: Unimproved | Y32: Open defecation
B33: NATIONAL | D33: Estimate | E33: =C99 -> 2000 | F33: =E99 -> 4.001013483 | G33: =F99 -> 3.487720912 | H33: 46.00174601 | I33: 46.50951959 | J33: =J99 -> 2.561498471 | K33: =K99 -> 2.546465879 | L33: 49.47939252 | M33: 45.41264313 | N33: =O99 -> 8.013562286 | O33: =P99 -> 6.708850311 | P33: 58.04168808 | Q33: 27.23589932 | R33: =T99 -> 17.15245659 | S33: =U99 -> 24.36952378 | T33: 51.48413807 | U33: 6.993881552 | V33: =Y99 -> 41.19528109 | W33: =Z99 -> 30.33737627 | X33: 27.6320077 | Y33: 0.8353349454
E34: =C100 -> 2020 | F34: =E100 -> 8.34330028 | G34: 7.272932968 | H34: 57.08792392 | I34: 27.29584283 | J34: =J100 -> 16.70252814 | K34: 16.60450649 | L34: 50.52339304 | M34: 16.16957233 | N34: =O100 -> 29.40999433 | O34: 24.62166545 | P34: 38.41409679 | Q34: 7.554243432 | R34: =T100 -> 36.38348051 | S34: 51.69219282 | T34: 11.92432667 | U34: 0 | V34: =Y100 -> 57.58947397 | W34: 42.41052603 | X34: 0 | Y34: 0
B36: URBAN | D36: Estimate | E36: =C199 -> 2000 | F36: =E199 -> 12.89825561 | G36: =F199 -> 14.81771569 | H36: 66.06155332 | I36: 6.22247539 | J36: =J199 -> 19.81124184 | K36: =K199 -> 40.38737711 | L36: 39.32419477 | M36: 0.4771862781 | N36: =O199 -> 23.06592115 | O36: =P199 -> 43.22647098 | P36: 32.91827875 | Q36: 0.789329114 | R36: =T199 -> 35.53564197 | S36: =U199 -> 41.67701946 | T36: 22.17039528 | U36: 0.6169432899 | V36: =Y199 -> 64.12258542 | W36: =Z199 -> 15.28346032 | X36: 19.7551419 | Y36: 0.8388123664
E37: =C200 -> 2020 | F37: =E200 -> 37.06971213 | G37: 42.58625908 | H37: 18.87948977 | I37: 1.464539012 | J37: =J200 -> 31.14287474 | K37: 63.48814662 | L37: 4.940768368 | M37: 0.4282102723 | N37: =O200 -> 34.5671156 | O37: 64.78017547 | P37: 0.6527089258 | Q37: 0 | R37: =T200 -> 45.24980048 | S37: 53.07000833 | T37: 1.657921711 | U37: 0.02226948478 | V37: =Y200 -> 80.75277496 | W37: 19.24722504 | X37: 0 | Y37: 0
B39: RURAL | D39: Estimate | E39: =C299 -> 2000 | F39: =E299 -> 3.015906051 | G39: =F299 -> 2.352188639 | H39: 40.95470293 | I39: 53.67720238 | J39: =J299 -> 3.904816587 | K39: =K299 -> 3.968477109 | L39: 48.4157066 | M39: 43.71099971 | N39: =O299 -> 6.31691806 | O39: =P299 -> 6.27562705 | P39: 63.70544537 | Q39: 23.70200952 | R39: =T299 -> 9.526772345 | S39: =U299 -> 7.839089741 | T39: 51.34697347 | U39: 31.28716444 | V39: =Y299 -> 17.2762562 | W39: =Z299 -> 12.23086913 | X39: 57.17576361 | Y39: 13.31711106
E40: =C300 -> 2020 | F40: =E300 -> 8.281147135 | G40: 6.458695954 | H40: 57.01121718 | I40: 28.24893973 | J40: =J300 -> 10.65092114 | K40: 10.82456392 | L40: 55.06587425 | M40: 23.45864069 | N40: =O300 -> 16.59166453 | O40: 16.48321187 | P40: 45.57445838 | Q40: 21.35066523 | R40: =T300 -> 25.07193962 | S40: 20.63040635 | T40: 44.93554869 | U40: 9.362105346 | V40: =Y300 -> 39.99482023 | W40: 28.31466531 | X40: 28.07408074 | Y40: 3.616433714
A97: NATIONAL | D97: Poorest | I97: Poor | N97: Middle | S97: Rich | X97: Richest
D98: Improved | E98: Basic | F98: Limited | G98: Unimproved | H98: Open defecation | I98: Improved | J98: Basic | K98: Limited | L98: Unimproved | M98: Open defecation | N98: Improved | O98: Basic | P98: Limited | Q98: Unimproved | R98: Open defecation | S98: Improved | T98: Basic | U98: Limited | V98: Unimproved | W98: Open defecation | X98: Improved | Y98: Basic | Z98: Limited | AA98: Unimproved | AB98: Open defecation
A99: Forecast period: | C99: 2000 | D99: =IF((D101+H101)>100,D101*100/(D101+H101),D101) -> 7.488734395 | E99: =D99*AVERAGEIF(E105:E116,">0")/100 -> 4.001013483 | F99: =D99*(100-AVERAGEIF(E105:E116,">0"))/100 -> 3.487720912 | G99: =100-(E99+F99+H99) -> 46.00174601 | H99: =IF((D101+H101)>100,H101*100/(D101+H101),H101) -> 46.50951959 | I99: =IF((I101+M101)>100,I101*100/(I101+M101),I101) -> 5.10796435 | J99: =I99*AVERAGEIF(J105:J116,">0")/100 -> 2.561498471 | K99: =I99*(100-AVERAGEIF(J105:J116,">0"))/100 -> 2.546465879 | L99: =100-(J99+K99+M99) -> 49.47939252 | M99: =IF((I101+M101)>100,M101*100/(I101+M101),M101) -> 45.41264313 | N99: =IF((N101+R101)>100,N101*100/(N101+R101),N101) -> 14.7224126 | O99: =N99*AVERAGEIF(O105:O116,">0")/100 -> 8.013562286 | P99: =N99*(100-AVERAGEIF(O105:O116,">0"))/100 -> 6.708850311 | Q99: =100-(O99+P99+R99) -> 58.04168808 | R99: =IF((N101+R101)>100,R101*100/(N101+R101),R101) -> 27.23589932 | S99: =IF((S101+W101)>100,S101*100/(S101+W101),S101) -> 41.52198037 | T99: =S99*AVERAGEIF(T105:T116,">0")/100 -> 17.15245659 | U99: =S99*(100-AVERAGEIF(T105:T116,">0"))/100 -> 24.36952378 | V99: =100-(T99+U99+W99) -> 51.48413807 | W99: =IF((S101+W101)>100,W101*100/(S101+W101),W101) -> 6.993881552 | X99: =IF((X101+AB101)>100,X101*100/(X101+AB101),X101) -> 71.53265736 | Y99: =X99*AVERAGEIF(Y105:Y116,">0")/100 -> 41.19528109 | Z99: =X99*(100-AVERAGEIF(Y105:Y116,">0"))/100 -> 30.33737627 | AA99: =100-(Y99+Z99+AB99) -> 27.6320077 | AB99: =IF((X101+AB101)>100,AB101*100/(X101+AB101),AB101) -> 0.8353349454
C100: 2020 | D100: =IF((D102+H102)>100,D102*100/(D102+H102),D102) -> 15.61623325 | E100: =D100*AVERAGEIF(E105:E116,">0")/100 -> 8.34330028 | F100: =D100*(100-AVERAGEIF(E105:E116,">0"))/100 -> 7.272932968 | G100: =100-(E100+F100+H100) -> 57.08792392 | H100: =IF((D102+H102)>100,H102*100/(D102+H102),H102) -> 27.29584283 | I100: =IF((I102+M102)>100,I102*100/(I102+M102),I102) -> 33.30703463 | J100: =I100*AVERAGEIF(J105:J116,">0")/100 -> 16.70252814 | K100: =I100*(100-AVERAGEIF(J105:J116,">0"))/100 -> 16.60450649 | L100: =100-(J100+K100+M100) -> 50.52339304 | M100: =IF((I102+M102)>100,M102*100/(I102+M102),M102) -> 16.16957233 | N100: =IF((N102+R102)>100,N102*100/(N102+R102),N102) -> 54.03165978 | O100: =N100*AVERAGEIF(O105:O116,">0")/100 -> 29.40999433 | P100: =N100*(100-AVERAGEIF(O105:O116,">0"))/100 -> 24.62166545 | Q100: =100-(O100+P100+R100) -> 38.41409679 | R100: =IF((N102+R102)>100,R102*100/(N102+R102),R102) -> 7.554243432 | S100: =IF((S102+W102)>100,S102*100/(S102+W102),S102) -> 88.07567333 | T100: =S100*AVERAGEIF(T105:T116,">0")/100 -> 36.38348051 | U100: =S100*(100-AVERAGEIF(T105:T116,">0"))/100 -> 51.69219282 | V100: =100-(T100+U100+W100) -> 11.92432667 | W100: =IF((S102+W102)>100,W102*100/(S102+W102),W102) -> 0 | X100: =IF((X102+AB102)>100,X102*100/(X102+AB102),X102) -> 100 | Y100: =X100*AVERAGEIF(Y105:Y116,">0")/100 -> 57.58947397 | Z100: =X100*(100-AVERAGEIF(Y105:Y116,">0"))/100 -> 42.41052603 | AA100: =100-(Y100+Z100+AB100) -> 0 | AB100: =IF((X102+AB102)>100,AB102*100/(X102+AB102),AB102) -> 0
A101: Regression period: | C101: =MinRegYear(C99,C105:C116) -> 2003 | D101: =IF(MAX(C105:C116)-MIN(C105:C116)<5,AVERAGEIF(C105:C116,">0",D105:D116), IF(FORECAST($C101,D$105:D$116,$C$105:$C$116)<0,0, IF(FORECAST($C101,D$105:D$116,$C$105:$C$116)>100,100, FORECAST($C101,D$105:D$116,$C$105:$C$116)))) -> 7.488734395 | H101: =IF(MAX(C105:C116)-MIN(C105:C116)<5,AVERAGEIF(C105:C116,">0",H105:H116), IF(FORECAST($C101,H$105:H$116,$C$105:$C$116)<0,0, IF(FORECAST($C101,H$105:H$116,$C$105:$C$116)>100,100, FORECAST($C101,H$105:H$116,$C$105:$C$116)))) -> 46.50951959 | I101: =IF(MAX(C105:C116)-MIN(C105:C116)<5,AVERAGEIF(C105:C116,">0",I105:I116), IF(FORECAST($C101,I$105:I$116,$C$105:$C$116)<0,0, IF(FORECAST($C101,I$105:I$116,$C$105:$C$116)>100,100, FORECAST($C101,I$105:I$116,$C$105:$C$116)))) -> 5.10796435 | M101: =IF(MAX(C105:C116)-MIN(C105:C116)<5,AVERAGEIF(C105:C116,">0",M105:M116), IF(FORECAST($C101,M$105:M$116,$C$105:$C$116)<0,0, IF(FORECAST($C101,M$105:M$116,$C$105:$C$116)>100,100, FORECAST($C101,M$105:M$116,$C$105:$C$116)))) -> 45.41264313 | N101: =IF(MAX(C105:C116)-MIN(C105:C116)<5,AVERAGEIF(C105:C116,">0",N105:N116), IF(FORECAST($C101,N$105:N$116,$C$105:$C$116)<0,0, IF(FORECAST($C101,N$105:N$116,$C$105:$C$116)>100,100, FORECAST($C101,N$105:N$116,$C$105:$C$116)))) -> 14.7224126 | R101: =IF(MAX(C105:C116)-MIN(C105:C116)<5,AVERAGEIF(C105:C116,">0",R105:R116), IF(FORECAST($C101,R$105:R$116,$C$105:$C$116)<0,0, IF(FORECAST($C101,R$105:R$116,$C$105:$C$116)>100,100, FORECAST($C101,R$105:R$116,$C$105:$C$116)))) -> 27.23589932 | S101: =IF(MAX(C105:C116)-MIN(C105:C116)<5,AVERAGEIF(C105:C116,">0",S105:S116), IF(FORECAST($C101,S$105:S$116,$C$105:$C$116)<0,0, IF(FORECAST($C101,S$105:S$116,$C$105:$C$116)>100,100, FORECAST($C101,S$105:S$116,$C$105:$C$116)))) -> 41.52198037 | W101: =IF(MAX(C105:C116)-MIN(C105:C116)<5,AVERAGEIF(C105:C116,">0",W105:W116), IF(FORECAST($C101,W$105:W$116,$C$105:$C$116)<0,0, IF(FORECAST($C101,W$105:W$116,$C$105:$C$116)>100,100, FORECAST($C101,W$105:W$116,$C$105:$C$116)))) -> 6.993881552 | X101: =IF(MAX(C105:C116)-MIN(C105:C116)<5,AVERAGEIF(C105:C116,">0",X105:X116), IF(FORECAST($C101,X$105:X$116,$C$105:$C$116)<0,0, IF(FORECAST($C101,X$105:X$116,$C$105:$C$116)>100,100, FORECAST($C101,X$105:X$116,$C$105:$C$116)))) -> 71.53265736 | AB101: =IF(MAX(C105:C116)-MIN(C105:C116)<5,AVERAGEIF(C105:C116,">0",AB105:AB116), IF(FORECAST($C101,AB$105:AB$116,$C$105:$C$116)<0,0, IF(FORECAST($C101,AB$105:AB$116,$C$105:$C$116)>100,100, FORECAST($C101,AB$105:AB$116,$C$105:$C$116)))) -> 0.8353349454
C102: =MaxRegYear(C100,C105:C116) -> 2020 | D102: =IF(MAX(C105:C116)-MIN(C105:C116)<5,AVERAGEIF(C105:C116,">0",D105:D116), IF(FORECAST($C102,D$105:D$116,$C$105:$C$116)<0,0, IF(FORECAST($C102,D$105:D$116,$C$105:$C$116)>100,100, FORECAST($C102,D$105:D$116,$C$105:$C$116)))) -> 15.61623325 | H102: =IF(MAX(C105:C116)-MIN(C105:C116)<5,AVERAGEIF(C105:C116,">0",H105:H116), IF(FORECAST($C102,H$105:H$116,$C$105:$C$116)<0,0, IF(FORECAST($C102,H$105:H$116,$C$105:$C$116)>100,100, FORECAST($C102,H$105:H$116,$C$105:$C$116)))) -> 27.29584283 | I102: =IF(MAX(C105:C116)-MIN(C105:C116)<5,AVERAGEIF(C105:C116,">0",I105:I116), IF(FORECAST($C102,I$105:I$116,$C$105:$C$116)<0,0, IF(FORECAST($C102,I$105:I$116,$C$105:$C$116)>100,100, FORECAST($C102,I$105:I$116,$C$105:$C$116)))) -> 33.30703463 | M102: =IF(MAX(C105:C116)-MIN(C105:C116)<5,AVERAGEIF(C105:C116,">0",M105:M116), IF(FORECAST($C102,M$105:M$116,$C$105:$C$116)<0,0, IF(FORECAST($C102,M$105:M$116,$C$105:$C$116)>100,100, FORECAST($C102,M$105:M$116,$C$105:$C$116)))) -> 16.16957233 | N102: =IF(MAX(C105:C116)-MIN(C105:C116)<5,AVERAGEIF(C105:C116,">0",N105:N116), IF(FORECAST($C102,N$105:N$116,$C$105:$C$116)<0,0, IF(FORECAST($C102,N$105:N$116,$C$105:$C$116)>100,100, FORECAST($C102,N$105:N$116,$C$105:$C$116)))) -> 54.03165978 | R102: =IF(MAX(C105:C116)-MIN(C105:C116)<5,AVERAGEIF(C105:C116,">0",R105:R116), IF(FORECAST($C102,R$105:R$116,$C$105:$C$116)<0,0, IF(FORECAST($C102,R$105:R$116,$C$105:$C$116)>100,100, FORECAST($C102,R$105:R$116,$C$105:$C$116)))) -> 7.554243432 | S102: =IF(MAX(C105:C116)-MIN(C105:C116)<5,AVERAGEIF(C105:C116,">0",S105:S116), IF(FORECAST($C102,S$105:S$116,$C$105:$C$116)<0,0, IF(FORECAST($C102,S$105:S$116,$C$105:$C$116)>100,100, FORECAST($C102,S$105:S$116,$C$105:$C$116)))) -> 88.07567333 | W102: =IF(MAX(C105:C116)-MIN(C105:C116)<5,AVERAGEIF(C105:C116,">0",W105:W116), IF(FORECAST($C102,W$105:W$116,$C$105:$C$116)<0,0, IF(FORECAST($C102,W$105:W$116,$C$105:$C$116)>100,100, FORECAST($C102,W$105:W$116,$C$105:$C$116)))) -> 0 | X102: =IF(MAX(C105:C116)-MIN(C105:C116)<5,AVERAGEIF(C105:C116,">0",X105:X116), IF(FORECAST($C102,X$105:X$116,$C$105:$C$116)<0,0, IF(FORECAST($C102,X$105:X$116,$C$105:$C$116)>100,100, FORECAST($C102,X$105:X$116,$C$105:$C$116)))) -> 100 | AB102: =IF(MAX(C105:C116)-MIN(C105:C116)<5,AVERAGEIF(C105:C116,">0",AB105:AB116), IF(FORECAST($C102,AB$105:AB$116,$C$105:$C$116)<0,0, IF(FORECAST($C102,AB$105:AB$116,$C$105:$C$116)>100,100, FORECAST($C102,AB$105:AB$116,$C$105:$C$116)))) -> 0
B104: Survey | C104: Year | D104: Improved | E104: Not shared | H104: Open defecation | I104: Improved | J104: Not shared | M104: Open defecation | N104: Improved | O104: Not shared | R104: Open defecation | S104: Improved | T104: Not shared | W104: Open defecation | X104: Improved | Y104: Not shared | AB104: Open defecation
B105: DHS05 | C105: 2005 | D105: =IF(ISERROR(INDIRECT(CONCATENATE($B105,"!C122"))),"",INDIRECT(CONCATENATE($B105,"!C122"))) -> 9.534985921 | E105: =IF(ISERROR(INDIRECT(CONCATENATE($B105,"!C129"))),"",INDIRECT(CONCATENATE($B105,"!C129"))) -> N/A | H105: =IF(ISERROR(INDIRECT(CONCATENATE($B105,"!C127"))),"",INDIRECT(CONCATENATE($B105,"!C127"))) -> 57.49424337 | I105: =IF(ISERROR(INDIRECT(CONCATENATE($B105,"!D122"))),"",INDIRECT(CONCATENATE($B105,"!D122"))) -> 9.10826811 | J105: =IF(ISERROR(INDIRECT(CONCATENATE($B105,"!D129"))),"",INDIRECT(CONCATENATE($B105,"!D129"))) -> N/A | M105: =IF(ISERROR(INDIRECT(CONCATENATE($B105,"!D127"))),"",INDIRECT(CONCATENATE($B105,"!D127"))) -> 47.57185839 | N105: =IF(ISERROR(INDIRECT(CONCATENATE($B105,"!E122"))),"",INDIRECT(CONCATENATE($B105,"!E122"))) -> 17.77441291 | O105: =IF(ISERROR(INDIRECT(CONCATENATE($B105,"!E129"))),"",INDIRECT(CONCATENATE($B105,"!E129"))) -> N/A | R105: =IF(ISERROR(INDIRECT(CONCATENATE($B105,"!E127"))),"",INDIRECT(CONCATENATE($B105,"!E127"))) -> 26.8668063 | S105: =IF(ISERROR(INDIRECT(CONCATENATE($B105,"!F122"))),"",INDIRECT(CONCATENATE($B105,"!F122"))) -> 37.94383884 | T105: =IF(ISERROR(INDIRECT(CONCATENATE($B105,"!F129"))),"",INDIRECT(CONCATENATE($B105,"!F129"))) -> N/A | W105: =IF(ISERROR(INDIRECT(CONCATENATE($B105,"!F127"))),"",INDIRECT(CONCATENATE($B105,"!F127"))) -> 7.769373782 | X105: =IF(ISERROR(INDIRECT(CONCATENATE($B105,"!G122"))),"",INDIRECT(CONCATENATE($B105,"!G122"))) -> 71.88685351 | Y105: =IF(ISERROR(INDIRECT(CONCATENATE($B105,"!G129"))),"",INDIRECT(CONCATENATE($B105,"!G129"))) -> N/A | AB105: =IF(ISERROR(INDIRECT(CONCATENATE($B105,"!G2127"))),"",INDIRECT(CONCATENATE($B105,"!G127"))) -> 0.5128193512
B106: QUIBB07 | C106: 2007 | D106: 8.969259337 | E106: N/A | H106: 26.92330199 | I106: 12.26072108 | J106: N/A | M106: 32.43898264 | N106: 26.06471654 | O106: N/A | R106: 19.8314613 | S106: 59.72601104 | T106: N/A | W106: 3.516955052 | X106: 79.46704349 | Y106: N/A | AB106: 0.8869427754
B107: DHS12 | C107: 2012 | D107: 9.081254394 | E107: 47.76986437 | H107: 35.06329194 | I107: 17.04491063 | J107: 42.01925033 | M107: 29.19695301 | N107: 33.86738899 | O107: 47.42560907 | R107: 18.22954497 | S107: 71.69079535 | T107: 48.85033998 | W107: 3.102910496 | X107: 91.0756738 | Y107: 47.85951381 | AB107: 0.2471670807
B108: MICS16 | C108: 2016 | D108: 17.12426489 | E108: 57.30596866 | H108: 32.40547383 | I108: 28.36265203 | J108: 59.57213578 | M108: 22.36639934 | N108: 48.48995907 | O108: 62.05638377 | R108: 10.54764132 | S108: 79.53522625 | T108: 33.87344789 | W108: 1.140720166 | X108: 93.88101051 | Y108: 64.01984966 | AB108: 0
B109: DHS18 | C109: 2018 | D109: 13.29169865 | E109: 55.20546172 | H109: 32.0619868 | I109: 30.09033001 | J109: 48.85005956 | M109: 21.52125496 | N109: 46.84485777 | O109: 53.81112709 | R109: 10.92103076 | S109: 76.46748903 | T109: 41.20423609 | W109: 1.317258333 | X109: 94.11948484 | Y109: 60.88905844 | AB109: 0
B118: =CONCATENATE("National use of sanitation facilities, ",C99,"–",C100) -> National use of sanitation facilities, 2000–2020 | S118: Data points used for regression
A197: URBAN | D197: Poorest | I197: Poor | N197: Middle | S197: Rich | X197: Richest
D198: Improved | E198: Basic | F198: Limited | G198: Unimproved | H198: Open defecation | I198: Improved | J198: Basic | K198: Limited | L198: Unimproved | M198: Open defecation | N198: Improved | O198: Basic | P198: Limited | Q198: Unimproved | R198: Open defecation | S198: Improved | T198: Basic | U198: Limited | V198: Unimproved | W198: Open defecation | X198: Improved | Y198: Basic | Z198: Limited | AA198: Unimproved | AB198: Open defecation
A199: Forecast period: | C199: 2000 | D199: =IF((D201+H201)>100,D201*100/(D201+H201),D201) -> 27.71597129 | E199: =D199*AVERAGEIF(E205:E216,">0")/100 -> 12.89825561 | F199: =D199*(100-AVERAGEIF(E205:E216,">0"))/100 -> 14.81771569 | G199: =100-(E199+F199+H199) -> 66.06155332 | H199: =IF((D201+H201)>100,H201*100/(D201+H201),H201) -> 6.22247539 | I199: =IF((I201+M201)>100,I201*100/(I201+M201),I201) -> 60.19861895 | J199: =I199*AVERAGEIF(J205:J216,">0")/100 -> 19.81124184 | K199: =I199*(100-AVERAGEIF(J205:J216,">0"))/100 -> 40.38737711 | L199: =100-(J199+K199+M199) -> 39.32419477 | M199: =IF((I201+M201)>100,M201*100/(I201+M201),M201) -> 0.4771862781 | N199: =IF((N201+R201)>100,N201*100/(N201+R201),N201) -> 66.29239213 | O199: =N199*AVERAGEIF(O205:O216,">0")/100 -> 23.06592115 | P199: =N199*(100-AVERAGEIF(O205:O216,">0"))/100 -> 43.22647098 | Q199: =100-(O199+P199+R199) -> 32.91827875 | R199: =IF((N201+R201)>100,R201*100/(N201+R201),R201) -> 0.789329114 | S199: =IF((S201+W201)>100,S201*100/(S201+W201),S201) -> 77.21266143 | T199: =S199*AVERAGEIF(T205:T216,">0")/100 -> 35.53564197 | U199: =S199*(100-AVERAGEIF(T205:T216,">0"))/100 -> 41.67701946 | V199: =100-(T199+U199+W199) -> 22.17039528 | W199: =IF((S201+W201)>100,W201*100/(S201+W201),W201) -> 0.6169432899 | X199: =IF((X201+AB201)>100,X201*100/(X201+AB201),X201) -> 79.40604574 | Y199: =X199*AVERAGEIF(Y205:Y216,">0")/100 -> 64.12258542 | Z199: =X199*(100-AVERAGEIF(Y205:Y216,">0"))/100 -> 15.28346032 | AA199: =100-(Y199+Z199+AB199) -> 19.7551419 | AB199: =IF((X201+AB201)>100,AB201*100/(X201+AB201),AB201) -> 0.8388123664
C200: 2020 | D200: =IF((D202+H202)>100,D202*100/(D202+H202),D202) -> 79.65597122 | E200: =D200*AVERAGEIF(E205:E216,">0")/100 -> 37.06971213 | F200: =D200*(100-AVERAGEIF(E205:E216,">0"))/100 -> 42.58625908 | G200: =100-(E200+F200+H200) -> 18.87948977 | H200: =IF((D202+H202)>100,H202*100/(D202+H202),H202) -> 1.464539012 | I200: =IF((I202+M202)>100,I202*100/(I202+M202),I202) -> 94.63102136 | J200: =I200*AVERAGEIF(J205:J216,">0")/100 -> 31.14287474 | K200: =I200*(100-AVERAGEIF(J205:J216,">0"))/100 -> 63.48814662 | L200: =100-(J200+K200+M200) -> 4.940768368 | M200: =IF((I202+M202)>100,M202*100/(I202+M202),M202) -> 0.4282102723 | N200: =IF((N202+R202)>100,N202*100/(N202+R202),N202) -> 99.34729107 | O200: =N200*AVERAGEIF(O205:O216,">0")/100 -> 34.5671156 | P200: =N200*(100-AVERAGEIF(O205:O216,">0"))/100 -> 64.78017547 | Q200: =100-(O200+P200+R200) -> 0.6527089258 | R200: =IF((N202+R202)>100,R202*100/(N202+R202),R202) -> 0 | S200: =IF((S202+W202)>100,S202*100/(S202+W202),S202) -> 98.3198088 | T200: =S200*AVERAGEIF(T205:T216,">0")/100 -> 45.24980048 | U200: =S200*(100-AVERAGEIF(T205:T216,">0"))/100 -> 53.07000833 | V200: =100-(T200+U200+W200) -> 1.657921711 | W200: =IF((S202+W202)>100,W202*100/(S202+W202),W202) -> 0.02226948478 | X200: =IF((X202+AB202)>100,X202*100/(X202+AB202),X202) -> 100 | Y200: =X200*AVERAGEIF(Y205:Y216,">0")/100 -> 80.75277496 | Z200: =X200*(100-AVERAGEIF(Y205:Y216,">0"))/100 -> 19.24722504 | AA200: =100-(Y200+Z200+AB200) -> 0 | AB200: =IF((X202+AB202)>100,AB202*100/(X202+AB202),AB202) -> 0
A201: Regression period: | C201: =MinRegYear(C199,C205:C216) -> 2003 | D201: =IF(MAX(C205:C216)-MIN(C205:C216)<5,AVERAGEIF(C205:C216,">0",D205:D216), IF(FORECAST($C201,D$205:D$216,$C$205:$C$216)<0,0, IF(FORECAST($C201,D$205:D$216,$C$205:$C$216)>100,100, FORECAST($C201,D$205:D$216,$C$205:$C$216)))) -> 27.71597129 | H201: =IF(MAX(C205:C216)-MIN(C205:C216)<5,AVERAGEIF(C205:C216,">0",H205:H216), IF(FORECAST($C201,H$205:H$216,$C$205:$C$216)<0,0, IF(FORECAST($C201,H$205:H$216,$C$205:$C$216)>100,100, FORECAST($C201,H$205:H$216,$C$205:$C$216)))) -> 6.22247539 | I201: =IF(MAX(C205:C216)-MIN(C205:C216)<5,AVERAGEIF(C205:C216,">0",I205:I216), IF(FORECAST($C201,I$205:I$216,$C$205:$C$216)<0,0, IF(FORECAST($C201,I$205:I$216,$C$205:$C$216)>100,100, FORECAST($C201,I$205:I$216,$C$205:$C$216)))) -> 60.19861895 | M201: =IF(MAX(C205:C216)-MIN(C205:C216)<5,AVERAGEIF(C205:C216,">0",M205:M216), IF(FORECAST($C201,M$205:M$216,$C$205:$C$216)<0,0, IF(FORECAST($C201,M$205:M$216,$C$205:$C$216)>100,100, FORECAST($C201,M$205:M$216,$C$205:$C$216)))) -> 0.4771862781 | N201: =IF(MAX(C205:C216)-MIN(C205:C216)<5,AVERAGEIF(C205:C216,">0",N205:N216), IF(FORECAST($C201,N$205:N$216,$C$205:$C$216)<0,0, IF(FORECAST($C201,N$205:N$216,$C$205:$C$216)>100,100, FORECAST($C201,N$205:N$216,$C$205:$C$216)))) -> 66.29239213 | R201: =IF(MAX(C205:C216)-MIN(C205:C216)<5,AVERAGEIF(C205:C216,">0",R205:R216), IF(FORECAST($C201,R$205:R$216,$C$205:$C$216)<0,0, IF(FORECAST($C201,R$205:R$216,$C$205:$C$216)>100,100, FORECAST($C201,R$205:R$216,$C$205:$C$216)))) -> 0.789329114 | S201: =IF(MAX(C205:C216)-MIN(C205:C216)<5,AVERAGEIF(C205:C216,">0",S205:S216), IF(FORECAST($C201,S$205:S$216,$C$205:$C$216)<0,0, IF(FORECAST($C201,S$205:S$216,$C$205:$C$216)>100,100, FORECAST($C201,S$205:S$216,$C$205:$C$216)))) -> 77.21266143 | W201: =IF(MAX(C205:C216)-MIN(C205:C216)<5,AVERAGEIF(C205:C216,">0",W205:W216), IF(FORECAST($C201,W$205:W$216,$C$205:$C$216)<0,0, IF(FORECAST($C201,W$205:W$216,$C$205:$C$216)>100,100, FORECAST($C201,W$205:W$216,$C$205:$C$216)))) -> 0.6169432899 | X201: =IF(MAX(C205:C216)-MIN(C205:C216)<5,AVERAGEIF(C205:C216,">0",X205:X216), IF(FORECAST($C201,X$205:X$216,$C$205:$C$216)<0,0, IF(FORECAST($C201,X$205:X$216,$C$205:$C$216)>100,100, FORECAST($C201,X$205:X$216,$C$205:$C$216)))) -> 79.40604574 | AB201: =IF(MAX(C205:C216)-MIN(C205:C216)<5,AVERAGEIF(C205:C216,">0",AB205:AB216), IF(FORECAST($C201,AB$205:AB$216,$C$205:$C$216)<0,0, IF(FORECAST($C201,AB$205:AB$216,$C$205:$C$216)>100,100, FORECAST($C201,AB$205:AB$216,$C$205:$C$216)))) -> 0.8388123664
C202: =MaxRegYear(C200,C205:C216) -> 2020 | D202: =IF(MAX(C205:C216)-MIN(C205:C216)<5,AVERAGEIF(C205:C216,">0",D205:D216), IF(FORECAST($C202,D$205:D$216,$C$205:$C$216)<0,0, IF(FORECAST($C202,D$205:D$216,$C$205:$C$216)>100,100, FORECAST($C202,D$205:D$216,$C$205:$C$216)))) -> 79.65597122 | H202: =IF(MAX(C205:C216)-MIN(C205:C216)<5,AVERAGEIF(C205:C216,">0",H205:H216), IF(FORECAST($C202,H$205:H$216,$C$205:$C$216)<0,0, IF(FORECAST($C202,H$205:H$216,$C$205:$C$216)>100,100, FORECAST($C202,H$205:H$216,$C$205:$C$216)))) -> 1.464539012 | I202: =IF(MAX(C205:C216)-MIN(C205:C216)<5,AVERAGEIF(C205:C216,">0",I205:I216), IF(FORECAST($C202,I$205:I$216,$C$205:$C$216)<0,0, IF(FORECAST($C202,I$205:I$216,$C$205:$C$216)>100,100, FORECAST($C202,I$205:I$216,$C$205:$C$216)))) -> 94.63102136 | M202: =IF(MAX(C205:C216)-MIN(C205:C216)<5,AVERAGEIF(C205:C216,">0",M205:M216), IF(FORECAST($C202,M$205:M$216,$C$205:$C$216)<0,0, IF(FORECAST($C202,M$205:M$216,$C$205:$C$216)>100,100, FORECAST($C202,M$205:M$216,$C$205:$C$216)))) -> 0.4282102723 | N202: =IF(MAX(C205:C216)-MIN(C205:C216)<5,AVERAGEIF(C205:C216,">0",N205:N216), IF(FORECAST($C202,N$205:N$216,$C$205:$C$216)<0,0, IF(FORECAST($C202,N$205:N$216,$C$205:$C$216)>100,100, FORECAST($C202,N$205:N$216,$C$205:$C$216)))) -> 99.34729107 | R202: =IF(MAX(C205:C216)-MIN(C205:C216)<5,AVERAGEIF(C205:C216,">0",R205:R216), IF(FORECAST($C202,R$205:R$216,$C$205:$C$216)<0,0, IF(FORECAST($C202,R$205:R$216,$C$205:$C$216)>100,100, FORECAST($C202,R$205:R$216,$C$205:$C$216)))) -> 0 | S202: =IF(MAX(C205:C216)-MIN(C205:C216)<5,AVERAGEIF(C205:C216,">0",S205:S216), IF(FORECAST($C202,S$205:S$216,$C$205:$C$216)<0,0, IF(FORECAST($C202,S$205:S$216,$C$205:$C$216)>100,100, FORECAST($C202,S$205:S$216,$C$205:$C$216)))) -> 98.3198088 | W202: =IF(MAX(C205:C216)-MIN(C205:C216)<5,AVERAGEIF(C205:C216,">0",W205:W216), IF(FORECAST($C202,W$205:W$216,$C$205:$C$216)<0,0, IF(FORECAST($C202,W$205:W$216,$C$205:$C$216)>100,100, FORECAST($C202,W$205:W$216,$C$205:$C$216)))) -> 0.02226948478 | X202: =IF(MAX(C205:C216)-MIN(C205:C216)<5,AVERAGEIF(C205:C216,">0",X205:X216), IF(FORECAST($C202,X$205:X$216,$C$205:$C$216)<0,0, IF(FORECAST($C202,X$205:X$216,$C$205:$C$216)>100,100, FORECAST($C202,X$205:X$216,$C$205:$C$216)))) -> 100 | AB202: =IF(MAX(C205:C216)-MIN(C205:C216)<5,AVERAGEIF(C205:C216,">0",AB205:AB216), IF(FORECAST($C202,AB$205:AB$216,$C$205:$C$216)<0,0, IF(FORECAST($C202,AB$205:AB$216,$C$205:$C$216)>100,100, FORECAST($C202,AB$205:AB$216,$C$205:$C$216)))) -> 0
B204: Survey | C204: Year | D204: Improved | E204: Not shared | H204: Open defecation | I204: Improved | J204: Not shared | M204: Open defecation | N204: Improved | O204: Not shared | R204: Open defecation | S204: Improved | T204: Not shared | W204: Open defecation | X204: Improved | Y204: Not shared | AB204: Open defecation
B205: DHS05 | C205: 2005 | D205: =IF(ISERROR(INDIRECT(CONCATENATE($B205,"!H122"))),"",INDIRECT(CONCATENATE($B205,"!H122"))) -> 26.15829425 | E205: =IF(ISERROR(INDIRECT(CONCATENATE($B205,"!H129"))),"",INDIRECT(CONCATENATE($B205,"!H129"))) -> N/A | H205: =IF(ISERROR(INDIRECT(CONCATENATE($B205,"!H127"))),"",INDIRECT(CONCATENATE($B205,"!H127"))) -> 8.954740959 | I205: =IF(ISERROR(INDIRECT(CONCATENATE($B205,"!I122"))),"",INDIRECT(CONCATENATE($B205,"!I122"))) -> 53.81199841 | J205: =IF(ISERROR(INDIRECT(CONCATENATE($B205,"!I129"))),"",INDIRECT(CONCATENATE($B205,"!I129"))) -> N/A | M205: =IF(ISERROR(INDIRECT(CONCATENATE($B205,"!I127"))),"",INDIRECT(CONCATENATE($B205,"!I127"))) -> 0.325006732 | N205: =IF(ISERROR(INDIRECT(CONCATENATE($B205,"!J122"))),"",INDIRECT(CONCATENATE($B205,"!J122"))) -> 60.39295474 | O205: =IF(ISERROR(INDIRECT(CONCATENATE($B205,"!J129"))),"",INDIRECT(CONCATENATE($B205,"!J129"))) -> N/A | R205: =IF(ISERROR(INDIRECT(CONCATENATE($B205,"!J127"))),"",INDIRECT(CONCATENATE($B205,"!J127"))) -> 1.009987976 | S205: =IF(ISERROR(INDIRECT(CONCATENATE($B205,"!K122"))),"",INDIRECT(CONCATENATE($B205,"!K122"))) -> 79.41437624 | T205: =IF(ISERROR(INDIRECT(CONCATENATE($B205,"!K129"))),"",INDIRECT(CONCATENATE($B205,"!K129"))) -> N/A | W205: =IF(ISERROR(INDIRECT(CONCATENATE($B205,"!K127"))),"",INDIRECT(CONCATENATE($B205,"!K127"))) -> 0.1227648747 | X205: =IF(ISERROR(INDIRECT(CONCATENATE($B205,"!L122"))),"",INDIRECT(CONCATENATE($B205,"!L122"))) -> 84.03031209 | Y205: =IF(ISERROR(INDIRECT(CONCATENATE($B205,"!L129"))),"",INDIRECT(CONCATENATE($B205,"!L129"))) -> N/A | AB205: =IF(ISERROR(INDIRECT(CONCATENATE($B205,"!L2127"))),"",INDIRECT(CONCATENATE($B205,"!L127"))) -> 0.6279892787
B206: QUIBB07 | C206: 2007 | D206: 42.26919075 | E206: N/A | H206: 3.017529764 | I206: 74.68221458 | J206: N/A | M206: 0.4486768808 | N206: 82.87854307 | O206: N/A | R206: 0.2685120101 | S206: 80.61851456 | T206: N/A | W206: 0.830492032 | X206: 80.61851456 | Y206: N/A | AB206: 0.830492032
B207: DHS12 | C207: 2012 | D207: 66.88971661 | E207: 48.80217028 | H207: 0.7175010312 | I207: 89.74168668 | J207: 38.95807391 | M207: 0.7471771948 | N207: 89.38975087 | O207: 35.03258172 | R207: 0.130198891 | S207: 91.54368117 | T207: 35.52940816 | W207: 0.6272846239 | X207: 92.93124645 | Y207: 70.87555563 | AB207: 0
B208: MICS16 | C208: 2016 | D208: 69.42398755 | E208: 44.84452556 | H208: 1.613977428 | I208: 85.33033102 | J208: 25.56348073 | M208: 0.597111649 | N208: 89.95326538 | O208: 33.1596249 | R208: 0 | S208: 94.29603151 | T208: 51.68867982 | W208: 0 | X208: 98.63407796 | Y208: 85.29758873 | AB208: 0
B209: DHS18 | C209: 2018 | D209: 65.21631416 | E209: 45.96510564 | H209: 4.773847518 | I209: 84.5205878 | J209: 34.20782911 | M209: 0.1440784487 | N209: 92.45689688 | O209: 36.19045514 | R209: 0.1317061083 | S209: 93.57937055 | T209: 50.85114047 | W209: 0 | X209: 96.1599123 | Y209: 86.08518052 | AB209: 0
B218: =CONCATENATE("Urban use of sanitation facilities, ",C199,"–",C200) -> Urban use of sanitation facilities, 2000–2020 | S218: Data points used for regression
A297: RURAL | D297: Poorest | I297: Poor | N297: Middle | S297: Rich | X297: Richest
D298: Improved | E298: Basic | F298: Limited | G298: Unimproved | H298: Open defecation | I298: Improved | J298: Basic | K298: Limited | L298: Unimproved | M298: Open defecation | N298: Improved | O298: Basic | P298: Limited | Q298: Unimproved | R298: Open defecation | S298: Improved | T298: Basic | U298: Limited | V298: Unimproved | W298: Open defecation | X298: Improved | Y298: Basic | Z298: Limited | AA298: Unimproved | AB298: Open defecation
A299: Forecast period: | C299: 2000 | D299: =IF((D301+H301)>100,D301*100/(D301+H301),D301) -> 5.368094691 | E299: =D299*AVERAGEIF(E305:E316,">0")/100 -> 3.015906051 | F299: =D299*(100-AVERAGEIF(E305:E316,">0"))/100 -> 2.352188639 | G299: =100-(E299+F299+H299) -> 40.95470293 | H299: =IF((D301+H301)>100,H301*100/(D301+H301),H301) -> 53.67720238 | I299: =IF((I301+M301)>100,I301*100/(I301+M301),I301) -> 7.873293696 | J299: =I299*AVERAGEIF(J305:J316,">0")/100 -> 3.904816587 | K299: =I299*(100-AVERAGEIF(J305:J316,">0"))/100 -> 3.968477109 | L299: =100-(J299+K299+M299) -> 48.4157066 | M299: =IF((I301+M301)>100,M301*100/(I301+M301),M301) -> 43.71099971 | N299: =IF((N301+R301)>100,N301*100/(N301+R301),N301) -> 12.59254511 | O299: =N299*AVERAGEIF(O305:O316,">0")/100 -> 6.31691806 | P299: =N299*(100-AVERAGEIF(O305:O316,">0"))/100 -> 6.27562705 | Q299: =100-(O299+P299+R299) -> 63.70544537 | R299: =IF((N301+R301)>100,R301*100/(N301+R301),R301) -> 23.70200952 | S299: =IF((S301+W301)>100,S301*100/(S301+W301),S301) -> 17.36586209 | T299: =S299*AVERAGEIF(T305:T316,">0")/100 -> 9.526772345 | U299: =S299*(100-AVERAGEIF(T305:T316,">0"))/100 -> 7.839089741 | V299: =100-(T299+U299+W299) -> 51.34697347 | W299: =IF((S301+W301)>100,W301*100/(S301+W301),W301) -> 31.28716444 | X299: =IF((X301+AB301)>100,X301*100/(X301+AB301),X301) -> 29.50712533 | Y299: =X299*AVERAGEIF(Y305:Y316,">0")/100 -> 17.2762562 | Z299: =X299*(100-AVERAGEIF(Y305:Y316,">0"))/100 -> 12.23086913 | AA299: =100-(Y299+Z299+AB299) -> 57.17576361 | AB299: =IF((X301+AB301)>100,AB301*100/(X301+AB301),AB301) -> 13.31711106
C300: 2020 | D300: =IF((D302+H302)>100,D302*100/(D302+H302),D302) -> 14.73984309 | E300: =D300*AVERAGEIF(E305:E316,">0")/100 -> 8.281147135 | F300: =D300*(100-AVERAGEIF(E305:E316,">0"))/100 -> 6.458695954 | G300: =100-(E300+F300+H300) -> 57.01121718 | H300: =IF((D302+H302)>100,H302*100/(D302+H302),H302) -> 28.24893973 | I300: =IF((I302+M302)>100,I302*100/(I302+M302),I302) -> 21.47548506 | J300: =I300*AVERAGEIF(J305:J316,">0")/100 -> 10.65092114 | K300: =I300*(100-AVERAGEIF(J305:J316,">0"))/100 -> 10.82456392 | L300: =100-(J300+K300+M300) -> 55.06587425 | M300: =IF((I302+M302)>100,M302*100/(I302+M302),M302) -> 23.45864069 | N300: =IF((N302+R302)>100,N302*100/(N302+R302),N302) -> 33.0748764 | O300: =N300*AVERAGEIF(O305:O316,">0")/100 -> 16.59166453 | P300: =N300*(100-AVERAGEIF(O305:O316,">0"))/100 -> 16.48321187 | Q300: =100-(O300+P300+R300) -> 45.57445838 | R300: =IF((N302+R302)>100,R302*100/(N302+R302),R302) -> 21.35066523 | S300: =IF((S302+W302)>100,S302*100/(S302+W302),S302) -> 45.70234597 | T300: =S300*AVERAGEIF(T305:T316,">0")/100 -> 25.07193962 | U300: =S300*(100-AVERAGEIF(T305:T316,">0"))/100 -> 20.63040635 | V300: =100-(T300+U300+W300) -> 44.93554869 | W300: =IF((S302+W302)>100,W302*100/(S302+W302),W302) -> 9.362105346 | X300: =IF((X302+AB302)>100,X302*100/(X302+AB302),X302) -> 68.30948555 | Y300: =X300*AVERAGEIF(Y305:Y316,">0")/100 -> 39.99482023 | Z300: =X300*(100-AVERAGEIF(Y305:Y316,">0"))/100 -> 28.31466531 | AA300: =100-(Y300+Z300+AB300) -> 28.07408074 | AB300: =IF((X302+AB302)>100,AB302*100/(X302+AB302),AB302) -> 3.616433714
A301: Regression period: | C301: =MinRegYear(C299,C305:C316) -> 2003 | D301: =IF(MAX(C305:C316)-MIN(C305:C316)<5,AVERAGEIF(C305:C316,">0",D305:D316), IF(FORECAST($C301,D$305:D$316,$C$305:$C$316)<0,0, IF(FORECAST($C301,D$305:D$316,$C$305:$C$316)>100,100, FORECAST($C301,D$305:D$316,$C$305:$C$316)))) -> 5.368094691 | H301: =IF(MAX(C305:C316)-MIN(C305:C316)<5,AVERAGEIF(C305:C316,">0",H305:H316), IF(FORECAST($C301,H$305:H$316,$C$305:$C$316)<0,0, IF(FORECAST($C301,H$305:H$316,$C$305:$C$316)>100,100, FORECAST($C301,H$305:H$316,$C$305:$C$316)))) -> 53.67720238 | I301: =IF(MAX(C305:C316)-MIN(C305:C316)<5,AVERAGEIF(C305:C316,">0",I305:I316), IF(FORECAST($C301,I$305:I$316,$C$305:$C$316)<0,0, IF(FORECAST($C301,I$305:I$316,$C$305:$C$316)>100,100, FORECAST($C301,I$305:I$316,$C$305:$C$316)))) -> 7.873293696 | M301: =IF(MAX(C305:C316)-MIN(C305:C316)<5,AVERAGEIF(C305:C316,">0",M305:M316), IF(FORECAST($C301,M$305:M$316,$C$305:$C$316)<0,0, IF(FORECAST($C301,M$305:M$316,$C$305:$C$316)>100,100, FORECAST($C301,M$305:M$316,$C$305:$C$316)))) -> 43.71099971 | N301: =IF(MAX(C305:C316)-MIN(C305:C316)<5,AVERAGEIF(C305:C316,">0",N305:N316), IF(FORECAST($C301,N$305:N$316,$C$305:$C$316)<0,0, IF(FORECAST($C301,N$305:N$316,$C$305:$C$316)>100,100, FORECAST($C301,N$305:N$316,$C$305:$C$316)))) -> 12.59254511 | R301: =IF(MAX(C305:C316)-MIN(C305:C316)<5,AVERAGEIF(C305:C316,">0",R305:R316), IF(FORECAST($C301,R$305:R$316,$C$305:$C$316)<0,0, IF(FORECAST($C301,R$305:R$316,$C$305:$C$316)>100,100, FORECAST($C301,R$305:R$316,$C$305:$C$316)))) -> 23.70200952 | S301: =IF(MAX(C305:C316)-MIN(C305:C316)<5,AVERAGEIF(C305:C316,">0",S305:S316), IF(FORECAST($C301,S$305:S$316,$C$305:$C$316)<0,0, IF(FORECAST($C301,S$305:S$316,$C$305:$C$316)>100,100, FORECAST($C301,S$305:S$316,$C$305:$C$316)))) -> 17.36586209 | W301: =IF(MAX(C305:C316)-MIN(C305:C316)<5,AVERAGEIF(C305:C316,">0",W305:W316), IF(FORECAST($C301,W$305:W$316,$C$305:$C$316)<0,0, IF(FORECAST($C301,W$305:W$316,$C$305:$C$316)>100,100, FORECAST($C301,W$305:W$316,$C$305:$C$316)))) -> 31.28716444 | X301: =IF(MAX(C305:C316)-MIN(C305:C316)<5,AVERAGEIF(C305:C316,">0",X305:X316), IF(FORECAST($C301,X$305:X$316,$C$305:$C$316)<0,0, IF(FORECAST($C301,X$305:X$316,$C$305:$C$316)>100,100, FORECAST($C301,X$305:X$316,$C$305:$C$316)))) -> 29.50712533 | AB301: =IF(MAX(C305:C316)-MIN(C305:C316)<5,AVERAGEIF(C305:C316,">0",AB305:AB316), IF(FORECAST($C301,AB$305:AB$316,$C$305:$C$316)<0,0, IF(FORECAST($C301,AB$305:AB$316,$C$305:$C$316)>100,100, FORECAST($C301,AB$305:AB$316,$C$305:$C$316)))) -> 13.31711106
C302: =MaxRegYear(C300,C305:C316) -> 2020 | D302: =IF(MAX(C305:C316)-MIN(C305:C316)<5,AVERAGEIF(C305:C316,">0",D305:D316), IF(FORECAST($C302,D$305:D$316,$C$305:$C$316)<0,0, IF(FORECAST($C302,D$305:D$316,$C$305:$C$316)>100,100, FORECAST($C302,D$305:D$316,$C$305:$C$316)))) -> 14.73984309 | H302: =IF(MAX(C305:C316)-MIN(C305:C316)<5,AVERAGEIF(C305:C316,">0",H305:H316), IF(FORECAST($C302,H$305:H$316,$C$305:$C$316)<0,0, IF(FORECAST($C302,H$305:H$316,$C$305:$C$316)>100,100, FORECAST($C302,H$305:H$316,$C$305:$C$316)))) -> 28.24893973 | I302: =IF(MAX(C305:C316)-MIN(C305:C316)<5,AVERAGEIF(C305:C316,">0",I305:I316), IF(FORECAST($C302,I$305:I$316,$C$305:$C$316)<0,0, IF(FORECAST($C302,I$305:I$316,$C$305:$C$316)>100,100, FORECAST($C302,I$305:I$316,$C$305:$C$316)))) -> 21.47548506 | M302: =IF(MAX(C305:C316)-MIN(C305:C316)<5,AVERAGEIF(C305:C316,">0",M305:M316), IF(FORECAST($C302,M$305:M$316,$C$305:$C$316)<0,0, IF(FORECAST($C302,M$305:M$316,$C$305:$C$316)>100,100, FORECAST($C302,M$305:M$316,$C$305:$C$316)))) -> 23.45864069 | N302: =IF(MAX(C305:C316)-MIN(C305:C316)<5,AVERAGEIF(C305:C316,">0",N305:N316), IF(FORECAST($C302,N$305:N$316,$C$305:$C$316)<0,0, IF(FORECAST($C302,N$305:N$316,$C$305:$C$316)>100,100, FORECAST($C302,N$305:N$316,$C$305:$C$316)))) -> 33.0748764 | R302: =IF(MAX(C305:C316)-MIN(C305:C316)<5,AVERAGEIF(C305:C316,">0",R305:R316), IF(FORECAST($C302,R$305:R$316,$C$305:$C$316)<0,0, IF(FORECAST($C302,R$305:R$316,$C$305:$C$316)>100,100, FORECAST($C302,R$305:R$316,$C$305:$C$316)))) -> 21.35066523 | S302: =IF(MAX(C305:C316)-MIN(C305:C316)<5,AVERAGEIF(C305:C316,">0",S305:S316), IF(FORECAST($C302,S$305:S$316,$C$305:$C$316)<0,0, IF(FORECAST($C302,S$305:S$316,$C$305:$C$316)>100,100, FORECAST($C302,S$305:S$316,$C$305:$C$316)))) -> 45.70234597 | W302: =IF(MAX(C305:C316)-MIN(C305:C316)<5,AVERAGEIF(C305:C316,">0",W305:W316), IF(FORECAST($C302,W$305:W$316,$C$305:$C$316)<0,0, IF(FORECAST($C302,W$305:W$316,$C$305:$C$316)>100,100, FORECAST($C302,W$305:W$316,$C$305:$C$316)))) -> 9.362105346 | X302: =IF(MAX(C305:C316)-MIN(C305:C316)<5,AVERAGEIF(C305:C316,">0",X305:X316), IF(FORECAST($C302,X$305:X$316,$C$305:$C$316)<0,0, IF(FORECAST($C302,X$305:X$316,$C$305:$C$316)>100,100, FORECAST($C302,X$305:X$316,$C$305:$C$316)))) -> 68.30948555 | AB302: =IF(MAX(C305:C316)-MIN(C305:C316)<5,AVERAGEIF(C305:C316,">0",AB305:AB316), IF(FORECAST($C302,AB$305:AB$316,$C$305:$C$316)<0,0, IF(FORECAST($C302,AB$305:AB$316,$C$305:$C$316)>100,100, FORECAST($C302,AB$305:AB$316,$C$305:$C$316)))) -> 3.616433714
B304: Survey | C304: Year | D304: Improved | E304: Not shared | H304: Open defecation | I304: Improved | J304: Not shared | M304: Open defecation | N304: Improved | O304: Not shared | R304: Open defecation | S304: Improved | T304: Not shared | W304: Open defecation | X304: Improved | Y304: Not shared | AB304: Open defecation
B305: DHS05 | C305: 2005 | D305: =IF(ISERROR(INDIRECT(CONCATENATE($B305,"!M122"))),"",INDIRECT(CONCATENATE($B305,"!M122"))) -> 6.785388678 | E305: =IF(ISERROR(INDIRECT(CONCATENATE($B305,"!M129"))),"",INDIRECT(CONCATENATE($B305,"!M129"))) -> N/A | H305: =IF(ISERROR(INDIRECT(CONCATENATE($B305,"!M127"))),"",INDIRECT(CONCATENATE($B305,"!M127"))) -> 66.32211755 | I305: =IF(ISERROR(INDIRECT(CONCATENATE($B305,"!N122"))),"",INDIRECT(CONCATENATE($B305,"!N122"))) -> 11.06940471 | J305: =IF(ISERROR(INDIRECT(CONCATENATE($B305,"!N129"))),"",INDIRECT(CONCATENATE($B305,"!N129"))) -> N/A | M305: =IF(ISERROR(INDIRECT(CONCATENATE($B305,"!N127"))),"",INDIRECT(CONCATENATE($B305,"!N127"))) -> 44.62602173 | N305: =IF(ISERROR(INDIRECT(CONCATENATE($B305,"!O122"))),"",INDIRECT(CONCATENATE($B305,"!O122"))) -> 17.00473496 | O305: =IF(ISERROR(INDIRECT(CONCATENATE($B305,"!O129"))),"",INDIRECT(CONCATENATE($B305,"!O129"))) -> N/A | R305: =IF(ISERROR(INDIRECT(CONCATENATE($B305,"!O127"))),"",INDIRECT(CONCATENATE($B305,"!O127"))) -> 21.92021819 | S305: =IF(ISERROR(INDIRECT(CONCATENATE($B305,"!P122"))),"",INDIRECT(CONCATENATE($B305,"!P122"))) -> 15.02105476 | T305: =IF(ISERROR(INDIRECT(CONCATENATE($B305,"!P129"))),"",INDIRECT(CONCATENATE($B305,"!P129"))) -> N/A | W305: =IF(ISERROR(INDIRECT(CONCATENATE($B305,"!P127"))),"",INDIRECT(CONCATENATE($B305,"!P127"))) -> 35.04498537 | X305: =IF(ISERROR(INDIRECT(CONCATENATE($B305,"!Q122"))),"",INDIRECT(CONCATENATE($B305,"!Q122"))) -> 31.2738685 | Y305: =IF(ISERROR(INDIRECT(CONCATENATE($B305,"!Q129"))),"",INDIRECT(CONCATENATE($B305,"!Q129"))) -> N/A | AB305: =IF(ISERROR(INDIRECT(CONCATENATE($B305,"!Q2127"))),"",INDIRECT(CONCATENATE($B305,"!Q127"))) -> 17.14644489
B306: QUIBB07 | C306: 2007 | D306: 8.094933524 | E306: N/A | H306: 29.85442818 | I306: 10.46593367 | J306: N/A | M306: 34.46776862 | N306: 16.97537996 | O306: N/A | R306: 24.29324561 | S306: 32.23089881 | T306: N/A | W306: 17.94226007 | X306: 40.35228372 | Y306: N/A | AB306: 4.672866028
B307: DHS12 | C307: 2012 | D307: 7.352788043 | E307: 46.59791066 | H307: 38.82418288 | I307: 12.26021829 | J307: 46.59159021 | M307: 33.80606417 | N307: 19.65002482 | O307: 42.02456724 | R307: 23.85647254 | S307: 29.96202068 | T307: 47.36012357 | W307: 20.81368259 | X307: 53.14756241 | Y307: 57.48341347 | AB307: 8.955921685
B308: MICS16 | C308: 2016 | D308: 16.54993895 | E308: 61.38036191 | H308: 34.88605867 | I308: 19.68794625 | J308: 52.65783681 | M308: 28.9672914 | N308: 28.99850651 | O308: 60.49968669 | R308: 21.19488777 | S308: 38.07483137 | T308: 64.32725661 | W308: 14.95054614 | X308: 58.64049569 | Y308: 62.77701704 | AB308: 6.256251113
B309: DHS18 | C309: 2018 | D309: 11.76243491 | E309: 60.56790024 | H309: 34.18067791 | I309: 20.28850842 | J309: 49.53772881 | M309: 25.46129744 | N309: 32.14232902 | O309: 47.96759673 | R309: 21.29770556 | S309: 43.21514051 | T309: 52.89020827 | W309: 12.22684563 | X309: 62.26856276 | Y309: 55.387885 | AB309: 5.017064196
B318: =CONCATENATE("Rural use of sanitation facilities, ",C299,"–",C300) -> Rural use of sanitation facilities, 2000–2020 | S318: Data points used for regression

Sheet Hygiene
B4: Access to hygiene facilities by wealth quintile (%)
B5: =IF(ISERROR(INDIRECT(CONCATENATE($E$32,"!A2"))),"",INDIRECT(CONCATENATE($E$32,"!A2"))) -> 
B7: =CONCATENATE("National ",IF(ISERROR(INDIRECT(CONCATENATE($E$32,"!A2"))),"",INDIRECT(CONCATENATE($E$32,"!A210")))) -> National | K7: =CONCATENATE("Urban ",IF(ISERROR(INDIRECT(CONCATENATE($E$32,"!A2"))),"",INDIRECT(CONCATENATE($E$32,"!A210")))) -> Urban | S7: =CONCATENATE("Rural ",IF(ISERROR(INDIRECT(CONCATENATE($E$32,"!A2"))),"",INDIRECT(CONCATENATE($E$32,"!A210")))) -> Rural
E32: =INDEX(B88:B100,A88) -> 0 | G32: =IF(ISERROR(INDIRECT(CONCATENATE($E$32,"!A2"))),"",INDIRECT(CONCATENATE($E$32,"!A2"))) ->  | K32: Poorest | N32: Poor | Q32: Middle | T32: Rich | W32: Richest
K33: Basic | L33: Limited | M33: No facility | N33: Basic | O33: Limited | P33: No facility | Q33: Basic | R33: Limited | S33: No facility | T33: Basic | U33: Limited | V33: No facility | W33: Basic | X33: Limited | Y33: No facility
B34: >>> Select Survey : | G34: NATIONAL | J34: =IF(ISERROR(INDIRECT(CONCATENATE(#REF!,"!A2"))),"",INDIRECT(CONCATENATE(#REF!,"!A210"))) ->  | K34: =IF(ISERROR(INDIRECT(CONCATENATE($E$32,"!C222"))),"",INDIRECT(CONCATENATE($E$32,"!C222"))) ->  | L34: =IF(ISERROR(INDIRECT(CONCATENATE($E$32,"!C223"))),"",INDIRECT(CONCATENATE($E$32,"!C223"))) ->  | M34: =IF(ISERROR(INDIRECT(CONCATENATE($E$32,"!C224"))),"",INDIRECT(CONCATENATE($E$32,"!C224"))) ->  | N34: =IF(ISERROR(INDIRECT(CONCATENATE($E$32,"!D222"))),"",INDIRECT(CONCATENATE($E$32,"!D222"))) ->  | O34: =IF(ISERROR(INDIRECT(CONCATENATE($E$32,"!D223"))),"",INDIRECT(CONCATENATE($E$32,"!D223"))) ->  | P34: =IF(ISERROR(INDIRECT(CONCATENATE($E$32,"!D224"))),"",INDIRECT(CONCATENATE($E$32,"!D224"))) ->  | Q34: =IF(ISERROR(INDIRECT(CONCATENATE($E$32,"!E222"))),"",INDIRECT(CONCATENATE($E$32,"!E222"))) ->  | R34: =IF(ISERROR(INDIRECT(CONCATENATE($E$32,"!E223"))),"",INDIRECT(CONCATENATE($E$32,"!E223"))) ->  | S34: =IF(ISERROR(INDIRECT(CONCATENATE($E$32,"!E224"))),"",INDIRECT(CONCATENATE($E$32,"!E224"))) ->  | T34: =IF(ISERROR(INDIRECT(CONCATENATE($E$32,"!F222"))),"",INDIRECT(CONCATENATE($E$32,"!F222"))) ->  | U34: =IF(ISERROR(INDIRECT(CONCATENATE($E$32,"!F223"))),"",INDIRECT(CONCATENATE($E$32,"!F223"))) ->  | V34: =IF(ISERROR(INDIRECT(CONCATENATE($E$32,"!F224"))),"",INDIRECT(CONCATENATE($E$32,"!F224"))) ->  | W34: =IF(ISERROR(INDIRECT(CONCATENATE($E$32,"!G222"))),"",INDIRECT(CONCATENATE($E$32,"!G222"))) ->  | X34: =IF(ISERROR(INDIRECT(CONCATENATE($E$32,"!G223"))),"",INDIRECT(CONCATENATE($E$32,"!G223"))) ->  | Y34: =IF(ISERROR(INDIRECT(CONCATENATE($E$32,"!G224"))),"",INDIRECT(CONCATENATE($E$32,"!G224"))) -> 
G37: URBAN | J37: =IF(ISERROR(INDIRECT(CONCATENATE(#REF!,"!A2"))),"",INDIRECT(CONCATENATE(#REF!,"!A210"))) ->  | K37: =IF(ISERROR(INDIRECT(CONCATENATE($E$32,"!H222"))),"",INDIRECT(CONCATENATE($E$32,"!H222"))) ->  | L37: =IF(ISERROR(INDIRECT(CONCATENATE($E$32,"!H223"))),"",INDIRECT(CONCATENATE($E$32,"!H223"))) ->  | M37: =IF(ISERROR(INDIRECT(CONCATENATE($E$32,"!H224"))),"",INDIRECT(CONCATENATE($E$32,"!H224"))) ->  | N37: =IF(ISERROR(INDIRECT(CONCATENATE($E$32,"!I222"))),"",INDIRECT(CONCATENATE($E$32,"!I222"))) ->  | O37: =IF(ISERROR(INDIRECT(CONCATENATE($E$32,"!I223"))),"",INDIRECT(CONCATENATE($E$32,"!I223"))) ->  | P37: =IF(ISERROR(INDIRECT(CONCATENATE($E$32,"!I224"))),"",INDIRECT(CONCATENATE($E$32,"!I224"))) ->  | Q37: =IF(ISERROR(INDIRECT(CONCATENATE($E$32,"!J222"))),"",INDIRECT(CONCATENATE($E$32,"!J222"))) ->  | R37: =IF(ISERROR(INDIRECT(CONCATENATE($E$32,"!J223"))),"",INDIRECT(CONCATENATE($E$32,"!J223"))) ->  | S37: =IF(ISERROR(INDIRECT(CONCATENATE($E$32,"!J224"))),"",INDIRECT(CONCATENATE($E$32,"!J224"))) ->  | T37: =IF(ISERROR(INDIRECT(CONCATENATE($E$32,"!K222"))),"",INDIRECT(CONCATENATE($E$32,"!K222"))) ->  | U37: =IF(ISERROR(INDIRECT(CONCATENATE($E$32,"!K223"))),"",INDIRECT(CONCATENATE($E$32,"!K223"))) ->  | V37: =IF(ISERROR(INDIRECT(CONCATENATE($E$32,"!K224"))),"",INDIRECT(CONCATENATE($E$32,"!K224"))) ->  | W37: =IF(ISERROR(INDIRECT(CONCATENATE($E$32,"!L222"))),"",INDIRECT(CONCATENATE($E$32,"!L222"))) ->  | X37: =IF(ISERROR(INDIRECT(CONCATENATE($E$32,"!L223"))),"",INDIRECT(CONCATENATE($E$32,"!L223"))) ->  | Y37: =IF(ISERROR(INDIRECT(CONCATENATE($E$32,"!L224"))),"",INDIRECT(CONCATENATE($E$32,"!L224"))) -> 
G40: RURAL | J40: =IF(ISERROR(INDIRECT(CONCATENATE(#REF!,"!A2"))),"",INDIRECT(CONCATENATE(#REF!,"!A210"))) ->  | K40: =IF(ISERROR(INDIRECT(CONCATENATE($E$32,"!M222"))),"",INDIRECT(CONCATENATE($E$32,"!M222"))) ->  | L40: =IF(ISERROR(INDIRECT(CONCATENATE($E$32,"!M223"))),"",INDIRECT(CONCATENATE($E$32,"!M223"))) ->  | M40: =IF(ISERROR(INDIRECT(CONCATENATE($E$32,"!M224"))),"",INDIRECT(CONCATENATE($E$32,"!M224"))) ->  | N40: =IF(ISERROR(INDIRECT(CONCATENATE($E$32,"!N222"))),"",INDIRECT(CONCATENATE($E$32,"!N222"))) ->  | O40: =IF(ISERROR(INDIRECT(CONCATENATE($E$32,"!N223"))),"",INDIRECT(CONCATENATE($E$32,"!N223"))) ->  | P40: =IF(ISERROR(INDIRECT(CONCATENATE($E$32,"!N224"))),"",INDIRECT(CONCATENATE($E$32,"!N224"))) ->  | Q40: =IF(ISERROR(INDIRECT(CONCATENATE($E$32,"!O222"))),"",INDIRECT(CONCATENATE($E$32,"!O222"))) ->  | R40: =IF(ISERROR(INDIRECT(CONCATENATE($E$32,"!O223"))),"",INDIRECT(CONCATENATE($E$32,"!O223"))) ->  | S40: =IF(ISERROR(INDIRECT(CONCATENATE($E$32,"!O224"))),"",INDIRECT(CONCATENATE($E$32,"!O224"))) ->  | T40: =IF(ISERROR(INDIRECT(CONCATENATE($E$32,"!P222"))),"",INDIRECT(CONCATENATE($E$32,"!P222"))) ->  | U40: =IF(ISERROR(INDIRECT(CONCATENATE($E$32,"!P223"))),"",INDIRECT(CONCATENATE($E$32,"!P223"))) ->  | V40: =IF(ISERROR(INDIRECT(CONCATENATE($E$32,"!P224"))),"",INDIRECT(CONCATENATE($E$32,"!P224"))) ->  | W40: =IF(ISERROR(INDIRECT(CONCATENATE($E$32,"!Q222"))),"",INDIRECT(CONCATENATE($E$32,"!Q222"))) ->  | X40: =IF(ISERROR(INDIRECT(CONCATENATE($E$32,"!Q223"))),"",INDIRECT(CONCATENATE($E$32,"!Q223"))) ->  | Y40: =IF(ISERROR(INDIRECT(CONCATENATE($E$32,"!Q224"))),"",INDIRECT(CONCATENATE($E$32,"!Q224"))) -> 
A88: 2 | B88: Template

Sheet DHS05
A2: =A1026 -> Guinea
A3: =A1034 -> 2005
A4: Use of drinking water sources
A5: by wealth quintile and sub-national region
A6: Notes:
A7: WHO/UNICEF JMP customised wealth index excludes water,
A8: sanitation and hygiene assets.
A9: Survey used for analysis: | B9: =A1025 -> DHS05
A10: =B1028 -> 
A11: =B1027 -> 
A14: Use of drinking water sources | C14: NATIONAL wealth index quintile | H14: URBAN wealth index quintile | M14: RURAL wealth index quintile | R14: SUB-REGIONS: | BA14: Raw numbers of respondents: | BB14: Use of drinking water sources | BC14: NATIONAL wealth index quintile | BH14: URBAN wealth index quintile | BM14: RURAL wealth index quintile | BR14: SUB-REGIONS:
A15: Weighted percentage (used in graphs) | C15: Poorest | D15: Poor | E15: Middle | F15: Rich | G15: Richest | H15: Poorest | I15: Poor | J15: Middle | K15: Rich | L15: Richest | M15: Poorest | N15: Poor | O15: Middle | P15: Rich | Q15: Richest | R15: Boké | S15: Conakry | T15: Faranah | U15: Kankan | V15: Kindia | W15: Labé | X15: Mamou | Y15: N'Zérékoré | BA15: Water data, raw numbers (weighted) | BC15: Poorest | BD15: Poor | BE15: Middle | BF15: Rich | BG15: Richest | BH15: Poorest | BI15: Poor | BJ15: Middle | BK15: Rich | BL15: Richest | BM15: Poorest | BN15: Poor | BO15: Middle | BP15: Rich | BQ15: Richest | BR15: Boké | BS15: Conakry | BT15: Faranah | BU15: Kankan | BV15: Kindia | BW15: Labé | BX15: Mamou | BY15: N'Zérékoré
A16: Water | B16: Improved | C16: 42.14424147 | D16: 42.60797789 | E16: 59.87449696 | F16: 75.44435505 | G16: 92.83192705 | H16: 76.47627227 | I16: 83.39434553 | J16: 91.16730034 | K16: 95.67950383 | L16: 95.64633103 | M16: 37.30962706 | N16: 45.41966416 | O16: 61.49602204 | P16: 58.77143858 | Q16: 65.30796629 | R16: 50.79211615 | S16: 96.52096761 | T16: 69.67379715 | U16: 80.79075521 | V16: 57.36955927 | W16: 54.4379356 | X16: 48.13729218 | Y16: 46.85888887 | BA16: Water | BB16: Improved | BC16: N/A | BD16: N/A | BE16: N/A | BF16: N/A | BG16: N/A | BH16: N/A | BI16: N/A | BJ16: N/A | BK16: N/A | BL16: N/A | BM16: N/A | BN16: N/A | BO16: N/A | BP16: N/A | BQ16: N/A | BR16: N/A | BS16: N/A | BT16: N/A | BU16: N/A | BV16: N/A | BW16: N/A | BX16: N/A | BY16: N/A
B17: Not Improved | C17: 57.85575853 | D17: 57.39202211 | E17: 40.12550304 | F17: 24.55564495 | G17: 7.16807295 | H17: 23.52372773 | I17: 16.60565447 | J17: 8.832699661 | K17: 4.32049617 | L17: 4.353668969 | M17: 62.69037294 | N17: 54.58033584 | O17: 38.50397796 | P17: 41.22856142 | Q17: 34.69203371 | R17: 49.20788385 | S17: 3.479032385 | T17: 30.32620285 | U17: 19.20924479 | V17: 42.63044073 | W17: 45.5620644 | X17: 51.86270782 | Y17: 53.14111113 | BB17: Not Improved | BC17: N/A | BD17: N/A | BE17: N/A | BF17: N/A | BG17: N/A | BH17: N/A | BI17: N/A | BJ17: N/A | BK17: N/A | BL17: N/A | BM17: N/A | BN17: N/A | BO17: N/A | BP17: N/A | BQ17: N/A | BR17: N/A | BS17: N/A | BT17: N/A | BU17: N/A | BV17: N/A | BW17: N/A | BX17: N/A | BY17: N/A
A18: Water ladder | B18: Basic | C18: =C16*C23/100 -> 39.97498349 | D18: =D16*D23/100 -> 41.48810075 | E18: =E16*E23/100 -> 56.06188144 | F18: 73.41804489 | G18: 90.31861594 | H18: 73.71301845 | I18: 82.31353846 | J18: 89.21495905 | K18: 93.30213262 | L18: 91.41972555 | M18: 35.16445996 | N18: 44.07433054 | O18: 56.41947662 | P18: 55.4406689 | Q18: 63.48313261 | R18: 48.38521358 | S18: 93.32663957 | T18: 68.93868783 | U18: 76.35471908 | V18: 56.16254062 | W18: 50.22633348 | X18: 42.70125171 | Y18: 46.23771174 | BA18: Water ladder | BB18: Basic | BC18: N/A | BD18: N/A | BE18: N/A | BF18: N/A | BG18: N/A | BH18: N/A | BI18: N/A | BJ18: N/A | BK18: N/A | BL18: N/A | BM18: N/A | BN18: N/A | BO18: N/A | BP18: N/A | BQ18: N/A | BR18: N/A | BS18: N/A | BT18: N/A | BU18: N/A | BV18: N/A | BW18: N/A | BX18: N/A | BY18: N/A
B19: Limited | C19: =C16*C22/100 -> 2.169257981 | D19: =D16*D22/100 -> 1.119877134 | E19: =E16*E22/100 -> 3.812615525 | F19: 2.026310162 | G19: 2.513311108 | H19: 2.763253818 | I19: 1.080807069 | J19: 1.952341285 | K19: 2.377371208 | L19: 4.226605476 | M19: 2.145167094 | N19: 1.345333625 | O19: 5.076545424 | P19: 3.330769679 | Q19: 1.824833685 | R19: 2.406902569 | S19: 3.194328041 | T19: 0.7351093207 | U19: 4.436036129 | V19: 1.207018645 | W19: 4.211602114 | X19: 5.436040467 | Y19: 0.6211771233 | BB19: Limited | BC19: N/A | BD19: N/A | BE19: N/A | BF19: N/A | BG19: N/A | BH19: N/A | BI19: N/A | BJ19: N/A | BK19: N/A | BL19: N/A | BM19: N/A | BN19: N/A | BO19: N/A | BP19: N/A | BQ19: N/A | BR19: N/A | BS19: N/A | BT19: N/A | BU19: N/A | BV19: N/A | BW19: N/A | BX19: N/A | BY19: N/A
B20: Unimproved | C20: =100-C18-C19-C21 -> 26.2420546 | D20: =100-D18-D19-D21 -> 26.8661532 | E20: =100-E18-E19-E21 -> 22.9344909 | F20: 14.79224967 | G20: 6.621902918 | H20: 17.84534832 | I20: 14.89534141 | J20: 8.036758338 | K20: 4.32049617 | L20: 4.353668969 | M20: 27.97438916 | N20: 25.35912891 | O20: 24.88641649 | P20: 21.68158398 | Q20: 17.03882235 | R20: 27.99128705 | S20: 3.479032385 | T20: 20.23028679 | U20: 15.08386766 | V20: 15.45411481 | W20: 31.34004085 | X20: 26.08908159 | Y20: 21.32705545 | BB20: Unimproved | BC20: N/A | BD20: N/A | BE20: N/A | BF20: N/A | BG20: N/A | BH20: N/A | BI20: N/A | BJ20: N/A | BK20: N/A | BL20: N/A | BM20: N/A | BN20: N/A | BO20: N/A | BP20: N/A | BQ20: N/A | BR20: N/A | BS20: N/A | BT20: N/A | BU20: N/A | BV20: N/A | BW20: N/A | BX20: N/A | BY20: N/A
B21: Surface water | C21: 31.61370393 | D21: 30.52586891 | E21: 17.19101214 | F21: 9.763395272 | G21: 0.546170032 | H21: 5.678379415 | I21: 1.710313064 | J21: 0.7959413235 | K21: 0 | L21: 0 | M21: 34.71598379 | N21: 29.22120692 | O21: 13.61756147 | P21: 19.54697745 | Q21: 17.65321136 | R21: 21.2165968 | S21: 0 | T21: 10.09591606 | U21: 4.125377128 | V21: 27.17632592 | W21: 14.22202356 | X21: 25.77362623 | Y21: 31.81405568 | BB21: Surface water | BC21: N/A | BD21: N/A | BE21: N/A | BF21: N/A | BG21: N/A | BH21: N/A | BI21: N/A | BJ21: N/A | BK21: N/A | BL21: N/A | BM21: N/A | BN21: N/A | BO21: N/A | BP21: N/A | BQ21: N/A | BR21: N/A | BS21: N/A | BT21: N/A | BU21: N/A | BV21: N/A | BW21: N/A | BX21: N/A | BY21: N/A
A22: Improved water point at more than 30 minutes | B22: Yes | C22: 5.147222741 | D22: 2.628327345 | E22: 6.367678591 | F22: 2.68583403 | G22: 2.707377933 | H22: 3.613217192 | I22: 1.296019606 | J22: 2.141492924 | K22: 2.484723596 | L22: 4.41899384 | M22: 5.749634246 | N22: 2.962006984 | O22: 8.255079362 | P22: 5.667327122 | Q22: 2.794197689 | R22: 4.738732606 | S22: 3.309465415 | T22: 1.055072855 | U22: 5.490771955 | V22: 2.103935711 | W22: 7.736520623 | X22: 11.29278408 | Y22: 1.325633489 | BA22: Improved water point at more than 30 minutes | BB22: Yes | BC22: N/A | BD22: N/A | BE22: N/A | BF22: N/A | BG22: N/A | BH22: N/A | BI22: N/A | BJ22: N/A | BK22: N/A | BL22: N/A | BM22: N/A | BN22: N/A | BO22: N/A | BP22: N/A | BQ22: N/A | BR22: N/A | BS22: N/A | BT22: N/A | BU22: N/A | BV22: N/A | BW22: N/A | BX22: N/A | BY22: N/A
B23: No | C23: 94.85277726 | D23: 97.37167265 | E23: 93.63232141 | F23: 97.31416597 | G23: 97.29262207 | H23: 96.38678281 | I23: 98.70398039 | J23: 97.85850708 | K23: 97.5152764 | L23: 95.58100616 | M23: 94.25036575 | N23: 97.03799302 | O23: 91.74492064 | P23: 94.33267288 | Q23: 97.20580231 | R23: 95.26126739 | S23: 96.69053459 | T23: 98.94492715 | U23: 94.50922804 | V23: 97.89606429 | W23: 92.26347938 | X23: 88.70721592 | Y23: 98.67436651 | BB23: No | BC23: N/A | BD23: N/A | BE23: N/A | BF23: N/A | BG23: N/A | BH23: N/A | BI23: N/A | BJ23: N/A | BK23: N/A | BL23: N/A | BM23: N/A | BN23: N/A | BO23: N/A | BP23: N/A | BQ23: N/A | BR23: N/A | BS23: N/A | BT23: N/A | BU23: N/A | BV23: N/A | BW23: N/A | BX23: N/A | BY23: N/A
A24: Manually calculated ratios | B24: Improved wells
B25: Improved springs
B26: Other
C27: NATIONAL wealth index quintile | H27: URBAN wealth index quintile | M27: RURAL wealth index quintile | R27: SUB-REGIONS: | BA27: Raw numbers of respondents: | BB27: Use of drinking water sources | BC27: NATIONAL wealth index quintile | BH27: URBAN wealth index quintile | BM27: RURAL wealth index quintile | BR27: SUB-REGIONS:
A28: Percentage based on weighted population | C28: Poorest | D28: Poor | E28: Middle | F28: Rich | G28: Richest | H28: Poorest | I28: Poor | J28: Middle | K28: Rich | L28: Richest | M28: Poorest | N28: Poor | O28: Middle | P28: Rich | Q28: Richest | R28: Boké | S28: Conakry | T28: Faranah | U28: Kankan | V28: Kindia | W28: Labé | X28: Mamou | Y28: N'Zérékoré | BA28: Water data, raw numbers (weighted) | BC28: Poorest | BD28: Poor | BE28: Middle | BF28: Rich | BG28: Richest | BH28: Poorest | BI28: Poor | BJ28: Middle | BK28: Rich | BL28: Richest | BM28: Poorest | BN28: Poor | BO28: Middle | BP28: Rich | BQ28: Richest | BR28: Boké | BS28: Conakry | BT28: Faranah | BU28: Kankan | BV28: Kindia | BW28: Labé | BX28: Mamou | BY28: N'Zérékoré
A29: Piped water | B29: Yes | C29: 2.16000242 | D29: 0.9203825654 | E29: 4.394409612 | F29: 23.45617207 | G29: 80.17684086 | H29: 31.92303019 | I29: 50.45315565 | J29: 72.74817152 | K29: 90.69839377 | L29: 88.06597443 | M29: 0.8017381343 | N29: 1.089998518 | O29: 4.179838727 | P29: 4.886811766 | Q29: 7.321463941 | R29: 14.00255567 | S29: 91.69907115 | T29: 13.57904867 | U29: 11.06265483 | V29: 12.81328928 | W29: 3.958368519 | X29: 7.453583435 | Y29: 9.139949407 | BA29: Piped water | BB29: Yes | BC29: N/A | BD29: N/A | BE29: N/A | BF29: N/A | BG29: N/A | BH29: N/A | BI29: N/A | BJ29: N/A | BK29: N/A | BL29: N/A | BM29: N/A | BN29: N/A | BO29: N/A | BP29: N/A | BQ29: N/A | BR29: N/A | BS29: N/A | BT29: N/A | BU29: N/A | BV29: N/A | BW29: N/A | BX29: N/A | BY29: N/A
B30: No | C30: 97.83999758 | D30: 99.07961743 | E30: 95.60559039 | F30: 76.54382793 | G30: 19.82315914 | H30: 68.07696981 | I30: 49.54684435 | J30: 27.25182848 | K30: 9.301606228 | L30: 11.93402557 | M30: 99.19826187 | N30: 98.91000148 | O30: 95.82016127 | P30: 95.11318823 | Q30: 92.67853606 | R30: 85.99744433 | S30: 8.30092885 | T30: 86.42095133 | U30: 88.93734517 | V30: 87.18671072 | W30: 96.04163148 | X30: 92.54641657 | Y30: 90.86005059 | BB30: No | BC30: N/A | BD30: N/A | BE30: N/A | BF30: N/A | BG30: N/A | BH30: N/A | BI30: N/A | BJ30: N/A | BK30: N/A | BL30: N/A | BM30: N/A | BN30: N/A | BO30: N/A | BP30: N/A | BQ30: N/A | BR30: N/A | BS30: N/A | BT30: N/A | BU30: N/A | BV30: N/A | BW30: N/A | BX30: N/A | BY30: N/A
A31: Piped water on premises | B31: Yes | C31: 0.1193588497 | D31: 0.07908233952 | E31: 0.8844927361 | F31: 4.785770372 | G31: 40.36826684 | H31: 2.304466807 | I31: 10.44620172 | J31: 17.74492217 | K31: 48.42930657 | L31: 64.31120832 | M31: 0.1311867256 | N31: 0.06424558317 | O31: 0 | P31: 1.994240794 | Q31: 4.210712217 | R31: 5.432488179 | S31: 47.27144312 | T31: 1.847296559 | U31: 1.197976657 | V31: 3.884059034 | W31: 1.516208844 | X31: 1.497848236 | Y31: 3.151972454 | BA31: Piped water on premises | BB31: Yes | BC31: N/A | BD31: N/A | BE31: N/A | BF31: N/A | BG31: N/A | BH31: N/A | BI31: N/A | BJ31: N/A | BK31: N/A | BL31: N/A | BM31: N/A | BN31: N/A | BO31: N/A | BP31: N/A | BQ31: N/A | BR31: N/A | BS31: N/A | BT31: N/A | BU31: N/A | BV31: N/A | BW31: N/A | BX31: N/A | BY31: N/A
B32: No | C32: 99.88064115 | D32: 99.92091766 | E32: 99.11550726 | F32: 95.21422963 | G32: 59.63173316 | H32: 97.69553319 | I32: 89.55379828 | J32: 82.25507783 | K32: 51.57069343 | L32: 35.68879168 | M32: 99.86881327 | N32: 99.93575442 | O32: 100 | P32: 98.00575921 | Q32: 95.78928778 | R32: 94.56751182 | S32: 52.72855688 | T32: 98.15270344 | U32: 98.80202334 | V32: 96.11594097 | W32: 98.48379116 | X32: 98.50215176 | Y32: 96.84802755 | BB32: No | BC32: N/A | BD32: N/A | BE32: N/A | BF32: N/A | BG32: N/A | BH32: N/A | BI32: N/A | BJ32: N/A | BK32: N/A | BL32: N/A | BM32: N/A | BN32: N/A | BO32: N/A | BP32: N/A | BQ32: N/A | BR32: N/A | BS32: N/A | BT32: N/A | BU32: N/A | BV32: N/A | BW32: N/A | BX32: N/A | BY32: N/A
A33: Piped water into dwelling | B33: Yes | C33: N/A | D33: N/A | E33: N/A | F33: N/A | G33: N/A | H33: N/A | I33: N/A | J33: N/A | K33: N/A | L33: N/A | M33: N/A | N33: N/A | O33: N/A | P33: N/A | Q33: N/A | R33: N/A | S33: N/A | T33: N/A | U33: N/A | V33: N/A | W33: N/A | X33: N/A | Y33: N/A | BA33: Piped water into dwelling | BB33: Yes | BC33: N/A | BD33: N/A | BE33: N/A | BF33: N/A | BG33: N/A | BH33: N/A | BI33: N/A | BJ33: N/A | BK33: N/A | BL33: N/A | BM33: N/A | BN33: N/A | BO33: N/A | BP33: N/A | BQ33: N/A | BR33: N/A | BS33: N/A | BT33: N/A | BU33: N/A | BV33: N/A | BW33: N/A | BX33: N/A | BY33: N/A
B34: No | C34: N/A | D34: N/A | E34: N/A | F34: N/A | G34: N/A | H34: N/A | I34: N/A | J34: N/A | K34: N/A | L34: N/A | M34: N/A | N34: N/A | O34: N/A | P34: N/A | Q34: N/A | R34: N/A | S34: N/A | T34: N/A | U34: N/A | V34: N/A | W34: N/A | X34: N/A | Y34: N/A | BB34: No | BC34: N/A | BD34: N/A | BE34: N/A | BF34: N/A | BG34: N/A | BH34: N/A | BI34: N/A | BJ34: N/A | BK34: N/A | BL34: N/A | BM34: N/A | BN34: N/A | BO34: N/A | BP34: N/A | BQ34: N/A | BR34: N/A | BS34: N/A | BT34: N/A | BU34: N/A | BV34: N/A | BW34: N/A | BX34: N/A | BY34: N/A
A35: Water source on premises | B35: Yes | C35: 0.6307361918 | D35: 0.6536108656 | E35: 1.347655672 | F35: 5.347563329 | G35: 41.32333314 | H35: 2.601237089 | I35: 10.77205818 | J35: 18.85776768 | K35: 49.25753632 | L35: 65.66046926 | M35: 0.4333208116 | N35: 0.7912942313 | O35: 0.5824523488 | P35: 2.562650569 | Q35: 4.707638125 | R35: 7.208561201 | S35: 48.62944318 | T35: 2.415539133 | U35: 1.449244314 | V35: 4.183393811 | W35: 1.728469471 | X35: 1.577629689 | Y35: 3.421344191 | BA35: Water source on premises | BB35: Yes | BC35: N/A | BD35: N/A | BE35: N/A | BF35: N/A | BG35: N/A | BH35: N/A | BI35: N/A | BJ35: N/A | BK35: N/A | BL35: N/A | BM35: N/A | BN35: N/A | BO35: N/A | BP35: N/A | BQ35: N/A | BR35: N/A | BS35: N/A | BT35: N/A | BU35: N/A | BV35: N/A | BW35: N/A | BX35: N/A | BY35: N/A
B36: No | C36: 99.36926381 | D36: 99.34638913 | E36: 98.65234433 | F36: 94.65243667 | G36: 58.67666686 | H36: 97.39876291 | I36: 89.22794182 | J36: 81.14223232 | K36: 50.74246368 | L36: 34.33953074 | M36: 99.56667919 | N36: 99.20870577 | O36: 99.41754765 | P36: 97.43734943 | Q36: 95.29236187 | R36: 92.7914388 | S36: 51.37055682 | T36: 97.58446087 | U36: 98.55075569 | V36: 95.81660619 | W36: 98.27153053 | X36: 98.42237031 | Y36: 96.57865581 | BB36: No | BC36: N/A | BD36: N/A | BE36: N/A | BF36: N/A | BG36: N/A | BH36: N/A | BI36: N/A | BJ36: N/A | BK36: N/A | BL36: N/A | BM36: N/A | BN36: N/A | BO36: N/A | BP36: N/A | BQ36: N/A | BR36: N/A | BS36: N/A | BT36: N/A | BU36: N/A | BV36: N/A | BW36: N/A | BX36: N/A | BY36: N/A
A37: Improved Water source on premises | B37: Yes | C37: 0.4462555064 | D37: 0.4849333812 | E37: 1.254847897 | F37: 5.347563329 | G37: 41.28399343 | H37: 2.601237089 | I37: 10.77205818 | J37: 18.85776768 | K37: 49.13477144 | L37: 65.66046926 | M37: 0.3622163912 | N37: 0.5162657255 | O37: 0.469896198 | P37: 2.562650569 | Q37: 4.642583771 | R37: 6.637848524 | S37: 48.5746413 | T37: 2.34689057 | U37: 1.449244314 | V37: 4.104000755 | W37: 1.728469471 | X37: 1.497848236 | Y37: 3.421344191 | BA37: Improved water source on premises | BB37: Yes | BC37: N/A | BD37: N/A | BE37: N/A | BF37: N/A | BG37: N/A | BH37: N/A | BI37: N/A | BJ37: N/A | BK37: N/A | BL37: N/A | BM37: N/A | BN37: N/A | BO37: N/A | BP37: N/A | BQ37: N/A | BR37: N/A | BS37: N/A | BT37: N/A | BU37: N/A | BV37: N/A | BW37: N/A | BX37: N/A | BY37: N/A
B38: No | C38: 99.55374449 | D38: 99.51506662 | E38: 98.7451521 | F38: 94.65243667 | G38: 58.71600657 | H38: 97.39876291 | I38: 89.22794182 | J38: 81.14223232 | K38: 50.86522856 | L38: 34.33953074 | M38: 99.63778361 | N38: 99.48373427 | O38: 99.5301038 | P38: 97.43734943 | Q38: 95.35741623 | R38: 93.36215148 | S38: 51.4253587 | T38: 97.65310943 | U38: 98.55075569 | V38: 95.89599924 | W38: 98.27153053 | X38: 98.50215176 | Y38: 96.57865581 | BB38: No | BC38: N/A | BD38: N/A | BE38: N/A | BF38: N/A | BG38: N/A | BH38: N/A | BI38: N/A | BJ38: N/A | BK38: N/A | BL38: N/A | BM38: N/A | BN38: N/A | BO38: N/A | BP38: N/A | BQ38: N/A | BR38: N/A | BS38: N/A | BT38: N/A | BU38: N/A | BV38: N/A | BW38: N/A | BX38: N/A | BY38: N/A
A39: Piped water on premises available when needed | B39: Yes | C39: N/A | D39: N/A | E39: N/A | F39: N/A | G39: N/A | H39: N/A | I39: N/A | J39: N/A | K39: N/A | L39: N/A | M39: N/A | N39: N/A | O39: N/A | P39: N/A | Q39: N/A | R39: N/A | S39: N/A | T39: N/A | U39: N/A | V39: N/A | W39: N/A | X39: N/A | Y39: N/A | BA39: Piped water on premises available when needed | BB39: Yes | BC39: N/A | BD39: N/A | BE39: N/A | BF39: N/A | BG39: N/A | BH39: N/A | BI39: N/A | BJ39: N/A | BK39: N/A | BL39: N/A | BM39: N/A | BN39: N/A | BO39: N/A | BP39: N/A | BQ39: N/A | BR39: N/A | BS39: N/A | BT39: N/A | BU39: N/A | BV39: N/A | BW39: N/A | BX39: N/A | BY39: N/A
B40: No | C40: N/A | D40: N/A | E40: N/A | F40: N/A | G40: N/A | H40: N/A | I40: N/A | J40: N/A | K40: N/A | L40: N/A | M40: N/A | N40: N/A | O40: N/A | P40: N/A | Q40: N/A | R40: N/A | S40: N/A | T40: N/A | U40: N/A | V40: N/A | W40: N/A | X40: N/A | Y40: N/A | BB40: No | BC40: N/A | BD40: N/A | BE40: N/A | BF40: N/A | BG40: N/A | BH40: N/A | BI40: N/A | BJ40: N/A | BK40: N/A | BL40: N/A | BM40: N/A | BN40: N/A | BO40: N/A | BP40: N/A | BQ40: N/A | BR40: N/A | BS40: N/A | BT40: N/A | BU40: N/A | BV40: N/A | BW40: N/A | BX40: N/A | BY40: N/A
A41: Water point at more than 30 minutes | B41: Yes | C41: 10.6715374 | D41: 10.22377731 | E41: 10.00267498 | F41: 4.609685334 | G41: 2.958673154 | H41: 3.940931547 | I41: 1.597195746 | J41: 2.161052474 | K41: 3.19005041 | L41: 4.41899384 | M41: 12.7035374 | N41: 9.01920061 | O41: 10.47523463 | P41: 10.5555893 | Q41: 6.80911982 | R41: 11.59618951 | S41: 3.643858324 | T41: 3.68347838 | U41: 6.194492112 | V41: 9.462228824 | W41: 14.95130437 | X41: 18.38052451 | Y41: 3.808281938 | BA41: Water point at more than 30 minutes | BB41: Yes | BC41: N/A | BD41: N/A | BE41: N/A | BF41: N/A | BG41: N/A | BH41: N/A | BI41: N/A | BJ41: N/A | BK41: N/A | BL41: N/A | BM41: N/A | BN41: N/A | BO41: N/A | BP41: N/A | BQ41: N/A | BR41: N/A | BS41: N/A | BT41: N/A | BU41: N/A | BV41: N/A | BW41: N/A | BX41: N/A | BY41: N/A
B42: No | C42: 89.3284626 | D42: 89.77622269 | E42: 89.99732502 | F42: 95.39031467 | G42: 97.04132685 | H42: 96.05906845 | I42: 98.40280425 | J42: 97.83894753 | K42: 96.80994959 | L42: 95.58100616 | M42: 87.2964626 | N42: 90.98079939 | O42: 89.52476537 | P42: 89.4444107 | Q42: 93.19088018 | R42: 88.40381049 | S42: 96.35614168 | T42: 96.31652162 | U42: 93.80550789 | V42: 90.53777118 | W42: 85.04869563 | X42: 81.61947549 | Y42: 96.19171806 | BB42: No | BC42: N/A | BD42: N/A | BE42: N/A | BF42: N/A | BG42: N/A | BH42: N/A | BI42: N/A | BJ42: N/A | BK42: N/A | BL42: N/A | BM42: N/A | BN42: N/A | BO42: N/A | BP42: N/A | BQ42: N/A | BR42: N/A | BS42: N/A | BT42: N/A | BU42: N/A | BV42: N/A | BW42: N/A | BX42: N/A | BY42: N/A
A43: Water source available when needed | B43: Yes | C43: N/A | D43: N/A | E43: N/A | F43: N/A | G43: N/A | H43: N/A | I43: N/A | J43: N/A | K43: N/A | L43: N/A | M43: N/A | N43: N/A | O43: N/A | P43: N/A | Q43: N/A | R43: N/A | S43: N/A | T43: N/A | U43: N/A | V43: N/A | W43: N/A | X43: N/A | Y43: N/A | BA43: Water source available when needed | BB43: Yes | BC43: N/A | BD43: N/A | BE43: N/A | BF43: N/A | BG43: N/A | BH43: N/A | BI43: N/A | BJ43: N/A | BK43: N/A | BL43: N/A | BM43: N/A | BN43: N/A | BO43: N/A | BP43: N/A | BQ43: N/A | BR43: N/A | BS43: N/A | BT43: N/A | BU43: N/A | BV43: N/A | BW43: N/A | BX43: N/A | BY43: N/A
B44: No | C44: N/A | D44: N/A | E44: N/A | F44: N/A | G44: N/A | H44: N/A | I44: N/A | J44: N/A | K44: N/A | L44: N/A | M44: N/A | N44: N/A | O44: N/A | P44: N/A | Q44: N/A | R44: N/A | S44: N/A | T44: N/A | U44: N/A | V44: N/A | W44: N/A | X44: N/A | Y44: N/A | BB44: No | BC44: N/A | BD44: N/A | BE44: N/A | BF44: N/A | BG44: N/A | BH44: N/A | BI44: N/A | BJ44: N/A | BK44: N/A | BL44: N/A | BM44: N/A | BN44: N/A | BO44: N/A | BP44: N/A | BQ44: N/A | BR44: N/A | BS44: N/A | BT44: N/A | BU44: N/A | BV44: N/A | BW44: N/A | BX44: N/A | BY44: N/A
A45: Improved water source available when needed | B45: Yes | C45: N/A | D45: N/A | E45: N/A | F45: N/A | G45: N/A | H45: N/A | I45: N/A | J45: N/A | K45: N/A | L45: N/A | M45: N/A | N45: N/A | O45: N/A | P45: N/A | Q45: N/A | R45: N/A | S45: N/A | T45: N/A | U45: N/A | V45: N/A | W45: N/A | X45: N/A | Y45: N/A | BA45: Improved water source available when needed | BB45: Yes | BC45: N/A | BD45: N/A | BE45: N/A | BF45: N/A | BG45: N/A | BH45: N/A | BI45: N/A | BJ45: N/A | BK45: N/A | BL45: N/A | BM45: N/A | BN45: N/A | BO45: N/A | BP45: N/A | BQ45: N/A | BR45: N/A | BS45: N/A | BT45: N/A | BU45: N/A | BV45: N/A | BW45: N/A | BX45: N/A | BY45: N/A
B46: No | C46: N/A | D46: N/A | E46: N/A | F46: N/A | G46: N/A | H46: N/A | I46: N/A | J46: N/A | K46: N/A | L46: N/A | M46: N/A | N46: N/A | O46: N/A | P46: N/A | Q46: N/A | R46: N/A | S46: N/A | T46: N/A | U46: N/A | V46: N/A | W46: N/A | X46: N/A | Y46: N/A | BB46: No | BC46: N/A | BD46: N/A | BE46: N/A | BF46: N/A | BG46: N/A | BH46: N/A | BI46: N/A | BJ46: N/A | BK46: N/A | BL46: N/A | BM46: N/A | BN46: N/A | BO46: N/A | BP46: N/A | BQ46: N/A | BR46: N/A | BS46: N/A | BT46: N/A | BU46: N/A | BV46: N/A | BW46: N/A | BX46: N/A | BY46: N/A
A47: Microbiological quality at point of collection | B47: Not contaminated (No E. coli in 100 mL) | C47: N/A | D47: N/A | E47: N/A | F47: N/A | G47: N/A | H47: N/A | I47: N/A | J47: N/A | K47: N/A | L47: N/A | M47: N/A | N47: N/A | O47: N/A | P47: N/A | Q47: N/A | R47: N/A | S47: N/A | T47: N/A | U47: N/A | V47: N/A | W47: N/A | X47: N/A | Y47: N/A | BA47: Microbiological quality at point of collection | BB47: Not contaminated (No E. coli in 100 mL) | BC47: N/A | BD47: N/A | BE47: N/A | BF47: N/A | BG47: N/A | BH47: N/A | BI47: N/A | BJ47: N/A | BK47: N/A | BL47: N/A | BM47: N/A | BN47: N/A | BO47: N/A | BP47: N/A | BQ47: N/A | BR47: N/A | BS47: N/A | BT47: N/A | BU47: N/A | BV47: N/A | BW47: N/A | BX47: N/A | BY47: N/A
B48: Contaminated (E. coli detected in 100 mL) | C48: N/A | D48: N/A | E48: N/A | F48: N/A | G48: N/A | H48: N/A | I48: N/A | J48: N/A | K48: N/A | L48: N/A | M48: N/A | N48: N/A | O48: N/A | P48: N/A | Q48: N/A | R48: N/A | S48: N/A | T48: N/A | U48: N/A | V48: N/A | W48: N/A | X48: N/A | Y48: N/A | BB48: Contaminated (E. coli detected in 100 mL) | BC48: N/A | BD48: N/A | BE48: N/A | BF48: N/A | BG48: N/A | BH48: N/A | BI48: N/A | BJ48: N/A | BK48: N/A | BL48: N/A | BM48: N/A | BN48: N/A | BO48: N/A | BP48: N/A | BQ48: N/A | BR48: N/A | BS48: N/A | BT48: N/A | BU48: N/A | BV48: N/A | BW48: N/A | BX48: N/A | BY48: N/A
B49: Highly contaminated (>100 CFU/100 mL) | C49: N/A | D49: N/A | E49: N/A | F49: N/A | G49: N/A | H49: N/A | I49: N/A | J49: N/A | K49: N/A | L49: N/A | M49: N/A | N49: N/A | O49: N/A | P49: N/A | Q49: N/A | R49: N/A | S49: N/A | T49: N/A | U49: N/A | V49: N/A | W49: N/A | X49: N/A | Y49: N/A | BB49: Highly contaminated (>100 CFU/100 mL) | BC49: N/A | BD49: N/A | BE49: N/A | BF49: N/A | BG49: N/A | BH49: N/A | BI49: N/A | BJ49: N/A | BK49: N/A | BL49: N/A | BM49: N/A | BN49: N/A | BO49: N/A | BP49: N/A | BQ49: N/A | BR49: N/A | BS49: N/A | BT49: N/A | BU49: N/A | BV49: N/A | BW49: N/A | BX49: N/A | BY49: N/A
A50: Microbiological quality of improved water sources at point of collection | B50: Not contaminated (No E. coli in 100 mL) | C50: N/A | D50: N/A | E50: N/A | F50: N/A | G50: N/A | H50: N/A | I50: N/A | J50: N/A | K50: N/A | L50: N/A | M50: N/A | N50: N/A | O50: N/A | P50: N/A | Q50: N/A | R50: N/A | S50: N/A | T50: N/A | U50: N/A | V50: N/A | W50: N/A | X50: N/A | Y50: N/A | BA50: Microbiological quality of improved water sources at point of collection | BB50: Not contaminated (No E. coli in 100 mL) | BC50: N/A | BD50: N/A | BE50: N/A | BF50: N/A | BG50: N/A | BH50: N/A | BI50: N/A | BJ50: N/A | BK50: N/A | BL50: N/A | BM50: N/A | BN50: N/A | BO50: N/A | BP50: N/A | BQ50: N/A | BR50: N/A | BS50: N/A | BT50: N/A | BU50: N/A | BV50: N/A | BW50: N/A | BX50: N/A | BY50: N/A
B51: Contaminated (E. coli detected in 100 mL) | C51: N/A | D51: N/A | E51: N/A | F51: N/A | G51: N/A | H51: N/A | I51: N/A | J51: N/A | K51: N/A | L51: N/A | M51: N/A | N51: N/A | O51: N/A | P51: N/A | Q51: N/A | R51: N/A | S51: N/A | T51: N/A | U51: N/A | V51: N/A | W51: N/A | X51: N/A | Y51: N/A | BB51: Contaminated (E. coli detected in 100 mL) | BC51: N/A | BD51: N/A | BE51: N/A | BF51: N/A | BG51: N/A | BH51: N/A | BI51: N/A | BJ51: N/A | BK51: N/A | BL51: N/A | BM51: N/A | BN51: N/A | BO51: N/A | BP51: N/A | BQ51: N/A | BR51: N/A | BS51: N/A | BT51: N/A | BU51: N/A | BV51: N/A | BW51: N/A | BX51: N/A | BY51: N/A
B52: Highly contaminated (>100 CFU/100 mL) | C52: N/A | D52: N/A | E52: N/A | F52: N/A | G52: N/A | H52: N/A | I52: N/A | J52: N/A | K52: N/A | L52: N/A | M52: N/A | N52: N/A | O52: N/A | P52: N/A | Q52: N/A | R52: N/A | S52: N/A | T52: N/A | U52: N/A | V52: N/A | W52: N/A | X52: N/A | Y52: N/A | BB52: Highly contaminated (>100 CFU/100 mL) | BC52: N/A | BD52: N/A | BE52: N/A | BF52: N/A | BG52: N/A | BH52: N/A | BI52: N/A | BJ52: N/A | BK52: N/A | BL52: N/A | BM52: N/A | BN52: N/A | BO52: N/A | BP52: N/A | BQ52: N/A | BR52: N/A | BS52: N/A | BT52: N/A | BU52: N/A | BV52: N/A | BW52: N/A | BX52: N/A | BY52: N/A
A53: Microbiological quality of piped on premises at point of collection | B53: Not contaminated (No E. coli in 100 mL) | C53: N/A | D53: N/A | E53: N/A | F53: N/A | G53: N/A | H53: N/A | I53: N/A | J53: N/A | K53: N/A | L53: N/A | M53: N/A | N53: N/A | O53: N/A | P53: N/A | Q53: N/A | R53: N/A | S53: N/A | T53: N/A | U53: N/A | V53: N/A | W53: N/A | X53: N/A | Y53: N/A | BA53: Microbiological quality of piped on premises at point of collection | BB53: Not contaminated (No E. coli in 100 mL) | BC53: N/A | BD53: N/A | BE53: N/A | BF53: N/A | BG53: N/A | BH53: N/A | BI53: N/A | BJ53: N/A | BK53: N/A | BL53: N/A | BM53: N/A | BN53: N/A | BO53: N/A | BP53: N/A | BQ53: N/A | BR53: N/A | BS53: N/A | BT53: N/A | BU53: N/A | BV53: N/A | BW53: N/A | BX53: N/A | BY53: N/A
B54: Contaminated (E. coli detected in 100 mL) | C54: N/A | D54: N/A | E54: N/A | F54: N/A | G54: N/A | H54: N/A | I54: N/A | J54: N/A | K54: N/A | L54: N/A | M54: N/A | N54: N/A | O54: N/A | P54: N/A | Q54: N/A | R54: N/A | S54: N/A | T54: N/A | U54: N/A | V54: N/A | W54: N/A | X54: N/A | Y54: N/A | BB54: Contaminated (E. coli detected in 100 mL) | BC54: N/A | BD54: N/A | BE54: N/A | BF54: N/A | BG54: N/A | BH54: N/A | BI54: N/A | BJ54: N/A | BK54: N/A | BL54: N/A | BM54: N/A | BN54: N/A | BO54: N/A | BP54: N/A | BQ54: N/A | BR54: N/A | BS54: N/A | BT54: N/A | BU54: N/A | BV54: N/A | BW54: N/A | BX54: N/A | BY54: N/A
B55: Highly contaminated (>100 CFU/100 mL) | C55: N/A | D55: N/A | E55: N/A | F55: N/A | G55: N/A | H55: N/A | I55: N/A | J55: N/A | K55: N/A | L55: N/A | M55: N/A | N55: N/A | O55: N/A | P55: N/A | Q55: N/A | R55: N/A | S55: N/A | T55: N/A | U55: N/A | V55: N/A | W55: N/A | X55: N/A | Y55: N/A | BB55: Highly contaminated (>100 CFU/100 mL) | BC55: N/A | BD55: N/A | BE55: N/A | BF55: N/A | BG55: N/A | BH55: N/A | BI55: N/A | BJ55: N/A | BK55: N/A | BL55: N/A | BM55: N/A | BN55: N/A | BO55: N/A | BP55: N/A | BQ55: N/A | BR55: N/A | BS55: N/A | BT55: N/A | BU55: N/A | BV55: N/A | BW55: N/A | BX55: N/A | BY55: N/A
C56: NATIONAL wealth index quintile | H56: URBAN wealth index quintile | M56: RURAL wealth index quintile | R56: SUB-REGIONS: | BA56: Raw numbers of respondents: | BB56: Use of drinking water sources | BC56: NATIONAL wealth index quintile | BH56: URBAN wealth index quintile | BM56: RURAL wealth index quintile | BR56: SUB-REGIONS:
A57: Percentage based on weighted population | C57: Poorest | D57: Poor | E57: Middle | F57: Rich | G57: Richest | H57: Poorest | I57: Poor | J57: Middle | K57: Rich | L57: Richest | M57: Poorest | N57: Poor | O57: Middle | P57: Rich | Q57: Richest | R57: Boké | S57: Conakry | T57: Faranah | U57: Kankan | V57: Kindia | W57: Labé | X57: Mamou | Y57: N'Zérékoré | BA57: Water data, raw numbers (weighted) | BC57: Poorest | BD57: Poor | BE57: Middle | BF57: Rich | BG57: Richest | BH57: Poorest | BI57: Poor | BJ57: Middle | BK57: Rich | BL57: Richest | BM57: Poorest | BN57: Poor | BO57: Middle | BP57: Rich | BQ57: Richest | BR57: Boké | BS57: Conakry | BT57: Faranah | BU57: Kankan | BV57: Kindia | BW57: Labé | BX57: Mamou | BY57: N'Zérékoré
A58: Source of drinking water | B58: Piped into dwelling | C58: 0.1196963825 | D58: 0.07908233952 | E58: 0.2624645007 | F58: 1.595726375 | G58: 24.59705706 | H58: 0.5625447725 | I58: 5.807507752 | J58: 10.45746348 | K58: 28.27190416 | L58: 40.35265856 | M58: 0.1316692472 | N58: 0.06424558317 | O58: 0 | P58: 0.9522509286 | Q58: 1.563945315 | R58: 3.651161063 | S58: 28.73299378 | T58: 0.1616351278 | U58: 0.8638888236 | V58: 1.814499456 | W58: 1.387775151 | X58: 1.117642598 | Y58: 0.7773969249
B59: Piped into compound/plot | C59: 0 | D59: 0 | E59: 0.6226988978 | F59: 3.196166893 | G59: 15.82496877 | H59: 1.741922035 | I59: 4.652345144 | J59: 7.287458692 | K59: 20.15740241 | L59: 24.19296255 | M59: 0 | N59: 0 | O59: 0 | P59: 1.047476022 | Q59: 2.652643197 | R59: 1.798794231 | S59: 18.60345864 | T59: 1.687083655 | U59: 0.3346644768 | V59: 2.07651786 | W59: 0.130648358 | X59: 0.3840694648 | Y59: 2.374575529
B60: Public tap | C60: 2.046414272 | D60: 0.8413002259 | E60: 3.512578253 | F60: 18.69428854 | G60: 39.86158766 | H60: 29.61856338 | I60: 40.0592353 | J60: 55.00324935 | K60: 42.2690872 | L60: 23.84135166 | M60: 0.6730177829 | N60: 1.025752935 | O60: 4.179838727 | P60: 2.900528433 | Q60: 3.115092961 | R60: 8.59762288 | S60: 44.48872643 | T60: 11.74078432 | U60: 9.869426514 | V60: 8.945226934 | W60: 2.445726839 | X60: 5.971098524 | Y60: 5.987976953
B61: Open well in dwelling | C61: 2.032042031 | D61: 1.798634956 | E61: 2.648298111 | F61: 3.430876612 | G61: 1.594587044 | H61: 5.044558645 | I61: 3.402459188 | J61: 1.828875258 | K61: 1.470518005 | L61: 1.56562123 | M61: 1.657443707 | N61: 1.748179337 | O61: 3.268014223 | P61: 1.690623491 | Q61: 2.518814957 | R61: 4.830946021 | S61: 0.5400201262 | T61: 3.661487112 | U61: 1.415311321 | V61: 2.363217372 | W61: 4.671795499 | X61: 1.255099758 | Y61: 1.40180956
B62: Open well in yard/plot | C62: 1.424595737 | D62: 1.241813536 | E62: 1.182169071 | F62: 1.29098063 | G62: 2.153312806 | H62: 1.680892513 | I62: 1.28811963 | J62: 3.612144405 | K62: 1.432171857 | L62: 2.135223871 | M62: 1.297673927 | N62: 1.376693983 | O62: 0.8864558745 | P62: 0.7952427093 | Q62: 1.372685311 | R62: 2.639135191 | S62: 1.627790238 | T62: 0.9782618387 | U62: 1.175913535 | V62: 0.2066666244 | W62: 2.316956197 | X62: 1.242998603 | Y62: 1.487520114
B63: Open public well | C63: 7.925958675 | D63: 6.777489988 | E63: 11.02203162 | F63: 6.782165486 | G63: 2.279461941 | H63: 8.704162045 | I63: 8.606710775 | J63: 2.659027292 | K63: 1.295041433 | L63: 0.3041953171 | M63: 7.627395836 | N63: 7.05594004 | O63: 12.58295677 | P63: 10.39287787 | Q63: 6.920128366 | R63: 8.366036223 | S63: 1.054514914 | T63: 11.32643467 | U63: 11.10687813 | V63: 2.077815645 | W63: 5.948735296 | X63: 5.04662334 | Y63: 11.28604262
B64: Protected well in dwelling | C64: 0.6549866861 | D64: 1.229030031 | E64: 2.353013728 | F64: 4.172115139 | G64: 3.824185263 | H64: 4.427477405 | I64: 6.144804078 | J64: 7.170287108 | K64: 1.987041168 | L64: 3.579268962 | M64: 0.3270490785 | N64: 1.265471809 | O64: 2.504906629 | P64: 2.205355541 | Q64: 2.107049938 | R64: 2.692522786 | S64: 1.894698404 | T64: 2.187194173 | U64: 0.8729902898 | V64: 4.057306979 | W64: 2.614748383 | X64: 4.037260285 | Y64: 2.146480123
B65: Protected well in yard/plot | C65: 0.4380784063 | D65: 0.4667938532 | E65: 0.7381774889 | F65: 1.298768854 | G65: 0.3401980426 | H65: 1.983481307 | I65: 0.5487010598 | J65: 0.7811303682 | K65: 0.1970232502 | L65: 0 | M65: 0.5502749988 | N65: 0.3951310674 | O65: 0.5797241602 | P65: 0.5273482245 | Q65: 1.018131473 | R65: 0.7204454457 | S65: 0.4190103705 | T65: 0.5911178308 | U65: 0 | V65: 0.928639426 | W65: 0.4297547183 | X65: 2.72479952 | Y65: 0.463512854
B66: Protected public well | C66: 4.58721293 | D66: 4.406880907 | E66: 5.915065759 | F66: 6.955793343 | G66: 2.578202072 | H66: 10.78788996 | I66: 10.96121897 | J66: 3.089551089 | K66: 0.8250971573 | L66: 0.5545845767 | M66: 4.510423888 | N66: 4.565265726 | O66: 8.52082282 | P66: 3.989368537 | Q66: 2.992247361 | R66: 5.201113655 | S66: 1.028515742 | T66: 7.351086026 | U66: 6.221206133 | V66: 2.92814464 | W66: 3.036620373 | X66: 5.872386538 | Y66: 7.513676449
B67: Forage | C67: 33.19555289 | D67: 33.88080006 | E67: 44.48605435 | F67: 37.61837932 | G67: 5.582361459 | H67: 23.92880126 | I67: 14.75588744 | J67: 7.000360005 | K67: 1.727353445 | L67: 3.474133278 | M67: 30.29085947 | N67: 36.51609042 | O67: 43.61296787 | P67: 45.56170734 | Q67: 49.84426189 | R67: 26.67858825 | S67: 1.486303185 | T67: 45.52742094 | U67: 62.29004943 | V67: 32.85851697 | W67: 41.50062733 | X67: 26.25154976 | Y67: 26.55030854
B68: Improved spring | C68: 1.221478883 | D68: 1.679617619 | E68: 2.029843535 | F68: 2.009639795 | G68: 0.346992304 | H68: 3.42559215 | I68: 0.5736261242 | J68: 0.3778002484 | K68: 0.2445950377 | L68: 0 | M68: 0.9635621921 | N68: 1.56782516 | O68: 2.097761835 | P68: 1.74908376 | Q68: 2.105735249 | R68: 1.615180058 | S68: 0 | T68: 0.4811165445 | U68: 0.3774180236 | V68: 3.863484418 | W68: 2.971549743 | X68: 1.902659729 | Y68: 1.027616016
B69: Spring, Not improved | C69: 15.00560295 | D69: 17.61838125 | E69: 8.570505031 | F69: 3.65852534 | G69: 0.4553331304 | H69: 2.779773675 | I69: 1.413207591 | J69: 0 | K69: 0 | L69: 0 | M69: 17.4446187 | N69: 15.70176459 | O69: 8.569041116 | P69: 9.121546964 | Q69: 6.696617886 | R69: 12.55624268 | S69: 0 | T69: 4.483184963 | U69: 1.380904597 | V69: 12.07292425 | W69: 18.73525497 | X69: 20.09652842 | Y69: 8.076716698
B70: River, stream | C70: 30.61962947 | D70: 28.97412001 | E70: 16.00383726 | F70: 8.657886351 | G70: 0.5223603646 | H70: 4.259931295 | I70: 1.381267387 | J70: 0.732652706 | K70: 0 | L70: 0 | M70: 33.75035863 | N70: 27.87008084 | O70: 12.28425837 | P70: 18.94231484 | Q70: 16.50282601 | R70: 19.29538656 | S70: 0 | T70: 9.32912242 | U70: 2.535945425 | V70: 25.49314729 | W70: 13.80980715 | X70: 23.9350196 | Y70: 30.31909077
B71: Pond, lake | C71: 0.5487630499 | D71: 0.6036612272 | E71: 0.4905317421 | F71: 0.1896339102 | G71: 0 | H71: 1.054409561 | I71: 0 | J71: 0 | K71: 0 | L71: 0 | M71: 0.5415489383 | N71: 0.5206582457 | O71: 0.7868279376 | P71: 0 | Q71: 0.1178541857 | R71: 1.20753339 | S71: 0 | T71: 0 | U71: 0.5329133383 | V71: 0.2486049122 | W71: 0 | X71: 0 | Y71: 0.5699313682
B72: Dam | C72: 0.1799876307 | D72: 0.3022349802 | E72: 0.1627306501 | F72: 0.3942222304 | G72: 0 | H72: 0 | I72: 0.2168008337 | J72: 0 | K72: 0 | L72: 0 | M72: 0.2341036057 | N72: 0.2455322221 | O72: 0.126423667 | P72: 0.1242753452 | Q72: 0.4719659091 | R72: 0.04691902025 | S72: 0 | T72: 0.494070378 | U72: 1.022489966 | V72: 0.06528721414 | W72: 0 | X72: 0.1622638707 | Y72: 0
B73: Rainwater | C73: 0 | D73: 0.02447284517 | E73: 0 | F73: 0 | G73: 0 | H73: 0 | I73: 0 | J73: 0 | K73: 0 | L73: 0 | M73: 0 | N73: 0.01988145798 | O73: 0 | P73: 0 | Q73: 0 | R73: 0 | S73: 0 | T73: 0 | U73: 0 | V73: 0 | W73: 0 | X73: 0 | Y73: 0.01734547473
B74: Other | C74: 0 | D74: 0.07568616827 | E74: 0 | F74: 0.05483118435 | G74: 0.03939209329 | H74: 0 | I74: 0.1881087289 | J74: 0 | K74: 0.1227648747 | L74: 0 | M74: 0 | N74: 0.0614865727 | O74: 0 | P74: 0 | Q74: 0 | R74: 0.1023725599 | S74: 0.1239681624 | T74: 0 | U74: 0 | V74: 0 | W74: 0 | X74: 0 | Y74: 0
A108: =A1026 -> Guinea
A109: =A1034 -> 2005
A110: Use of sanitation facilities
A111: by wealth quintile and sub-national region
A112: Notes:
A113: WHO/UNICEF JMP customised wealth index excludes water,
A114: sanitation and hygiene assets.
A115: Survey used for analysis: | B115: =A1025 -> DHS05
A117: =B1029 -> Ratio of Shared improved based on: | B117: DHS12
A120: Use of sanitation facilities | C120: NATIONAL wealth index quintile | H120: URBAN wealth index quintile | M120: RURAL wealth index quintile | R120: SUB-REGIONS: | BA120: Raw numbers of respondents: | BB120: Use of sanitation facilities | BC120: NATIONAL wealth index quintile | BH120: URBAN wealth index quintile | BM120: RURAL wealth index quintile | BR120: SUB-REGIONS:
A121: Weighted percentage (used in graphs) | C121: Poorest | D121: Poor | E121: Middle | F121: Rich | G121: Richest | H121: Poorest | I121: Poor | J121: Middle | K121: Rich | L121: Richest | M121: Poorest | N121: Poor | O121: Middle | P121: Rich | Q121: Richest | R121: Boké | S121: Conakry | T121: Faranah | U121: Kankan | V121: Kindia | W121: Labé | X121: Mamou | Y121: N'Zérékoré | BA121: Sanitation data, raw numbers (weighted) | BC121: Poorest | BD121: Poor | BE121: Middle | BF121: Rich | BG121: Richest | BH121: Poorest | BI121: Poor | BJ121: Middle | BK121: Rich | BL121: Richest | BM121: Poorest | BN121: Poor | BO121: Middle | BP121: Rich | BQ121: Richest | BR121: Boké | BS121: Conakry | BT121: Faranah | BU121: Kankan | BV121: Kindia | BW121: Labé | BX121: Mamou | BY121: N'Zérékoré
A122: Sanitation | B122: Improved | C122: =C153+C155+C156 -> 9.534985921 | D122: =D153+D155+D156 -> 9.10826811 | E122: 17.77441291 | F122: 37.94383884 | G122: 71.88685351 | H122: 26.15829425 | I122: 53.81199841 | J122: 60.39295474 | K122: 79.41437624 | L122: 84.03031209 | M122: 6.785388678 | N122: 11.06940471 | O122: 17.00473496 | P122: 15.02105476 | Q122: 31.2738685 | R122: 21.07886716 | S122: 74.77290165 | T122: 14.00466353 | U122: 21.79376464 | V122: 29.92159105 | W122: 14.89251791 | X122: 20.32695633 | Y122: 22.79923608 | BA122: Sanitation | BB122: Improved | BC122: N/A | BD122: N/A | BE122: N/A | BF122: N/A | BG122: N/A | BH122: N/A | BI122: N/A | BJ122: N/A | BK122: N/A | BL122: N/A | BM122: N/A | BN122: N/A | BO122: N/A | BP122: N/A | BQ122: N/A | BR122: N/A | BS122: N/A | BT122: N/A | BU122: N/A | BV122: N/A | BW122: N/A | BX122: N/A | BY122: N/A
B123: Not Improved | C123: =100-C122 -> 90.46501408 | D123: =100-D122 -> 90.89173189 | E123: 82.22558709 | F123: 62.05616116 | G123: 28.11314649 | H123: 73.84170575 | I123: 46.18800159 | J123: 39.60704526 | K123: 20.58562376 | L123: 15.96968791 | M123: 93.21461132 | N123: 88.93059529 | O123: 82.99526504 | P123: 84.97894524 | Q123: 68.7261315 | R123: 78.92113284 | S123: 25.22709835 | T123: 85.99533647 | U123: 78.20623536 | V123: 70.07840895 | W123: 85.10748209 | X123: 79.67304367 | Y123: 77.20076392 | BB123: Not Improved | BC123: N/A | BD123: N/A | BE123: N/A | BF123: N/A | BG123: N/A | BH123: N/A | BI123: N/A | BJ123: N/A | BK123: N/A | BL123: N/A | BM123: N/A | BN123: N/A | BO123: N/A | BP123: N/A | BQ123: N/A | BR123: N/A | BS123: N/A | BT123: N/A | BU123: N/A | BV123: N/A | BW123: N/A | BX123: N/A | BY123: N/A
A124: Sanitation ladder | B124: Basic | C124: =C122*'DHS12'!C129/100 -> 4.554849842 | D124: =D122*'DHS12'!D129/100 -> 3.827225978 | E124: =E122*'DHS12'!E129/100 -> 8.429623578 | F124: =F122*'DHS12'!F129/100 -> 18.53569428 | G124: =G122*'DHS12'!G129/100 -> 34.40469858 | H124: =H122*'DHS12'!H129/100 -> 12.7658153 | I124: =I122*'DHS12'!I129/100 -> 20.96411811 | J124: =J122*'DHS12'!J129/100 -> 21.15721122 | K124: =K122*'DHS12'!K129/100 -> 28.21545787 | L124: =L122*'DHS12'!L129/100 -> 59.5569506 | M124: =M122*'DHS12'!M129/100 -> 3.161849354 | N124: =N122*'DHS12'!N129/100 -> 5.157411679 | O124: =O122*'DHS12'!O129/100 -> 7.146166278 | P124: =P122*'DHS12'!P129/100 -> 7.113990098 | Q124: =Q122*'DHS12'!Q129/100 -> 17.97728714 | R124: =R122*'DHS12'!R129/100 -> 11.19683105 | S124: =S122*'DHS12'!S129/100 -> 31.45712348 | T124: =T122*'DHS12'!T129/100 -> 6.161580827 | U124: =U122*'DHS12'!U129/100 -> 9.315043652 | V124: =V122*'DHS12'!V129/100 -> 13.74734441 | W124: =W122*'DHS12'!W129/100 -> 10.18205291 | X124: =X122*'DHS12'!X129/100 -> 14.96482714 | Y124: =Y122*'DHS12'!Y129/100 -> 10.58241032 | BA124: Sanitation ladder | BB124: Basic | BC124: N/A | BD124: N/A | BE124: N/A | BF124: N/A | BG124: N/A | BH124: N/A | BI124: N/A | BJ124: N/A | BK124: N/A | BL124: N/A | BM124: N/A | BN124: N/A | BO124: N/A | BP124: N/A | BQ124: N/A | BR124: N/A | BS124: N/A | BT124: N/A | BU124: N/A | BV124: N/A | BW124: N/A | BX124: N/A | BY124: N/A
B125: Limited | C125: =C122*'DHS12'!C128/100 -> 4.980136079 | D125: =D122*'DHS12'!D128/100 -> 5.281042132 | E125: =E122*'DHS12'!E128/100 -> 9.344789327 | F125: =F122*'DHS12'!F128/100 -> 19.40814457 | G125: =G122*'DHS12'!G128/100 -> 37.48215493 | H125: =H122*'DHS12'!H128/100 -> 13.39247895 | I125: =I122*'DHS12'!I128/100 -> 32.8478803 | J125: =J122*'DHS12'!J128/100 -> 39.23574351 | K125: =K122*'DHS12'!K128/100 -> 51.19891837 | L125: =L122*'DHS12'!L128/100 -> 24.4733615 | M125: =M122*'DHS12'!M128/100 -> 3.623539324 | N125: =N122*'DHS12'!N128/100 -> 5.911993027 | O125: =O122*'DHS12'!O128/100 -> 9.858568684 | P125: =P122*'DHS12'!P128/100 -> 7.907064666 | Q125: =Q122*'DHS12'!Q128/100 -> 13.29658136 | R125: =R122*'DHS12'!R128/100 -> 9.882036111 | S125: =S122*'DHS12'!S128/100 -> 43.31577816 | T125: =T122*'DHS12'!T128/100 -> 7.843082699 | U125: =U122*'DHS12'!U128/100 -> 12.47872099 | V125: =V122*'DHS12'!V128/100 -> 16.17424664 | W125: =W122*'DHS12'!W128/100 -> 4.710464999 | X125: =X122*'DHS12'!X128/100 -> 5.362129184 | Y125: =Y122*'DHS12'!Y128/100 -> 12.21682576 | BB125: Limited | BC125: N/A | BD125: N/A | BE125: N/A | BF125: N/A | BG125: N/A | BH125: N/A | BI125: N/A | BJ125: N/A | BK125: N/A | BL125: N/A | BM125: N/A | BN125: N/A | BO125: N/A | BP125: N/A | BQ125: N/A | BR125: N/A | BS125: N/A | BT125: N/A | BU125: N/A | BV125: N/A | BW125: N/A | BX125: N/A | BY125: N/A
B126: Unimproved | C126: =100-C124-C125-C127 -> 32.97077071 | D126: =100-D124-D125-D127 -> 43.3198735 | E126: 55.35878079 | F126: 54.28678737 | G126: 27.60032714 | H126: 64.88696479 | I126: 45.86299486 | J126: 38.59705729 | K126: 20.46285888 | L126: 15.34169863 | M126: 26.89249377 | N126: 44.30457357 | O126: 61.07504684 | P126: 49.93395987 | Q126: 51.57968662 | R126: 51.92375453 | S126: 24.52564776 | T126: 65.24894184 | U126: 71.64481647 | V126: 54.10718569 | W126: 30.47250112 | X126: 32.38116077 | Y126: 28.7274342 | BB126: Unimproved | BC126: N/A | BD126: N/A | BE126: N/A | BF126: N/A | BG126: N/A | BH126: N/A | BI126: N/A | BJ126: N/A | BK126: N/A | BL126: N/A | BM126: N/A | BN126: N/A | BO126: N/A | BP126: N/A | BQ126: N/A | BR126: N/A | BS126: N/A | BT126: N/A | BU126: N/A | BV126: N/A | BW126: N/A | BX126: N/A | BY126: N/A
B127: Open defecation | C127: =C157 -> 57.49424337 | D127: =D157 -> 47.57185839 | E127: 26.8668063 | F127: 7.769373782 | G127: 0.5128193512 | H127: 8.954740959 | I127: 0.325006732 | J127: 1.009987976 | K127: 0.1227648747 | L127: 0.6279892787 | M127: 66.32211755 | N127: 44.62602173 | O127: 21.92021819 | P127: 35.04498537 | Q127: 17.14644489 | R127: 26.99737831 | S127: 0.7014505888 | T127: 20.74639464 | U127: 6.561418888 | V127: 15.97122326 | W127: 54.63498097 | X127: 47.2918829 | Y127: 48.47332973 | BB127: Open defecation | BC127: N/A | BD127: N/A | BE127: N/A | BF127: N/A | BG127: N/A | BH127: N/A | BI127: N/A | BJ127: N/A | BK127: N/A | BL127: N/A | BM127: N/A | BN127: N/A | BO127: N/A | BP127: N/A | BQ127: N/A | BR127: N/A | BS127: N/A | BT127: N/A | BU127: N/A | BV127: N/A | BW127: N/A | BX127: N/A | BY127: N/A
A128: Shared among Improved Sanitation | B128: Yes | C128: N/A | D128: N/A | E128: N/A | F128: N/A | G128: N/A | H128: N/A | I128: N/A | J128: N/A | K128: N/A | L128: N/A | M128: N/A | N128: N/A | O128: N/A | P128: N/A | Q128: N/A | R128: N/A | S128: N/A | T128: N/A | U128: N/A | V128: N/A | W128: N/A | X128: N/A | Y128: N/A | BA128: Shared among improved sanitation facilities | BB128: Yes | BC128: N/A | BD128: N/A | BE128: N/A | BF128: N/A | BG128: N/A | BH128: N/A | BI128: N/A | BJ128: N/A | BK128: N/A | BL128: N/A | BM128: N/A | BN128: N/A | BO128: N/A | BP128: N/A | BQ128: N/A | BR128: N/A | BS128: N/A | BT128: N/A | BU128: N/A | BV128: N/A | BW128: N/A | BX128: N/A | BY128: N/A
B129: No | C129: N/A | D129: N/A | E129: N/A | F129: N/A | G129: N/A | H129: N/A | I129: N/A | J129: N/A | K129: N/A | L129: N/A | M129: N/A | N129: N/A | O129: N/A | P129: N/A | Q129: N/A | R129: N/A | S129: N/A | T129: N/A | U129: N/A | V129: N/A | W129: N/A | X129: N/A | Y129: N/A | BB129: No | BC129: N/A | BD129: N/A | BE129: N/A | BF129: N/A | BG129: N/A | BH129: N/A | BI129: N/A | BJ129: N/A | BK129: N/A | BL129: N/A | BM129: N/A | BN129: N/A | BO129: N/A | BP129: N/A | BQ129: N/A | BR129: N/A | BS129: N/A | BT129: N/A | BU129: N/A | BV129: N/A | BW129: N/A | BX129: N/A | BY129: N/A
A130: Manually calculated ratios | B130: Improved latrines
B131: Other
B132: Other
C133: NATIONAL wealth index quintile | H133: URBAN wealth index quintile | M133: RURAL wealth index quintile | R133: SUB-REGIONS: | BA133: Raw numbers of respondents: | BB133: Use of sanitation facilities | BC133: NATIONAL wealth index quintile | BH133: URBAN wealth index quintile | BM133: RURAL wealth index quintile | BR133: SUB-REGIONS:
A134: Percentage based on weighted population | C134: Poorest | D134: Poor | E134: Middle | F134: Rich | G134: Richest | H134: Poorest | I134: Poor | J134: Middle | K134: Rich | L134: Richest | M134: Poorest | N134: Poor | O134: Middle | P134: Rich | Q134: Richest | R134: Boké | S134: Conakry | T134: Faranah | U134: Kankan | V134: Kindia | W134: Labé | X134: Mamou | Y134: N'Zérékoré | BA134: Sanitation data, raw numbers (weighted) | BC134: Poorest | BD134: Poor | BE134: Middle | BF134: Rich | BG134: Richest | BH134: Poorest | BI134: Poor | BJ134: Middle | BK134: Rich | BL134: Richest | BM134: Poorest | BN134: Poor | BO134: Middle | BP134: Rich | BQ134: Richest | BR134: Boké | BS134: Conakry | BT134: Faranah | BU134: Kankan | BV134: Kindia | BW134: Labé | BX134: Mamou | BY134: N'Zérékoré
A135: Sanitation type | B135: Sewer connection | C135: N/A | D135: N/A | E135: N/A | F135: N/A | G135: N/A | H135: N/A | I135: N/A | J135: N/A | K135: N/A | L135: N/A | M135: N/A | N135: N/A | O135: N/A | P135: N/A | Q135: N/A | R135: N/A | S135: N/A | T135: N/A | U135: N/A | V135: N/A | W135: N/A | X135: N/A | Y135: N/A | BA135: Sanitation type | BB135: Sewer connection | BC135: N/A | BD135: N/A | BE135: N/A | BF135: N/A | BG135: N/A | BH135: N/A | BI135: N/A | BJ135: N/A | BK135: N/A | BL135: N/A | BM135: N/A | BN135: N/A | BO135: N/A | BP135: N/A | BQ135: N/A | BR135: N/A | BS135: N/A | BT135: N/A | BU135: N/A | BV135: N/A | BW135: N/A | BX135: N/A | BY135: N/A
B136: Septic tank connection | C136: N/A | D136: N/A | E136: N/A | F136: N/A | G136: N/A | H136: N/A | I136: N/A | J136: N/A | K136: N/A | L136: N/A | M136: N/A | N136: N/A | O136: N/A | P136: N/A | Q136: N/A | R136: N/A | S136: N/A | T136: N/A | U136: N/A | V136: N/A | W136: N/A | X136: N/A | Y136: N/A | BB136: Septic tank connection | BC136: N/A | BD136: N/A | BE136: N/A | BF136: N/A | BG136: N/A | BH136: N/A | BI136: N/A | BJ136: N/A | BK136: N/A | BL136: N/A | BM136: N/A | BN136: N/A | BO136: N/A | BP136: N/A | BQ136: N/A | BR136: N/A | BS136: N/A | BT136: N/A | BU136: N/A | BV136: N/A | BW136: N/A | BX136: N/A | BY136: N/A
B137: Improved latrines | C137: N/A | D137: N/A | E137: N/A | F137: N/A | G137: N/A | H137: N/A | I137: N/A | J137: N/A | K137: N/A | L137: N/A | M137: N/A | N137: N/A | O137: N/A | P137: N/A | Q137: N/A | R137: N/A | S137: N/A | T137: N/A | U137: N/A | V137: N/A | W137: N/A | X137: N/A | Y137: N/A | BB137: Improved latrines | BC137: N/A | BD137: N/A | BE137: N/A | BF137: N/A | BG137: N/A | BH137: N/A | BI137: N/A | BJ137: N/A | BK137: N/A | BL137: N/A | BM137: N/A | BN137: N/A | BO137: N/A | BP137: N/A | BQ137: N/A | BR137: N/A | BS137: N/A | BT137: N/A | BU137: N/A | BV137: N/A | BW137: N/A | BX137: N/A | BY137: N/A
B138: Unimproved facilities | C138: N/A | D138: N/A | E138: N/A | F138: N/A | G138: N/A | H138: N/A | I138: N/A | J138: N/A | K138: N/A | L138: N/A | M138: N/A | N138: N/A | O138: N/A | P138: N/A | Q138: N/A | R138: N/A | S138: N/A | T138: N/A | U138: N/A | V138: N/A | W138: N/A | X138: N/A | Y138: N/A | BB138: Unimproved facilities | BC138: N/A | BD138: N/A | BE138: N/A | BF138: N/A | BG138: N/A | BH138: N/A | BI138: N/A | BJ138: N/A | BK138: N/A | BL138: N/A | BM138: N/A | BN138: N/A | BO138: N/A | BP138: N/A | BQ138: N/A | BR138: N/A | BS138: N/A | BT138: N/A | BU138: N/A | BV138: N/A | BW138: N/A | BX138: N/A | BY138: N/A
B139: Open defecation | C139: 57.39213213 | D139: 47.53867059 | E139: 26.78000809 | F139: 7.720417008 | G139: 0.5121592672 | H139: 8.880703845 | I139: 0.3246172702 | J139: 1.009987976 | K139: 0.1227648747 | L139: 0.6279892787 | M139: 66.1690423 | N139: 44.6007299 | O139: 21.8544113 | P139: 35.00178335 | Q139: 17.02464541 | R139: 26.87285779 | S139: 0.7011418779 | T139: 20.62900806 | U139: 6.534250333 | V139: 15.9048349 | W139: 54.40325059 | X139: 47.21851013 | Y139: 48.47332973 | BB139: Open defecation | BC139: N/A | BD139: N/A | BE139: N/A | BF139: N/A | BG139: N/A | BH139: N/A | BI139: N/A | BJ139: N/A | BK139: N/A | BL139: N/A | BM139: N/A | BN139: N/A | BO139: N/A | BP139: N/A | BQ139: N/A | BR139: N/A | BS139: N/A | BT139: N/A | BU139: N/A | BV139: N/A | BW139: N/A | BX139: N/A | BY139: N/A
A140: Septic tank emptying practices | B140: Not emptied/treated and disposed in situ | C140: N/A | D140: N/A | E140: N/A | F140: N/A | G140: N/A | H140: N/A | I140: N/A | J140: N/A | K140: N/A | L140: N/A | M140: N/A | N140: N/A | O140: N/A | P140: N/A | Q140: N/A | R140: N/A | S140: N/A | T140: N/A | U140: N/A | V140: N/A | W140: N/A | X140: N/A | Y140: N/A | BA140: Septic tank emptying practices | BB140: Not emptied/treated and disposed in situ | BC140: N/A | BD140: N/A | BE140: N/A | BF140: N/A | BG140: N/A | BH140: N/A | BI140: N/A | BJ140: N/A | BK140: N/A | BL140: N/A | BM140: N/A | BN140: N/A | BO140: N/A | BP140: N/A | BQ140: N/A | BR140: N/A | BS140: N/A | BT140: N/A | BU140: N/A | BV140: N/A | BW140: N/A | BX140: N/A | BY140: N/A
B141: Emptied and buried on site | C141: N/A | D141: N/A | E141: N/A | F141: N/A | G141: N/A | H141: N/A | I141: N/A | J141: N/A | K141: N/A | L141: N/A | M141: N/A | N141: N/A | O141: N/A | P141: N/A | Q141: N/A | R141: N/A | S141: N/A | T141: N/A | U141: N/A | V141: N/A | W141: N/A | X141: N/A | Y141: N/A | BB141: Emptied and buried on site | BC141: N/A | BD141: N/A | BE141: N/A | BF141: N/A | BG141: N/A | BH141: N/A | BI141: N/A | BJ141: N/A | BK141: N/A | BL141: N/A | BM141: N/A | BN141: N/A | BO141: N/A | BP141: N/A | BQ141: N/A | BR141: N/A | BS141: N/A | BT141: N/A | BU141: N/A | BV141: N/A | BW141: N/A | BX141: N/A | BY141: N/A
B142: Emptied and discharged locally | C142: N/A | D142: N/A | E142: N/A | F142: N/A | G142: N/A | H142: N/A | I142: N/A | J142: N/A | K142: N/A | L142: N/A | M142: N/A | N142: N/A | O142: N/A | P142: N/A | Q142: N/A | R142: N/A | S142: N/A | T142: N/A | U142: N/A | V142: N/A | W142: N/A | X142: N/A | Y142: N/A | BB142: Emptied and discharged locally | BC142: N/A | BD142: N/A | BE142: N/A | BF142: N/A | BG142: N/A | BH142: N/A | BI142: N/A | BJ142: N/A | BK142: N/A | BL142: N/A | BM142: N/A | BN142: N/A | BO142: N/A | BP142: N/A | BQ142: N/A | BR142: N/A | BS142: N/A | BT142: N/A | BU142: N/A | BV142: N/A | BW142: N/A | BX142: N/A | BY142: N/A
B143: Emptied and removed offsite | C143: N/A | D143: N/A | E143: N/A | F143: N/A | G143: N/A | H143: N/A | I143: N/A | J143: N/A | K143: N/A | L143: N/A | M143: N/A | N143: N/A | O143: N/A | P143: N/A | Q143: N/A | R143: N/A | S143: N/A | T143: N/A | U143: N/A | V143: N/A | W143: N/A | X143: N/A | Y143: N/A | BB143: Emptied and removed offsite | BC143: N/A | BD143: N/A | BE143: N/A | BF143: N/A | BG143: N/A | BH143: N/A | BI143: N/A | BJ143: N/A | BK143: N/A | BL143: N/A | BM143: N/A | BN143: N/A | BO143: N/A | BP143: N/A | BQ143: N/A | BR143: N/A | BS143: N/A | BT143: N/A | BU143: N/A | BV143: N/A | BW143: N/A | BX143: N/A | BY143: N/A
A144: Latrine emptying practices | B144: Not emptied/treated and disposed in situ | C144: N/A | D144: N/A | E144: N/A | F144: N/A | G144: N/A | H144: N/A | I144: N/A | J144: N/A | K144: N/A | L144: N/A | M144: N/A | N144: N/A | O144: N/A | P144: N/A | Q144: N/A | R144: N/A | S144: N/A | T144: N/A | U144: N/A | V144: N/A | W144: N/A | X144: N/A | Y144: N/A | BA144: Latrine emptying practices | BB144: Not emptied/treated and disposed in situ | BC144: N/A | BD144: N/A | BE144: N/A | BF144: N/A | BG144: N/A | BH144: N/A | BI144: N/A | BJ144: N/A | BK144: N/A | BL144: N/A | BM144: N/A | BN144: N/A | BO144: N/A | BP144: N/A | BQ144: N/A | BR144: N/A | BS144: N/A | BT144: N/A | BU144: N/A | BV144: N/A | BW144: N/A | BX144: N/A | BY144: N/A
B145: Emptied and buried on site | C145: N/A | D145: N/A | E145: N/A | F145: N/A | G145: N/A | H145: N/A | I145: N/A | J145: N/A | K145: N/A | L145: N/A | M145: N/A | N145: N/A | O145: N/A | P145: N/A | Q145: N/A | R145: N/A | S145: N/A | T145: N/A | U145: N/A | V145: N/A | W145: N/A | X145: N/A | Y145: N/A | BB145: Emptied and buried on site | BC145: N/A | BD145: N/A | BE145: N/A | BF145: N/A | BG145: N/A | BH145: N/A | BI145: N/A | BJ145: N/A | BK145: N/A | BL145: N/A | BM145: N/A | BN145: N/A | BO145: N/A | BP145: N/A | BQ145: N/A | BR145: N/A | BS145: N/A | BT145: N/A | BU145: N/A | BV145: N/A | BW145: N/A | BX145: N/A | BY145: N/A
B146: Emptied and discharged locally | C146: N/A | D146: N/A | E146: N/A | F146: N/A | G146: N/A | H146: N/A | I146: N/A | J146: N/A | K146: N/A | L146: N/A | M146: N/A | N146: N/A | O146: N/A | P146: N/A | Q146: N/A | R146: N/A | S146: N/A | T146: N/A | U146: N/A | V146: N/A | W146: N/A | X146: N/A | Y146: N/A | BB146: Emptied and discharged locally | BC146: N/A | BD146: N/A | BE146: N/A | BF146: N/A | BG146: N/A | BH146: N/A | BI146: N/A | BJ146: N/A | BK146: N/A | BL146: N/A | BM146: N/A | BN146: N/A | BO146: N/A | BP146: N/A | BQ146: N/A | BR146: N/A | BS146: N/A | BT146: N/A | BU146: N/A | BV146: N/A | BW146: N/A | BX146: N/A | BY146: N/A
B147: Emptied and removed offsite | C147: N/A | D147: N/A | E147: N/A | F147: N/A | G147: N/A | H147: N/A | I147: N/A | J147: N/A | K147: N/A | L147: N/A | M147: N/A | N147: N/A | O147: N/A | P147: N/A | Q147: N/A | R147: N/A | S147: N/A | T147: N/A | U147: N/A | V147: N/A | W147: N/A | X147: N/A | Y147: N/A | BB147: Emptied and removed offsite | BC147: N/A | BD147: N/A | BE147: N/A | BF147: N/A | BG147: N/A | BH147: N/A | BI147: N/A | BJ147: N/A | BK147: N/A | BL147: N/A | BM147: N/A | BN147: N/A | BO147: N/A | BP147: N/A | BQ147: N/A | BR147: N/A | BS147: N/A | BT147: N/A | BU147: N/A | BV147: N/A | BW147: N/A | BX147: N/A | BY147: N/A
A148: Shared among improved sanitation facilities | B148: Yes | C148: N/A | D148: N/A | E148: N/A | F148: N/A | G148: N/A | H148: N/A | I148: N/A | J148: N/A | K148: N/A | L148: N/A | M148: N/A | N148: N/A | O148: N/A | P148: N/A | Q148: N/A | R148: N/A | S148: N/A | T148: N/A | U148: N/A | V148: N/A | W148: N/A | X148: N/A | Y148: N/A | BA148: Shared among improved sanitation facilities | BB148: Yes | BC148: N/A | BD148: N/A | BE148: N/A | BF148: N/A | BG148: N/A | BH148: N/A | BI148: N/A | BJ148: N/A | BK148: N/A | BL148: N/A | BM148: N/A | BN148: N/A | BO148: N/A | BP148: N/A | BQ148: N/A | BR148: N/A | BS148: N/A | BT148: N/A | BU148: N/A | BV148: N/A | BW148: N/A | BX148: N/A | BY148: N/A
B149: No | C149: N/A | D149: N/A | E149: N/A | F149: N/A | G149: N/A | H149: N/A | I149: N/A | J149: N/A | K149: N/A | L149: N/A | M149: N/A | N149: N/A | O149: N/A | P149: N/A | Q149: N/A | R149: N/A | S149: N/A | T149: N/A | U149: N/A | V149: N/A | W149: N/A | X149: N/A | Y149: N/A | BB149: No | BC149: N/A | BD149: N/A | BE149: N/A | BF149: N/A | BG149: N/A | BH149: N/A | BI149: N/A | BJ149: N/A | BK149: N/A | BL149: N/A | BM149: N/A | BN149: N/A | BO149: N/A | BP149: N/A | BQ149: N/A | BR149: N/A | BS149: N/A | BT149: N/A | BU149: N/A | BV149: N/A | BW149: N/A | BX149: N/A | BY149: N/A
B150: DK/missing | C150: N/A | D150: N/A | E150: N/A | F150: N/A | G150: N/A | H150: N/A | I150: N/A | J150: N/A | K150: N/A | L150: N/A | M150: N/A | N150: N/A | O150: N/A | P150: N/A | Q150: N/A | R150: N/A | S150: N/A | T150: N/A | U150: N/A | V150: N/A | W150: N/A | X150: N/A | Y150: N/A | BB150: DK/missing | BC150: N/A | BD150: N/A | BE150: N/A | BF150: N/A | BG150: N/A | BH150: N/A | BI150: N/A | BJ150: N/A | BK150: N/A | BL150: N/A | BM150: N/A | BN150: N/A | BO150: N/A | BP150: N/A | BQ150: N/A | BR150: N/A | BS150: N/A | BT150: N/A | BU150: N/A | BV150: N/A | BW150: N/A | BX150: N/A | BY150: N/A
A151: Shared among all sanitation facilities | B151: Yes | C151: 57.23687828 | D151: 59.04795988 | E151: 54.28913856 | F151: 54.30916399 | G151: 57.95441244 | H151: 61.2857676 | I151: 58.926198 | J151: 74.51791289 | K151: 67.36055972 | L151: 31.6385811 | M151: 56.07310558 | N151: 57.64439672 | O151: 56.40664871 | P151: 54.98890606 | Q151: 48.85924256 | R151: 41.72344075 | S151: 64.24202348 | T151: 49.11358654 | U151: 58.90819573 | V151: 64.39141214 | W151: 32.33114084 | X151: 47.07236968 | Y151: 62.75472545 | BA151: Shared among all sanitation facilities | BB151: Yes | BC151: N/A | BD151: N/A | BE151: N/A | BF151: N/A | BG151: N/A | BH151: N/A | BI151: N/A | BJ151: N/A | BK151: N/A | BL151: N/A | BM151: N/A | BN151: N/A | BO151: N/A | BP151: N/A | BQ151: N/A | BR151: N/A | BS151: N/A | BT151: N/A | BU151: N/A | BV151: N/A | BW151: N/A | BX151: N/A | BY151: N/A
B152: No | C152: 41.80757573 | D152: 39.24274606 | E152: 45.12871484 | F152: 44.52526385 | G152: 40.22670533 | H152: 38.03696285 | I152: 39.17369284 | J152: 23.73672288 | K152: 30.38874455 | L152: 67.47388478 | M152: 42.861594 | N152: 40.93193832 | O152: 43.06411298 | P152: 44.77444931 | Q152: 49.76906915 | R152: 56.06494712 | S152: 33.79681661 | T152: 50.17792125 | U152: 40.39694998 | V152: 35.60858786 | W152: 63.42926717 | X152: 51.15977833 | Y152: 37.01447192 | BB152: No | BC152: N/A | BD152: N/A | BE152: N/A | BF152: N/A | BG152: N/A | BH152: N/A | BI152: N/A | BJ152: N/A | BK152: N/A | BL152: N/A | BM152: N/A | BN152: N/A | BO152: N/A | BP152: N/A | BQ152: N/A | BR152: N/A | BS152: N/A | BT152: N/A | BU152: N/A | BV152: N/A | BW152: N/A | BX152: N/A | BY152: N/A
A153: Type of toilet facility | B153: Flush toilet | C153: 0 | D153: 0 | E153: 0.5663291333 | F153: 1.026639395 | G153: 11.89215567 | H153: 0 | I153: 1.190794581 | J153: 1.254347099 | K153: 5.405620625 | L153: 32.7921796 | M153: 0 | N153: 0 | O153: 0.2620741393 | P153: 1.188513242 | Q153: 1.992126717 | R153: 2.432190629 | S153: 12.57708488 | T153: 0 | U153: 0.2374271036 | V153: 0.7257276503 | W153: 0.2198391012 | X153: 0.3346071232 | Y153: 2.024765123 | BA153: Type of toilet facility | BB153: Flush toilet | BC153: 0 | BD153: 0 | BE153: 56.754678 | BF153: 71.702416 | BG153: 922.943132 | BH153: 0 | BI153: 24.367322 | BJ153: 28.326376 | BK153: 134.609668 | BL153: 691.743309 | BM153: 0 | BN153: 0 | BO153: 11.92884 | BP153: 32.960175 | BQ153: 127.464536 | BR153: 108.870208 | BS153: 701.290851 | BT153: 0 | BU153: 11.82375 | BV153: 38.161631 | BW153: 8.89017 | BX153: 9.156792 | BY153: 173.206824
B154: Open latrine | C154: 32.97077071 | D154: 43.3198735 | E154: 55.35878079 | F154: 54.28678737 | G154: 27.60032714 | H154: 64.88696479 | I154: 45.86299486 | J154: 38.59705729 | K154: 20.46285888 | L154: 15.34169863 | M154: 26.89249377 | N154: 44.30457357 | O154: 61.07504684 | P154: 49.93395987 | Q154: 51.57968662 | R154: 51.92375453 | S154: 24.52564776 | T154: 65.24894184 | U154: 71.64481647 | V154: 54.10718569 | W154: 30.47250112 | X154: 32.38116077 | Y154: 28.7274342 | BB154: Open latrine | BC154: 2612.111458 | BD154: 2624.678839 | BE154: 5547.780599 | BF154: 3791.490791 | BG154: 2142.044982 | BH154: 1666.517669 | BI154: 938.498026 | BJ154: 871.620589 | BK154: 509.56196 | BL154: 323.629521 | BM154: 1638.569125 | BN154: 3304.689513 | BO154: 2779.955564 | BP154: 1384.782262 | BQ154: 3300.28244 | BR154: 2324.221584 | BS154: 1367.535685 | BT154: 2037.412407 | BU154: 3567.875722 | BV154: 2845.169884 | BW154: 1232.290861 | BX154: 886.136407 | BY154: 2457.464119
B155: Covered latrine | C155: 8.642657428 | D155: 6.379640485 | E155: 15.690483 | F155: 35.56018547 | G155: 55.82031222 | H155: 26.00452744 | I155: 50.32123562 | J155: 55.02670195 | K155: 69.08386648 | L155: 47.17171992 | M155: 5.7073206 | N155: 8.785852984 | O155: 14.19137609 | P155: 13.70518724 | Q155: 27.7362665 | R155: 10.47635433 | S155: 58.60416022 | T155: 13.38124548 | U155: 21.5343299 | V155: 26.09855708 | W155: 14.30209323 | X155: 19.9923492 | Y155: 20.27829869 | BB155: Covered latrine | BC155: 684.715098 | BD155: 386.53177 | BE155: 1572.421862 | BF155: 2483.58988 | BG155: 4332.181249 | BH155: 667.884599 | BI155: 1029.727353 | BJ155: 1242.644122 | BK155: 1720.312426 | BL155: 995.076327 | BM155: 347.749056 | BN155: 655.339029 | BO155: 645.949483 | BP155: 380.076009 | BQ155: 1774.681455 | BR155: 468.944688 | BS155: 3267.733483 | BT155: 417.832302 | BU155: 1072.398767 | BV155: 1372.365383 | BW155: 578.368632 | BX155: 547.106653 | BY155: 1734.689951
B156: Ventilated improved pit latrine | C156: 0.8923284929 | D156: 2.728627625 | E156: 1.517600774 | F156: 1.357013979 | G156: 4.174385626 | H156: 0.1537668097 | I156: 2.299968204 | J156: 4.111905684 | K156: 4.924889136 | L156: 4.066412575 | M156: 1.078068078 | N156: 2.283551722 | O156: 2.551284729 | P156: 0.1273542872 | Q156: 1.545475277 | R156: 8.1703222 | S156: 3.591656543 | T156: 0.6234180414 | U156: 0.02200763255 | V156: 3.097306321 | W156: 0.3705855778 | X156: 0 | Y156: 0.4961722679 | BB156: Ventilated improved pit latrine | BC156: 70.694783 | BD156: 165.322994 | BE156: 152.086372 | BF156: 94.776395 | BG156: 323.971587 | BH156: 3.949254 | BI156: 47.064428 | BJ156: 92.857381 | BK156: 122.63859 | BL156: 85.780016 | BM156: 65.687068 | BN156: 170.330709 | BO156: 116.126938 | BP156: 3.531824 | BQ156: 98.885923 | BR156: 365.721612 | BS156: 200.268655 | BT156: 19.466364 | BU156: 1.095969 | BV156: 162.86862 | BW156: 14.986273 | BX156: 0 | BY156: 42.444638
B157: No facility, bush, field | C157: 57.49424337 | D157: 47.57185839 | E157: 26.8668063 | F157: 7.769373782 | G157: 0.5128193512 | H157: 8.954740959 | I157: 0.325006732 | J157: 1.009987976 | K157: 0.1227648747 | L157: 0.6279892787 | M157: 66.32211755 | N157: 44.62602173 | O157: 21.92021819 | P157: 35.04498537 | Q157: 17.14644489 | R157: 26.99737831 | S157: 0.7014505888 | T157: 20.74639464 | U157: 6.561418888 | V157: 15.97122326 | W157: 54.63498097 | X157: 47.2918829 | Y157: 48.47332973 | BB157: No facility, bush, field | BC157: 4554.985178 | BD157: 2882.299507 | BE157: 2692.457179 | BF157: 542.6276 | BG157: 39.799605 | BH157: 229.988166 | BI157: 6.650638 | BJ157: 22.80812 | BK157: 3.057066 | BL157: 13.247286 | BM157: 4041.030001 | BN157: 3328.666414 | BO157: 997.743525 | BP157: 971.87714 | BQ157: 1097.100713 | BR157: 1208.462099 | BS157: 39.112472 | BT157: 647.810687 | BU157: 326.755351 | BV157: 839.830105 | BW157: 2209.408 | BX157: 1294.180264 | BY157: 4146.610091
BB158: Total | BC158: 7922.506517 | BD158: 6058.83311 | BE158: 10021.50069 | BF158: 6984.187082 | BG158: 7760.940555 | BH158: 2568.339688 | BI158: 2046.307767 | BJ158: 2258.256588 | BK158: 2490.17971 | BL158: 2109.476459 | BM158: 6093.03525 | BN158: 7459.025665 | BO158: 4551.70435 | BP158: 2773.22741 | BQ158: 6398.415067 | BR158: 4476.220191 | BS158: 5575.941146 | BT158: 3122.52176 | BU158: 4979.949559 | BV158: 5258.395623 | BW158: 4043.943936 | BX158: 2736.580116 | BY158: 8554.415623
A208: =A1026 -> Guinea
A209: =A1034 -> 2005
A210: Access to hygiene facilities
A211: by wealth quintile and sub-national region
A212: Notes:
A213: WHO/UNICEF JMP customised wealth index excludes water,
A214: sanitation and hygiene assets.
A215: Survey used for analysis: | B215: =A1025 -> DHS05
A220: Access to handwashing | C220: NATIONAL wealth index quintile | H220: URBAN wealth index quintile | M220: RURAL wealth index quintile | R220: SUB-REGIONS: | BA220: Raw numbers of respondents: | BB220: Access to handwashing | BC220: NATIONAL wealth index quintile | BH220: URBAN wealth index quintile | BM220: RURAL wealth index quintile | BR220: SUB-REGIONS:
A221: Weighted percentage (used in graphs) | C221: Poorest | D221: Poor | E221: Middle | F221: Rich | G221: Richest | H221: Poorest | I221: Poor | J221: Middle | K221: Rich | L221: Richest | M221: Poorest | N221: Poor | O221: Middle | P221: Rich | Q221: Richest | R221: Boké | S221: Conakry | T221: Faranah | U221: Kankan | V221: Kindia | W221: Labé | X221: Mamou | Y221: N'Zérékoré | BA221: Hygiene data, raw numbers (weighted) | BC221: Poorest | BD221: Poor | BE221: Middle | BF221: Rich | BG221: Richest | BH221: Poorest | BI221: Poor | BJ221: Middle | BK221: Rich | BL221: Richest | BM221: Poorest | BN221: Poor | BO221: Middle | BP221: Rich | BQ221: Richest | BR221: Boké | BS221: Conakry | BT221: Faranah | BU221: Kankan | BV221: Kindia | BW221: Labé | BX221: Mamou | BY221: N'Zérékoré
A222: Hygiene ladder | B222: Basic | C222: N/A | D222: N/A | E222: N/A | F222: N/A | G222: N/A | H222: N/A | I222: N/A | J222: N/A | K222: N/A | L222: N/A | M222: N/A | N222: N/A | O222: N/A | P222: N/A | Q222: N/A | R222: N/A | S222: N/A | T222: N/A | U222: N/A | V222: N/A | W222: N/A | X222: N/A | Y222: N/A | BA222: Hygiene ladder | BB222: Basic | BC222: N/A | BD222: N/A | BE222: N/A | BF222: N/A | BG222: N/A | BH222: N/A | BI222: N/A | BJ222: N/A | BK222: N/A | BL222: N/A | BM222: N/A | BN222: N/A | BO222: N/A | BP222: N/A | BQ222: N/A | BR222: N/A | BS222: N/A | BT222: N/A | BU222: N/A | BV222: N/A | BW222: N/A | BX222: N/A | BY222: N/A
B223: Limited | C223: N/A | D223: N/A | E223: N/A | F223: N/A | G223: N/A | H223: N/A | I223: N/A | J223: N/A | K223: N/A | L223: N/A | M223: N/A | N223: N/A | O223: N/A | P223: N/A | Q223: N/A | R223: N/A | S223: N/A | T223: N/A | U223: N/A | V223: N/A | W223: N/A | X223: N/A | Y223: N/A | BB223: Limited | BC223: N/A | BD223: N/A | BE223: N/A | BF223: N/A | BG223: N/A | BH223: N/A | BI223: N/A | BJ223: N/A | BK223: N/A | BL223: N/A | BM223: N/A | BN223: N/A | BO223: N/A | BP223: N/A | BQ223: N/A | BR223: N/A | BS223: N/A | BT223: N/A | BU223: N/A | BV223: N/A | BW223: N/A | BX223: N/A | BY223: N/A
B224: No facility | C224: N/A | D224: N/A | E224: N/A | F224: N/A | G224: N/A | H224: N/A | I224: N/A | J224: N/A | K224: N/A | L224: N/A | M224: N/A | N224: N/A | O224: N/A | P224: N/A | Q224: N/A | R224: N/A | S224: N/A | T224: N/A | U224: N/A | V224: N/A | W224: N/A | X224: N/A | Y224: N/A | BB224: No facility | BC224: N/A | BD224: N/A | BE224: N/A | BF224: N/A | BG224: N/A | BH224: N/A | BI224: N/A | BJ224: N/A | BK224: N/A | BL224: N/A | BM224: N/A | BN224: N/A | BO224: N/A | BP224: N/A | BQ224: N/A | BR224: N/A | BS224: N/A | BT224: N/A | BU224: N/A | BV224: N/A | BW224: N/A | BX224: N/A | BY224: N/A
BA225: Observed handwashing place | BB225: Fixed | BC225: N/A | BD225: N/A | BE225: N/A | BF225: N/A | BG225: N/A | BH225: N/A | BI225: N/A | BJ225: N/A | BK225: N/A | BL225: N/A | BM225: N/A | BN225: N/A | BO225: N/A | BP225: N/A | BQ225: N/A | BR225: N/A | BS225: N/A | BT225: N/A | BU225: N/A | BV225: N/A | BW225: N/A | BX225: N/A | BY225: N/A
BB226: Mobile | BC226: N/A | BD226: N/A | BE226: N/A | BF226: N/A | BG226: N/A | BH226: N/A | BI226: N/A | BJ226: N/A | BK226: N/A | BL226: N/A | BM226: N/A | BN226: N/A | BO226: N/A | BP226: N/A | BQ226: N/A | BR226: N/A | BS226: N/A | BT226: N/A | BU226: N/A | BV226: N/A | BW226: N/A | BX226: N/A | BY226: N/A
BA227: Water / Soap | BB227: Water and soap | BC227: N/A | BD227: N/A | BE227: N/A | BF227: N/A | BG227: N/A | BH227: N/A | BI227: N/A | BJ227: N/A | BK227: N/A | BL227: N/A | BM227: N/A | BN227: N/A | BO227: N/A | BP227: N/A | BQ227: N/A | BR227: N/A | BS227: N/A | BT227: N/A | BU227: N/A | BV227: N/A | BW227: N/A | BX227: N/A | BY227: N/A
BB228: Water only | BC228: N/A | BD228: N/A | BE228: N/A | BF228: N/A | BG228: N/A | BH228: N/A | BI228: N/A | BJ228: N/A | BK228: N/A | BL228: N/A | BM228: N/A | BN228: N/A | BO228: N/A | BP228: N/A | BQ228: N/A | BR228: N/A | BS228: N/A | BT228: N/A | BU228: N/A | BV228: N/A | BW228: N/A | BX228: N/A | BY228: N/A
BB229: Soap only | BC229: N/A | BD229: N/A | BE229: N/A | BF229: N/A | BG229: N/A | BH229: N/A | BI229: N/A | BJ229: N/A | BK229: N/A | BL229: N/A | BM229: N/A | BN229: N/A | BO229: N/A | BP229: N/A | BQ229: N/A | BR229: N/A | BS229: N/A | BT229: N/A | BU229: N/A | BV229: N/A | BW229: N/A | BX229: N/A | BY229: N/A
BB230: Neither | BC230: N/A | BD230: N/A | BE230: N/A | BF230: N/A | BG230: N/A | BH230: N/A | BI230: N/A | BJ230: N/A | BK230: N/A | BL230: N/A | BM230: N/A | BN230: N/A | BO230: N/A | BP230: N/A | BQ230: N/A | BR230: N/A | BS230: N/A | BT230: N/A | BU230: N/A | BV230: N/A | BW230: N/A | BX230: N/A | BY230: N/A
BA259: Raw numbers of respondents: | BB259: Menstrual health and hygiene | BC259: NATIONAL wealth index quintile | BH259: URBAN wealth index quintile | BM259: RURAL wealth index quintile | BR259: SUB-REGIONS:
BA260: MHH data, raw numbers (weighted) | BC260: Poorest | BD260: Poor | BE260: Middle | BF260: Rich | BG260: Richest | BH260: Poorest | BI260: Poor | BJ260: Middle | BK260: Rich | BL260: Richest | BM260: Poorest | BN260: Poor | BO260: Middle | BP260: Rich | BQ260: Richest | BR260: Boké | BS260: Conakry | BT260: Faranah | BU260: Kankan | BV260: Kindia | BW260: Labé | BX260: Mamou | BY260: N'Zérékoré
BA261: Private place to wash and change | BB261: Yes | BC261: N/A | BD261: N/A | BE261: N/A | BF261: N/A | BG261: N/A | BH261: N/A | BI261: N/A | BJ261: N/A | BK261: N/A | BL261: N/A | BM261: N/A | BN261: N/A | BO261: N/A | BP261: N/A | BQ261: N/A | BR261: N/A | BS261: N/A | BT261: N/A | BU261: N/A | BV261: N/A | BW261: N/A | BX261: N/A | BY261: N/A
BB262: No | BC262: N/A | BD262: N/A | BE262: N/A | BF262: N/A | BG262: N/A | BH262: N/A | BI262: N/A | BJ262: N/A | BK262: N/A | BL262: N/A | BM262: N/A | BN262: N/A | BO262: N/A | BP262: N/A | BQ262: N/A | BR262: N/A | BS262: N/A | BT262: N/A | BU262: N/A | BV262: N/A | BW262: N/A | BX262: N/A | BY262: N/A
BB263: DK/not sure/missing | BC263: N/A | BD263: N/A | BE263: N/A | BF263: N/A | BG263: N/A | BH263: N/A | BI263: N/A | BJ263: N/A | BK263: N/A | BL263: N/A | BM263: N/A | BN263: N/A | BO263: N/A | BP263: N/A | BQ263: N/A | BR263: N/A | BS263: N/A | BT263: N/A | BU263: N/A | BV263: N/A | BW263: N/A | BX263: N/A | BY263: N/A
BA264: Use of menstrual materials | BB264: Materials reusable | BC264: N/A | BD264: N/A | BE264: N/A | BF264: N/A | BG264: N/A | BH264: N/A | BI264: N/A | BJ264: N/A | BK264: N/A | BL264: N/A | BM264: N/A | BN264: N/A | BO264: N/A | BP264: N/A | BQ264: N/A | BR264: N/A | BS264: N/A | BT264: N/A | BU264: N/A | BV264: N/A | BW264: N/A | BX264: N/A | BY264: N/A
BB265: Materials not reusable | BC265: N/A | BD265: N/A | BE265: N/A | BF265: N/A | BG265: N/A | BH265: N/A | BI265: N/A | BJ265: N/A | BK265: N/A | BL265: N/A | BM265: N/A | BN265: N/A | BO265: N/A | BP265: N/A | BQ265: N/A | BR265: N/A | BS265: N/A | BT265: N/A | BU265: N/A | BV265: N/A | BW265: N/A | BX265: N/A | BY265: N/A
BB266: No materials used | BC266: N/A | BD266: N/A | BE266: N/A | BF266: N/A | BG266: N/A | BH266: N/A | BI266: N/A | BJ266: N/A | BK266: N/A | BL266: N/A | BM266: N/A | BN266: N/A | BO266: N/A | BP266: N/A | BQ266: N/A | BR266: N/A | BS266: N/A | BT266: N/A | BU266: N/A | BV266: N/A | BW266: N/A | BX266: N/A | BY266: N/A
BB267: DK/not sure/missing | BC267: N/A | BD267: N/A | BE267: N/A | BF267: N/A | BG267: N/A | BH267: N/A | BI267: N/A | BJ267: N/A | BK267: N/A | BL267: N/A | BM267: N/A | BN267: N/A | BO267: N/A | BP267: N/A | BQ267: N/A | BR267: N/A | BS267: N/A | BT267: N/A | BU267: N/A | BV267: N/A | BW267: N/A | BX267: N/A | BY267: N/A
BA268: Use of menstrual materials with private place to wash and change | BB268: Materials reusable | BC268: N/A | BD268: N/A | BE268: N/A | BF268: N/A | BG268: N/A | BH268: N/A | BI268: N/A | BJ268: N/A | BK268: N/A | BL268: N/A | BM268: N/A | BN268: N/A | BO268: N/A | BP268: N/A | BQ268: N/A | BR268: N/A | BS268: N/A | BT268: N/A | BU268: N/A | BV268: N/A | BW268: N/A | BX268: N/A | BY268: N/A
BB269: Materials not reusable | BC269: N/A | BD269: N/A | BE269: N/A | BF269: N/A | BG269: N/A | BH269: N/A | BI269: N/A | BJ269: N/A | BK269: N/A | BL269: N/A | BM269: N/A | BN269: N/A | BO269: N/A | BP269: N/A | BQ269: N/A | BR269: N/A | BS269: N/A | BT269: N/A | BU269: N/A | BV269: N/A | BW269: N/A | BX269: N/A | BY269: N/A
BB270: No materials used | BC270: N/A | BD270: N/A | BE270: N/A | BF270: N/A | BG270: N/A | BH270: N/A | BI270: N/A | BJ270: N/A | BK270: N/A | BL270: N/A | BM270: N/A | BN270: N/A | BO270: N/A | BP270: N/A | BQ270: N/A | BR270: N/A | BS270: N/A | BT270: N/A | BU270: N/A | BV270: N/A | BW270: N/A | BX270: N/A | BY270: N/A
BA271: Awareness of menstruation before menarche | BB271: Yes | BC271: N/A | BD271: N/A | BE271: N/A | BF271: N/A | BG271: N/A | BH271: N/A | BI271: N/A | BJ271: N/A | BK271: N/A | BL271: N/A | BM271: N/A | BN271: N/A | BO271: N/A | BP271: N/A | BQ271: N/A | BR271: N/A | BS271: N/A | BT271: N/A | BU271: N/A | BV271: N/A | BW271: N/A | BX271: N/A | BY271: N/A
BB272: No | BC272: N/A | BD272: N/A | BE272: N/A | BF272: N/A | BG272: N/A | BH272: N/A | BI272: N/A | BJ272: N/A | BK272: N/A | BL272: N/A | BM272: N/A | BN272: N/A | BO272: N/A | BP272: N/A | BQ272: N/A | BR272: N/A | BS272: N/A | BT272: N/A | BU272: N/A | BV272: N/A | BW272: N/A | BX272: N/A | BY272: N/A
BB273: DK/not sure/missing | BC273: N/A | BD273: N/A | BE273: N/A | BF273: N/A | BG273: N/A | BH273: N/A | BI273: N/A | BJ273: N/A | BK273: N/A | BL273: N/A | BM273: N/A | BN273: N/A | BO273: N/A | BP273: N/A | BQ273: N/A | BR273: N/A | BS273: N/A | BT273: N/A | BU273: N/A | BV273: N/A | BW273: N/A | BX273: N/A | BY273: N/A
BA274: Participation in (all) activities during menstruation | BB274: Yes | BC274: N/A | BD274: N/A | BE274: N/A | BF274: N/A | BG274: N/A | BH274: N/A | BI274: N/A | BJ274: N/A | BK274: N/A | BL274: N/A | BM274: N/A | BN274: N/A | BO274: N/A | BP274: N/A | BQ274: N/A | BR274: N/A | BS274: N/A | BT274: N/A | BU274: N/A | BV274: N/A | BW274: N/A | BX274: N/A | BY274: N/A
BB275: No | BC275: N/A | BD275: N/A | BE275: N/A | BF275: N/A | BG275: N/A | BH275: N/A | BI275: N/A | BJ275: N/A | BK275: N/A | BL275: N/A | BM275: N/A | BN275: N/A | BO275: N/A | BP275: N/A | BQ275: N/A | BR275: N/A | BS275: N/A | BT275: N/A | BU275: N/A | BV275: N/A | BW275: N/A | BX275: N/A | BY275: N/A
BB276: DK/not sure/missing/no such activity | BC276: N/A | BD276: N/A | BE276: N/A | BF276: N/A | BG276: N/A | BH276: N/A | BI276: N/A | BJ276: N/A | BK276: N/A | BL276: N/A | BM276: N/A | BN276: N/A | BO276: N/A | BP276: N/A | BQ276: N/A | BR276: N/A | BS276: N/A | BT276: N/A | BU276: N/A | BV276: N/A | BW276: N/A | BX276: N/A | BY276: N/A
BA277: Participation in specific activities during menstruation | BB277: Did not go to school (amongst those usually attending school) | BC277: N/A | BD277: N/A | BE277: N/A | BF277: N/A | BG277: N/A | BH277: N/A | BI277: N/A | BJ277: N/A | BK277: N/A | BL277: N/A | BM277: N/A | BN277: N/A | BO277: N/A | BP277: N/A | BQ277: N/A | BR277: N/A | BS277: N/A | BT277: N/A | BU277: N/A | BV277: N/A | BW277: N/A | BX277: N/A | BY277: N/A
BB278: Did not go to work (amongst those who usually work) | BC278: N/A | BD278: N/A | BE278: N/A | BF278: N/A | BG278: N/A | BH278: N/A | BI278: N/A | BJ278: N/A | BK278: N/A | BL278: N/A | BM278: N/A | BN278: N/A | BO278: N/A | BP278: N/A | BQ278: N/A | BR278: N/A | BS278: N/A | BT278: N/A | BU278: N/A | BV278: N/A | BW278: N/A | BX278: N/A | BY278: N/A
BB279: Did not participate in social activities | BC279: N/A | BD279: N/A | BE279: N/A | BF279: N/A | BG279: N/A | BH279: N/A | BI279: N/A | BJ279: N/A | BK279: N/A | BL279: N/A | BM279: N/A | BN279: N/A | BO279: N/A | BP279: N/A | BQ279: N/A | BR279: N/A | BS279: N/A | BT279: N/A | BU279: N/A | BV279: N/A | BW279: N/A | BX279: N/A | BY279: N/A
BB280: Did not cook food | BC280: N/A | BD280: N/A | BE280: N/A | BF280: N/A | BG280: N/A | BH280: N/A | BI280: N/A | BJ280: N/A | BK280: N/A | BL280: N/A | BM280: N/A | BN280: N/A | BO280: N/A | BP280: N/A | BQ280: N/A | BR280: N/A | BS280: N/A | BT280: N/A | BU280: N/A | BV280: N/A | BW280: N/A | BX280: N/A | BY280: N/A
BB281: Did not eat with others | BC281: N/A | BD281: N/A | BE281: N/A | BF281: N/A | BG281: N/A | BH281: N/A | BI281: N/A | BJ281: N/A | BK281: N/A | BL281: N/A | BM281: N/A | BN281: N/A | BO281: N/A | BP281: N/A | BQ281: N/A | BR281: N/A | BS281: N/A | BT281: N/A | BU281: N/A | BV281: N/A | BW281: N/A | BX281: N/A | BY281: N/A
BB282: Did not bathe in regular place | BC282: N/A | BD282: N/A | BE282: N/A | BF282: N/A | BG282: N/A | BH282: N/A | BI282: N/A | BJ282: N/A | BK282: N/A | BL282: N/A | BM282: N/A | BN282: N/A | BO282: N/A | BP282: N/A | BQ282: N/A | BR282: N/A | BS282: N/A | BT282: N/A | BU282: N/A | BV282: N/A | BW282: N/A | BX282: N/A | BY282: N/A
BB283: Did not participate in other activities | BC283: N/A | BD283: N/A | BE283: N/A | BF283: N/A | BG283: N/A | BH283: N/A | BI283: N/A | BJ283: N/A | BK283: N/A | BL283: N/A | BM283: N/A | BN283: N/A | BO283: N/A | BP283: N/A | BQ283: N/A | BR283: N/A | BS283: N/A | BT283: N/A | BU283: N/A | BV283: N/A | BW283: N/A | BX283: N/A | BY283: N/A
BB284: DK/not sure/missing/no such activity | BC284: N/A | BD284: N/A | BE284: N/A | BF284: N/A | BG284: N/A | BH284: N/A | BI284: N/A | BJ284: N/A | BK284: N/A | BL284: N/A | BM284: N/A | BN284: N/A | BO284: N/A | BP284: N/A | BQ284: N/A | BR284: N/A | BS284: N/A | BT284: N/A | BU284: N/A | BV284: N/A | BW284: N/A | BX284: N/A | BY284: N/A
BA339: Raw numbers of respondents: | BB339: Basic water, sanitation and hygiene | BC339: NATIONAL wealth index quintile | BH339: URBAN wealth index quintile | BM339: RURAL wealth index quintile | BR339: SUB-REGIONS:
BA340: WatSan data, raw numbers (weighted) | BC340: Poorest | BD340: Poor | BE340: Middle | BF340: Rich | BG340: Richest | BH340: Poorest | BI340: Poor | BJ340: Middle | BK340: Rich | BL340: Richest | BM340: Poorest | BN340: Poor | BO340: Middle | BP340: Rich | BQ340: Richest | BR340: Boké | BS340: Conakry | BT340: Faranah | BU340: Kankan | BV340: Kindia | BW340: Labé | BX340: Mamou | BY340: N'Zérékoré
BA341: Use of Basic Water Sanitation and Hygiene | BB341: Yes | BC341: N/A | BD341: N/A | BE341: N/A | BF341: N/A | BG341: N/A | BH341: N/A | BI341: N/A | BJ341: N/A | BK341: N/A | BL341: N/A | BM341: N/A | BN341: N/A | BO341: N/A | BP341: N/A | BQ341: N/A | BR341: N/A | BS341: N/A | BT341: N/A | BU341: N/A | BV341: N/A | BW341: N/A | BX341: N/A | BY341: N/A
BB342: No | BC342: N/A | BD342: N/A | BE342: N/A | BF342: N/A | BG342: N/A | BH342: N/A | BI342: N/A | BJ342: N/A | BK342: N/A | BL342: N/A | BM342: N/A | BN342: N/A | BO342: N/A | BP342: N/A | BQ342: N/A | BR342: N/A | BS342: N/A | BT342: N/A | BU342: N/A | BV342: N/A | BW342: N/A | BX342: N/A | BY342: N/A
BA343: Use of Basic Water and Sanitation | BB343: Yes | BC343: N/A | BD343: N/A | BE343: N/A | BF343: N/A | BG343: N/A | BH343: N/A | BI343: N/A | BJ343: N/A | BK343: N/A | BL343: N/A | BM343: N/A | BN343: N/A | BO343: N/A | BP343: N/A | BQ343: N/A | BR343: N/A | BS343: N/A | BT343: N/A | BU343: N/A | BV343: N/A | BW343: N/A | BX343: N/A | BY343: N/A
BB344: No | BC344: N/A | BD344: N/A | BE344: N/A | BF344: N/A | BG344: N/A | BH344: N/A | BI344: N/A | BJ344: N/A | BK344: N/A | BL344: N/A | BM344: N/A | BN344: N/A | BO344: N/A | BP344: N/A | BQ344: N/A | BR344: N/A | BS344: N/A | BT344: N/A | BU344: N/A | BV344: N/A | BW344: N/A | BX344: N/A | BY344: N/A
BA345: Use of Basic Water and Hygiene | BB345: Yes | BC345: N/A | BD345: N/A | BE345: N/A | BF345: N/A | BG345: N/A | BH345: N/A | BI345: N/A | BJ345: N/A | BK345: N/A | BL345: N/A | BM345: N/A | BN345: N/A | BO345: N/A | BP345: N/A | BQ345: N/A | BR345: N/A | BS345: N/A | BT345: N/A | BU345: N/A | BV345: N/A | BW345: N/A | BX345: N/A | BY345: N/A
BB346: No | BC346: N/A | BD346: N/A | BE346: N/A | BF346: N/A | BG346: N/A | BH346: N/A | BI346: N/A | BJ346: N/A | BK346: N/A | BL346: N/A | BM346: N/A | BN346: N/A | BO346: N/A | BP346: N/A | BQ346: N/A | BR346: N/A | BS346: N/A | BT346: N/A | BU346: N/A | BV346: N/A | BW346: N/A | BX346: N/A | BY346: N/A
BA347: Use of Basic Sanitation and Hygiene | BB347: Yes | BC347: N/A | BD347: N/A | BE347: N/A | BF347: N/A | BG347: N/A | BH347: N/A | BI347: N/A | BJ347: N/A | BK347: N/A | BL347: N/A | BM347: N/A | BN347: N/A | BO347: N/A | BP347: N/A | BQ347: N/A | BR347: N/A | BS347: N/A | BT347: N/A | BU347: N/A | BV347: N/A | BW347: N/A | BX347: N/A | BY347: N/A
BB348: No | BC348: N/A | BD348: N/A | BE348: N/A | BF348: N/A | BG348: N/A | BH348: N/A | BI348: N/A | BJ348: N/A | BK348: N/A | BL348: N/A | BM348: N/A | BN348: N/A | BO348: N/A | BP348: N/A | BQ348: N/A | BR348: N/A | BS348: N/A | BT348: N/A | BU348: N/A | BV348: N/A | BW348: N/A | BX348: N/A | BY348: N/A
BA349: Use of Basic Water | BB349: Yes | BC349: N/A | BD349: N/A | BE349: N/A | BF349: N/A | BG349: N/A | BH349: N/A | BI349: N/A | BJ349: N/A | BK349: N/A | BL349: N/A | BM349: N/A | BN349: N/A | BO349: N/A | BP349: N/A | BQ349: N/A | BR349: N/A | BS349: N/A | BT349: N/A | BU349: N/A | BV349: N/A | BW349: N/A | BX349: N/A | BY349: N/A
BB350: No | BC350: N/A | BD350: N/A | BE350: N/A | BF350: N/A | BG350: N/A | BH350: N/A | BI350: N/A | BJ350: N/A | BK350: N/A | BL350: N/A | BM350: N/A | BN350: N/A | BO350: N/A | BP350: N/A | BQ350: N/A | BR350: N/A | BS350: N/A | BT350: N/A | BU350: N/A | BV350: N/A | BW350: N/A | BX350: N/A | BY350: N/A
BA351: Use of Basic Sanitation | BB351: Yes | BC351: N/A | BD351: N/A | BE351: N/A | BF351: N/A | BG351: N/A | BH351: N/A | BI351: N/A | BJ351: N/A | BK351: N/A | BL351: N/A | BM351: N/A | BN351: N/A | BO351: N/A | BP351: N/A | BQ351: N/A | BR351: N/A | BS351: N/A | BT351: N/A | BU351: N/A | BV351: N/A | BW351: N/A | BX351: N/A | BY351: N/A
BB352: No | BC352: N/A | BD352: N/A | BE352: N/A | BF352: N/A | BG352: N/A | BH352: N/A | BI352: N/A | BJ352: N/A | BK352: N/A | BL352: N/A | BM352: N/A | BN352: N/A | BO352: N/A | BP352: N/A | BQ352: N/A | BR352: N/A | BS352: N/A | BT352: N/A | BU352: N/A | BV352: N/A | BW352: N/A | BX352: N/A | BY352: N/A
BA353: Access to Basic Hygiene | BB353: Yes | BC353: N/A | BD353: N/A | BE353: N/A | BF353: N/A | BG353: N/A | BH353: N/A | BI353: N/A | BJ353: N/A | BK353: N/A | BL353: N/A | BM353: N/A | BN353: N/A | BO353: N/A | BP353: N/A | BQ353: N/A | BR353: N/A | BS353: N/A | BT353: N/A | BU353: N/A | BV353: N/A | BW353: N/A | BX353: N/A | BY353: N/A
BB354: No | BC354: N/A | BD354: N/A | BE354: N/A | BF354: N/A | BG354: N/A | BH354: N/A | BI354: N/A | BJ354: N/A | BK354: N/A | BL354: N/A | BM354: N/A | BN354: N/A | BO354: N/A | BP354: N/A | BQ354: N/A | BR354: N/A | BS354: N/A | BT354: N/A | BU354: N/A | BV354: N/A | BW354: N/A | BX354: N/A | BY354: N/A
C399: INITIAL (national) Wealth Index | H399: URBAN Wealth Index | M399: RURAL Wealth Index
C400: Component Matrix | H400: Component Matrix | M400: Component Matrix
E401: Component | J401: Component | O401: Component
B402: Note: The INITIAL (national) Wealth Index is based on the first component of the Principal Component Analysis (PCA) which has been obtained at national level. The final national-level (NATIONAL) Wealth Index is based on the URBAN and RURAL specific wealth indexes. Regression procedures are used to establish the relationships between the two sets of scores (urban and rural) and the initial (national) wealth factors. This allows best use of the available information for each area and a better precision of the FINAL (NATIONAL) Wealth Index. For dependency reasons, all WASH variables (contained in the generic MICS and DHS scripts) have been excluded from the sets of asset variables used in the PCAs. The PCA can extracts as many components as there are asset variables in the input. Only the first of the components is used to represent the Wealth Index. The scores represent the weights of the asset variables on the Wealth Index (correlations between the variables and the component). The communalities are the proportion of each variable's variance that can be explained by the component. Proportion of explained variance is the part of the model's total variance that is explained by the component. For more information on the procedure used: The DHS Wealth Index, DHS Comparative Reports No. 6, Shea Oscar Rutstein, Kiersten Johnson, ORC Macro International Inc., 2004. The DHS Wealth Index: Approaches for Rural and Urban Areas, Shea O. Rutstein, ORC Macro International Inc., 2008. MICS Methodological Paper No. 4, Review of options for reporting water, sanitation and hygiene coverage by wealth quintile, UNICEF, 2016. | E402: 1 | J402: 1 | O402: 1
C403: Has electricity | E403: 0.8165211551 | H403: Has television | J403: 0.732276492 | M403: Has television | O403: 0.7215119117
C404: if uses charcoal for cooking fuel (+17 cases wood) | E404: -0.7999105463 | H404: Has electricity | J404: 0.7185264185 | M404: Has refrigerator | O404: 0.6831648076
C405: Has television | E405: 0.7827817607 | H405: if uses charcoal for cooking fuel (+17 cases wood) | J405: -0.693877826 | M405: Has telephone | O405: 0.5969475564
C406: if uses coal for cooking fuel | E406: 0.7784609539 | H406: Has refrigerator | J406: 0.6934266759 | M406: Has car/truck | O406: 0.5474311379
C407: Has refrigerator | E407: 0.714959009 | H407: if uses coal for cooking fuel | J407: 0.6902420518 | M407: Has electricity | O407: 0.5393877787
C408: if floors are made of earth | E408: -0.6881587453 | H408: Has telephone | J408: 0.6270867808 | M408: if uses charcoal for cooking fuel (+17 cases wood) | O408: -0.5286188482
C409: Has telephone | E409: 0.6569751343 | H409: if floors are made of tile/finished surface | J409: 0.4519815539 | M409: if uses coal for cooking fuel | O409: 0.510738754
C410: if floors are made of cement | E410: 0.5473018998 | H410: if floors are made of earth | J410: -0.4422947801 | M410: if floors are made of earth | O410: -0.456937295
C411: Has car/truck | E411: 0.4760097346 | H411: Has car/truck | J411: 0.3958945031 | M411: if floors are made of tile/finished surface | O411: 0.4303012922
C412: if floors are made of tile/finished surface | E412: 0.4381843196 | H412: Has bicycle | J412: -0.2332141408 | M412: if floors are made of cement | O412: 0.384617287
C413: Has radio | E413: 0.2338897546 | H413: Has radio | J413: 0.1702098494 | M413: Has motorcycle/scooter | O413: 0.2805095757
C414: Has motorcycle/scooter | E414: 0.2099762055 | H414: if uses electric or gas/kero for cooking fuel | J414: 0.07619131143 | M414: if uses electric or gas/kero for cooking fuel | O414: 0.2409699409
C415: Has bicycle | E415: -0.158690583 | H415: if uses other for cooking fuel | J415: -0.07356534333 | M415: Has radio | O415: 0.1257527277
C416: if uses electric or gas/kero for cooking fuel | E416: 0.1467658012 | H416: Has motorcycle/scooter | J416: -0.008298324015 | M416: if uses other for cooking fuel | O416: 0.06230301498
C417: if uses other for cooking fuel | E417: 0.08472553414 | H417: if floors are made of cement | J417: 0.005769122612 | M417: if floors are made of wood planks | O417: 0.009152550664
C418: if floors are made of wood planks | E418: -0.03022635749 | M418: Has bicycle | O418: 0.001937497168
... 97 more rows

Sheet QUIBB07
A2: =A1026 -> Guinea
A3: =A1034 -> 2007
A4: Use of drinking water sources
A5: by wealth quintile and sub-national region
A6: Notes:
A7: WHO/UNICEF JMP customised wealth index excludes water,
A8: sanitation and hygiene assets.
A9: Survey used for analysis: | B9: =A1025 -> QUIBB07
A10: =B1028 -> 
A11: =B1027 -> 
A14: Use of drinking water sources | C14: NATIONAL wealth index quintile | H14: URBAN wealth index quintile | M14: RURAL wealth index quintile | R14: région | BA14: Raw numbers of respondents: | BB14: Use of drinking water sources | BC14: NATIONAL wealth index quintile | BH14: URBAN wealth index quintile | BM14: RURAL wealth index quintile | BR14: SUB-REGIONS:
A15: Weighted percentage (used in graphs) | C15: Poorest | D15: Poor | E15: Middle | F15: Rich | G15: Richest | H15: Poorest | I15: Poor | J15: Middle | K15: Rich | L15: Richest | M15: Poorest | N15: Poor | O15: Middle | P15: Rich | Q15: Richest | R15: boké | S15: conakry | T15: faranah | U15: kankan | V15: kindia | W15: labé | X15: mamou | Y15: n'zérékoré | BA15: Water data, raw numbers (weighted) | BC15: Poorest | BD15: Poor | BE15: Middle | BF15: Rich | BG15: Richest | BH15: Poorest | BI15: Poor | BJ15: Middle | BK15: Rich | BL15: Richest | BM15: Poorest | BN15: Poor | BO15: Middle | BP15: Rich | BQ15: Richest | BR15: boké | BS15: conakry | BT15: faranah | BU15: kankan | BV15: kindia | BW15: labé | BX15: mamou | BY15: n'zérékoré
A16: Water | B16: Improved | C16: 69.89815584 | D16: 66.23323103 | E16: 69.0798816 | F16: 80.94169741 | G16: 96.82218089 | H16: 77.58556493 | I16: 92.70595712 | J16: 99.01981236 | K16: 98.51732232 | L16: =K16 -> 98.51732232 | M16: 68.55617539 | N16: 65.78805439 | O16: 69.85430513 | P16: 67.32242185 | Q16: 66.11696398 | R16: 70.51783226 | S16: 96.82027529 | T16: 80.97126465 | U16: 87.52792848 | V16: 51.85599906 | W16: 66.92880542 | X16: 44.48982017 | Y16: 76.93982536 | BA16: Water | BB16: Improved | BC16: N/A | BD16: N/A | BE16: N/A | BF16: N/A | BG16: N/A | BH16: N/A | BI16: N/A | BJ16: N/A | BK16: N/A | BL16: N/A | BM16: N/A | BN16: N/A | BO16: N/A | BP16: N/A | BQ16: N/A | BR16: N/A | BS16: N/A | BT16: N/A | BU16: N/A | BV16: N/A | BW16: N/A | BX16: N/A | BY16: N/A
B17: Not Improved | C17: 30.10184416 | D17: 33.76676897 | E17: 30.9201184 | F17: 19.05830259 | G17: 3.177819115 | H17: 22.41443507 | I17: 7.294042883 | J17: 0.9801876412 | K17: 1.482677685 | L17: =K17 -> 1.482677685 | M17: 31.44382461 | N17: 34.21194561 | O17: 30.14569487 | P17: 32.67757815 | Q17: 33.88303602 | R17: 29.48216774 | S17: 3.179724713 | T17: 19.02873535 | U17: 12.47207152 | V17: 48.14400094 | W17: 33.07119458 | X17: 55.51017983 | Y17: 23.06017464 | BB17: Not Improved | BC17: N/A | BD17: N/A | BE17: N/A | BF17: N/A | BG17: N/A | BH17: N/A | BI17: N/A | BJ17: N/A | BK17: N/A | BL17: N/A | BM17: N/A | BN17: N/A | BO17: N/A | BP17: N/A | BQ17: N/A | BR17: N/A | BS17: N/A | BT17: N/A | BU17: N/A | BV17: N/A | BW17: N/A | BX17: N/A | BY17: N/A
A18: Water ladder | B18: Basic | C18: =C16*C23/100 -> 69.62686226 | D18: =D16*D23/100 -> 65.13024101 | E18: =E16*E23/100 -> 68.01269944 | F18: 79.84605098 | G18: 95.89076844 | H18: 76.40920333 | I18: 91.16338239 | J18: 98.75810743 | K18: 96.34401646 | L18: 96.34401646 | M18: 68.55617539 | N18: 64.83195591 | O18: 69.1895455 | P18: 65.83523409 | Q18: 65.09504396 | R18: 70.42997221 | S18: 95.75055284 | T18: 80.45908693 | U18: 86.89735607 | V18: 49.52306647 | W18: 66.92880542 | X18: 43.77124698 | Y18: 75.99808269 | BA18: Water ladder | BB18: Basic | BC18: N/A | BD18: N/A | BE18: N/A | BF18: N/A | BG18: N/A | BH18: N/A | BI18: N/A | BJ18: N/A | BK18: N/A | BL18: N/A | BM18: N/A | BN18: N/A | BO18: N/A | BP18: N/A | BQ18: N/A | BR18: N/A | BS18: N/A | BT18: N/A | BU18: N/A | BV18: N/A | BW18: N/A | BX18: N/A | BY18: N/A
B19: Limited | C19: =C16*C22/100 -> 0.2712935827 | D19: =D16*D22/100 -> 1.102990027 | E19: =E16*E22/100 -> 1.067182166 | F19: 1.095646435 | G19: 0.9314124442 | H19: 1.176361597 | I19: 1.54257473 | J19: 0.2617049275 | K19: 2.173305855 | L19: 2.173305855 | M19: 0 | N19: 0.9560984804 | O19: 0.6647596321 | P19: 1.487187766 | Q19: 1.021920026 | R19: 0.08786005463 | S19: 1.069722447 | T19: 0.5121777258 | U19: 0.6305724063 | V19: 2.332932591 | W19: 0 | X19: 0.7185731943 | Y19: 0.9417426675 | BB19: Limited | BC19: N/A | BD19: N/A | BE19: N/A | BF19: N/A | BG19: N/A | BH19: N/A | BI19: N/A | BJ19: N/A | BK19: N/A | BL19: N/A | BM19: N/A | BN19: N/A | BO19: N/A | BP19: N/A | BQ19: N/A | BR19: N/A | BS19: N/A | BT19: N/A | BU19: N/A | BV19: N/A | BW19: N/A | BX19: N/A | BY19: N/A
B20: Unimproved | C20: =100-C18-C19-C21 -> 13.69954976 | D20: =100-D18-D19-D21 -> 9.226395222 | E20: =100-E18-E19-E21 -> 10.43025802 | F20: 11.96822804 | G20: 2.006155772 | H20: 19.63731361 | I20: 7.255984292 | J20: 0.9801876412 | K20: 1.482677685 | L20: 1.482677685 | M20: 12.64732556 | N20: 10.80493679 | O20: 8.621053136 | P20: 12.31620812 | Q20: 12.33372521 | R20: 12.13256571 | S20: 3.179724713 | T20: 16.08871405 | U20: 10.53519845 | V20: 8.343542196 | W20: 19.89800221 | X20: 17.9637728 | Y20: 6.208527293 | BB20: Unimproved | BC20: N/A | BD20: N/A | BE20: N/A | BF20: N/A | BG20: N/A | BH20: N/A | BI20: N/A | BJ20: N/A | BK20: N/A | BL20: N/A | BM20: N/A | BN20: N/A | BO20: N/A | BP20: N/A | BQ20: N/A | BR20: N/A | BS20: N/A | BT20: N/A | BU20: N/A | BV20: N/A | BW20: N/A | BX20: N/A | BY20: N/A
B21: Surface water | C21: 16.4022944 | D21: 24.54037374 | E21: 20.48986038 | F21: 7.090074549 | G21: 1.171663342 | H21: 2.777121459 | I21: 0.03805859046 | J21: 0 | K21: 0 | L21: 0 | M21: 18.79649905 | N21: 23.40700882 | O21: 21.52464173 | P21: 20.36137002 | Q21: 21.54931081 | R21: 17.34960202 | S21: 0 | T21: 2.940021293 | U21: 1.936873068 | V21: 39.80045874 | W21: 13.17319237 | X21: 37.54640703 | Y21: 16.85164735 | BB21: Surface water | BC21: N/A | BD21: N/A | BE21: N/A | BF21: N/A | BG21: N/A | BH21: N/A | BI21: N/A | BJ21: N/A | BK21: N/A | BL21: N/A | BM21: N/A | BN21: N/A | BO21: N/A | BP21: N/A | BQ21: N/A | BR21: N/A | BS21: N/A | BT21: N/A | BU21: N/A | BV21: N/A | BW21: N/A | BX21: N/A | BY21: N/A
A22: Improved water point at more than 30 minutes | B22: Yes | C22: 0.3881269534 | D22: 1.665312125 | E22: 1.544852338 | F22: 1.353624239 | G22: 0.9619825082 | H22: 1.516211937 | I22: 1.663943481 | J22: 0.2642955195 | K22: 2.206013931 | L22: 2.206013931 | M22: 0 | N22: 1.453301043 | O22: 0.9516373127 | P22: 2.209052682 | Q22: 1.545624548 | R22: 0.1245926765 | S22: 1.104853755 | T22: 0.6325425792 | U22: 0.7204242317 | V22: 4.498867311 | W22: 0 | X22: 1.615140703 | Y22: 1.223998967 | BA22: Improved water point at more than 30 minutes | BB22: Yes | BC22: N/A | BD22: N/A | BE22: N/A | BF22: N/A | BG22: N/A | BH22: N/A | BI22: N/A | BJ22: N/A | BK22: N/A | BL22: N/A | BM22: N/A | BN22: N/A | BO22: N/A | BP22: N/A | BQ22: N/A | BR22: N/A | BS22: N/A | BT22: N/A | BU22: N/A | BV22: N/A | BW22: N/A | BX22: N/A | BY22: N/A
B23: No | C23: 99.61187305 | D23: 98.33468788 | E23: 98.45514766 | F23: 98.64637576 | G23: 99.03801749 | H23: 98.48378806 | I23: 98.33605652 | J23: 99.73570448 | K23: 97.79398607 | L23: 97.79398607 | M23: 100 | N23: 98.54669896 | O23: 99.04836269 | P23: 97.79094732 | Q23: 98.45437545 | R23: 99.87540732 | S23: 98.89514624 | T23: 99.36745742 | U23: 99.27957577 | V23: 95.50113269 | W23: 100 | X23: 98.3848593 | Y23: 98.77600103 | BB23: No | BC23: N/A | BD23: N/A | BE23: N/A | BF23: N/A | BG23: N/A | BH23: N/A | BI23: N/A | BJ23: N/A | BK23: N/A | BL23: N/A | BM23: N/A | BN23: N/A | BO23: N/A | BP23: N/A | BQ23: N/A | BR23: N/A | BS23: N/A | BT23: N/A | BU23: N/A | BV23: N/A | BW23: N/A | BX23: N/A | BY23: N/A
A24: Manually calculated ratios | B24: Improved wells
B25: Improved springs
B26: Other
C27: NATIONAL wealth index quintile | H27: URBAN wealth index quintile | M27: RURAL wealth index quintile | R27: région | BA27: Raw numbers of respondents: | BB27: Use of drinking water sources | BC27: NATIONAL wealth index quintile | BH27: URBAN wealth index quintile | BM27: RURAL wealth index quintile | BR27: SUB-REGIONS:
A28: Percentage based on weighted population | C28: Poorest | D28: Poor | E28: Middle | F28: Rich | G28: Richest | H28: Poorest | I28: Poor | J28: Middle | K28: Rich | L28: Richest | M28: Poorest | N28: Poor | O28: Middle | P28: Rich | Q28: Richest | R28: boké | S28: conakry | T28: faranah | U28: kankan | V28: kindia | W28: labé | X28: mamou | Y28: n'zérékoré | BA28: Water data, raw numbers (weighted) | BC28: Poorest | BD28: Poor | BE28: Middle | BF28: Rich | BG28: Richest | BH28: Poorest | BI28: Poor | BJ28: Middle | BK28: Rich | BL28: Richest | BM28: Poorest | BN28: Poor | BO28: Middle | BP28: Rich | BQ28: Richest | BR28: boké | BS28: conakry | BT28: faranah | BU28: kankan | BV28: kindia | BW28: labé | BX28: mamou | BY28: n'zérékoré
A29: Piped water | B29: Yes | C29: 2.120342241 | D29: 0.9558396026 | E29: 2.008697336 | F29: 43.28592376 | G29: 86.67320542 | H29: 23.65214215 | I29: 75.77770791 | J29: 93.06137546 | K29: 90.20920481 | L29: =K29 -> 90.20920481 | M29: 1.19318841 | N29: 1.446128305 | O29: 1.023232683 | P29: 1.758915088 | Q29: 5.538869136 | R29: 14.57458964 | S29: 89.10281313 | T29: 1.853816446 | U29: 8.360092914 | V29: 5.979695713 | W29: 2.318271512 | X29: 7.326981114 | Y29: 1.629987643 | BA29: Piped water | BB29: Yes | BC29: N/A | BD29: N/A | BE29: N/A | BF29: N/A | BG29: N/A | BH29: N/A | BI29: N/A | BJ29: N/A | BK29: N/A | BL29: N/A | BM29: N/A | BN29: N/A | BO29: N/A | BP29: N/A | BQ29: N/A | BR29: N/A | BS29: N/A | BT29: N/A | BU29: N/A | BV29: N/A | BW29: N/A | BX29: N/A | BY29: N/A
B30: No | C30: 97.87965776 | D30: 99.0441604 | E30: 97.99130266 | F30: 56.71407624 | G30: 13.32679458 | H30: 76.34785785 | I30: 24.22229209 | J30: 6.938624539 | K30: 9.790795185 | L30: =K30 -> 9.790795185 | M30: 98.80681159 | N30: 98.5538717 | O30: 98.97676732 | P30: 98.24108491 | Q30: 94.46113086 | R30: 85.42541036 | S30: 10.89718687 | T30: 98.14618355 | U30: 91.63990709 | V30: 94.02030429 | W30: 97.68172849 | X30: 92.67301889 | Y30: 98.37001236 | BB30: No | BC30: N/A | BD30: N/A | BE30: N/A | BF30: N/A | BG30: N/A | BH30: N/A | BI30: N/A | BJ30: N/A | BK30: N/A | BL30: N/A | BM30: N/A | BN30: N/A | BO30: N/A | BP30: N/A | BQ30: N/A | BR30: N/A | BS30: N/A | BT30: N/A | BU30: N/A | BV30: N/A | BW30: N/A | BX30: N/A | BY30: N/A
A31: Piped water on premises | B31: Yes | C31: 0.1044993772 | D31: 0.07405148822 | E31: 0.0454953774 | F31: 17.02695808 | G31: 44.83793728 | H31: 6.5366551 | I31: 30.51660631 | J31: 47.06837243 | K31: 49.31041412 | L31: =K31 -> 49.31041412 | M31: 0 | N31: 0 | O31: 0 | P31: 0 | Q31: 0 | R31: 8.024557059 | S31: 40.72941383 | T31: 0.7700798715 | U31: 1.130689361 | V31: 0.9773895157 | W31: 1.746836669 | X31: 2.317365936 | Y31: 0.3158928672 | BA31: Piped water on premises | BB31: Yes | BC31: N/A | BD31: N/A | BE31: N/A | BF31: N/A | BG31: N/A | BH31: N/A | BI31: N/A | BJ31: N/A | BK31: N/A | BL31: N/A | BM31: N/A | BN31: N/A | BO31: N/A | BP31: N/A | BQ31: N/A | BR31: N/A | BS31: N/A | BT31: N/A | BU31: N/A | BV31: N/A | BW31: N/A | BX31: N/A | BY31: N/A
B32: No | C32: 99.89550062 | D32: 99.92594851 | E32: 99.95450462 | F32: 82.97304192 | G32: 55.16206272 | H32: 93.4633449 | I32: 69.48339369 | J32: 52.93162757 | K32: 50.68958588 | L32: =K32 -> 50.68958588 | M32: 100 | N32: 100 | O32: 100 | P32: 100 | Q32: 100 | R32: 91.97544294 | S32: 59.27058617 | T32: 99.22992013 | U32: 98.86931064 | V32: 99.02261048 | W32: 98.25316333 | X32: 97.68263406 | Y32: 99.68410713 | BB32: No | BC32: N/A | BD32: N/A | BE32: N/A | BF32: N/A | BG32: N/A | BH32: N/A | BI32: N/A | BJ32: N/A | BK32: N/A | BL32: N/A | BM32: N/A | BN32: N/A | BO32: N/A | BP32: N/A | BQ32: N/A | BR32: N/A | BS32: N/A | BT32: N/A | BU32: N/A | BV32: N/A | BW32: N/A | BX32: N/A | BY32: N/A
A33: Piped water into dwelling | B33: Yes | C33: N/A | D33: N/A | E33: N/A | F33: N/A | G33: N/A | H33: N/A | I33: N/A | J33: N/A | K33: N/A | L33: N/A | M33: N/A | N33: N/A | O33: N/A | P33: N/A | Q33: N/A | R33: N/A | S33: N/A | T33: N/A | U33: N/A | V33: N/A | W33: N/A | X33: N/A | Y33: N/A | BA33: Piped water into dwelling | BB33: Yes | BC33: N/A | BD33: N/A | BE33: N/A | BF33: N/A | BG33: N/A | BH33: N/A | BI33: N/A | BJ33: N/A | BK33: N/A | BL33: N/A | BM33: N/A | BN33: N/A | BO33: N/A | BP33: N/A | BQ33: N/A | BR33: N/A | BS33: N/A | BT33: N/A | BU33: N/A | BV33: N/A | BW33: N/A | BX33: N/A | BY33: N/A
B34: No | C34: N/A | D34: N/A | E34: N/A | F34: N/A | G34: N/A | H34: N/A | I34: N/A | J34: N/A | K34: N/A | L34: N/A | M34: N/A | N34: N/A | O34: N/A | P34: N/A | Q34: N/A | R34: N/A | S34: N/A | T34: N/A | U34: N/A | V34: N/A | W34: N/A | X34: N/A | Y34: N/A | BB34: No | BC34: N/A | BD34: N/A | BE34: N/A | BF34: N/A | BG34: N/A | BH34: N/A | BI34: N/A | BJ34: N/A | BK34: N/A | BL34: N/A | BM34: N/A | BN34: N/A | BO34: N/A | BP34: N/A | BQ34: N/A | BR34: N/A | BS34: N/A | BT34: N/A | BU34: N/A | BV34: N/A | BW34: N/A | BX34: N/A | BY34: N/A
A35: Water source on premises | B35: Yes | C35: 6.476530469 | D35: 3.376584287 | E35: 4.208881931 | F35: 26.13981592 | G35: 47.31835698 | H35: 17.66764032 | I35: 41.75948145 | J35: 51.30385186 | K35: 51.46829327 | L35: =K35 -> 51.46829327 | M35: 6.588452285 | N35: 3.30390612 | O35: 3.335315852 | P35: 4.605641884 | Q35: 3.92781647 | R35: 17.05006524 | S35: 47.34990685 | T35: 15.09771959 | U35: 4.066249879 | V35: 4.485680303 | W35: 2.529766477 | X35: 5.562103869 | Y35: 4.80084975 | BA35: Water source on premises | BB35: Yes | BC35: N/A | BD35: N/A | BE35: N/A | BF35: N/A | BG35: N/A | BH35: N/A | BI35: N/A | BJ35: N/A | BK35: N/A | BL35: N/A | BM35: N/A | BN35: N/A | BO35: N/A | BP35: N/A | BQ35: N/A | BR35: N/A | BS35: N/A | BT35: N/A | BU35: N/A | BV35: N/A | BW35: N/A | BX35: N/A | BY35: N/A
B36: No | C36: 93.52346953 | D36: 96.62341571 | E36: 95.79111807 | F36: 73.86018408 | G36: 52.68164302 | H36: 82.33235968 | I36: 58.24051855 | J36: 48.69614814 | K36: 48.53170673 | L36: =K36 -> 48.53170673 | M36: 93.41154771 | N36: 96.69609388 | O36: 96.66468415 | P36: 95.39435812 | Q36: 96.07218353 | R36: 82.94993476 | S36: 52.65009315 | T36: 84.90228041 | U36: 95.93375012 | V36: 95.5143197 | W36: 97.47023352 | X36: 94.43789613 | Y36: 95.19915025 | BB36: No | BC36: N/A | BD36: N/A | BE36: N/A | BF36: N/A | BG36: N/A | BH36: N/A | BI36: N/A | BJ36: N/A | BK36: N/A | BL36: N/A | BM36: N/A | BN36: N/A | BO36: N/A | BP36: N/A | BQ36: N/A | BR36: N/A | BS36: N/A | BT36: N/A | BU36: N/A | BV36: N/A | BW36: N/A | BX36: N/A | BY36: N/A
A37: Improved Water source on premises | B37: Yes | C37: 4.203946945 | D37: 3.791749586 | E37: 3.345991576 | F37: 27.70013794 | G37: 48.22177231 | H37: 15.93173839 | I37: 39.76826468 | J37: 51.09256341 | K37: 51.89336913 | L37: =K37 -> 51.89336913 | M37: 4.25686253 | N37: 3.289410586 | O37: 3.140944461 | P37: 4.051960609 | Q37: 2.571853565 | R37: 18.52262403 | S37: 46.37738797 | T37: 9.459050624 | U37: 3.667901384 | V37: 4.857793036 | W37: 2.922747245 | X37: 6.39213573 | Y37: 5.277496157 | BA37: Improved water source on premises | BB37: Yes | BC37: N/A | BD37: N/A | BE37: N/A | BF37: N/A | BG37: N/A | BH37: N/A | BI37: N/A | BJ37: N/A | BK37: N/A | BL37: N/A | BM37: N/A | BN37: N/A | BO37: N/A | BP37: N/A | BQ37: N/A | BR37: N/A | BS37: N/A | BT37: N/A | BU37: N/A | BV37: N/A | BW37: N/A | BX37: N/A | BY37: N/A
B38: No | C38: 95.79605306 | D38: 96.20825041 | E38: 96.65400842 | F38: 72.29986206 | G38: 51.77822769 | H38: 84.06826161 | I38: 60.23173532 | J38: 48.90743659 | K38: 48.10663087 | L38: =K38 -> 48.10663087 | M38: 95.74313747 | N38: 96.71058941 | O38: 96.85905554 | P38: 95.94803939 | Q38: 97.42814644 | R38: 81.47737597 | S38: 53.62261203 | T38: 90.54094938 | U38: 96.33209862 | V38: 95.14220696 | W38: 97.07725275 | X38: 93.60786427 | Y38: 94.72250384 | BB38: No | BC38: N/A | BD38: N/A | BE38: N/A | BF38: N/A | BG38: N/A | BH38: N/A | BI38: N/A | BJ38: N/A | BK38: N/A | BL38: N/A | BM38: N/A | BN38: N/A | BO38: N/A | BP38: N/A | BQ38: N/A | BR38: N/A | BS38: N/A | BT38: N/A | BU38: N/A | BV38: N/A | BW38: N/A | BX38: N/A | BY38: N/A
A39: Piped water on premises available when needed | B39: Yes | C39: N/A | D39: N/A | E39: N/A | F39: N/A | G39: N/A | H39: N/A | I39: N/A | J39: N/A | K39: N/A | L39: N/A | M39: N/A | N39: N/A | O39: N/A | P39: N/A | Q39: N/A | R39: N/A | S39: N/A | T39: N/A | U39: N/A | V39: N/A | W39: N/A | X39: N/A | Y39: N/A | BA39: Piped water on premises available when needed | BB39: Yes | BC39: N/A | BD39: N/A | BE39: N/A | BF39: N/A | BG39: N/A | BH39: N/A | BI39: N/A | BJ39: N/A | BK39: N/A | BL39: N/A | BM39: N/A | BN39: N/A | BO39: N/A | BP39: N/A | BQ39: N/A | BR39: N/A | BS39: N/A | BT39: N/A | BU39: N/A | BV39: N/A | BW39: N/A | BX39: N/A | BY39: N/A
B40: No | C40: N/A | D40: N/A | E40: N/A | F40: N/A | G40: N/A | H40: N/A | I40: N/A | J40: N/A | K40: N/A | L40: N/A | M40: N/A | N40: N/A | O40: N/A | P40: N/A | Q40: N/A | R40: N/A | S40: N/A | T40: N/A | U40: N/A | V40: N/A | W40: N/A | X40: N/A | Y40: N/A | BB40: No | BC40: N/A | BD40: N/A | BE40: N/A | BF40: N/A | BG40: N/A | BH40: N/A | BI40: N/A | BJ40: N/A | BK40: N/A | BL40: N/A | BM40: N/A | BN40: N/A | BO40: N/A | BP40: N/A | BQ40: N/A | BR40: N/A | BS40: N/A | BT40: N/A | BU40: N/A | BV40: N/A | BW40: N/A | BX40: N/A | BY40: N/A
A41: Water point at more than 30 minutes | B41: Yes | C41: 4.049268872 | D41: 5.00952063 | E41: 5.312691439 | F41: 3.213221142 | G41: 0.9314124442 | H41: 1.662397454 | I41: 1.544873193 | J41: 0.2617009266 | K41: 2.173305855 | L41: =K41 -> 2.173305855 | M41: 4.530560943 | N41: 4.805322607 | O41: 4.278437022 | P41: 6.331183931 | Q41: 6.586023459 | R41: 2.738578451 | S41: 1.070463449 | T41: 0.9905703199 | U41: 0.8106513752 | V41: 10.65249064 | W41: 2.957465211 | X41: 12.90083944 | Y41: 2.830341671 | BA41: Water point at more than 30 minutes | BB41: Yes | BC41: N/A | BD41: N/A | BE41: N/A | BF41: N/A | BG41: N/A | BH41: N/A | BI41: N/A | BJ41: N/A | BK41: N/A | BL41: N/A | BM41: N/A | BN41: N/A | BO41: N/A | BP41: N/A | BQ41: N/A | BR41: N/A | BS41: N/A | BT41: N/A | BU41: N/A | BV41: N/A | BW41: N/A | BX41: N/A | BY41: N/A
B42: No | C42: 95.95073113 | D42: 94.99047937 | E42: 94.68730856 | F42: 96.78677886 | G42: 99.06858756 | H42: 98.33760255 | I42: 98.45512681 | J42: 99.73829907 | K42: 97.82669415 | L42: 97.82669415 | M42: 95.46943906 | N42: 95.19467739 | O42: 95.72156298 | P42: 93.66881607 | Q42: 93.41397654 | R42: 97.26142155 | S42: 98.92953655 | T42: 99.00942968 | U42: 99.18934862 | V42: 89.34750936 | W42: 97.04253479 | X42: 87.09916056 | Y42: 97.16965833 | BB42: No | BC42: N/A | BD42: N/A | BE42: N/A | BF42: N/A | BG42: N/A | BH42: N/A | BI42: N/A | BJ42: N/A | BK42: N/A | BL42: N/A | BM42: N/A | BN42: N/A | BO42: N/A | BP42: N/A | BQ42: N/A | BR42: N/A | BS42: N/A | BT42: N/A | BU42: N/A | BV42: N/A | BW42: N/A | BX42: N/A | BY42: N/A
A43: Water source available when needed | B43: Yes | C43: N/A | D43: N/A | E43: N/A | F43: N/A | G43: N/A | H43: N/A | I43: N/A | J43: N/A | K43: N/A | L43: N/A | M43: N/A | N43: N/A | O43: N/A | P43: N/A | Q43: N/A | R43: N/A | S43: N/A | T43: N/A | U43: N/A | V43: N/A | W43: N/A | X43: N/A | Y43: N/A | BA43: Water source available when needed | BB43: Yes | BC43: N/A | BD43: N/A | BE43: N/A | BF43: N/A | BG43: N/A | BH43: N/A | BI43: N/A | BJ43: N/A | BK43: N/A | BL43: N/A | BM43: N/A | BN43: N/A | BO43: N/A | BP43: N/A | BQ43: N/A | BR43: N/A | BS43: N/A | BT43: N/A | BU43: N/A | BV43: N/A | BW43: N/A | BX43: N/A | BY43: N/A
B44: No | C44: N/A | D44: N/A | E44: N/A | F44: N/A | G44: N/A | H44: N/A | I44: N/A | J44: N/A | K44: N/A | L44: N/A | M44: N/A | N44: N/A | O44: N/A | P44: N/A | Q44: N/A | R44: N/A | S44: N/A | T44: N/A | U44: N/A | V44: N/A | W44: N/A | X44: N/A | Y44: N/A | BB44: No | BC44: N/A | BD44: N/A | BE44: N/A | BF44: N/A | BG44: N/A | BH44: N/A | BI44: N/A | BJ44: N/A | BK44: N/A | BL44: N/A | BM44: N/A | BN44: N/A | BO44: N/A | BP44: N/A | BQ44: N/A | BR44: N/A | BS44: N/A | BT44: N/A | BU44: N/A | BV44: N/A | BW44: N/A | BX44: N/A | BY44: N/A
A45: Improved water source available when needed | B45: Yes | C45: N/A | D45: N/A | E45: N/A | F45: N/A | G45: N/A | H45: N/A | I45: N/A | J45: N/A | K45: N/A | L45: N/A | M45: N/A | N45: N/A | O45: N/A | P45: N/A | Q45: N/A | R45: N/A | S45: N/A | T45: N/A | U45: N/A | V45: N/A | W45: N/A | X45: N/A | Y45: N/A | BA45: Improved water source available when needed | BB45: Yes | BC45: N/A | BD45: N/A | BE45: N/A | BF45: N/A | BG45: N/A | BH45: N/A | BI45: N/A | BJ45: N/A | BK45: N/A | BL45: N/A | BM45: N/A | BN45: N/A | BO45: N/A | BP45: N/A | BQ45: N/A | BR45: N/A | BS45: N/A | BT45: N/A | BU45: N/A | BV45: N/A | BW45: N/A | BX45: N/A | BY45: N/A
B46: No | C46: N/A | D46: N/A | E46: N/A | F46: N/A | G46: N/A | H46: N/A | I46: N/A | J46: N/A | K46: N/A | L46: N/A | M46: N/A | N46: N/A | O46: N/A | P46: N/A | Q46: N/A | R46: N/A | S46: N/A | T46: N/A | U46: N/A | V46: N/A | W46: N/A | X46: N/A | Y46: N/A | BB46: No | BC46: N/A | BD46: N/A | BE46: N/A | BF46: N/A | BG46: N/A | BH46: N/A | BI46: N/A | BJ46: N/A | BK46: N/A | BL46: N/A | BM46: N/A | BN46: N/A | BO46: N/A | BP46: N/A | BQ46: N/A | BR46: N/A | BS46: N/A | BT46: N/A | BU46: N/A | BV46: N/A | BW46: N/A | BX46: N/A | BY46: N/A
A47: Microbiological quality at point of collection | B47: Not contaminated (No E. coli in 100 mL) | C47: N/A | D47: N/A | E47: N/A | F47: N/A | G47: N/A | H47: N/A | I47: N/A | J47: N/A | K47: N/A | L47: N/A | M47: N/A | N47: N/A | O47: N/A | P47: N/A | Q47: N/A | R47: N/A | S47: N/A | T47: N/A | U47: N/A | V47: N/A | W47: N/A | X47: N/A | Y47: N/A | BA47: Microbiological quality at point of collection | BB47: Not contaminated (No E. coli in 100 mL) | BC47: N/A | BD47: N/A | BE47: N/A | BF47: N/A | BG47: N/A | BH47: N/A | BI47: N/A | BJ47: N/A | BK47: N/A | BL47: N/A | BM47: N/A | BN47: N/A | BO47: N/A | BP47: N/A | BQ47: N/A | BR47: N/A | BS47: N/A | BT47: N/A | BU47: N/A | BV47: N/A | BW47: N/A | BX47: N/A | BY47: N/A
B48: Contaminated (E. coli detected in 100 mL) | C48: N/A | D48: N/A | E48: N/A | F48: N/A | G48: N/A | H48: N/A | I48: N/A | J48: N/A | K48: N/A | L48: N/A | M48: N/A | N48: N/A | O48: N/A | P48: N/A | Q48: N/A | R48: N/A | S48: N/A | T48: N/A | U48: N/A | V48: N/A | W48: N/A | X48: N/A | Y48: N/A | BB48: Contaminated (E. coli detected in 100 mL) | BC48: N/A | BD48: N/A | BE48: N/A | BF48: N/A | BG48: N/A | BH48: N/A | BI48: N/A | BJ48: N/A | BK48: N/A | BL48: N/A | BM48: N/A | BN48: N/A | BO48: N/A | BP48: N/A | BQ48: N/A | BR48: N/A | BS48: N/A | BT48: N/A | BU48: N/A | BV48: N/A | BW48: N/A | BX48: N/A | BY48: N/A
B49: Highly contaminated (>100 CFU/100 mL) | C49: N/A | D49: N/A | E49: N/A | F49: N/A | G49: N/A | H49: N/A | I49: N/A | J49: N/A | K49: N/A | L49: N/A | M49: N/A | N49: N/A | O49: N/A | P49: N/A | Q49: N/A | R49: N/A | S49: N/A | T49: N/A | U49: N/A | V49: N/A | W49: N/A | X49: N/A | Y49: N/A | BB49: Highly contaminated (>100 CFU/100 mL) | BC49: N/A | BD49: N/A | BE49: N/A | BF49: N/A | BG49: N/A | BH49: N/A | BI49: N/A | BJ49: N/A | BK49: N/A | BL49: N/A | BM49: N/A | BN49: N/A | BO49: N/A | BP49: N/A | BQ49: N/A | BR49: N/A | BS49: N/A | BT49: N/A | BU49: N/A | BV49: N/A | BW49: N/A | BX49: N/A | BY49: N/A
A50: Microbiological quality of improved water sources at point of collection | B50: Not contaminated (No E. coli in 100 mL) | C50: N/A | D50: N/A | E50: N/A | F50: N/A | G50: N/A | H50: N/A | I50: N/A | J50: N/A | K50: N/A | L50: N/A | M50: N/A | N50: N/A | O50: N/A | P50: N/A | Q50: N/A | R50: N/A | S50: N/A | T50: N/A | U50: N/A | V50: N/A | W50: N/A | X50: N/A | Y50: N/A | BA50: Microbiological quality of improved water sources at point of collection | BB50: Not contaminated (No E. coli in 100 mL) | BC50: N/A | BD50: N/A | BE50: N/A | BF50: N/A | BG50: N/A | BH50: N/A | BI50: N/A | BJ50: N/A | BK50: N/A | BL50: N/A | BM50: N/A | BN50: N/A | BO50: N/A | BP50: N/A | BQ50: N/A | BR50: N/A | BS50: N/A | BT50: N/A | BU50: N/A | BV50: N/A | BW50: N/A | BX50: N/A | BY50: N/A
B51: Contaminated (E. coli detected in 100 mL) | C51: N/A | D51: N/A | E51: N/A | F51: N/A | G51: N/A | H51: N/A | I51: N/A | J51: N/A | K51: N/A | L51: N/A | M51: N/A | N51: N/A | O51: N/A | P51: N/A | Q51: N/A | R51: N/A | S51: N/A | T51: N/A | U51: N/A | V51: N/A | W51: N/A | X51: N/A | Y51: N/A | BB51: Contaminated (E. coli detected in 100 mL) | BC51: N/A | BD51: N/A | BE51: N/A | BF51: N/A | BG51: N/A | BH51: N/A | BI51: N/A | BJ51: N/A | BK51: N/A | BL51: N/A | BM51: N/A | BN51: N/A | BO51: N/A | BP51: N/A | BQ51: N/A | BR51: N/A | BS51: N/A | BT51: N/A | BU51: N/A | BV51: N/A | BW51: N/A | BX51: N/A | BY51: N/A
B52: Highly contaminated (>100 CFU/100 mL) | C52: N/A | D52: N/A | E52: N/A | F52: N/A | G52: N/A | H52: N/A | I52: N/A | J52: N/A | K52: N/A | L52: N/A | M52: N/A | N52: N/A | O52: N/A | P52: N/A | Q52: N/A | R52: N/A | S52: N/A | T52: N/A | U52: N/A | V52: N/A | W52: N/A | X52: N/A | Y52: N/A | BB52: Highly contaminated (>100 CFU/100 mL) | BC52: N/A | BD52: N/A | BE52: N/A | BF52: N/A | BG52: N/A | BH52: N/A | BI52: N/A | BJ52: N/A | BK52: N/A | BL52: N/A | BM52: N/A | BN52: N/A | BO52: N/A | BP52: N/A | BQ52: N/A | BR52: N/A | BS52: N/A | BT52: N/A | BU52: N/A | BV52: N/A | BW52: N/A | BX52: N/A | BY52: N/A
A53: Microbiological quality of piped on premises at point of collection | B53: Not contaminated (No E. coli in 100 mL) | C53: N/A | D53: N/A | E53: N/A | F53: N/A | G53: N/A | H53: N/A | I53: N/A | J53: N/A | K53: N/A | L53: N/A | M53: N/A | N53: N/A | O53: N/A | P53: N/A | Q53: N/A | R53: N/A | S53: N/A | T53: N/A | U53: N/A | V53: N/A | W53: N/A | X53: N/A | Y53: N/A | BA53: Microbiological quality of piped on premises at point of collection | BB53: Not contaminated (No E. coli in 100 mL) | BC53: N/A | BD53: N/A | BE53: N/A | BF53: N/A | BG53: N/A | BH53: N/A | BI53: N/A | BJ53: N/A | BK53: N/A | BL53: N/A | BM53: N/A | BN53: N/A | BO53: N/A | BP53: N/A | BQ53: N/A | BR53: N/A | BS53: N/A | BT53: N/A | BU53: N/A | BV53: N/A | BW53: N/A | BX53: N/A | BY53: N/A
B54: Contaminated (E. coli detected in 100 mL) | C54: N/A | D54: N/A | E54: N/A | F54: N/A | G54: N/A | H54: N/A | I54: N/A | J54: N/A | K54: N/A | L54: N/A | M54: N/A | N54: N/A | O54: N/A | P54: N/A | Q54: N/A | R54: N/A | S54: N/A | T54: N/A | U54: N/A | V54: N/A | W54: N/A | X54: N/A | Y54: N/A | BB54: Contaminated (E. coli detected in 100 mL) | BC54: N/A | BD54: N/A | BE54: N/A | BF54: N/A | BG54: N/A | BH54: N/A | BI54: N/A | BJ54: N/A | BK54: N/A | BL54: N/A | BM54: N/A | BN54: N/A | BO54: N/A | BP54: N/A | BQ54: N/A | BR54: N/A | BS54: N/A | BT54: N/A | BU54: N/A | BV54: N/A | BW54: N/A | BX54: N/A | BY54: N/A
B55: Highly contaminated (>100 CFU/100 mL) | C55: N/A | D55: N/A | E55: N/A | F55: N/A | G55: N/A | H55: N/A | I55: N/A | J55: N/A | K55: N/A | L55: N/A | M55: N/A | N55: N/A | O55: N/A | P55: N/A | Q55: N/A | R55: N/A | S55: N/A | T55: N/A | U55: N/A | V55: N/A | W55: N/A | X55: N/A | Y55: N/A | BB55: Highly contaminated (>100 CFU/100 mL) | BC55: N/A | BD55: N/A | BE55: N/A | BF55: N/A | BG55: N/A | BH55: N/A | BI55: N/A | BJ55: N/A | BK55: N/A | BL55: N/A | BM55: N/A | BN55: N/A | BO55: N/A | BP55: N/A | BQ55: N/A | BR55: N/A | BS55: N/A | BT55: N/A | BU55: N/A | BV55: N/A | BW55: N/A | BX55: N/A | BY55: N/A
C56: NATIONAL wealth index quintile | H56: URBAN wealth index quintile | M56: RURAL wealth index quintile | R56: région | BA56: Raw numbers of respondents: | BB56: Use of drinking water sources | BC56: NATIONAL wealth index quintile | BH56: URBAN wealth index quintile | BM56: RURAL wealth index quintile | BR56: SUB-REGIONS:
A57: Percentage based on weighted population | C57: Poorest | D57: Poor | E57: Middle | F57: Rich | G57: Richest | H57: Poorest | I57: Poor | J57: Middle | K57: Rich | L57: Richest | M57: Poorest | N57: Poor | O57: Middle | P57: Rich | Q57: Richest | R57: boké | S57: conakry | T57: faranah | U57: kankan | V57: kindia | W57: labé | X57: mamou | Y57: n'zérékoré | BA57: Water data, raw numbers (weighted) | BC57: Poorest | BD57: Poor | BE57: Middle | BF57: Rich | BG57: Richest | BH57: Poorest | BI57: Poor | BJ57: Middle | BK57: Rich | BL57: Richest | BM57: Poorest | BN57: Poor | BO57: Middle | BP57: Rich | BQ57: Richest | BR57: boké | BS57: conakry | BT57: faranah | BU57: kankan | BV57: kindia | BW57: labé | BX57: mamou | BY57: n'zérékoré
A58: principale source d'approvisionnement en eau utilisée pour boire | B58: robinet du ménage | C58: 0.1044993772 | D58: 0.07405148822 | E58: 0.0454953774 | F58: 17.02695808 | G58: 44.83793728 | H58: 6.5366551 | I58: 30.51660631 | J58: 47.06837243 | K58: 49.31041412 | L58: =K58 -> 49.31041412 | M58: 0 | N58: 0 | O58: 0 | P58: 0 | Q58: 0 | R58: 8.024557059 | S58: 40.72941383 | T58: 0.7700798715 | U58: 1.130689361 | V58: 0.9773895157 | W58: 1.746836669 | X58: 2.317365936 | Y58: 0.3158928672
B59: robinet du voisin | C59: 0.6293044645 | D59: 0.265432632 | E59: 0.7692993228 | F59: 24.69690906 | G59: 41.4935291 | H59: 15.07970802 | I59: 44.04341535 | J59: 45.44549985 | K59: 40.68301902 | L59: 40.68301902 | M59: 0 | N59: 0.4351840205 | O59: 0.7123042438 | P59: 0 | Q59: 4.074600454 | R59: 6.329769336 | S59: 47.74091578 | T59: 1.067678702 | U59: 1.388508761 | V59: 4.708843072 | W59: 0.5187232832 | X59: 4.677022004 | Y59: 0.5946726951
B60: forage | C60: 62.75529753 | D60: 60.4377454 | E60: 61.75236456 | F60: 28.63643049 | G60: 7.433845403 | H60: 35.43046219 | I60: 9.78845138 | J60: 4.093116428 | K60: 4.516099891 | L60: 4.516099891 | M60: 63.31453106 | N60: 59.73120787 | O60: 63.9641914 | P60: 60.54210897 | Q60: 55.48318488 | R60: 46.60632714 | S60: 5.602901849 | T60: 72.28443829 | U60: 75.94286281 | V60: 40.43105723 | W60: 59.65561991 | X60: 29.22015356 | Y60: 67.47474267
B61: fontaine publique | C61: 1.386538399 | D61: 0.6163554824 | E61: 1.193902635 | F61: 1.562056617 | G61: 0.3417390405 | H61: 2.035779034 | I61: 1.217686247 | J61: 0.5475031871 | K61: 0.2157716717 | L61: 0.2157716717 | M61: 1.19318841 | N61: 1.010944284 | O61: 0.3109284397 | P61: 1.758915088 | Q61: 1.464268682 | R61: 0.2202632485 | S61: 0.6324835195 | T61: 0.01605787208 | U61: 5.840894792 | V61: 0.2934631253 | W61: 0.05271155914 | X61: 0.3325931735 | Y61: 0.7194220811
B62: puits aménagés | C62: 5.02251607 | D62: 4.839646031 | E62: 5.318819704 | F62: 9.019343164 | G62: 2.715130062 | H62: 18.50296059 | I62: 7.13979783 | J62: 1.86532047 | K62: 3.792017609 | L62: 3.792017609 | M62: 4.04845592 | N62: 4.610718218 | O62: 4.866881054 | P62: 5.021397792 | Q62: 5.094909967 | R62: 9.336915481 | S62: 2.114560304 | T62: 6.833009913 | U62: 3.22497276 | V62: 5.445246117 | W62: 4.954913996 | X62: 7.942685505 | Y62: 7.835095046
B63: puits non aménagés | C63: 13.10315583 | D63: 8.409302084 | E63: 10.24070845 | F63: 11.47772996 | G63: 1.215017065 | H63: 19.30359384 | I63: 6.437508012 | J63: 0.4113197235 | K63: 0.9764607141 | L63: 0.9764607141 | M63: 12.38870536 | N63: 9.453765693 | O63: 8.365903759 | P63: 11.98025908 | Q63: 11.85651888 | R63: 12.13256571 | S63: 2.435604985 | T63: 15.32635482 | U63: 10.53519845 | V63: 7.331348496 | W63: 18.56609969 | X63: 17.37025873 | Y63: 6.05296236
B64: eau de surface | C64: 16.39644894 | D64: 24.54037374 | E64: 20.48986038 | F64: 7.086238348 | G64: 1.171663342 | H64: 2.777121459 | I64: 0.03805859046 | J64: 0 | K64: 0 | L64: 0 | M64: 18.79649905 | N64: 23.39597731 | O64: 21.52464173 | P64: 20.36137002 | Q64: 21.54931081 | R64: 17.34960202 | S64: 0 | T64: 2.940021293 | U64: 1.936873068 | V64: 39.80045874 | W64: 13.17319237 | X64: 37.50746554 | Y64: 16.85164735
B65: autre | C65: 0.3850417227 | D65: 0.7004663293 | E65: 0.1507405224 | F65: 0.09568865594 | G65: 0.1768891476 | H65: 0 | I65: 0.2128764001 | J65: 0.211346447 | K65: 0.1618814278 | L65: 0.1618814278 | M65: 0.258620199 | N65: 0.9206955903 | O65: 0.2551493774 | P65: 0.1987815729 | Q65: 0 | R65: 0 | S65: 0.2216519672 | T65: 0.1527954689 | U65: 0 | V65: 0.9586871497 | W65: 1.224981031 | X65: 0.03266338665 | Y65: 0
B66: non déclaré | C66: 0.2171976667 | D66: 0.1166268093 | E66: 0.03880904676 | F66: 0.3986456248 | G66: 0.6142495603 | H66: 0.3337197772 | I66: 0.6055998807 | J66: 0.3575214707 | K66: 0.3443355426 | L66: 0.3443355426 | M66: 0 | N66: 0.4415070154 | O66: 0 | P66: 0.1371674712 | Q66: 0.4772063319 | R66: 0 | S66: 0.522467761 | T66: 0.6095637663 | U66: 0 | V66: 0.05350655028 | W66: 0.1069214872 | X66: 0.5997921621 | Y66: 0.1555649329
A108: =A1026 -> Guinea
A109: =A1034 -> 2007
A110: Use of sanitation facilities
A111: by wealth quintile and sub-national region
A112: Notes:
A113: WHO/UNICEF JMP customised wealth index excludes water,
A114: sanitation and hygiene assets.
A115: Survey used for analysis: | B115: =A1025 -> QUIBB07
A116: =B1030 -> 
A117: =B1029 -> Ratio of Shared improved based on: | B117: DHS12
A120: Use of sanitation facilities | C120: NATIONAL wealth index quintile | H120: URBAN wealth index quintile | M120: RURAL wealth index quintile | R120: région | BA120: Raw numbers of respondents: | BB120: Use of sanitation facilities | BC120: NATIONAL wealth index quintile | BH120: URBAN wealth index quintile | BM120: RURAL wealth index quintile | BR120: SUB-REGIONS:
A121: Weighted percentage (used in graphs) | C121: Poorest | D121: Poor | E121: Middle | F121: Rich | G121: Richest | H121: Poorest | I121: Poor | J121: Middle | K121: Rich | L121: Richest | M121: Poorest | N121: Poor | O121: Middle | P121: Rich | Q121: Richest | R121: boké | S121: conakry | T121: faranah | U121: kankan | V121: kindia | W121: labé | X121: mamou | Y121: n'zérékoré | BA121: Sanitation data, raw numbers (weighted) | BC121: Poorest | BD121: Poor | BE121: Middle | BF121: Rich | BG121: Richest | BH121: Poorest | BI121: Poor | BJ121: Middle | BK121: Rich | BL121: Richest | BM121: Poorest | BN121: Poor | BO121: Middle | BP121: Rich | BQ121: Richest | BR121: boké | BS121: conakry | BT121: faranah | BU121: kankan | BV121: kindia | BW121: labé | BX121: mamou | BY121: n'zérékoré
A122: Sanitation | B122: Improved | C122: 8.969259337 | D122: 12.26072108 | E122: 26.06471654 | F122: 59.72601104 | G122: 79.46704349 | H122: 42.26919075 | I122: 74.68221458 | J122: 82.87854307 | K122: 80.61851456 | L122: =K122 -> 80.61851456 | M122: 8.094933524 | N122: 10.46593367 | O122: 16.97537996 | P122: 32.23089881 | Q122: 40.35228372 | R122: 23.64264035 | S122: 80.02188026 | T122: 11.13806361 | U122: 31.17074553 | V122: 19.91208305 | W122: 18.17708922 | X122: 27.93614938 | Y122: 23.42327727 | BA122: Sanitation | BB122: Improved | BC122: 0.1611081116 | BD122: 0.2202945661 | BE122: 0.4677293711 | BF122: 1.070181458 | BG122: 0.6367884744 | BH122: 0.2686334906 | BI122: 0.4750213276 | BJ122: 0.5210712205 | BK122: 0.2237241367 | BL122: 0.2237241367 | BM122: 0.1100912097 | BN122: 0.1421555192 | BO122: 0.2314677948 | BP122: 0.4385993122 | BQ122: 0.1453379697 | BR122: 0.2008087797 | BS122: 1.057955015 | BT122: 0.08123002262 | BU122: 0.3284298706 | BV122: 0.2371872559 | BW122: 0.1435332662 | BX122: 0.1724238035 | BY122: 0.334533967
B123: Not Improved | C123: 91.03074066 | D123: 87.73927892 | E123: 73.93528346 | F123: 40.27398896 | G123: 20.53295651 | H123: 57.73080925 | I123: 25.31778542 | J123: 17.12145693 | K123: 19.38148544 | L123: 19.38148544 | M123: 91.90506648 | N123: 89.53406633 | O123: 83.02462004 | P123: 67.76910119 | Q123: 59.64771628 | R123: 76.35735965 | S123: 19.97811974 | T123: 88.86193639 | U123: 68.82925447 | V123: 80.08791695 | W123: 81.82291078 | X123: 72.06385062 | Y123: 76.57672273 | BB123: Not Improved | BC123: 1.635117257 | BD123: 1.576455924 | BE123: 1.326763081 | BF123: 0.7216366115 | BG123: 0.1645355039 | BH123: 0.3668967521 | BI123: 0.1610355037 | BJ123: 0.1076454548 | BK123: 0.0537854874 | BL123: 0.0537854874 | BM123: 1.249910196 | BN123: 1.216113352 | BO123: 1.132082213 | BP123: 0.9222045385 | BQ123: 0.2148348788 | BR123: 0.6485412791 | BS123: 0.26412716 | BT123: 0.6480710973 | BU123: 0.7252179168 | BV123: 0.9539852364 | BW123: 0.6461050772 | BX123: 0.4447829604 | BY123: 1.09367765
A124: Sanitation ladder | B124: Basic | C124: =C122*'DHS12'!C129/100 -> 4.28460302 | D124: =D122*'DHS12'!D129/100 -> 5.151863084 | E124: =E122*'DHS12'!E129/100 -> 12.36135057 | F124: =F122*'DHS12'!F129/100 -> 29.17635945 | G124: =G122*'DHS12'!G129/100 -> 38.03254065 | H124: =H122*'DHS12'!H129/100 -> 20.62828245 | I124: =I122*'DHS12'!I129/100 -> 29.09475235 | J124: =J122*'DHS12'!J129/100 -> 29.03449333 | K124: =K122*'DHS12'!K129/100 -> 28.64328109 | L124: =L122*'DHS12'!L129/100 -> 57.13882014 | M124: =M122*'DHS12'!M129/100 -> 3.772069891 | N124: =N122*'DHS12'!N129/100 -> 4.876244928 | O124: =O122*'DHS12'!O129/100 -> 7.133829966 | P124: =P122*'DHS12'!P129/100 -> 15.26459351 | Q124: =Q122*'DHS12'!Q129/100 -> 23.19587009 | R124: =R122*'DHS12'!R129/100 -> 12.55867536 | S124: =S122*'DHS12'!S129/100 -> 33.66538028 | T124: =T122*'DHS12'!T129/100 -> 4.900373297 | U124: =U122*'DHS12'!U129/100 -> 13.3229325 | V124: =V122*'DHS12'!V129/100 -> 9.148519648 | W124: =W122*'DHS12'!W129/100 -> 12.42772279 | X124: =X122*'DHS12'!X129/100 -> 20.5667607 | Y124: =Y122*'DHS12'!Y129/100 -> 10.87206301 | BA124: Sanitation ladder | BB124: Basic | BC124: 0 | BD124: 0 | BE124: 0 | BF124: 0.01233528876 | BG124: 0.02436906812 | BH124: 0.0002933626614 | BI124: 0.0120419261 | BJ124: 0.01412549064 | BK124: 0.01024357748 | BL124: 0.01024357748 | BM124: 0 | BN124: 0 | BO124: 0 | BP124: 0 | BQ124: 0 | BR124: 0.002789445011 | BS124: 0.03340029396 | BT124: 9.216213799e-05 | BU124: 0 | BV124: 0 | BW124: 0.0004224557724 | BX124: 0 | BY124: 0
B125: Limited | C125: =C122*'DHS12'!C128/100 -> 4.684656317 | D125: =D122*'DHS12'!D128/100 -> 7.108857999 | E125: =E122*'DHS12'!E128/100 -> 13.70336597 | F125: =F122*'DHS12'!F128/100 -> 30.54965159 | G125: =G122*'DHS12'!G128/100 -> 41.43450284 | H125: =H122*'DHS12'!H128/100 -> 21.6409083 | I125: =I122*'DHS12'!I128/100 -> 45.58746223 | J125: =J122*'DHS12'!J128/100 -> 53.84404974 | K125: =K122*'DHS12'!K128/100 -> 51.97523347 | L125: =L122*'DHS12'!L128/100 -> 23.47969442 | M125: =M122*'DHS12'!M128/100 -> 4.322863633 | N125: =N122*'DHS12'!N128/100 -> 5.589688744 | O125: =O122*'DHS12'!O128/100 -> 9.841549994 | P125: =P122*'DHS12'!P128/100 -> 16.96630531 | Q125: =Q122*'DHS12'!Q128/100 -> 17.15641362 | R125: =R122*'DHS12'!R128/100 -> 11.08396499 | S125: =S122*'DHS12'!S128/100 -> 46.35649998 | T125: =T122*'DHS12'!T128/100 -> 6.237690311 | U125: =U122*'DHS12'!U128/100 -> 17.84781302 | V125: =V122*'DHS12'!V128/100 -> 10.7635634 | W125: =W122*'DHS12'!W128/100 -> 5.749366432 | X125: =X122*'DHS12'!X128/100 -> 7.36938868 | Y125: =Y122*'DHS12'!Y128/100 -> 12.55121426 | BB125: Limited | BC125: 0 | BD125: 0 | BE125: 0.000942540802 | BF125: 0.07522905842 | BG125: 0.09425467466 | BH125: 0.005441982853 | BI125: 0.04875614581 | BJ125: 0.07848928127 | BK125: 0.03509274465 | BL125: 0.03509274465 | BM125: 0 | BN125: 0 | BO125: 0 | BP125: 0.000942540802 | BQ125: 0.001703578491 | BR125: 0.01766097797 | BS125: 0.1394840136 | BT125: 0.002596562828 | BU125: 0.001367145638 | BV125: 0.005047046417 | BW125: 0.0003159080658 | BX125: 0.001192226568 | BY125: 0.00276239283
B126: Unimproved | C126: =100-C124-C125-C127 -> 64.10743867 | D126: =100-D124-D125-D127 -> 55.30029628 | E126: 54.10382216 | F126: 36.75703391 | G126: 19.64601373 | H126: 54.71327949 | I126: 24.86910854 | J126: 16.85294492 | K126: 18.55099341 | L126: 18.55099341 | M126: 62.05063829 | N126: 55.06629771 | O126: 58.73137443 | P126: 49.82684112 | Q126: 54.97485026 | R126: 54.4177814 | S126: 19.74425919 | T126: 74.4887667 | U126: 62.4975718 | V126: 65.16017315 | W126: 40.27586774 | X126: 52.21404164 | Y126: 41.35255455 | BB126: Unimproved | BC126: 0.1562781399 | BD126: 0.2202945661 | BE126: 0.4638603354 | BF126: 0.9748204311 | BG126: 0.5086451506 | BH126: 0.2562200473 | BI126: 0.4125046085 | BJ126: 0.4223697809 | BK126: 0.1749549013 | BL126: 0.1749549013 | BM126: 0.1062426437 | BN126: 0.1411741135 | BO126: 0.230471644 | BP126: 0.4363264926 | BQ126: 0.1436343912 | BR126: 0.1800739788 | BS126: 0.869559857 | BT126: 0.07601462728 | BU126: 0.3260665742 | BV126: 0.2316693425 | BW126: 0.1427949024 | BX126: 0.1702501713 | BY126: 0.3274691697
B127: Open defecation | C127: =C158 -> 26.92330199 | D127: =D158 -> 32.43898264 | E127: 19.8314613 | F127: 3.516955052 | G127: 0.8869427754 | H127: 3.017529764 | I127: 0.4486768808 | J127: 0.2685120101 | K127: 0.830492032 | L127: 0.830492032 | M127: 29.85442818 | N127: 34.46776862 | O127: 24.29324561 | P127: 17.94226007 | Q127: 4.672866028 | R127: 21.93957825 | S127: 0.2338605498 | T127: 14.37316969 | U127: 6.331682677 | V127: 14.9277438 | W127: 41.54704304 | X127: 19.84980898 | Y127: 35.22416818 | BB127: Open defecation | BC127: 1.134492738 | BD127: 0.9850180935 | BE127: 0.9562909857 | BF127: 0.6452532645 | BG127: 0.1433304395 | BH127: 0.3454843142 | BI127: 0.152092496 | BJ127: 0.09261638875 | BK127: 0.04737174026 | BL127: 0.04737174026 | BM127: 0.8341893517 | BN127: 0.736155311 | BO127: 0.7948798209 | BP127: 0.6644664512 | BQ127: 0.1971296474 | BR127: 0.4576281307 | BS127: 0.23920781 | BT127: 0.5381324905 | BU127: 0.6533026543 | BV127: 0.7759084657 | BW127: 0.3119451489 | BX127: 0.3051456398 | BY127: 0.5831151814
A128: Shared among Improved Sanitation | B128: Yes | C128: N/A | D128: N/A | E128: N/A | F128: N/A | G128: N/A | H128: N/A | I128: N/A | J128: N/A | K128: N/A | L128: N/A | M128: N/A | N128: N/A | O128: N/A | P128: N/A | Q128: N/A | R128: N/A | S128: N/A | T128: N/A | U128: N/A | V128: N/A | W128: N/A | X128: N/A | Y128: N/A | BA128: Shared among improved sanitation facilities | BB128: Yes | BC128: N/A | BD128: N/A | BE128: N/A | BF128: N/A | BG128: N/A | BH128: N/A | BI128: N/A | BJ128: N/A | BK128: N/A | BL128: N/A | BM128: N/A | BN128: N/A | BO128: N/A | BP128: N/A | BQ128: N/A | BR128: N/A | BS128: N/A | BT128: N/A | BU128: N/A | BV128: N/A | BW128: N/A | BX128: N/A | BY128: N/A
B129: No | C129: N/A | D129: N/A | E129: N/A | F129: N/A | G129: N/A | H129: N/A | I129: N/A | J129: N/A | K129: N/A | L129: N/A | M129: N/A | N129: N/A | O129: N/A | P129: N/A | Q129: N/A | R129: N/A | S129: N/A | T129: N/A | U129: N/A | V129: N/A | W129: N/A | X129: N/A | Y129: N/A | BB129: No | BC129: N/A | BD129: N/A | BE129: N/A | BF129: N/A | BG129: N/A | BH129: N/A | BI129: N/A | BJ129: N/A | BK129: N/A | BL129: N/A | BM129: N/A | BN129: N/A | BO129: N/A | BP129: N/A | BQ129: N/A | BR129: N/A | BS129: N/A | BT129: N/A | BU129: N/A | BV129: N/A | BW129: N/A | BX129: N/A | BY129: N/A
A130: Manually calculated ratios | B130: Improved latrines
B131: Other
B132: Other
C133: NATIONAL wealth index quintile | H133: URBAN wealth index quintile | M133: RURAL wealth index quintile | R133: région | BA133: Raw numbers of respondents: | BB133: Use of sanitation facilities | BC133: NATIONAL wealth index quintile | BH133: URBAN wealth index quintile | BM133: RURAL wealth index quintile | BR133: SUB-REGIONS:
A134: Percentage based on weighted population | C134: Poorest | D134: Poor | E134: Middle | F134: Rich | G134: Richest | H134: Poorest | I134: Poor | J134: Middle | K134: Rich | L134: Richest | M134: Poorest | N134: Poor | O134: Middle | P134: Rich | Q134: Richest | R134: boké | S134: conakry | T134: faranah | U134: kankan | V134: kindia | W134: labé | X134: mamou | Y134: n'zérékoré | BA134: Sanitation data, raw numbers (weighted) | BC134: Poorest | BD134: Poor | BE134: Middle | BF134: Rich | BG134: Richest | BH134: Poorest | BI134: Poor | BJ134: Middle | BK134: Rich | BL134: Richest | BM134: Poorest | BN134: Poor | BO134: Middle | BP134: Rich | BQ134: Richest | BR134: boké | BS134: conakry | BT134: faranah | BU134: kankan | BV134: kindia | BW134: labé | BX134: mamou | BY134: n'zérékoré
A135: Sanitation type | B135: Sewer connection | C135: 0 | D135: 0 | E135: 0 | F135: 0.6884230587 | G135: 3.041100576 | H135: 0.04616029917 | I135: 1.893215434 | J135: 2.246717988 | K135: 3.691251256 | L135: =K135 -> 3.691251256 | M135: 0 | N135: 0 | O135: 0 | P135: 0 | Q135: 0 | R135: 0.3284211242 | S135: 2.526340237 | T135: 0.01263704874 | U135: 0 | V135: 0 | W135: 0.05349990611 | X135: 0 | Y135: 0 | BA135: Sanitation type | BB135: Sewer connection | BC135: N/A | BD135: N/A | BE135: N/A | BF135: N/A | BG135: N/A | BH135: N/A | BI135: N/A | BJ135: N/A | BK135: N/A | BL135: N/A | BM135: N/A | BN135: N/A | BO135: N/A | BP135: N/A | BQ135: N/A | BR135: N/A | BS135: N/A | BT135: N/A | BU135: N/A | BV135: N/A | BW135: N/A | BX135: N/A | BY135: N/A
B136: Septic tank connection | C136: 0 | D136: 0 | E136: 0.0525240884 | F136: 4.19847638 | G136: 11.76236793 | H136: 0.8562901475 | I136: 7.665375705 | J136: 12.48404637 | K136: 12.64559554 | L136: 12.64559554 | M136: 0 | N136: 0 | O136: 0 | P136: 0.06926353137 | Q136: 0.472989149 | R136: 2.079352064 | S136: 10.55032858 | T136: 0.3560343947 | U136: 0.1297535717 | V136: 0.4237040773 | W136: 0.04000667754 | X136: 0.1931648578 | Y136: 0.1934162135 | BB136: Septic tank connection | BC136: N/A | BD136: N/A | BE136: N/A | BF136: N/A | BG136: N/A | BH136: N/A | BI136: N/A | BJ136: N/A | BK136: N/A | BL136: N/A | BM136: N/A | BN136: N/A | BO136: N/A | BP136: N/A | BQ136: N/A | BR136: N/A | BS136: N/A | BT136: N/A | BU136: N/A | BV136: N/A | BW136: N/A | BX136: N/A | BY136: N/A
B137: Improved latrines | C137: 8.969259337 | D137: 12.26072108 | E137: 26.01219245 | F137: 54.8391116 | G137: 64.66357498 | H137: 41.3667403 | I137: 65.12362344 | J137: 68.14777871 | K137: 64.28166776 | L137: 64.28166776 | M137: 8.094933524 | N137: 10.46593367 | O137: 16.97537996 | P137: 32.16163528 | Q137: 39.87929457 | R137: 21.23486716 | S137: 66.94521145 | T137: 10.76939216 | U137: 31.04099195 | V137: 19.48837897 | W137: 18.08358264 | X137: 27.74298452 | Y137: 23.22986106 | BB137: Improved latrines | BC137: N/A | BD137: N/A | BE137: N/A | BF137: N/A | BG137: N/A | BH137: N/A | BI137: N/A | BJ137: N/A | BK137: N/A | BL137: N/A | BM137: N/A | BN137: N/A | BO137: N/A | BP137: N/A | BQ137: N/A | BR137: N/A | BS137: N/A | BT137: N/A | BU137: N/A | BV137: N/A | BW137: N/A | BX137: N/A | BY137: N/A
B138: Unimproved facilities | C138: 64.10743867 | D138: 55.30029628 | E138: 54.10382216 | F138: 36.75703391 | G138: 19.64601373 | H138: 54.71327949 | I138: 24.86910854 | J138: 16.85294492 | K138: 18.55099341 | L138: 18.55099341 | M138: 62.05063829 | N138: 55.06629771 | O138: 58.73137443 | P138: 49.82684112 | Q138: 54.97485026 | R138: 54.4177814 | S138: 19.74425919 | T138: 74.4887667 | U138: 62.4975718 | V138: 65.16017315 | W138: 40.27586774 | X138: 52.21404164 | Y138: 41.35255455 | BB138: Unimproved facilities | BC138: N/A | BD138: N/A | BE138: N/A | BF138: N/A | BG138: N/A | BH138: N/A | BI138: N/A | BJ138: N/A | BK138: N/A | BL138: N/A | BM138: N/A | BN138: N/A | BO138: N/A | BP138: N/A | BQ138: N/A | BR138: N/A | BS138: N/A | BT138: N/A | BU138: N/A | BV138: N/A | BW138: N/A | BX138: N/A | BY138: N/A
B139: Open defecation | C139: 26.92330199 | D139: 32.43898264 | E139: 19.8314613 | F139: 3.516955052 | G139: 0.8869427754 | H139: 3.017529764 | I139: 0.4486768808 | J139: 0.2685120101 | K139: 0.830492032 | L139: 0.830492032 | M139: 29.85442818 | N139: 34.46776862 | O139: 24.29324561 | P139: 17.94226007 | Q139: 4.672866028 | R139: 21.93957825 | S139: 0.2338605498 | T139: 14.37316969 | U139: 6.331682677 | V139: 14.9277438 | W139: 41.54704304 | X139: 19.84980898 | Y139: 35.22416818 | BB139: Open defecation | BC139: N/A | BD139: N/A | BE139: N/A | BF139: N/A | BG139: N/A | BH139: N/A | BI139: N/A | BJ139: N/A | BK139: N/A | BL139: N/A | BM139: N/A | BN139: N/A | BO139: N/A | BP139: N/A | BQ139: N/A | BR139: N/A | BS139: N/A | BT139: N/A | BU139: N/A | BV139: N/A | BW139: N/A | BX139: N/A | BY139: N/A
A140: Septic tank emptying practices | B140: Not emptied/treated and disposed in situ | C140: N/A | D140: N/A | E140: N/A | F140: N/A | G140: N/A | H140: N/A | I140: N/A | J140: N/A | K140: N/A | L140: N/A | M140: N/A | N140: N/A | O140: N/A | P140: N/A | Q140: N/A | R140: N/A | S140: N/A | T140: N/A | U140: N/A | V140: N/A | W140: N/A | X140: N/A | Y140: N/A | BA140: Septic tank emptying practices | BB140: Not emptied/treated and disposed in situ | BC140: N/A | BD140: N/A | BE140: N/A | BF140: N/A | BG140: N/A | BH140: N/A | BI140: N/A | BJ140: N/A | BK140: N/A | BL140: N/A | BM140: N/A | BN140: N/A | BO140: N/A | BP140: N/A | BQ140: N/A | BR140: N/A | BS140: N/A | BT140: N/A | BU140: N/A | BV140: N/A | BW140: N/A | BX140: N/A | BY140: N/A
B141: Emptied and buried on site | C141: N/A | D141: N/A | E141: N/A | F141: N/A | G141: N/A | H141: N/A | I141: N/A | J141: N/A | K141: N/A | L141: N/A | M141: N/A | N141: N/A | O141: N/A | P141: N/A | Q141: N/A | R141: N/A | S141: N/A | T141: N/A | U141: N/A | V141: N/A | W141: N/A | X141: N/A | Y141: N/A | BB141: Emptied and buried on site | BC141: N/A | BD141: N/A | BE141: N/A | BF141: N/A | BG141: N/A | BH141: N/A | BI141: N/A | BJ141: N/A | BK141: N/A | BL141: N/A | BM141: N/A | BN141: N/A | BO141: N/A | BP141: N/A | BQ141: N/A | BR141: N/A | BS141: N/A | BT141: N/A | BU141: N/A | BV141: N/A | BW141: N/A | BX141: N/A | BY141: N/A
B142: Emptied and discharged locally | C142: N/A | D142: N/A | E142: N/A | F142: N/A | G142: N/A | H142: N/A | I142: N/A | J142: N/A | K142: N/A | L142: N/A | M142: N/A | N142: N/A | O142: N/A | P142: N/A | Q142: N/A | R142: N/A | S142: N/A | T142: N/A | U142: N/A | V142: N/A | W142: N/A | X142: N/A | Y142: N/A | BB142: Emptied and discharged locally | BC142: N/A | BD142: N/A | BE142: N/A | BF142: N/A | BG142: N/A | BH142: N/A | BI142: N/A | BJ142: N/A | BK142: N/A | BL142: N/A | BM142: N/A | BN142: N/A | BO142: N/A | BP142: N/A | BQ142: N/A | BR142: N/A | BS142: N/A | BT142: N/A | BU142: N/A | BV142: N/A | BW142: N/A | BX142: N/A | BY142: N/A
B143: Emptied and removed offsite | C143: N/A | D143: N/A | E143: N/A | F143: N/A | G143: N/A | H143: N/A | I143: N/A | J143: N/A | K143: N/A | L143: N/A | M143: N/A | N143: N/A | O143: N/A | P143: N/A | Q143: N/A | R143: N/A | S143: N/A | T143: N/A | U143: N/A | V143: N/A | W143: N/A | X143: N/A | Y143: N/A | BB143: Emptied and removed offsite | BC143: N/A | BD143: N/A | BE143: N/A | BF143: N/A | BG143: N/A | BH143: N/A | BI143: N/A | BJ143: N/A | BK143: N/A | BL143: N/A | BM143: N/A | BN143: N/A | BO143: N/A | BP143: N/A | BQ143: N/A | BR143: N/A | BS143: N/A | BT143: N/A | BU143: N/A | BV143: N/A | BW143: N/A | BX143: N/A | BY143: N/A
A144: Latrine emptying practices | B144: Not emptied/treated and disposed in situ | C144: N/A | D144: N/A | E144: N/A | F144: N/A | G144: N/A | H144: N/A | I144: N/A | J144: N/A | K144: N/A | L144: N/A | M144: N/A | N144: N/A | O144: N/A | P144: N/A | Q144: N/A | R144: N/A | S144: N/A | T144: N/A | U144: N/A | V144: N/A | W144: N/A | X144: N/A | Y144: N/A | BA144: Latrine emptying practices | BB144: Not emptied/treated and disposed in situ | BC144: N/A | BD144: N/A | BE144: N/A | BF144: N/A | BG144: N/A | BH144: N/A | BI144: N/A | BJ144: N/A | BK144: N/A | BL144: N/A | BM144: N/A | BN144: N/A | BO144: N/A | BP144: N/A | BQ144: N/A | BR144: N/A | BS144: N/A | BT144: N/A | BU144: N/A | BV144: N/A | BW144: N/A | BX144: N/A | BY144: N/A
B145: Emptied and buried on site | C145: N/A | D145: N/A | E145: N/A | F145: N/A | G145: N/A | H145: N/A | I145: N/A | J145: N/A | K145: N/A | L145: N/A | M145: N/A | N145: N/A | O145: N/A | P145: N/A | Q145: N/A | R145: N/A | S145: N/A | T145: N/A | U145: N/A | V145: N/A | W145: N/A | X145: N/A | Y145: N/A | BB145: Emptied and buried on site | BC145: N/A | BD145: N/A | BE145: N/A | BF145: N/A | BG145: N/A | BH145: N/A | BI145: N/A | BJ145: N/A | BK145: N/A | BL145: N/A | BM145: N/A | BN145: N/A | BO145: N/A | BP145: N/A | BQ145: N/A | BR145: N/A | BS145: N/A | BT145: N/A | BU145: N/A | BV145: N/A | BW145: N/A | BX145: N/A | BY145: N/A
B146: Emptied and discharged locally | C146: N/A | D146: N/A | E146: N/A | F146: N/A | G146: N/A | H146: N/A | I146: N/A | J146: N/A | K146: N/A | L146: N/A | M146: N/A | N146: N/A | O146: N/A | P146: N/A | Q146: N/A | R146: N/A | S146: N/A | T146: N/A | U146: N/A | V146: N/A | W146: N/A | X146: N/A | Y146: N/A | BB146: Emptied and discharged locally | BC146: N/A | BD146: N/A | BE146: N/A | BF146: N/A | BG146: N/A | BH146: N/A | BI146: N/A | BJ146: N/A | BK146: N/A | BL146: N/A | BM146: N/A | BN146: N/A | BO146: N/A | BP146: N/A | BQ146: N/A | BR146: N/A | BS146: N/A | BT146: N/A | BU146: N/A | BV146: N/A | BW146: N/A | BX146: N/A | BY146: N/A
B147: Emptied and removed offsite | C147: N/A | D147: N/A | E147: N/A | F147: N/A | G147: N/A | H147: N/A | I147: N/A | J147: N/A | K147: N/A | L147: N/A | M147: N/A | N147: N/A | O147: N/A | P147: N/A | Q147: N/A | R147: N/A | S147: N/A | T147: N/A | U147: N/A | V147: N/A | W147: N/A | X147: N/A | Y147: N/A | BB147: Emptied and removed offsite | BC147: N/A | BD147: N/A | BE147: N/A | BF147: N/A | BG147: N/A | BH147: N/A | BI147: N/A | BJ147: N/A | BK147: N/A | BL147: N/A | BM147: N/A | BN147: N/A | BO147: N/A | BP147: N/A | BQ147: N/A | BR147: N/A | BS147: N/A | BT147: N/A | BU147: N/A | BV147: N/A | BW147: N/A | BX147: N/A | BY147: N/A
A148: Shared among improved sanitation facilities | B148: Yes | C148: N/A | D148: N/A | E148: N/A | F148: N/A | G148: N/A | H148: N/A | I148: N/A | J148: N/A | K148: N/A | L148: N/A | M148: N/A | N148: N/A | O148: N/A | P148: N/A | Q148: N/A | R148: N/A | S148: N/A | T148: N/A | U148: N/A | V148: N/A | W148: N/A | X148: N/A | Y148: N/A | BA148: Shared among improved sanitation facilities | BB148: Yes | BC148: N/A | BD148: N/A | BE148: N/A | BF148: N/A | BG148: N/A | BH148: N/A | BI148: N/A | BJ148: N/A | BK148: N/A | BL148: N/A | BM148: N/A | BN148: N/A | BO148: N/A | BP148: N/A | BQ148: N/A | BR148: N/A | BS148: N/A | BT148: N/A | BU148: N/A | BV148: N/A | BW148: N/A | BX148: N/A | BY148: N/A
B149: No | C149: N/A | D149: N/A | E149: N/A | F149: N/A | G149: N/A | H149: N/A | I149: N/A | J149: N/A | K149: N/A | L149: N/A | M149: N/A | N149: N/A | O149: N/A | P149: N/A | Q149: N/A | R149: N/A | S149: N/A | T149: N/A | U149: N/A | V149: N/A | W149: N/A | X149: N/A | Y149: N/A | BB149: No | BC149: N/A | BD149: N/A | BE149: N/A | BF149: N/A | BG149: N/A | BH149: N/A | BI149: N/A | BJ149: N/A | BK149: N/A | BL149: N/A | BM149: N/A | BN149: N/A | BO149: N/A | BP149: N/A | BQ149: N/A | BR149: N/A | BS149: N/A | BT149: N/A | BU149: N/A | BV149: N/A | BW149: N/A | BX149: N/A | BY149: N/A
B150: DK/missing | C150: N/A | D150: N/A | E150: N/A | F150: N/A | G150: N/A | H150: N/A | I150: N/A | J150: N/A | K150: N/A | L150: N/A | M150: N/A | N150: N/A | O150: N/A | P150: N/A | Q150: N/A | R150: N/A | S150: N/A | T150: N/A | U150: N/A | V150: N/A | W150: N/A | X150: N/A | Y150: N/A | BB150: DK/missing | BC150: N/A | BD150: N/A | BE150: N/A | BF150: N/A | BG150: N/A | BH150: N/A | BI150: N/A | BJ150: N/A | BK150: N/A | BL150: N/A | BM150: N/A | BN150: N/A | BO150: N/A | BP150: N/A | BQ150: N/A | BR150: N/A | BS150: N/A | BT150: N/A | BU150: N/A | BV150: N/A | BW150: N/A | BX150: N/A | BY150: N/A
A151: Shared among all sanitation facilities | B151: Yes | C151: N/A | D151: N/A | E151: N/A | F151: N/A | G151: N/A | H151: N/A | I151: N/A | J151: N/A | K151: N/A | L151: N/A | M151: N/A | N151: N/A | O151: N/A | P151: N/A | Q151: N/A | R151: N/A | S151: N/A | T151: N/A | U151: N/A | V151: N/A | W151: N/A | X151: N/A | Y151: N/A | BA151: Shared among all sanitation facilities | BB151: Yes | BC151: N/A | BD151: N/A | BE151: N/A | BF151: N/A | BG151: N/A | BH151: N/A | BI151: N/A | BJ151: N/A | BK151: N/A | BL151: N/A | BM151: N/A | BN151: N/A | BO151: N/A | BP151: N/A | BQ151: N/A | BR151: N/A | BS151: N/A | BT151: N/A | BU151: N/A | BV151: N/A | BW151: N/A | BX151: N/A | BY151: N/A
B152: No | C152: N/A | D152: N/A | E152: N/A | F152: N/A | G152: N/A | H152: N/A | I152: N/A | J152: N/A | K152: N/A | L152: N/A | M152: N/A | N152: N/A | O152: N/A | P152: N/A | Q152: N/A | R152: N/A | S152: N/A | T152: N/A | U152: N/A | V152: N/A | W152: N/A | X152: N/A | Y152: N/A | BB152: No | BC152: N/A | BD152: N/A | BE152: N/A | BF152: N/A | BG152: N/A | BH152: N/A | BI152: N/A | BJ152: N/A | BK152: N/A | BL152: N/A | BM152: N/A | BN152: N/A | BO152: N/A | BP152: N/A | BQ152: N/A | BR152: N/A | BS152: N/A | BT152: N/A | BU152: N/A | BV152: N/A | BW152: N/A | BX152: N/A | BY152: N/A
A153: type de toilettes utilise le ménage principalement | B153: chasse d'eau avec égout | C153: 0 | D153: 0 | E153: 0 | F153: 0.6884230587 | G153: 3.041100576 | H153: 0.04616029917 | I153: 1.893215434 | J153: 2.246717988 | K153: 3.691251256 | L153: 3.691251256 | M153: 0 | N153: 0 | O153: 0 | P153: 0 | Q153: 0 | R153: 0.3284211242 | S153: 2.526340237 | T153: 0.01263704874 | U153: 0 | V153: 0 | W153: 0.05349990611 | X153: 0 | Y153: 0 | BA153: Shared among improved sanitation facilities | BB153: Yes | BC153: N/A | BD153: N/A | BE153: N/A | BF153: N/A | BG153: N/A | BH153: N/A | BI153: N/A | BJ153: N/A | BK153: N/A | BL153: N/A | BM153: N/A | BN153: N/A | BO153: N/A | BP153: N/A | BQ153: N/A | BR153: N/A | BS153: N/A | BT153: N/A | BU153: N/A | BV153: N/A | BW153: N/A | BX153: N/A | BY153: N/A
B154: chasse d'eau avec fosse septique | C154: 0 | D154: 0 | E154: 0.0525240884 | F154: 4.19847638 | G154: 11.76236793 | H154: 0.8562901475 | I154: 7.665375705 | J154: 12.48404637 | K154: 12.64559554 | L154: 12.64559554 | M154: 0 | N154: 0 | O154: 0 | P154: 0.06926353137 | Q154: 0.472989149 | R154: 2.079352064 | S154: 10.55032858 | T154: 0.3560343947 | U154: 0.1297535717 | V154: 0.4237040773 | W154: 0.04000667754 | X154: 0.1931648578 | Y154: 0.1934162135 | BB154: No | BC154: N/A | BD154: N/A | BE154: N/A | BF154: N/A | BG154: N/A | BH154: N/A | BI154: N/A | BJ154: N/A | BK154: N/A | BL154: N/A | BM154: N/A | BN154: N/A | BO154: N/A | BP154: N/A | BQ154: N/A | BR154: N/A | BS154: N/A | BT154: N/A | BU154: N/A | BV154: N/A | BW154: N/A | BX154: N/A | BY154: N/A
B155: latrines couvertes | C155: 8.7003637 | D155: 12.26072108 | E155: 25.84911042 | F155: 54.40398486 | G155: 63.47559344 | H155: 40.3159488 | I155: 64.85342005 | J155: 67.17966892 | K155: 63.04462479 | L155: 63.04462479 | M155: 7.811951024 | N155: 10.39367952 | O155: 16.90232428 | P155: 32.06387845 | Q155: 39.87929457 | R155: 21.20138534 | S155: 65.77199762 | T155: 10.42294125 | U155: 30.9464489 | V155: 19.44884926 | W155: 18.08358264 | X155: 27.58397692 | Y155: 22.92861687
B156: latrines non couvertes | C156: 63.1598216 | D156: 54.82219703 | E156: 53.290332 | F156: 36.01109262 | G156: 17.88670293 | H156: 54.36158517 | I156: 23.91177778 | J156: 14.73102152 | K156: 17.07030537 | L156: 17.07030537 | M156: 61.33738894 | N156: 54.19805506 | O156: 58.29487854 | P156: 48.82896612 | Q156: 54.73195666 | R156: 53.87980209 | S156: 18.09326337 | T156: 73.78742139 | U156: 62.00389372 | V156: 65.1382122 | W156: 39.50481274 | X156: 49.43977572 | Y156: 40.82834606
B157: latrines ventilées améliorées | C157: 0.2688956372 | D157: 0 | E157: 0.1630820377 | F157: 0.4351267412 | G157: 1.187981547 | H157: 1.050791501 | I157: 0.2702033895 | J157: 0.9681097914 | K157: 1.237042971 | L157: 1.237042971 | M157: 0.2829825001 | N157: 0.07225415311 | O157: 0.07305568193 | P157: 0.09775683522 | Q157: 0 | R157: 0.03348182037 | S157: 1.173213827 | T157: 0.3464509118 | U157: 0.09454305023 | V157: 0.03952970898 | W157: 0 | X157: 0.1590076013 | Y157: 0.3012441885
B158: nature | C158: 26.92330199 | D158: 32.43898264 | E158: 19.8314613 | F158: 3.516955052 | G158: 0.8869427754 | H158: 3.017529764 | I158: 0.4486768808 | J158: 0.2685120101 | K158: 0.830492032 | L158: 0.830492032 | M158: 29.85442818 | N158: 34.46776862 | O158: 24.29324561 | P158: 17.94226007 | Q158: 4.672866028 | R158: 21.93957825 | S158: 0.2338605498 | T158: 14.37316969 | U158: 6.331682677 | V158: 14.9277438 | W158: 41.54704304 | X158: 19.84980898 | Y158: 35.22416818
B159: autre | C159: 0.3204768416 | D159: 0.04081033975 | E159: 0.100622776 | F159: 0.1108043953 | G159: 0 | H159: 0.04116134389 | I159: 0.0931175516 | J159: 0.2215835342 | K159: 0 | L159: 0 | M159: 0.1672059552 | N159: 0.2506207975 | O159: 0.0403392538 | P159: 0.1326912854 | Q159: 0 | R159: 0.2125941009 | S159: 0.1501732051 | T159: 0.3118058206 | U159: 0.3056894568 | V159: 0.02196094943 | W159: 0 | X159: 0 | Y159: 0.05134112975
B160: non déclaré | C160: 0.6271402291 | D160: 0.4372889125 | E160: 0.7128673751 | F160: 0.635136899 | G160: 1.759310799 | H160: 0.3105329756 | I160: 0.8642132133 | J160: 1.900339867 | K160: 1.480688042 | L160: 1.480688042 | M160: 0.5460434005 | N160: 0.6176218477 | O160: 0.396156638 | P160: 0.865183716 | Q160: 0.2428935983 | R160: 0.3253852061 | S160: 1.500822608 | T160: 0.3895394866 | U160: 0.1879886181 | V160: 0 | W160: 0.7710549947 | X160: 2.774265923 | Y160: 0.4728673639
A208: =A1026 -> Guinea
A209: =A1034 -> 2007
A210: Access to hygiene facilities
A211: by wealth quintile and sub-national region
A212: Notes:
A213: WHO/UNICEF JMP customised wealth index excludes water,
A214: sanitation and hygiene assets.
A215: Survey used for analysis: | B215: =A1025 -> QUIBB07
A220: Access to handwashing | C220: NATIONAL wealth index quintile | H220: URBAN wealth index quintile | M220: RURAL wealth index quintile | R220: région | BA220: Raw numbers of respondents: | BB220: Access to handwashing | BC220: NATIONAL wealth index quintile | BH220: URBAN wealth index quintile | BM220: RURAL wealth index quintile | BR220: SUB-REGIONS:
A221: Weighted percentage (used in graphs) | C221: Poorest | D221: Poor | E221: Middle | F221: Rich | G221: Richest | H221: Poorest | I221: Poor | J221: Middle | K221: Rich | L221: Richest | M221: Poorest | N221: Poor | O221: Middle | P221: Rich | Q221: Richest | R221: boké | S221: conakry | T221: faranah | U221: kankan | V221: kindia | W221: labé | X221: mamou | Y221: n'zérékoré | BA221: Hygiene data, raw numbers (weighted) | BC221: Poorest | BD221: Poor | BE221: Middle | BF221: Rich | BG221: Richest | BH221: Poorest | BI221: Poor | BJ221: Middle | BK221: Rich | BL221: Richest | BM221: Poorest | BN221: Poor | BO221: Middle | BP221: Rich | BQ221: Richest | BR221: boké | BS221: conakry | BT221: faranah | BU221: kankan | BV221: kindia | BW221: labé | BX221: mamou | BY221: n'zérékoré
A222: Hygiene ladder | B222: Basic | C222: N/A | D222: N/A | E222: N/A | F222: N/A | G222: N/A | H222: N/A | I222: N/A | J222: N/A | K222: N/A | L222: N/A | M222: N/A | N222: N/A | O222: N/A | P222: N/A | Q222: N/A | R222: N/A | S222: N/A | T222: N/A | U222: N/A | V222: N/A | W222: N/A | X222: N/A | Y222: N/A | BA222: Hygiene ladder | BB222: Basic | BC222: N/A | BD222: N/A | BE222: N/A | BF222: N/A | BG222: N/A | BH222: N/A | BI222: N/A | BJ222: N/A | BK222: N/A | BL222: N/A | BM222: N/A | BN222: N/A | BO222: N/A | BP222: N/A | BQ222: N/A | BR222: N/A | BS222: N/A | BT222: N/A | BU222: N/A | BV222: N/A | BW222: N/A | BX222: N/A | BY222: N/A
B223: Limited | C223: N/A | D223: N/A | E223: N/A | F223: N/A | G223: N/A | H223: N/A | I223: N/A | J223: N/A | K223: N/A | L223: N/A | M223: N/A | N223: N/A | O223: N/A | P223: N/A | Q223: N/A | R223: N/A | S223: N/A | T223: N/A | U223: N/A | V223: N/A | W223: N/A | X223: N/A | Y223: N/A | BB223: Limited | BC223: N/A | BD223: N/A | BE223: N/A | BF223: N/A | BG223: N/A | BH223: N/A | BI223: N/A | BJ223: N/A | BK223: N/A | BL223: N/A | BM223: N/A | BN223: N/A | BO223: N/A | BP223: N/A | BQ223: N/A | BR223: N/A | BS223: N/A | BT223: N/A | BU223: N/A | BV223: N/A | BW223: N/A | BX223: N/A | BY223: N/A
B224: No facility | C224: N/A | D224: N/A | E224: N/A | F224: N/A | G224: N/A | H224: N/A | I224: N/A | J224: N/A | K224: N/A | L224: N/A | M224: N/A | N224: N/A | O224: N/A | P224: N/A | Q224: N/A | R224: N/A | S224: N/A | T224: N/A | U224: N/A | V224: N/A | W224: N/A | X224: N/A | Y224: N/A | BB224: No facility | BC224: N/A | BD224: N/A | BE224: N/A | BF224: N/A | BG224: N/A | BH224: N/A | BI224: N/A | BJ224: N/A | BK224: N/A | BL224: N/A | BM224: N/A | BN224: N/A | BO224: N/A | BP224: N/A | BQ224: N/A | BR224: N/A | BS224: N/A | BT224: N/A | BU224: N/A | BV224: N/A | BW224: N/A | BX224: N/A | BY224: N/A
BA225: Observed handwashing place | BB225: Fixed | BC225: N/A | BD225: N/A | BE225: N/A | BF225: N/A | BG225: N/A | BH225: N/A | BI225: N/A | BJ225: N/A | BK225: N/A | BL225: N/A | BM225: N/A | BN225: N/A | BO225: N/A | BP225: N/A | BQ225: N/A | BR225: N/A | BS225: N/A | BT225: N/A | BU225: N/A | BV225: N/A | BW225: N/A | BX225: N/A | BY225: N/A
BB226: Mobile | BC226: N/A | BD226: N/A | BE226: N/A | BF226: N/A | BG226: N/A | BH226: N/A | BI226: N/A | BJ226: N/A | BK226: N/A | BL226: N/A | BM226: N/A | BN226: N/A | BO226: N/A | BP226: N/A | BQ226: N/A | BR226: N/A | BS226: N/A | BT226: N/A | BU226: N/A | BV226: N/A | BW226: N/A | BX226: N/A | BY226: N/A
BA227: Water / Soap | BB227: Water and soap | BC227: N/A | BD227: N/A | BE227: N/A | BF227: N/A | BG227: N/A | BH227: N/A | BI227: N/A | BJ227: N/A | BK227: N/A | BL227: N/A | BM227: N/A | BN227: N/A | BO227: N/A | BP227: N/A | BQ227: N/A | BR227: N/A | BS227: N/A | BT227: N/A | BU227: N/A | BV227: N/A | BW227: N/A | BX227: N/A | BY227: N/A
BB228: Water only | BC228: N/A | BD228: N/A | BE228: N/A | BF228: N/A | BG228: N/A | BH228: N/A | BI228: N/A | BJ228: N/A | BK228: N/A | BL228: N/A | BM228: N/A | BN228: N/A | BO228: N/A | BP228: N/A | BQ228: N/A | BR228: N/A | BS228: N/A | BT228: N/A | BU228: N/A | BV228: N/A | BW228: N/A | BX228: N/A | BY228: N/A
BB229: Soap only | BC229: N/A | BD229: N/A | BE229: N/A | BF229: N/A | BG229: N/A | BH229: N/A | BI229: N/A | BJ229: N/A | BK229: N/A | BL229: N/A | BM229: N/A | BN229: N/A | BO229: N/A | BP229: N/A | BQ229: N/A | BR229: N/A | BS229: N/A | BT229: N/A | BU229: N/A | BV229: N/A | BW229: N/A | BX229: N/A | BY229: N/A
BB230: Neither | BC230: N/A | BD230: N/A | BE230: N/A | BF230: N/A | BG230: N/A | BH230: N/A | BI230: N/A | BJ230: N/A | BK230: N/A | BL230: N/A | BM230: N/A | BN230: N/A | BO230: N/A | BP230: N/A | BQ230: N/A | BR230: N/A | BS230: N/A | BT230: N/A | BU230: N/A | BV230: N/A | BW230: N/A | BX230: N/A | BY230: N/A
BA259: Raw numbers of respondents: | BB259: Menstrual health and hygiene | BC259: NATIONAL wealth index quintile | BH259: URBAN wealth index quintile | BM259: RURAL wealth index quintile | BR259: SUB-REGIONS:
BA260: MHH data, raw numbers (weighted) | BC260: Poorest | BD260: Poor | BE260: Middle | BF260: Rich | BG260: Richest | BH260: Poorest | BI260: Poor | BJ260: Middle | BK260: Rich | BL260: Richest | BM260: Poorest | BN260: Poor | BO260: Middle | BP260: Rich | BQ260: Richest | BR260: boké | BS260: conakry | BT260: faranah | BU260: kankan | BV260: kindia | BW260: labé | BX260: mamou | BY260: n'zérékoré
BA261: Private place to wash and change | BB261: Yes | BC261: N/A | BD261: N/A | BE261: N/A | BF261: N/A | BG261: N/A | BH261: N/A | BI261: N/A | BJ261: N/A | BK261: N/A | BL261: N/A | BM261: N/A | BN261: N/A | BO261: N/A | BP261: N/A | BQ261: N/A | BR261: N/A | BS261: N/A | BT261: N/A | BU261: N/A | BV261: N/A | BW261: N/A | BX261: N/A | BY261: N/A
BB262: No | BC262: N/A | BD262: N/A | BE262: N/A | BF262: N/A | BG262: N/A | BH262: N/A | BI262: N/A | BJ262: N/A | BK262: N/A | BL262: N/A | BM262: N/A | BN262: N/A | BO262: N/A | BP262: N/A | BQ262: N/A | BR262: N/A | BS262: N/A | BT262: N/A | BU262: N/A | BV262: N/A | BW262: N/A | BX262: N/A | BY262: N/A
BB263: DK/not sure/missing | BC263: N/A | BD263: N/A | BE263: N/A | BF263: N/A | BG263: N/A | BH263: N/A | BI263: N/A | BJ263: N/A | BK263: N/A | BL263: N/A | BM263: N/A | BN263: N/A | BO263: N/A | BP263: N/A | BQ263: N/A | BR263: N/A | BS263: N/A | BT263: N/A | BU263: N/A | BV263: N/A | BW263: N/A | BX263: N/A | BY263: N/A
BA264: Use of menstrual materials | BB264: Materials reusable | BC264: N/A | BD264: N/A | BE264: N/A | BF264: N/A | BG264: N/A | BH264: N/A | BI264: N/A | BJ264: N/A | BK264: N/A | BL264: N/A | BM264: N/A | BN264: N/A | BO264: N/A | BP264: N/A | BQ264: N/A | BR264: N/A | BS264: N/A | BT264: N/A | BU264: N/A | BV264: N/A | BW264: N/A | BX264: N/A | BY264: N/A
BB265: Materials not reusable | BC265: N/A | BD265: N/A | BE265: N/A | BF265: N/A | BG265: N/A | BH265: N/A | BI265: N/A | BJ265: N/A | BK265: N/A | BL265: N/A | BM265: N/A | BN265: N/A | BO265: N/A | BP265: N/A | BQ265: N/A | BR265: N/A | BS265: N/A | BT265: N/A | BU265: N/A | BV265: N/A | BW265: N/A | BX265: N/A | BY265: N/A
BB266: No materials used | BC266: N/A | BD266: N/A | BE266: N/A | BF266: N/A | BG266: N/A | BH266: N/A | BI266: N/A | BJ266: N/A | BK266: N/A | BL266: N/A | BM266: N/A | BN266: N/A | BO266: N/A | BP266: N/A | BQ266: N/A | BR266: N/A | BS266: N/A | BT266: N/A | BU266: N/A | BV266: N/A | BW266: N/A | BX266: N/A | BY266: N/A
BB267: DK/not sure/missing | BC267: N/A | BD267: N/A | BE267: N/A | BF267: N/A | BG267: N/A | BH267: N/A | BI267: N/A | BJ267: N/A | BK267: N/A | BL267: N/A | BM267: N/A | BN267: N/A | BO267: N/A | BP267: N/A | BQ267: N/A | BR267: N/A | BS267: N/A | BT267: N/A | BU267: N/A | BV267: N/A | BW267: N/A | BX267: N/A | BY267: N/A
BA268: Use of menstrual materials with private place to wash and change | BB268: Materials reusable | BC268: N/A | BD268: N/A | BE268: N/A | BF268: N/A | BG268: N/A | BH268: N/A | BI268: N/A | BJ268: N/A | BK268: N/A | BL268: N/A | BM268: N/A | BN268: N/A | BO268: N/A | BP268: N/A | BQ268: N/A | BR268: N/A | BS268: N/A | BT268: N/A | BU268: N/A | BV268: N/A | BW268: N/A | BX268: N/A | BY268: N/A
BB269: Materials not reusable | BC269: N/A | BD269: N/A | BE269: N/A | BF269: N/A | BG269: N/A | BH269: N/A | BI269: N/A | BJ269: N/A | BK269: N/A | BL269: N/A | BM269: N/A | BN269: N/A | BO269: N/A | BP269: N/A | BQ269: N/A | BR269: N/A | BS269: N/A | BT269: N/A | BU269: N/A | BV269: N/A | BW269: N/A | BX269: N/A | BY269: N/A
BB270: No materials used | BC270: N/A | BD270: N/A | BE270: N/A | BF270: N/A | BG270: N/A | BH270: N/A | BI270: N/A | BJ270: N/A | BK270: N/A | BL270: N/A | BM270: N/A | BN270: N/A | BO270: N/A | BP270: N/A | BQ270: N/A | BR270: N/A | BS270: N/A | BT270: N/A | BU270: N/A | BV270: N/A | BW270: N/A | BX270: N/A | BY270: N/A
BA271: Awareness of menstruation before menarche | BB271: Yes | BC271: N/A | BD271: N/A | BE271: N/A | BF271: N/A | BG271: N/A | BH271: N/A | BI271: N/A | BJ271: N/A | BK271: N/A | BL271: N/A | BM271: N/A | BN271: N/A | BO271: N/A | BP271: N/A | BQ271: N/A | BR271: N/A | BS271: N/A | BT271: N/A | BU271: N/A | BV271: N/A | BW271: N/A | BX271: N/A | BY271: N/A
BB272: No | BC272: N/A | BD272: N/A | BE272: N/A | BF272: N/A | BG272: N/A | BH272: N/A | BI272: N/A | BJ272: N/A | BK272: N/A | BL272: N/A | BM272: N/A | BN272: N/A | BO272: N/A | BP272: N/A | BQ272: N/A | BR272: N/A | BS272: N/A | BT272: N/A | BU272: N/A | BV272: N/A | BW272: N/A | BX272: N/A | BY272: N/A
BB273: DK/not sure/missing | BC273: N/A | BD273: N/A | BE273: N/A | BF273: N/A | BG273: N/A | BH273: N/A | BI273: N/A | BJ273: N/A | BK273: N/A | BL273: N/A | BM273: N/A | BN273: N/A | BO273: N/A | BP273: N/A | BQ273: N/A | BR273: N/A | BS273: N/A | BT273: N/A | BU273: N/A | BV273: N/A | BW273: N/A | BX273: N/A | BY273: N/A
BA274: Participation in (all) activities during menstruation | BB274: Yes | BC274: N/A | BD274: N/A | BE274: N/A | BF274: N/A | BG274: N/A | BH274: N/A | BI274: N/A | BJ274: N/A | BK274: N/A | BL274: N/A | BM274: N/A | BN274: N/A | BO274: N/A | BP274: N/A | BQ274: N/A | BR274: N/A | BS274: N/A | BT274: N/A | BU274: N/A | BV274: N/A | BW274: N/A | BX274: N/A | BY274: N/A
BB275: No | BC275: N/A | BD275: N/A | BE275: N/A | BF275: N/A | BG275: N/A | BH275: N/A | BI275: N/A | BJ275: N/A | BK275: N/A | BL275: N/A | BM275: N/A | BN275: N/A | BO275: N/A | BP275: N/A | BQ275: N/A | BR275: N/A | BS275: N/A | BT275: N/A | BU275: N/A | BV275: N/A | BW275: N/A | BX275: N/A | BY275: N/A
BB276: DK/not sure/missing/no such activity | BC276: N/A | BD276: N/A | BE276: N/A | BF276: N/A | BG276: N/A | BH276: N/A | BI276: N/A | BJ276: N/A | BK276: N/A | BL276: N/A | BM276: N/A | BN276: N/A | BO276: N/A | BP276: N/A | BQ276: N/A | BR276: N/A | BS276: N/A | BT276: N/A | BU276: N/A | BV276: N/A | BW276: N/A | BX276: N/A | BY276: N/A
BA277: Participation in specific activities during menstruation | BB277: Did not go to school (amongst those usually attending school) | BC277: N/A | BD277: N/A | BE277: N/A | BF277: N/A | BG277: N/A | BH277: N/A | BI277: N/A | BJ277: N/A | BK277: N/A | BL277: N/A | BM277: N/A | BN277: N/A | BO277: N/A | BP277: N/A | BQ277: N/A | BR277: N/A | BS277: N/A | BT277: N/A | BU277: N/A | BV277: N/A | BW277: N/A | BX277: N/A | BY277: N/A
BB278: Did not go to work (amongst those who usually work) | BC278: N/A | BD278: N/A | BE278: N/A | BF278: N/A | BG278: N/A | BH278: N/A | BI278: N/A | BJ278: N/A | BK278: N/A | BL278: N/A | BM278: N/A | BN278: N/A | BO278: N/A | BP278: N/A | BQ278: N/A | BR278: N/A | BS278: N/A | BT278: N/A | BU278: N/A | BV278: N/A | BW278: N/A | BX278: N/A | BY278: N/A
BB279: Did not participate in social activities | BC279: N/A | BD279: N/A | BE279: N/A | BF279: N/A | BG279: N/A | BH279: N/A | BI279: N/A | BJ279: N/A | BK279: N/A | BL279: N/A | BM279: N/A | BN279: N/A | BO279: N/A | BP279: N/A | BQ279: N/A | BR279: N/A | BS279: N/A | BT279: N/A | BU279: N/A | BV279: N/A | BW279: N/A | BX279: N/A | BY279: N/A
BB280: Did not cook food | BC280: N/A | BD280: N/A | BE280: N/A | BF280: N/A | BG280: N/A | BH280: N/A | BI280: N/A | BJ280: N/A | BK280: N/A | BL280: N/A | BM280: N/A | BN280: N/A | BO280: N/A | BP280: N/A | BQ280: N/A | BR280: N/A | BS280: N/A | BT280: N/A | BU280: N/A | BV280: N/A | BW280: N/A | BX280: N/A | BY280: N/A
BB281: Did not eat with others | BC281: N/A | BD281: N/A | BE281: N/A | BF281: N/A | BG281: N/A | BH281: N/A | BI281: N/A | BJ281: N/A | BK281: N/A | BL281: N/A | BM281: N/A | BN281: N/A | BO281: N/A | BP281: N/A | BQ281: N/A | BR281: N/A | BS281: N/A | BT281: N/A | BU281: N/A | BV281: N/A | BW281: N/A | BX281: N/A | BY281: N/A
BB282: Did not bathe in regular place | BC282: N/A | BD282: N/A | BE282: N/A | BF282: N/A | BG282: N/A | BH282: N/A | BI282: N/A | BJ282: N/A | BK282: N/A | BL282: N/A | BM282: N/A | BN282: N/A | BO282: N/A | BP282: N/A | BQ282: N/A | BR282: N/A | BS282: N/A | BT282: N/A | BU282: N/A | BV282: N/A | BW282: N/A | BX282: N/A | BY282: N/A
BB283: Did not participate in other activities | BC283: N/A | BD283: N/A | BE283: N/A | BF283: N/A | BG283: N/A | BH283: N/A | BI283: N/A | BJ283: N/A | BK283: N/A | BL283: N/A | BM283: N/A | BN283: N/A | BO283: N/A | BP283: N/A | BQ283: N/A | BR283: N/A | BS283: N/A | BT283: N/A | BU283: N/A | BV283: N/A | BW283: N/A | BX283: N/A | BY283: N/A
BB284: DK/not sure/missing/no such activity | BC284: N/A | BD284: N/A | BE284: N/A | BF284: N/A | BG284: N/A | BH284: N/A | BI284: N/A | BJ284: N/A | BK284: N/A | BL284: N/A | BM284: N/A | BN284: N/A | BO284: N/A | BP284: N/A | BQ284: N/A | BR284: N/A | BS284: N/A | BT284: N/A | BU284: N/A | BV284: N/A | BW284: N/A | BX284: N/A | BY284: N/A
BA339: Raw numbers of respondents: | BB339: Basic water, sanitation and hygiene | BC339: NATIONAL wealth index quintile | BH339: URBAN wealth index quintile | BM339: RURAL wealth index quintile | BR339: SUB-REGIONS:
BA340: WatSan data, raw numbers (weighted) | BC340: Poorest | BD340: Poor | BE340: Middle | BF340: Rich | BG340: Richest | BH340: Poorest | BI340: Poor | BJ340: Middle | BK340: Rich | BL340: Richest | BM340: Poorest | BN340: Poor | BO340: Middle | BP340: Rich | BQ340: Richest | BR340: boké | BS340: conakry | BT340: faranah | BU340: kankan | BV340: kindia | BW340: labé | BX340: mamou | BY340: n'zérékoré
BA341: Use of Basic Water Sanitation and Hygiene | BB341: Yes | BC341: N/A | BD341: N/A | BE341: N/A | BF341: N/A | BG341: N/A | BH341: N/A | BI341: N/A | BJ341: N/A | BK341: N/A | BL341: N/A | BM341: N/A | BN341: N/A | BO341: N/A | BP341: N/A | BQ341: N/A | BR341: N/A | BS341: N/A | BT341: N/A | BU341: N/A | BV341: N/A | BW341: N/A | BX341: N/A | BY341: N/A
BB342: No | BC342: N/A | BD342: N/A | BE342: N/A | BF342: N/A | BG342: N/A | BH342: N/A | BI342: N/A | BJ342: N/A | BK342: N/A | BL342: N/A | BM342: N/A | BN342: N/A | BO342: N/A | BP342: N/A | BQ342: N/A | BR342: N/A | BS342: N/A | BT342: N/A | BU342: N/A | BV342: N/A | BW342: N/A | BX342: N/A | BY342: N/A
BA343: Use of Basic Water and Sanitation | BB343: Yes | BC343: N/A | BD343: N/A | BE343: N/A | BF343: N/A | BG343: N/A | BH343: N/A | BI343: N/A | BJ343: N/A | BK343: N/A | BL343: N/A | BM343: N/A | BN343: N/A | BO343: N/A | BP343: N/A | BQ343: N/A | BR343: N/A | BS343: N/A | BT343: N/A | BU343: N/A | BV343: N/A | BW343: N/A | BX343: N/A | BY343: N/A
BB344: No | BC344: N/A | BD344: N/A | BE344: N/A | BF344: N/A | BG344: N/A | BH344: N/A | BI344: N/A | BJ344: N/A | BK344: N/A | BL344: N/A | BM344: N/A | BN344: N/A | BO344: N/A | BP344: N/A | BQ344: N/A | BR344: N/A | BS344: N/A | BT344: N/A | BU344: N/A | BV344: N/A | BW344: N/A | BX344: N/A | BY344: N/A
BA345: Use of Basic Water and Hygiene | BB345: Yes | BC345: N/A | BD345: N/A | BE345: N/A | BF345: N/A | BG345: N/A | BH345: N/A | BI345: N/A | BJ345: N/A | BK345: N/A | BL345: N/A | BM345: N/A | BN345: N/A | BO345: N/A | BP345: N/A | BQ345: N/A | BR345: N/A | BS345: N/A | BT345: N/A | BU345: N/A | BV345: N/A | BW345: N/A | BX345: N/A | BY345: N/A
BB346: No | BC346: N/A | BD346: N/A | BE346: N/A | BF346: N/A | BG346: N/A | BH346: N/A | BI346: N/A | BJ346: N/A | BK346: N/A | BL346: N/A | BM346: N/A | BN346: N/A | BO346: N/A | BP346: N/A | BQ346: N/A | BR346: N/A | BS346: N/A | BT346: N/A | BU346: N/A | BV346: N/A | BW346: N/A | BX346: N/A | BY346: N/A
BA347: Use of Basic Sanitation and Hygiene | BB347: Yes | BC347: N/A | BD347: N/A | BE347: N/A | BF347: N/A | BG347: N/A | BH347: N/A | BI347: N/A | BJ347: N/A | BK347: N/A | BL347: N/A | BM347: N/A | BN347: N/A | BO347: N/A | BP347: N/A | BQ347: N/A | BR347: N/A | BS347: N/A | BT347: N/A | BU347: N/A | BV347: N/A | BW347: N/A | BX347: N/A | BY347: N/A
BB348: No | BC348: N/A | BD348: N/A | BE348: N/A | BF348: N/A | BG348: N/A | BH348: N/A | BI348: N/A | BJ348: N/A | BK348: N/A | BL348: N/A | BM348: N/A | BN348: N/A | BO348: N/A | BP348: N/A | BQ348: N/A | BR348: N/A | BS348: N/A | BT348: N/A | BU348: N/A | BV348: N/A | BW348: N/A | BX348: N/A | BY348: N/A
BA349: Use of Basic Water | BB349: Yes | BC349: N/A | BD349: N/A | BE349: N/A | BF349: N/A | BG349: N/A | BH349: N/A | BI349: N/A | BJ349: N/A | BK349: N/A | BL349: N/A | BM349: N/A | BN349: N/A | BO349: N/A | BP349: N/A | BQ349: N/A | BR349: N/A | BS349: N/A | BT349: N/A | BU349: N/A | BV349: N/A | BW349: N/A | BX349: N/A | BY349: N/A
BB350: No | BC350: N/A | BD350: N/A | BE350: N/A | BF350: N/A | BG350: N/A | BH350: N/A | BI350: N/A | BJ350: N/A | BK350: N/A | BL350: N/A | BM350: N/A | BN350: N/A | BO350: N/A | BP350: N/A | BQ350: N/A | BR350: N/A | BS350: N/A | BT350: N/A | BU350: N/A | BV350: N/A | BW350: N/A | BX350: N/A | BY350: N/A
BA351: Use of Basic Sanitation | BB351: Yes | BC351: N/A | BD351: N/A | BE351: N/A | BF351: N/A | BG351: N/A | BH351: N/A | BI351: N/A | BJ351: N/A | BK351: N/A | BL351: N/A | BM351: N/A | BN351: N/A | BO351: N/A | BP351: N/A | BQ351: N/A | BR351: N/A | BS351: N/A | BT351: N/A | BU351: N/A | BV351: N/A | BW351: N/A | BX351: N/A | BY351: N/A
BB352: No | BC352: N/A | BD352: N/A | BE352: N/A | BF352: N/A | BG352: N/A | BH352: N/A | BI352: N/A | BJ352: N/A | BK352: N/A | BL352: N/A | BM352: N/A | BN352: N/A | BO352: N/A | BP352: N/A | BQ352: N/A | BR352: N/A | BS352: N/A | BT352: N/A | BU352: N/A | BV352: N/A | BW352: N/A | BX352: N/A | BY352: N/A
BA353: Access to Basic Hygiene | BB353: Yes | BC353: N/A | BD353: N/A | BE353: N/A | BF353: N/A | BG353: N/A | BH353: N/A | BI353: N/A | BJ353: N/A | BK353: N/A | BL353: N/A | BM353: N/A | BN353: N/A | BO353: N/A | BP353: N/A | BQ353: N/A | BR353: N/A | BS353: N/A | BT353: N/A | BU353: N/A | BV353: N/A | BW353: N/A | BX353: N/A | BY353: N/A
BB354: No | BC354: N/A | BD354: N/A | BE354: N/A | BF354: N/A | BG354: N/A | BH354: N/A | BI354: N/A | BJ354: N/A | BK354: N/A | BL354: N/A | BM354: N/A | BN354: N/A | BO354: N/A | BP354: N/A | BQ354: N/A | BR354: N/A | BS354: N/A | BT354: N/A | BU354: N/A | BV354: N/A | BW354: N/A | BX354: N/A | BY354: N/A
C399: INITIAL (national) Wealth Index | H399: URBAN Wealth Index | M399: RURAL Wealth Index
C400: Component Matrix | H400: Component Matrix | M400: Component Matrix
E401: Component | J401: Component | O401: Component
B402: Note: The INITIAL (national) Wealth Index is based on the first component of the Principal Component Analysis (PCA) which has been obtained at national level. The final national-level (NATIONAL) Wealth Index is based on the URBAN and RURAL specific wealth indexes. Regression procedures are used to establish the relationships between the two sets of scores (urban and rural) and the initial (national) wealth factors. This allows best use of the available information for each area and a better precision of the FINAL (NATIONAL) Wealth Index. For dependency reasons, all WASH variables (contained in the generic MICS and DHS scripts) have been excluded from the sets of asset variables used in the PCAs. The PCA can extracts as many components as there are asset variables in the input. Only the first of the components is used to represent the Wealth Index. The scores represent the weights of the asset variables on the Wealth Index (correlations between the variables and the component). The communalities are the proportion of each variable's variance that can be explained by the component. Proportion of explained variance is the part of the model's total variance that is explained by the component. For more information on the procedure used: The DHS Wealth Index, DHS Comparative Reports No. 6, Shea Oscar Rutstein, Kiersten Johnson, ORC Macro International Inc., 2004. The DHS Wealth Index: Approaches for Rural and Urban Areas, Shea O. Rutstein, ORC Macro International Inc., 2008. MICS Methodological Paper No. 4, Review of options for reporting water, sanitation and hygiene coverage by wealth quintile, UNICEF, 2016. | E402: 1 | J402: 1 | O402: 1
C403: heat4 | E403: -0.813673511 | H403: heat4 | J403: -0.7307975141 | M403: wall1 | O403: 0.9341682461
C404: light1 | E404: 0.7858583729 | H404: light1 | J404: 0.7162353028 | M404: wall2 | O404: 0.9341682461
C405: roof1 | E405: 0.7563196611 | H405: roof1 | J405: 0.7009280517 | M405: wall3 | O405: 0.9341682461
C406: floor3 | E406: -0.7224490237 | H406: fuel1 | J406: -0.6223572353 | M406: wall4 | O406: 0.9341682461
C407: roof4 | E407: -0.7149833684 | H407: light5 | J407: -0.6122390357 | M407: wall5 | O407: 0.9341682461
C408: heat1 | E408: 0.7146945127 | H408: fuel2 | J408: 0.612004341 | M408: floor3 | O408: -0.4043362895
C409: fuel2 | E409: 0.7146170084 | H409: heat1 | J409: 0.60363023 | M409: floor1 | O409: 0.3980601732
C410: fuel1 | E410: -0.7138672922 | H410: roof4 | J410: -0.592408948 | M410: roof1 | O410: 0.3791578804
C411: floor1 | E411: 0.590299585 | H411: wall4 | J411: 0.5237058749 | M411: roof4 | O411: -0.3699756468
C412: house4 | E412: -0.5078037565 | H412: wall3 | J412: 0.5237058749 | M412: roof2 | O412: 0.2688912703
C413: wall2 | E413: 0.473451488 | H413: wall1 | J413: 0.5237058749 | M413: heat4 | O413: -0.2677417841
C414: wall3 | E414: 0.473451488 | H414: wall5 | J414: 0.5237058749 | M414: house4 | O414: -0.263304852
C415: wall5 | E415: 0.473451488 | H415: wall2 | J415: 0.5237058749 | M415: light1 | O415: 0.2030202047
C416: wall1 | E416: 0.473451488 | H416: floor3 | J416: -0.5006146361 | M416: heat3 | O416: 0.2017016508
C417: wall4 | E417: 0.473451488 | H417: house4 | J417: -0.4157848564 | M417: heat1 | O417: 0.2003088855
C418: light5 | E418: -0.4296161617 | H418: Medium land | J418: -0.2451725428 | M418: house1 | O418: 0.1819299794
C419: floor2 | E419: 0.2976445422 | H419: floor2 | J419: 0.2439410647 | M419: fuel2 | O419: 0.1585489022
C420: house2 | E420: 0.2714242715 | H420: Small land | J420: -0.2285698575 | M420: fuel1 | O420: -0.1212860456
C421: light7 | E421: -0.2487892135 | H421: 1-4 goats | J421: -0.2167975628 | M421: owner4 | O421: 0.1182944209
C422: heat2 | E422: 0.2309045457 | H422: floor1 | J422: 0.2167171798 | M422: Number of members per sleeping room | O422: -0.1036034702
C423: heat3 | E423: 0.1740245983 | H423: roof2 | J423: -0.2155306404 | M423: house2 | O423: 0.09852655052
... 212 more rows

Sheet DHS12
A2: =A1026 -> Guinea
A3: =A1034 -> 2012
A4: Use of drinking water sources
A5: by wealth quintile and sub-national region
A6: Notes:
A7: WHO/UNICEF JMP customised wealth index excludes water,
A8: sanitation and hygiene assets.
A9: Survey used for analysis: | B9: =A1025 -> DHS12
A10: =B1028 -> 
A11: =B1027 -> 
A14: Use of drinking water sources | C14: NATIONAL wealth index quintile | H14: URBAN wealth index quintile | M14: RURAL wealth index quintile | R14: SUB-REGIONS: | BA14: Raw numbers of respondents: | BB14: Use of drinking water sources | BC14: NATIONAL wealth index quintile | BH14: URBAN wealth index quintile | BM14: RURAL wealth index quintile | BR14: SUB-REGIONS:
A15: Weighted percentage (used in graphs) | C15: Poorest | D15: Poor | E15: Middle | F15: Rich | G15: Richest | H15: Poorest | I15: Poor | J15: Middle | K15: Rich | L15: Richest | M15: Poorest | N15: Poor | O15: Middle | P15: Rich | Q15: Richest | R15: Boké | S15: Conakry | T15: Faranah | U15: Kankan | V15: Kindia | W15: Labé | X15: Mamou | Y15: N'Zérékoré | BA15: Water data, raw numbers (weighted) | BC15: Poorest | BD15: Poor | BE15: Middle | BF15: Rich | BG15: Richest | BH15: Poorest | BI15: Poor | BJ15: Middle | BK15: Rich | BL15: Richest | BM15: Poorest | BN15: Poor | BO15: Middle | BP15: Rich | BQ15: Richest | BR15: Boké | BS15: Conakry | BT15: Faranah | BU15: Kankan | BV15: Kindia | BW15: Labé | BX15: Mamou | BY15: N'Zérékoré
A16: Water | B16: Improved | C16: 62.5 | D16: 61.4 | E16: 69.5 | F16: 87.6 | G16: 98.7 | H16: 84.9 | I16: 94.9 | J16: 98 | K16: 98.4 | L16: 99.7 | M16: 62.6 | N16: 63 | O16: 57.8 | P16: 68.7 | Q16: 81.1 | R16: 70.7 | S16: 99.4 | T16: 78.3 | U16: 80.5 | V16: 55.3 | W16: 61.8 | X16: 54.4 | Y16: 83.4 | BA16: Water | BB16: Improved | BC16: N/A | BD16: N/A | BE16: N/A | BF16: N/A | BG16: N/A | BH16: N/A | BI16: N/A | BJ16: N/A | BK16: N/A | BL16: N/A | BM16: N/A | BN16: N/A | BO16: N/A | BP16: N/A | BQ16: N/A | BR16: N/A | BS16: N/A | BT16: N/A | BU16: N/A | BV16: N/A | BW16: N/A | BX16: N/A | BY16: N/A
B17: Not Improved | C17: 37.5 | D17: 38.6 | E17: 30.5 | F17: 12.4 | G17: 1.3 | H17: 15.1 | I17: 5.1 | J17: 2 | K17: 1.6 | L17: 0.3 | M17: 37.4 | N17: 37 | O17: 42.2 | P17: 31.3 | Q17: 18.9 | R17: 29.3 | S17: 0.6 | T17: 21.7 | U17: 19.5 | V17: 44.7 | W17: 38.2 | X17: 45.6 | Y17: 16.6 | BB17: Not Improved | BC17: N/A | BD17: N/A | BE17: N/A | BF17: N/A | BG17: N/A | BH17: N/A | BI17: N/A | BJ17: N/A | BK17: N/A | BL17: N/A | BM17: N/A | BN17: N/A | BO17: N/A | BP17: N/A | BQ17: N/A | BR17: N/A | BS17: N/A | BT17: N/A | BU17: N/A | BV17: N/A | BW17: N/A | BX17: N/A | BY17: N/A
A18: Water ladder | B18: Basic | C18: 51 | D18: 48.4 | E18: 55 | F18: 70.6 | G18: 91.3 | H18: 70 | I18: 85.5 | J18: 84.6 | K18: 92.8 | L18: 96.5 | M18: 51.5 | N18: 50.6 | O18: 45.5 | P18: 53.4 | Q18: 60.6 | R18: 69.3 | S18: 91.4 | T18: 69.8 | U18: 59.6 | V18: 46.6 | W18: 43.7 | X18: 38.5 | Y18: 63.7 | BA18: Water ladder | BB18: Basic | BC18: N/A | BD18: N/A | BE18: N/A | BF18: N/A | BG18: N/A | BH18: N/A | BI18: N/A | BJ18: N/A | BK18: N/A | BL18: N/A | BM18: N/A | BN18: N/A | BO18: N/A | BP18: N/A | BQ18: N/A | BR18: N/A | BS18: N/A | BT18: N/A | BU18: N/A | BV18: N/A | BW18: N/A | BX18: N/A | BY18: N/A
B19: Limited | C19: 11.5 | D19: 13 | E19: 14.5 | F19: 17 | G19: 7.4 | H19: 14.9 | I19: 9.4 | J19: 13.4 | K19: 5.7 | L19: 3.2 | M19: 11.1 | N19: 12.3 | O19: 12.3 | P19: 15.3 | Q19: 20.6 | R19: 1.5 | S19: 8 | T19: 8.5 | U19: 20.9 | V19: 8.7 | W19: 18.1 | X19: 15.8 | Y19: 19.6 | BB19: Limited | BC19: N/A | BD19: N/A | BE19: N/A | BF19: N/A | BG19: N/A | BH19: N/A | BI19: N/A | BJ19: N/A | BK19: N/A | BL19: N/A | BM19: N/A | BN19: N/A | BO19: N/A | BP19: N/A | BQ19: N/A | BR19: N/A | BS19: N/A | BT19: N/A | BU19: N/A | BV19: N/A | BW19: N/A | BX19: N/A | BY19: N/A
B20: Unimproved | C20: 21.2 | D20: 22.2 | E20: 16.6 | F20: 9.5 | G20: 1.2 | H20: 14.6 | I20: 5.1 | J20: 1.9 | K20: 1.6 | L20: 0.3 | M20: 20.8 | N20: 22.1 | O20: 21.9 | P20: 17.4 | Q20: 11.3 | R20: 19 | S20: 0.6 | T20: 14.6 | U20: 14.1 | V20: 17 | W20: 20 | X20: 24.3 | Y20: 15.5 | BB20: Unimproved | BC20: N/A | BD20: N/A | BE20: N/A | BF20: N/A | BG20: N/A | BH20: N/A | BI20: N/A | BJ20: N/A | BK20: N/A | BL20: N/A | BM20: N/A | BN20: N/A | BO20: N/A | BP20: N/A | BQ20: N/A | BR20: N/A | BS20: N/A | BT20: N/A | BU20: N/A | BV20: N/A | BW20: N/A | BX20: N/A | BY20: N/A
B21: Surface water | C21: 16.4 | D21: 16.4 | E21: 13.9 | F21: 3 | G21: 0 | H21: 0.5 | I21: 0.1 | J21: 0.1 | K21: 0 | L21: 0 | M21: 16.5 | N21: 14.9 | O21: 20.3 | P21: 13.9 | Q21: 7.6 | R21: 10.3 | S21: 0 | T21: 7.1 | U21: 5.4 | V21: 27.8 | W21: 18.2 | X21: 21.4 | Y21: 1.2 | BB21: Surface water | BC21: N/A | BD21: N/A | BE21: N/A | BF21: N/A | BG21: N/A | BH21: N/A | BI21: N/A | BJ21: N/A | BK21: N/A | BL21: N/A | BM21: N/A | BN21: N/A | BO21: N/A | BP21: N/A | BQ21: N/A | BR21: N/A | BS21: N/A | BT21: N/A | BU21: N/A | BV21: N/A | BW21: N/A | BX21: N/A | BY21: N/A
A22: Improved water point at more than 30 minutes | B22: Yes | C22: 18.4 | D22: 21.1 | E22: 20.9 | F22: 19.4 | G22: 7.5 | H22: 17.5 | I22: 9.9 | J22: 13.7 | K22: 5.8 | L22: 3.2 | M22: 17.7 | N22: 19.6 | O22: 21.3 | P22: 22.2 | Q22: 25.4 | R22: 2.1 | S22: 8 | T22: 10.9 | U22: 25.9 | V22: 15.7 | W22: 29.2 | X22: 29.1 | Y22: 23.5 | BA22: Improved water point at more than 30 minutes | BB22: Yes | BC22: N/A | BD22: N/A | BE22: N/A | BF22: N/A | BG22: N/A | BH22: N/A | BI22: N/A | BJ22: N/A | BK22: N/A | BL22: N/A | BM22: N/A | BN22: N/A | BO22: N/A | BP22: N/A | BQ22: N/A | BR22: N/A | BS22: N/A | BT22: N/A | BU22: N/A | BV22: N/A | BW22: N/A | BX22: N/A | BY22: N/A
B23: No | C23: 81.6 | D23: 78.9 | E23: 79.1 | F23: 80.6 | G23: 92.5 | H23: 82.5 | I23: 90.1 | J23: 86.3 | K23: 94.2 | L23: 96.8 | M23: 82.3 | N23: 80.4 | O23: 78.7 | P23: 77.8 | Q23: 74.6 | R23: 97.9 | S23: 92 | T23: 89.1 | U23: 74.1 | V23: 84.3 | W23: 70.8 | X23: 70.9 | Y23: 76.5 | BB23: No | BC23: N/A | BD23: N/A | BE23: N/A | BF23: N/A | BG23: N/A | BH23: N/A | BI23: N/A | BJ23: N/A | BK23: N/A | BL23: N/A | BM23: N/A | BN23: N/A | BO23: N/A | BP23: N/A | BQ23: N/A | BR23: N/A | BS23: N/A | BT23: N/A | BU23: N/A | BV23: N/A | BW23: N/A | BX23: N/A | BY23: N/A
A24: Manually calculated ratios | B24: Improved wells
B25: Improved springs
B26: Other
C27: NATIONAL wealth index quintile | H27: URBAN wealth index quintile | M27: RURAL wealth index quintile | R27: SUB-REGIONS: | BA27: Raw numbers of respondents: | BB27: Use of drinking water sources | BC27: NATIONAL wealth index quintile | BH27: URBAN wealth index quintile | BM27: RURAL wealth index quintile | BR27: SUB-REGIONS:
A28: Percentage based on weighted population | C28: Poorest | D28: Poor | E28: Middle | F28: Rich | G28: Richest | H28: Poorest | I28: Poor | J28: Middle | K28: Rich | L28: Richest | M28: Poorest | N28: Poor | O28: Middle | P28: Rich | Q28: Richest | R28: Boké | S28: Conakry | T28: Faranah | U28: Kankan | V28: Kindia | W28: Labé | X28: Mamou | Y28: N'Zérékoré | BA28: Water data, raw numbers (weighted) | BC28: Poorest | BD28: Poor | BE28: Middle | BF28: Rich | BG28: Richest | BH28: Poorest | BI28: Poor | BJ28: Middle | BK28: Rich | BL28: Richest | BM28: Poorest | BN28: Poor | BO28: Middle | BP28: Rich | BQ28: Richest | BR28: Boké | BS28: Conakry | BT28: Faranah | BU28: Kankan | BV28: Kindia | BW28: Labé | BX28: Mamou | BY28: N'Zérékoré
A29: Piped water | B29: Yes | C29: 1.4 | D29: 3.1 | E29: 5.8 | F29: 32.9 | G29: 81.8 | H29: 36.5 | I29: 65.8 | J29: 77.1 | K29: 88.2 | L29: 83.5 | M29: 0.8 | N29: 1.3 | O29: 2.5 | P29: 3.3 | Q29: 8 | R29: 32.2 | S29: 86.5 | T29: 5 | U29: 9.8 | V29: 17 | W29: 2.9 | X29: 4.1 | Y29: 5.6 | BA29: Piped water | BB29: Yes | BC29: N/A | BD29: N/A | BE29: N/A | BF29: N/A | BG29: N/A | BH29: N/A | BI29: N/A | BJ29: N/A | BK29: N/A | BL29: N/A | BM29: N/A | BN29: N/A | BO29: N/A | BP29: N/A | BQ29: N/A | BR29: N/A | BS29: N/A | BT29: N/A | BU29: N/A | BV29: N/A | BW29: N/A | BX29: N/A | BY29: N/A
B30: No | C30: 98.6 | D30: 96.9 | E30: 94.2 | F30: 67.1 | G30: 18.2 | H30: 63.5 | I30: 34.2 | J30: 22.9 | K30: 11.8 | L30: 16.5 | M30: 99.2 | N30: 98.7 | O30: 97.5 | P30: 96.7 | Q30: 92 | R30: 67.8 | S30: 13.5 | T30: 95 | U30: 90.2 | V30: 83 | W30: 97.1 | X30: 95.9 | Y30: 94.4 | BB30: No | BC30: N/A | BD30: N/A | BE30: N/A | BF30: N/A | BG30: N/A | BH30: N/A | BI30: N/A | BJ30: N/A | BK30: N/A | BL30: N/A | BM30: N/A | BN30: N/A | BO30: N/A | BP30: N/A | BQ30: N/A | BR30: N/A | BS30: N/A | BT30: N/A | BU30: N/A | BV30: N/A | BW30: N/A | BX30: N/A | BY30: N/A
A31: Piped water on premises | B31: Yes | C31: 0.5 | D31: 0.3 | E31: 1.4 | F31: 14.8 | G31: 53.7 | H31: 15.3 | I31: 34.7 | J31: 38.6 | K31: 52.2 | L31: 73.3 | M31: 0.2 | N31: 0 | O31: 0.1 | P31: 0.6 | Q31: 0.5 | R31: 17.4 | S31: 55.9 | T31: 1.1 | U31: 4.8 | V31: 6.1 | W31: 1.3 | X31: 2.1 | Y31: 1.1 | BA31: Piped water on premises | BB31: Yes | BC31: N/A | BD31: N/A | BE31: N/A | BF31: N/A | BG31: N/A | BH31: N/A | BI31: N/A | BJ31: N/A | BK31: N/A | BL31: N/A | BM31: N/A | BN31: N/A | BO31: N/A | BP31: N/A | BQ31: N/A | BR31: N/A | BS31: N/A | BT31: N/A | BU31: N/A | BV31: N/A | BW31: N/A | BX31: N/A | BY31: N/A
B32: No | C32: 99.5 | D32: 99.7 | E32: 98.6 | F32: 85.2 | G32: 46.3 | H32: 84.7 | I32: 65.3 | J32: 61.4 | K32: 47.8 | L32: 26.7 | M32: 99.8 | N32: 100 | O32: 99.9 | P32: 99.4 | Q32: 99.5 | R32: 82.6 | S32: 44.1 | T32: 98.9 | U32: 95.2 | V32: 93.9 | W32: 98.7 | X32: 97.9 | Y32: 98.9 | BB32: No | BC32: N/A | BD32: N/A | BE32: N/A | BF32: N/A | BG32: N/A | BH32: N/A | BI32: N/A | BJ32: N/A | BK32: N/A | BL32: N/A | BM32: N/A | BN32: N/A | BO32: N/A | BP32: N/A | BQ32: N/A | BR32: N/A | BS32: N/A | BT32: N/A | BU32: N/A | BV32: N/A | BW32: N/A | BX32: N/A | BY32: N/A
A33: Piped water into dwelling | B33: Yes | C33: N/A | D33: N/A | E33: N/A | F33: N/A | G33: N/A | H33: N/A | I33: N/A | J33: N/A | K33: N/A | L33: N/A | M33: N/A | N33: N/A | O33: N/A | P33: N/A | Q33: N/A | R33: N/A | S33: N/A | T33: N/A | U33: N/A | V33: N/A | W33: N/A | X33: N/A | Y33: N/A | BA33: Piped water into dwelling | BB33: Yes | BC33: N/A | BD33: N/A | BE33: N/A | BF33: N/A | BG33: N/A | BH33: N/A | BI33: N/A | BJ33: N/A | BK33: N/A | BL33: N/A | BM33: N/A | BN33: N/A | BO33: N/A | BP33: N/A | BQ33: N/A | BR33: N/A | BS33: N/A | BT33: N/A | BU33: N/A | BV33: N/A | BW33: N/A | BX33: N/A | BY33: N/A
B34: No | C34: N/A | D34: N/A | E34: N/A | F34: N/A | G34: N/A | H34: N/A | I34: N/A | J34: N/A | K34: N/A | L34: N/A | M34: N/A | N34: N/A | O34: N/A | P34: N/A | Q34: N/A | R34: N/A | S34: N/A | T34: N/A | U34: N/A | V34: N/A | W34: N/A | X34: N/A | Y34: N/A | BB34: No | BC34: N/A | BD34: N/A | BE34: N/A | BF34: N/A | BG34: N/A | BH34: N/A | BI34: N/A | BJ34: N/A | BK34: N/A | BL34: N/A | BM34: N/A | BN34: N/A | BO34: N/A | BP34: N/A | BQ34: N/A | BR34: N/A | BS34: N/A | BT34: N/A | BU34: N/A | BV34: N/A | BW34: N/A | BX34: N/A | BY34: N/A
A35: Water source on premises | B35: Yes | C35: 9.5 | D35: 7.7 | E35: 11.9 | F35: 29.2 | G35: 61.6 | H35: 32 | I35: 47.7 | J35: 49 | K35: 58 | L35: 81.1 | M35: 8.9 | N35: 7.6 | O35: 8 | P35: 11.4 | Q35: 12.4 | R35: 30.8 | S35: 62.1 | T35: 10.7 | U35: 14.3 | V35: 15.8 | W35: 15.3 | X35: 10.6 | Y35: 11.3 | BA35: Water source on premises | BB35: Yes | BC35: N/A | BD35: N/A | BE35: N/A | BF35: N/A | BG35: N/A | BH35: N/A | BI35: N/A | BJ35: N/A | BK35: N/A | BL35: N/A | BM35: N/A | BN35: N/A | BO35: N/A | BP35: N/A | BQ35: N/A | BR35: N/A | BS35: N/A | BT35: N/A | BU35: N/A | BV35: N/A | BW35: N/A | BX35: N/A | BY35: N/A
B36: No | C36: 90.5 | D36: 92.3 | E36: 88.1 | F36: 70.8 | G36: 38.4 | H36: 68 | I36: 52.3 | J36: 51 | K36: 42 | L36: 18.9 | M36: 91.1 | N36: 92.4 | O36: 92 | P36: 88.6 | Q36: 87.6 | R36: 69.2 | S36: 37.9 | T36: 89.3 | U36: 85.7 | V36: 84.2 | W36: 84.7 | X36: 89.4 | Y36: 88.7 | BB36: No | BC36: N/A | BD36: N/A | BE36: N/A | BF36: N/A | BG36: N/A | BH36: N/A | BI36: N/A | BJ36: N/A | BK36: N/A | BL36: N/A | BM36: N/A | BN36: N/A | BO36: N/A | BP36: N/A | BQ36: N/A | BR36: N/A | BS36: N/A | BT36: N/A | BU36: N/A | BV36: N/A | BW36: N/A | BX36: N/A | BY36: N/A
A37: Improved Water source on premises | B37: Yes | C37: 9.4 | D37: 8.5 | E37: 13.1 | F37: 28.5 | G37: 62 | H37: 29 | I37: 46.8 | J37: 49.4 | K37: 58.6 | L37: 81.1 | M37: 8.9 | N37: 7.2 | O37: 10 | P37: 12.1 | Q37: 12.3 | R37: 35.9 | S37: 62.4 | T37: 8.5 | U37: 11.5 | V37: 23.5 | W37: 20.9 | X37: 15.2 | Y37: 12.3 | BA37: Improved water source on premises | BB37: Yes | BC37: N/A | BD37: N/A | BE37: N/A | BF37: N/A | BG37: N/A | BH37: N/A | BI37: N/A | BJ37: N/A | BK37: N/A | BL37: N/A | BM37: N/A | BN37: N/A | BO37: N/A | BP37: N/A | BQ37: N/A | BR37: N/A | BS37: N/A | BT37: N/A | BU37: N/A | BV37: N/A | BW37: N/A | BX37: N/A | BY37: N/A
B38: No | C38: 90.6 | D38: 91.5 | E38: 86.9 | F38: 71.5 | G38: 38 | H38: 71 | I38: 53.2 | J38: 50.6 | K38: 41.4 | L38: 18.9 | M38: 91.1 | N38: 92.8 | O38: 90 | P38: 87.9 | Q38: 87.7 | R38: 64.1 | S38: 37.6 | T38: 91.5 | U38: 88.5 | V38: 76.5 | W38: 79.1 | X38: 84.8 | Y38: 87.7 | BB38: No | BC38: N/A | BD38: N/A | BE38: N/A | BF38: N/A | BG38: N/A | BH38: N/A | BI38: N/A | BJ38: N/A | BK38: N/A | BL38: N/A | BM38: N/A | BN38: N/A | BO38: N/A | BP38: N/A | BQ38: N/A | BR38: N/A | BS38: N/A | BT38: N/A | BU38: N/A | BV38: N/A | BW38: N/A | BX38: N/A | BY38: N/A
A39: Piped water on premises available when needed | B39: Yes | C39: N/A | D39: N/A | E39: N/A | F39: N/A | G39: N/A | H39: N/A | I39: N/A | J39: N/A | K39: N/A | L39: N/A | M39: N/A | N39: N/A | O39: N/A | P39: N/A | Q39: N/A | R39: N/A | S39: N/A | T39: N/A | U39: N/A | V39: N/A | W39: N/A | X39: N/A | Y39: N/A | BA39: Piped water on premises available when needed | BB39: Yes | BC39: N/A | BD39: N/A | BE39: N/A | BF39: N/A | BG39: N/A | BH39: N/A | BI39: N/A | BJ39: N/A | BK39: N/A | BL39: N/A | BM39: N/A | BN39: N/A | BO39: N/A | BP39: N/A | BQ39: N/A | BR39: N/A | BS39: N/A | BT39: N/A | BU39: N/A | BV39: N/A | BW39: N/A | BX39: N/A | BY39: N/A
B40: No | C40: N/A | D40: N/A | E40: N/A | F40: N/A | G40: N/A | H40: N/A | I40: N/A | J40: N/A | K40: N/A | L40: N/A | M40: N/A | N40: N/A | O40: N/A | P40: N/A | Q40: N/A | R40: N/A | S40: N/A | T40: N/A | U40: N/A | V40: N/A | W40: N/A | X40: N/A | Y40: N/A | BB40: No | BC40: N/A | BD40: N/A | BE40: N/A | BF40: N/A | BG40: N/A | BH40: N/A | BI40: N/A | BJ40: N/A | BK40: N/A | BL40: N/A | BM40: N/A | BN40: N/A | BO40: N/A | BP40: N/A | BQ40: N/A | BR40: N/A | BS40: N/A | BT40: N/A | BU40: N/A | BV40: N/A | BW40: N/A | BX40: N/A | BY40: N/A
A41: Water point at more than 30 minutes | B41: Yes | C41: 24.7 | D41: 24 | E41: 23.7 | F41: 19.1 | G41: 7.4 | H41: 16.5 | I41: 9.9 | J41: 13.4 | K41: 5.7 | L41: 3.2 | M41: 24.5 | N41: 24.3 | O41: 24.1 | P41: 25.5 | Q41: 24.9 | R41: 6.6 | S41: 8 | T41: 12.5 | U41: 25.6 | V41: 19.4 | W41: 39.5 | X41: 35.4 | Y41: 23.4 | BA41: Water point at more than 30 minutes | BB41: Yes | BC41: N/A | BD41: N/A | BE41: N/A | BF41: N/A | BG41: N/A | BH41: N/A | BI41: N/A | BJ41: N/A | BK41: N/A | BL41: N/A | BM41: N/A | BN41: N/A | BO41: N/A | BP41: N/A | BQ41: N/A | BR41: N/A | BS41: N/A | BT41: N/A | BU41: N/A | BV41: N/A | BW41: N/A | BX41: N/A | BY41: N/A
B42: No | C42: 75.3 | D42: 76 | E42: 76.3 | F42: 80.9 | G42: 92.6 | H42: 83.5 | I42: 90.1 | J42: 86.6 | K42: 94.3 | L42: 96.8 | M42: 75.5 | N42: 75.7 | O42: 75.9 | P42: 74.5 | Q42: 75.1 | R42: 93.4 | S42: 92 | T42: 87.5 | U42: 74.4 | V42: 80.6 | W42: 60.5 | X42: 64.6 | Y42: 76.6 | BB42: No | BC42: N/A | BD42: N/A | BE42: N/A | BF42: N/A | BG42: N/A | BH42: N/A | BI42: N/A | BJ42: N/A | BK42: N/A | BL42: N/A | BM42: N/A | BN42: N/A | BO42: N/A | BP42: N/A | BQ42: N/A | BR42: N/A | BS42: N/A | BT42: N/A | BU42: N/A | BV42: N/A | BW42: N/A | BX42: N/A | BY42: N/A
A43: Water source available when needed | B43: Yes | C43: N/A | D43: N/A | E43: N/A | F43: N/A | G43: N/A | H43: N/A | I43: N/A | J43: N/A | K43: N/A | L43: N/A | M43: N/A | N43: N/A | O43: N/A | P43: N/A | Q43: N/A | R43: N/A | S43: N/A | T43: N/A | U43: N/A | V43: N/A | W43: N/A | X43: N/A | Y43: N/A | BA43: Water source available when needed | BB43: Yes | BC43: N/A | BD43: N/A | BE43: N/A | BF43: N/A | BG43: N/A | BH43: N/A | BI43: N/A | BJ43: N/A | BK43: N/A | BL43: N/A | BM43: N/A | BN43: N/A | BO43: N/A | BP43: N/A | BQ43: N/A | BR43: N/A | BS43: N/A | BT43: N/A | BU43: N/A | BV43: N/A | BW43: N/A | BX43: N/A | BY43: N/A
B44: No | C44: N/A | D44: N/A | E44: N/A | F44: N/A | G44: N/A | H44: N/A | I44: N/A | J44: N/A | K44: N/A | L44: N/A | M44: N/A | N44: N/A | O44: N/A | P44: N/A | Q44: N/A | R44: N/A | S44: N/A | T44: N/A | U44: N/A | V44: N/A | W44: N/A | X44: N/A | Y44: N/A | BB44: No | BC44: N/A | BD44: N/A | BE44: N/A | BF44: N/A | BG44: N/A | BH44: N/A | BI44: N/A | BJ44: N/A | BK44: N/A | BL44: N/A | BM44: N/A | BN44: N/A | BO44: N/A | BP44: N/A | BQ44: N/A | BR44: N/A | BS44: N/A | BT44: N/A | BU44: N/A | BV44: N/A | BW44: N/A | BX44: N/A | BY44: N/A
A45: Improved water source available when needed | B45: Yes | C45: N/A | D45: N/A | E45: N/A | F45: N/A | G45: N/A | H45: N/A | I45: N/A | J45: N/A | K45: N/A | L45: N/A | M45: N/A | N45: N/A | O45: N/A | P45: N/A | Q45: N/A | R45: N/A | S45: N/A | T45: N/A | U45: N/A | V45: N/A | W45: N/A | X45: N/A | Y45: N/A | BA45: Improved water source available when needed | BB45: Yes | BC45: N/A | BD45: N/A | BE45: N/A | BF45: N/A | BG45: N/A | BH45: N/A | BI45: N/A | BJ45: N/A | BK45: N/A | BL45: N/A | BM45: N/A | BN45: N/A | BO45: N/A | BP45: N/A | BQ45: N/A | BR45: N/A | BS45: N/A | BT45: N/A | BU45: N/A | BV45: N/A | BW45: N/A | BX45: N/A | BY45: N/A
B46: No | C46: N/A | D46: N/A | E46: N/A | F46: N/A | G46: N/A | H46: N/A | I46: N/A | J46: N/A | K46: N/A | L46: N/A | M46: N/A | N46: N/A | O46: N/A | P46: N/A | Q46: N/A | R46: N/A | S46: N/A | T46: N/A | U46: N/A | V46: N/A | W46: N/A | X46: N/A | Y46: N/A | BB46: No | BC46: N/A | BD46: N/A | BE46: N/A | BF46: N/A | BG46: N/A | BH46: N/A | BI46: N/A | BJ46: N/A | BK46: N/A | BL46: N/A | BM46: N/A | BN46: N/A | BO46: N/A | BP46: N/A | BQ46: N/A | BR46: N/A | BS46: N/A | BT46: N/A | BU46: N/A | BV46: N/A | BW46: N/A | BX46: N/A | BY46: N/A
A47: Microbiological quality at point of collection | B47: Not contaminated (No E. coli in 100 mL) | C47: N/A | D47: N/A | E47: N/A | F47: N/A | G47: N/A | H47: N/A | I47: N/A | J47: N/A | K47: N/A | L47: N/A | M47: N/A | N47: N/A | O47: N/A | P47: N/A | Q47: N/A | R47: N/A | S47: N/A | T47: N/A | U47: N/A | V47: N/A | W47: N/A | X47: N/A | Y47: N/A | BA47: Microbiological quality at point of collection | BB47: Not contaminated (No E. coli in 100 mL) | BC47: N/A | BD47: N/A | BE47: N/A | BF47: N/A | BG47: N/A | BH47: N/A | BI47: N/A | BJ47: N/A | BK47: N/A | BL47: N/A | BM47: N/A | BN47: N/A | BO47: N/A | BP47: N/A | BQ47: N/A | BR47: N/A | BS47: N/A | BT47: N/A | BU47: N/A | BV47: N/A | BW47: N/A | BX47: N/A | BY47: N/A
B48: Contaminated (E. coli detected in 100 mL) | C48: N/A | D48: N/A | E48: N/A | F48: N/A | G48: N/A | H48: N/A | I48: N/A | J48: N/A | K48: N/A | L48: N/A | M48: N/A | N48: N/A | O48: N/A | P48: N/A | Q48: N/A | R48: N/A | S48: N/A | T48: N/A | U48: N/A | V48: N/A | W48: N/A | X48: N/A | Y48: N/A | BB48: Contaminated (E. coli detected in 100 mL) | BC48: N/A | BD48: N/A | BE48: N/A | BF48: N/A | BG48: N/A | BH48: N/A | BI48: N/A | BJ48: N/A | BK48: N/A | BL48: N/A | BM48: N/A | BN48: N/A | BO48: N/A | BP48: N/A | BQ48: N/A | BR48: N/A | BS48: N/A | BT48: N/A | BU48: N/A | BV48: N/A | BW48: N/A | BX48: N/A | BY48: N/A
B49: Highly contaminated (>100 CFU/100 mL) | C49: N/A | D49: N/A | E49: N/A | F49: N/A | G49: N/A | H49: N/A | I49: N/A | J49: N/A | K49: N/A | L49: N/A | M49: N/A | N49: N/A | O49: N/A | P49: N/A | Q49: N/A | R49: N/A | S49: N/A | T49: N/A | U49: N/A | V49: N/A | W49: N/A | X49: N/A | Y49: N/A | BB49: Highly contaminated (>100 CFU/100 mL) | BC49: N/A | BD49: N/A | BE49: N/A | BF49: N/A | BG49: N/A | BH49: N/A | BI49: N/A | BJ49: N/A | BK49: N/A | BL49: N/A | BM49: N/A | BN49: N/A | BO49: N/A | BP49: N/A | BQ49: N/A | BR49: N/A | BS49: N/A | BT49: N/A | BU49: N/A | BV49: N/A | BW49: N/A | BX49: N/A | BY49: N/A
A50: Microbiological quality of improved water sources at point of collection | B50: Not contaminated (No E. coli in 100 mL) | C50: N/A | D50: N/A | E50: N/A | F50: N/A | G50: N/A | H50: N/A | I50: N/A | J50: N/A | K50: N/A | L50: N/A | M50: N/A | N50: N/A | O50: N/A | P50: N/A | Q50: N/A | R50: N/A | S50: N/A | T50: N/A | U50: N/A | V50: N/A | W50: N/A | X50: N/A | Y50: N/A | BA50: Microbiological quality of improved water sources at point of collection | BB50: Not contaminated (No E. coli in 100 mL) | BC50: N/A | BD50: N/A | BE50: N/A | BF50: N/A | BG50: N/A | BH50: N/A | BI50: N/A | BJ50: N/A | BK50: N/A | BL50: N/A | BM50: N/A | BN50: N/A | BO50: N/A | BP50: N/A | BQ50: N/A | BR50: N/A | BS50: N/A | BT50: N/A | BU50: N/A | BV50: N/A | BW50: N/A | BX50: N/A | BY50: N/A
B51: Contaminated (E. coli detected in 100 mL) | C51: N/A | D51: N/A | E51: N/A | F51: N/A | G51: N/A | H51: N/A | I51: N/A | J51: N/A | K51: N/A | L51: N/A | M51: N/A | N51: N/A | O51: N/A | P51: N/A | Q51: N/A | R51: N/A | S51: N/A | T51: N/A | U51: N/A | V51: N/A | W51: N/A | X51: N/A | Y51: N/A | BB51: Contaminated (E. coli detected in 100 mL) | BC51: N/A | BD51: N/A | BE51: N/A | BF51: N/A | BG51: N/A | BH51: N/A | BI51: N/A | BJ51: N/A | BK51: N/A | BL51: N/A | BM51: N/A | BN51: N/A | BO51: N/A | BP51: N/A | BQ51: N/A | BR51: N/A | BS51: N/A | BT51: N/A | BU51: N/A | BV51: N/A | BW51: N/A | BX51: N/A | BY51: N/A
B52: Highly contaminated (>100 CFU/100 mL) | C52: N/A | D52: N/A | E52: N/A | F52: N/A | G52: N/A | H52: N/A | I52: N/A | J52: N/A | K52: N/A | L52: N/A | M52: N/A | N52: N/A | O52: N/A | P52: N/A | Q52: N/A | R52: N/A | S52: N/A | T52: N/A | U52: N/A | V52: N/A | W52: N/A | X52: N/A | Y52: N/A | BB52: Highly contaminated (>100 CFU/100 mL) | BC52: N/A | BD52: N/A | BE52: N/A | BF52: N/A | BG52: N/A | BH52: N/A | BI52: N/A | BJ52: N/A | BK52: N/A | BL52: N/A | BM52: N/A | BN52: N/A | BO52: N/A | BP52: N/A | BQ52: N/A | BR52: N/A | BS52: N/A | BT52: N/A | BU52: N/A | BV52: N/A | BW52: N/A | BX52: N/A | BY52: N/A
A53: Microbiological quality of piped on premises at point of collection | B53: Not contaminated (No E. coli in 100 mL) | C53: N/A | D53: N/A | E53: N/A | F53: N/A | G53: N/A | H53: N/A | I53: N/A | J53: N/A | K53: N/A | L53: N/A | M53: N/A | N53: N/A | O53: N/A | P53: N/A | Q53: N/A | R53: N/A | S53: N/A | T53: N/A | U53: N/A | V53: N/A | W53: N/A | X53: N/A | Y53: N/A | BA53: Microbiological quality of piped on premises at point of collection | BB53: Not contaminated (No E. coli in 100 mL) | BC53: N/A | BD53: N/A | BE53: N/A | BF53: N/A | BG53: N/A | BH53: N/A | BI53: N/A | BJ53: N/A | BK53: N/A | BL53: N/A | BM53: N/A | BN53: N/A | BO53: N/A | BP53: N/A | BQ53: N/A | BR53: N/A | BS53: N/A | BT53: N/A | BU53: N/A | BV53: N/A | BW53: N/A | BX53: N/A | BY53: N/A
B54: Contaminated (E. coli detected in 100 mL) | C54: N/A | D54: N/A | E54: N/A | F54: N/A | G54: N/A | H54: N/A | I54: N/A | J54: N/A | K54: N/A | L54: N/A | M54: N/A | N54: N/A | O54: N/A | P54: N/A | Q54: N/A | R54: N/A | S54: N/A | T54: N/A | U54: N/A | V54: N/A | W54: N/A | X54: N/A | Y54: N/A | BB54: Contaminated (E. coli detected in 100 mL) | BC54: N/A | BD54: N/A | BE54: N/A | BF54: N/A | BG54: N/A | BH54: N/A | BI54: N/A | BJ54: N/A | BK54: N/A | BL54: N/A | BM54: N/A | BN54: N/A | BO54: N/A | BP54: N/A | BQ54: N/A | BR54: N/A | BS54: N/A | BT54: N/A | BU54: N/A | BV54: N/A | BW54: N/A | BX54: N/A | BY54: N/A
B55: Highly contaminated (>100 CFU/100 mL) | C55: N/A | D55: N/A | E55: N/A | F55: N/A | G55: N/A | H55: N/A | I55: N/A | J55: N/A | K55: N/A | L55: N/A | M55: N/A | N55: N/A | O55: N/A | P55: N/A | Q55: N/A | R55: N/A | S55: N/A | T55: N/A | U55: N/A | V55: N/A | W55: N/A | X55: N/A | Y55: N/A | BB55: Highly contaminated (>100 CFU/100 mL) | BC55: N/A | BD55: N/A | BE55: N/A | BF55: N/A | BG55: N/A | BH55: N/A | BI55: N/A | BJ55: N/A | BK55: N/A | BL55: N/A | BM55: N/A | BN55: N/A | BO55: N/A | BP55: N/A | BQ55: N/A | BR55: N/A | BS55: N/A | BT55: N/A | BU55: N/A | BV55: N/A | BW55: N/A | BX55: N/A | BY55: N/A
C56: NATIONAL wealth index quintile | H56: URBAN wealth index quintile | M56: RURAL wealth index quintile | R56: SUB-REGIONS: | BA56: Raw numbers of respondents: | BB56: Use of drinking water sources | BC56: NATIONAL wealth index quintile | BH56: URBAN wealth index quintile | BM56: RURAL wealth index quintile | BR56: SUB-REGIONS:
A57: Percentage based on weighted population | C57: Poorest | D57: Poor | E57: Middle | F57: Rich | G57: Richest | H57: Poorest | I57: Poor | J57: Middle | K57: Rich | L57: Richest | M57: Poorest | N57: Poor | O57: Middle | P57: Rich | Q57: Richest | R57: Boké | S57: Conakry | T57: Faranah | U57: Kankan | V57: Kindia | W57: Labé | X57: Mamou | Y57: N'Zérékoré | BA57: Water data, raw numbers (weighted) | BC57: Poorest | BD57: Poor | BE57: Middle | BF57: Rich | BG57: Richest | BH57: Poorest | BI57: Poor | BJ57: Middle | BK57: Rich | BL57: Richest | BM57: Poorest | BN57: Poor | BO57: Middle | BP57: Rich | BQ57: Richest | BR57: Boké | BS57: Conakry | BT57: Faranah | BU57: Kankan | BV57: Kindia | BW57: Labé | BX57: Mamou | BY57: N'Zérékoré
A58: Source of drinking water | B58: Piped into dwelling | C58: 0 | D58: 0.2 | E58: 0.6 | F58: 7.8 | G58: 34.5 | H58: 5.1 | I58: 20.6 | J58: 20.6 | K58: 35.2 | L58: 49.3 | M58: 0 | N58: 0 | O58: 0.1 | P58: 0.3 | Q58: 0.3 | R58: 12.6 | S58: 34.7 | T58: 0.4 | U58: 2.1 | V58: 2.4 | W58: 0.9 | X58: 1.3 | Y58: 0.7
B59: Piped to yard/plot | C59: 0.4 | D59: 0 | E59: 0.8 | F59: 7 | G59: 19.2 | H59: 10.2 | I59: 14.1 | J59: 18 | K59: 16.9 | L59: 24 | M59: 0.2 | N59: 0 | O59: 0 | P59: 0.2 | Q59: 0.2 | R59: 4.8 | S59: 21.2 | T59: 0.7 | U59: 2.7 | V59: 3.7 | W59: 0.5 | X59: 0.8 | Y59: 0.4
B60: Public tap/standpipe | C60: 0.7 | D60: 1.9 | E60: 2.7 | F60: 5.9 | G60: 4.2 | H60: 3 | I60: 4.7 | J60: 7.1 | K60: 2.9 | L60: 1.9 | M60: 0.6 | N60: 1.3 | O60: 2 | P60: 2.3 | Q60: 7.1 | R60: 5.8 | S60: 2.8 | T60: 1.8 | U60: 1.8 | V60: 5.5 | W60: 0.9 | X60: 0.2 | Y60: 3.5
B61: Piped from the neighbor | C61: 0.3 | D61: 0.9 | E61: 1.7 | F61: 12.3 | G61: 23.9 | H61: 18.1 | I61: 26.4 | J61: 31.4 | K61: 33.1 | L61: 8.3 | M61: 0 | N61: 0 | O61: 0.3 | P61: 0.4 | Q61: 0.4 | R61: 9 | S61: 27.8 | T61: 2.1 | U61: 3.3 | V61: 5.4 | W61: 0.7 | X61: 1.9 | Y61: 1
